Workbook

Sheet Calculator
B14: Machinery Information
C16: Fuel Price (per litre) | D16: 1.4 | F16: Machinery Financed | I16: 0.5 | M16: v1.0
C17: Labour rate (per hour) | D17: 27 | F17: Interest Rate | I17: 0.085
C18: Field Efficiency Rate | D18: 0.8 | F18: Opportunity Cost Rate | I18: 0.015 | J18: *** Enter any changes to BLUE values only ***
C19: Rental & Custom Margin | D19: 0.15 | F19: Loan Payback Period (years) | I19: 7 | Q19: ****HIDE****
C20: Insurance and Housing | D20: 0.01 | F20: Opportunity Cost Period (years) | I20: 7
F22: Implement #1 | I22: Implement #2 | L22: Implement #3 | S22: Implement #1 | V22: Implement #2 | Y22: Implement #3
B23: 1. Select category: | F23: (Select Category) | I23: (Select Category) | L23: (Select Category) | S23: (Select Category) | V23: (Select Category) | Y23: (Select Category)
B25: 2. Select farm equipment:
B27: 3. Select equipment size:
C28: ***HIDE ROW*** | F28: =F23&" "&F25&" "&F27 -> (Select Category) | I28: =I23&" "&I25&" "&I27 -> (Select Category) | L28: =L23&" "&L25&" "&L27 -> (Select Category) | S28: =S23&" "&S25&" "&S27 -> (Select Category) | V28: =V23&" "&V25&" "&V27 -> (Select Category) | Y28: =Y23&" "&Y25&" "&Y27 -> (Select Category)
B33: 4. Purchasing Information
B34: Equipment value | F34: =IF(F27="",0,VLOOKUP($F$28,DATA!$A$6:$AQ$196,6,FALSE)) -> 0 | I34: =IF(I27="",0,VLOOKUP($I$28,DATA!$A$6:$AQ$196,6,FALSE)) -> 0 | L34: =IF(L27="",0,VLOOKUP($L$28,DATA!$A$6:$AQ$196,6,FALSE)) -> 0 | S34: =IF(S27="",0,VLOOKUP($F$28,DATA!$A$6:$AQ$196,6,FALSE)) -> 0 | V34: =IF(V27="",0,VLOOKUP($I$28,DATA!$A$6:$AQ$196,6,FALSE)) -> 0 | Y34: =IF(Y27="",0,VLOOKUP($L$28,DATA!$A$6:$AQ$196,6,FALSE)) -> 0
B35: Annual hours of usage | F35: =IF(F27="",0,VLOOKUP($F$28,DATA!$A$6:$AQ$196,25,FALSE)) -> 0 | G35: hours | I35: =IF(I27="",0,VLOOKUP($I$28,DATA!$A$6:$AQ$196,25,FALSE)) -> 0 | J35: hours | L35: =IF(L27="",0,VLOOKUP($L$28,DATA!$A$6:$AQ$196,25,FALSE)) -> 0 | M35: hours | S35: =IF(S27="",0,VLOOKUP($F$28,DATA!$A$6:$AQ$196,25,FALSE)) -> 0 | T35: hours | V35: =IF(V27="",0,VLOOKUP($I$28,DATA!$A$6:$AQ$196,25,FALSE)) -> 0 | W35: hours | Y35: =IF(Y27="",0,VLOOKUP($L$28,DATA!$A$6:$AQ$196,25,FALSE)) -> 0 | Z35: hours
B36: Optimal life for equipment | F36: =IF(F27="",0,VLOOKUP($F$28,DATA!$A$6:$AQ$196,24,FALSE)) -> 0 | G36: years | I36: =IF(I27="",0,VLOOKUP($I$28,DATA!$A$6:$AQ$196,24,FALSE)) -> 0 | J36: years | L36: =IF(L27="",0,VLOOKUP($L$28,DATA!$A$6:$AQ$196,24,FALSE)) -> 0 | M36: years | S36: =IF(S27="",0,VLOOKUP($F$28,DATA!$A$6:$AQ$196,24,FALSE)) -> 0 | T36: years | V36: =IF(V27="",0,VLOOKUP($I$28,DATA!$A$6:$AQ$196,24,FALSE)) -> 0 | W36: years | Y36: =IF(Y27="",0,VLOOKUP($L$28,DATA!$A$6:$AQ$196,24,FALSE)) -> 0 | Z36: years
B37: Depreciation over optimal life | F37: =IF(F34=0,0,Fraction_dep_over_optimal_life) -> 0 | I37: =IF(I34=0,0,Fraction_dep_over_optimal_life) -> 0 | L37: =IF(L34=0,0,Fraction_dep_over_optimal_life) -> 0 | S37: =IF(S34=0,0,Fraction_dep_over_optimal_life) -> 0 | V37: =IF(V34=0,0,Fraction_dep_over_optimal_life) -> 0 | Y37: =IF(Y34=0,0,Fraction_dep_over_optimal_life) -> 0
B38: Retained value at end of optimal life | F38: =F34*(1-F37) -> 0 | I38: =I34*(1-I37) -> 0 | L38: =L34*(1-L37) -> 0 | S38: =S34*(1-S37) -> 0 | V38: =V34*(1-V37) -> 0 | Y38: =Y34*(1-Y37) -> 0
B40: 5. Other
B41: Fuel used per hour | F41: =IF(F27="",0,VLOOKUP($F$28,DATA!$A$6:$AQ$196,27,FALSE)) -> 0 | G41: Litres | I41: =IF(I27="",0,VLOOKUP($I$28,DATA!$A$6:$AQ$196,27,FALSE)) -> 0 | J41: Litres | L41: =IF(L27="",0,VLOOKUP($L$28,DATA!$A$6:$AQ$196,27,FALSE)) -> 0 | M41: Litres | S41: =IF(S27="",0,VLOOKUP($F$28,DATA!$A$6:$AQ$196,27,FALSE)) -> 0 | T41: Litres | V41: =IF(V27="",0,VLOOKUP($I$28,DATA!$A$6:$AQ$196,27,FALSE)) -> 0 | W41: Litres | Y41: =IF(Y27="",0,VLOOKUP($L$28,DATA!$A$6:$AQ$196,27,FALSE)) -> 0 | Z41: Litres
B42: Annual repair and maintenance (R&M) rate | F42: =IF(F27="",0,(VLOOKUP($F$28,DATA!$A$6:$AQ$196,26,FALSE)/100)) -> 0 | I42: =IF(I27="",0,(VLOOKUP($I$28,DATA!$A$6:$AQ$196,26,FALSE)/100)) -> 0 | L42: =IF(L27="",0,(VLOOKUP($L$28,DATA!$A$6:$AQ$196,26,FALSE)/100)) -> 0 | S42: =IF(S27="",0,(VLOOKUP($F$28,DATA!$A$6:$AQ$196,26,FALSE)/100)) -> 0 | V42: =IF(V27="",0,(VLOOKUP($I$28,DATA!$A$6:$AQ$196,26,FALSE)/100)) -> 0 | Y42: =IF(Y27="",0,(VLOOKUP($L$28,DATA!$A$6:$AQ$196,26,FALSE)/100)) -> 0
B43: Annual R&M cost | F43: =F42*F34 -> 0 | I43: =I42*I34 -> 0 | L43: =L42*L34 -> 0 | S43: =S42*S34 -> 0 | V43: =V42*V34 -> 0 | Y43: =Y42*Y34 -> 0
B45: 6. Work Rate Information
B46: Speed | F46: =IF(F27="",0,IF(VLOOKUP($F$28,DATA!$A$6:$AQ$196,28,FALSE)="","n/a",VLOOKUP($F$28,DATA!$A$6:$AQ$196,28,FALSE))) -> 0 | G46: mph | I46: =IF(I27="",0,IF(VLOOKUP($I$28,DATA!$A$6:$AQ$196,28,FALSE)="","n/a",VLOOKUP($I$28,DATA!$A$6:$AQ$196,28,FALSE))) -> 0 | J46: mph | L46: =IF(L27="",0,IF(VLOOKUP($L$28,DATA!$A$6:$AQ$196,28,FALSE)="","n/a",VLOOKUP($L$28,DATA!$A$6:$AQ$196,28,FALSE))) -> 0 | M46: mph | S46: =IF(S27="",0,IF(VLOOKUP($F$28,DATA!$A$6:$AQ$196,28,FALSE)="","n/a",VLOOKUP($F$28,DATA!$A$6:$AQ$196,28,FALSE))) -> 0 | T46: mph | V46: =IF(V27="",0,IF(VLOOKUP($I$28,DATA!$A$6:$AQ$196,28,FALSE)="","n/a",VLOOKUP($I$28,DATA!$A$6:$AQ$196,28,FALSE))) -> 0 | W46: mph | Y46: =IF(Y27="",0,IF(VLOOKUP($L$28,DATA!$A$6:$AQ$196,28,FALSE)="","n/a",VLOOKUP($L$28,DATA!$A$6:$AQ$196,28,FALSE))) -> 0 | Z46: mph
B47: Implement width | F47: =IF(F27="",0,IF(VLOOKUP($F$28,DATA!$A$6:$AQ$196,29,FALSE)="","n/a",VLOOKUP($F$28,DATA!$A$6:$AQ$196,29,FALSE))) -> 0 | G47: feet | I47: =IF(I27="",0,IF(VLOOKUP($I$28,DATA!$A$6:$AQ$196,29,FALSE)="","n/a",VLOOKUP($I$28,DATA!$A$6:$AQ$196,29,FALSE))) -> 0 | J47: feet | L47: =IF(L27="",0,IF(VLOOKUP($L$28,DATA!$A$6:$AQ$196,29,FALSE)="","n/a",VLOOKUP($L$28,DATA!$A$6:$AQ$196,29,FALSE))) -> 0 | M47: feet | S47: =IF(S27="",0,IF(VLOOKUP($F$28,DATA!$A$6:$AQ$196,29,FALSE)="","n/a",VLOOKUP($F$28,DATA!$A$6:$AQ$196,29,FALSE))) -> 0 | T47: feet | V47: =IF(V27="",0,IF(VLOOKUP($I$28,DATA!$A$6:$AQ$196,29,FALSE)="","n/a",VLOOKUP($I$28,DATA!$A$6:$AQ$196,29,FALSE))) -> 0 | W47: feet | Y47: =IF(Y27="",0,IF(VLOOKUP($L$28,DATA!$A$6:$AQ$196,29,FALSE)="","n/a",VLOOKUP($L$28,DATA!$A$6:$AQ$196,29,FALSE))) -> 0 | Z47: feet
B48: Field efficiency | F48: =IF(F34=0,0,IF(F25="High_Clearance_Sprayer",Field_efficiency*0.8,Field_efficiency)) -> 0 | I48: =IF(I34=0,0,IF(I25="High_Clearance_Sprayer",Field_efficiency*0.8,Field_efficiency)) -> 0 | L48: =IF(L34=0,0,IF(L25="High_Clearance_Sprayer",Field_efficiency*0.8,Field_efficiency)) -> 0 | S48: =IF(S34=0,0,IF(S25="High_Clearance_Sprayer",Field_efficiency*0.8,Field_efficiency)) -> 0 | V48: =IF(V34=0,0,IF(V25="High_Clearance_Sprayer",Field_efficiency*0.8,Field_efficiency)) -> 0 | Y48: =IF(Y34=0,0,IF(Y25="High_Clearance_Sprayer",Field_efficiency*0.8,Field_efficiency)) -> 0
B49: Work Rate | F49: =IF(OR(F46="n/a",F47="n/a",F48=0),"n/a",IF(OR(F46=0,F47=0),VLOOKUP($F$28,DATA!$A$6:$AQ$196,30,FALSE),ROUND((F46*5280*F47*F48)/43560,0))) -> n/a | G49: =IF(F49="n/a","",IF(VLOOKUP($F$28,DATA!$A$6:$AQ$196,31,FALSE)="","",VLOOKUP($F$28,DATA!$A$6:$AQ$196,31,FALSE))) ->  | I49: =IF(OR(I46="n/a",I47="n/a",I48=0),"n/a",IF(OR(I46=0,I47=0),VLOOKUP($I$28,DATA!$A$6:$AQ$196,30,FALSE),ROUND((I46*5280*I47*I48)/43560,0))) -> n/a | J49: =IF(I49="n/a","",IF(VLOOKUP($I$28,DATA!$A$6:$AQ$196,31,FALSE)="","",VLOOKUP($I$28,DATA!$A$6:$AQ$196,31,FALSE))) ->  | L49: =IF(OR(L46="n/a",L47="n/a",L48=0),"n/a",IF(OR(L46=0,L47=0),VLOOKUP($L$28,DATA!$A$6:$AQ$196,30,FALSE),ROUND((L46*5280*L47*L48)/43560,0))) -> n/a | M49: =IF(L49="n/a","",IF(VLOOKUP($L$28,DATA!$A$6:$AQ$196,31,FALSE)="","",VLOOKUP($L$28,DATA!$A$6:$AQ$196,31,FALSE))) ->  | S49: =IF(OR(S46="n/a",S47="n/a",S48=0),"n/a",IF(OR(S46=0,S47=0),VLOOKUP($F$28,DATA!$A$6:$AQ$196,30,FALSE),ROUND((S46*5280*S47*S48)/43560,0))) -> n/a | T49: =IF(S49="n/a","",IF(VLOOKUP($F$28,DATA!$A$6:$AQ$196,31,FALSE)="","",VLOOKUP($F$28,DATA!$A$6:$AQ$196,31,FALSE))) ->  | V49: =IF(OR(V46="n/a",V47="n/a",V48=0),"n/a",IF(OR(V46=0,V47=0),VLOOKUP($I$28,DATA!$A$6:$AQ$196,30,FALSE),ROUND((V46*5280*V47*V48)/43560,0))) -> n/a | W49: =IF(V49="n/a","",IF(VLOOKUP($F$28,DATA!$A$6:$AQ$196,31,FALSE)="","",VLOOKUP($F$28,DATA!$A$6:$AQ$196,31,FALSE))) ->  | Y49: =IF(OR(Y46="n/a",Y47="n/a",Y48=0),"n/a",IF(OR(Y46=0,Y47=0),VLOOKUP($L$28,DATA!$A$6:$AQ$196,30,FALSE),ROUND((Y46*5280*Y47*Y48)/43560,0))) -> n/a | Z49: =IF(Y49="n/a","",IF(VLOOKUP($F$28,DATA!$A$6:$AQ$196,31,FALSE)="","",VLOOKUP($F$28,DATA!$A$6:$AQ$196,31,FALSE))) -> 
B51: Costs of Individual Implements
B52: Rental Rate Costs | F52: Implement #1 | I52: Implement #2 | L52: Implement #3
B53: Ownership (Depreciation) | F53: =IF(F35=0,0,(F34*Fraction_dep_over_optimal_life/F36/F35)) -> 0 | G53: /hr | I53: =IF(I35=0,0,(I34*Fraction_dep_over_optimal_life/I36/I35)) -> 0 | J53: /hr | L53: =IF(L35=0,0,(L34*Fraction_dep_over_optimal_life/L36/L35)) -> 0 | M53: /hr
B54: Ownership (Investment) | F54: =IF(F35=0,0,IF(Machinery_Financed_percentage=0,0,(-CUMIPMT(Interest_Rate/2,Payback_loan_period_years*2,F34*Machinery_Financed_percentage,1,Payback_loan_period_years*2,0)/F36/F35))+((F34*(1-Machinery_Financed_percentage)*(1+Opportunity_Rate/12)^(Opp_inv_period_years*12)-(F34*(1-Machinery_Financed_percentage)))/F36/F35)) -> 0 | G54: /hr | I54: =IF(I35=0,0,IF(Machinery_Financed_percentage=0,0,(-CUMIPMT(Interest_Rate/2,Payback_loan_period_years*2,I34*Machinery_Financed_percentage,1,Payback_loan_period_years*2,0)/I36/I35))+((I34*(1-Machinery_Financed_percentage)*(1+Opportunity_Rate/12)^(Opp_inv_period_years*12)-(I34*(1-Machinery_Financed_percentage)))/I36/I35)) -> 0 | J54: /hr | L54: =IF(L35=0,0,IF(Machinery_Financed_percentage=0,0,(-CUMIPMT(Interest_Rate/2,Payback_loan_period_years*2,L34*Machinery_Financed_percentage,1,Payback_loan_period_years*2,0)/L36/L35))+((L34*(1-Machinery_Financed_percentage)*(1+Opportunity_Rate/12)^(Opp_inv_period_years*12)-(L34*(1-Machinery_Financed_percentage)))/L36/L35)) -> 0 | M54: /hr | S54: =IF(F35=0,0,(F34*Fraction_dep_over_optimal_life/F36/F35)+IF(Machinery_Financed_percentage=0,0,(-CUMIPMT(Interest_Rate/2,Payback_loan_period_years*2,F34*Machinery_Financed_percentage,1,Payback_loan_period_years*2,0)/F36/F35))+((F34*(1-Machinery_Financed_percentage)*(1+Opportunity_Rate/12)^(Opp_inv_period_years*12)-(F34*(1-Machinery_Financed_percentage)))/F36/F35)+(Insurance_and_Housing*F34/F35)) -> 0
B55: Ownership (Insurance and Housing) | F55: =IF(F34=0,0,SUM(F34*Insurance_and_Housing)/F35) -> 0 | G55: /hr | I55: =IF(I34=0,0,SUM(I34*Insurance_and_Housing)/I35) -> 0 | J55: /hr | L55: =IF(L34=0,0,SUM(L34*Insurance_and_Housing)/L35) -> 0 | M55: /hr
B56: Repair and maintenance | F56: =IF(F35=0,0,F43/F35) -> 0 | G56: /hr | I56: =IF(I35=0,0,I43/I35) -> 0 | J56: /hr | L56: =IF(L35=0,0,L43/L35) -> 0 | M56: /hr
B57: Margin on ownership and R&M | F57: =IF(F35=0,0,Margin_percentage*(F56+F53+F54+F55)) -> 0 | G57: /hr | I57: =IF(I35=0,0,Margin_percentage*(I56+I53+I54+I55)) -> 0 | J57: /hr | L57: =IF(L35=0,0,Margin_percentage*(L56+L53+L54+L55)) -> 0 | M57: /hr
B58: Total hourly rental rate | F58: =SUM(F53:F57) -> 0 | G58: /hr | I58: =SUM(I53:I57) -> 0 | J58: /hr | L58: =SUM(L53:L57) -> 0 | M58: /hr | S58: DO NOT DELETE | V58: =IF(OR(F46="n/a",F47="n/a"),"n/a",IF(ROUND((F46*5280*F47*F48)/43560,0)=0,"n/a",ROUND((F46*5280*F47*F48)/43560,0))) -> n/a | W58: work rate
B59: Total rental rate | F59: =IF($S$59=0,"",F58/$S$59) ->  | G59: =IF(OR(F53=0,S59=0),"",VLOOKUP($F$28,DATA!$A$6:$AQ$196,42,FALSE)) ->  | I59: =IF($S$59=0,"",I58/$S$59) ->  | J59: =IF(OR(I53=0,S59=0),"",G59) ->  | L59: =IF($S$59=0,"",L58/$S$59) ->  | M59: =IF(OR(L53=0,V59=0),"",G59) ->  | S59: =MIN(F49,I49,L49) -> 0 | Y59: =IF(L49="n/a","",L58/L49) ->  | Z59: =IF(L49="n/a","",VLOOKUP($L$28,DATA!$A$6:$AQ$196,42,FALSE)) -> 
B61: Custom Rate Costs
B62: Fuel | F62: =SUM(F41*Fuel_Price) -> 0 | G62: /hr | I62: =SUM(I41*Fuel_Price) -> 0 | J62: /hr | L62: =SUM(L41*Fuel_Price) -> 0 | M62: /hr
B63: Labour | F63: =IF(F58=0,0,VLOOKUP($F$28,DATA!$A$6:$AQ$196,37,FALSE)) -> 0 | G63: /hr | I63: =IF(I58=0,0,VLOOKUP($I$28,DATA!$A$6:$AQ$196,37,FALSE)) -> 0 | J63: /hr | L63: =IF(L58=0,0,VLOOKUP($F$28,DATA!$A$6:$AQ$196,37,FALSE)) -> 0 | M63: /hr
B64: Margin on fuel and labour | F64: =Margin_percentage*(F63+F62) -> 0 | G64: /hr | I64: =Margin_percentage*(I63+I62) -> 0 | J64: /hr | L64: =Margin_percentage*(L63+L62) -> 0 | M64: /hr
B65: Total hourly custom rate | F65: =SUM(F58,F62:F64) -> 0 | G65: /hr | I65: =SUM(I58,I62:I64) -> 0 | J65: /hr | L65: =SUM(L58,L62:L64) -> 0 | M65: /hr
B66: Total custom rate | F66: =IF(OR(F53=0,$S$59=0),"",SUM(F65/$S$59)) ->  | G66: =G59 ->  | I66: =IF(OR(I53=0,$S$59=0),"",SUM(I65/$S$59)) ->  | J66: =J59 ->  | L66: =IF(OR(L53=0,$S$59=0),"",SUM(L65/$S$59)) ->  | M66: =M59 -> 
B68: Total Cost of All Implements (Implement #1 + #2 + #3)
B69: Total Rental Rate Costs
B70: Total ownership | F70: =SUM(F53:F55,I53:I55,L53:L55) -> 0 | G70: /hr
B71: Total repair and maintenance | F71: =F56+I56+L56 -> 0 | G71: /hr
B72: Total margin on ownership and R&M | F72: =F57+I57+L57 -> 0 | G72: /hr
B73: Total hourly rental rate | F73: =F58+I58+L58 -> 0 | G73: /hr
B74: Total rental rate | F74: =IF(S59=0,"",F73/S59) ->  | G74: =G59 -> 
B76: Total Custom Rate Costs
B77: Total fuel | F77: =F62+I62+L62 -> 0 | G77: /hr
B78: Total Labour | F78: =F63+I63+L63 -> 0 | G78: /hr
B79: Total margin on fuel and labour | F79: =F64+I64+L64 -> 0 | G79: /hr
B80: Total hourly custom rate | F80: =F65+I65+L65 -> 0 | G80: /hr
B81: Total custom rate | F81: =IF(S59=0,"",SUM(F80/S59)) ->  | G81: =G74 -> 
A85: Note: This budget is only a guide and is not intended as an in depth study of the cost of production of this industry. Interpretation and use of this information is the responsibility of the user. If you need help with a budget, contact a Farm Management Specialist.
O87: January, 2024
A88: For more information:

Sheet NAMES (hidden)
A1: Main | C1: Tractors | E1: Harvesting Grain | G1: Harvesting Hay | I1: Seeding | K1: Soil Preparation | M1: Sprayers
A2: Category | C2: Two_Wheel_Drive | E2: Rotary_Combine | G2: Self_propelled_Forage_Harvester | I2: Air_Drills_with_Independent_Opener | K2: Cultivator_Field_with_tine_harrows | M2: High_Clearance_Sprayer
A3: (Select Category) | C3: 100-119 hp | E3: Class 5 (less than 300 hp) | G3: Small (400-599 hp) | I3: Small, 25-45 FT (requires 400 hp) | K3: Small, 24-35 FT (requires 225+ hp) | M3: 800 US gal, 90 FT boom
A4: Tractors | C4: 120+ hp | E4: Class 6 (301-360 hp) | G4: Medium (600-799 hp) | I4: Medium, 46-65 FT (requires 500 hp) | K4: Medium, 36-49 FT (requires 400 hp) | M4: 1000 US gal, 100 FT boom
A5: Harvesting_Grain | E5: Class 7 (361-420 hp) | G5: Large (800-899 hp) | I5: Large, 66-86 FT (requires 550+ hp) | K5: Large, 50-62 FT (requires 500 hp) | M5: 1200 US gal, 120 FT boom
A6: Harvesting_Hay | E6: Class 8 (421-500 hp) | M6: 1600 US gal, 130 FT boom
A7: Seeding | C7: Four_Wheel_Drive | E7: Class 9 (501-560 hp) | G7: SP_Forage_Harvester_Header | I7: Air_Hoe_Drill | K7: Cultivator_Heavy_Duty_with_tine_harrows
A8: Soil_Preparation | C8: Small (350-449 hp) | E8: Class 10 (561+ hp) | G8: Windrow Pickup (12-17 FT width) | I8: Small, 27-50 FT (requires 350 hp) | K8: Small, 23-40 FT (requires 400 hp) | M8: Miscellaneous
A9: Sprayers | C9: Medium (450-549 hp) | G9: Corn (14-20 FT width) | I9: Large, 51-72 FT (requires 550+ hp) | K9: Medium, 41-50 FT (requires 500 hp) | M9: Post_Pounder
A10: Miscellaneous | C10: Large (550+ hp) | E10: Combine_Header | G10: Corn (21-30 FT width) | K10: Large, 51-62 FT (requires 550+ hp) | M10: 3PT hitch (requires 55 hp)
E11: Pickup (15 FT) | I11: Air_Disc_Drill | M11: Trailer mounted with engine
A12: Tractors | C12: Front_Wheel_Assist | E12: Rigid Draper (30 FT) | G12: Self_propelled_Mower_Conditioner | I12: Small, 30-49 FT (requires 450 hp) | K12: Harrow_Mid | M12: Skidsteer Mount (requires 55 hp)
A13: Two_Wheel_Drive | C13: Small (100-159 hp) | E13: Rigid Draper (35 FT) | G13: Disc Mower Conditioner (13-19 FT) | I13: Large, 50-70 FT (requires 550+ hp) | K13: 60-90 FT (requires 400 hp)
A14: Four_Wheel_Drive | C14: Medium (160-224 hp) | E14: Rigid Draper (40 FT) | G14: Disc Mower Conditioner (30 FT) | M14: Vertical_Feed_Mixer
A15: Front_Wheel_Assist | C15: Large (225+ hp) | E15: Flex Auger (25 FT) | G15: Sickle Mower Conditioner (14-18 FT) | I15: Air_Seeder | K15: Harrow_Heavy | M15: 280-360 cubic FT (requires 110 hp)
A16: Tracked | E16: Flex Auger (30 FT) | I16: Small, 25-40 FT (requires 350 hp) | K16: 60-90 FT (requires 550+ hp) | M16: 500-750 cubic FT (requires 160 hp)
C17: Tracked | E17: Flex Auger (35 FT) | G17: Pull_Type_Mower_Conditioner | I17: Medium, 41-59 FT (requires 450 hp) | M17: 830-1,150 cubic FT (requires 225+ hp)
A18: Harvesting_Grain | C18: Two Track (350-449 hp) | E18: Flex Draper (30 FT) | G18: Sickle (9-10 FT, requires 50 hp) | I18: Large, 60-70 FT (requires 550+ hp) | K18: Harrow_Packer
A19: Rotary_Combine | C19: Two Track (450-570 hp) | E19: Flex Draper (35 FT) | G19: Sickle (14-16 FT, requires 100 hp) | K19: 25-62 FT (requires 175 hp) | M19: Grinder_Mixer
A20: Combine_Header | C20: Four Track (400-474 hp) | E20: Flex Draper (40 FT) | G20: Disc (7-9 FT side pull, requires 60 hp) | I20: Row_Crop_Planter | M20: 360-440 cubic FT (requires 120 hp)
A21: Self_propelled_Swather | C21: Four Track (475-549 hp) | E21: Flex Draper (45 FT) | G21: Disc (14 FT, requires 90 hp) | I21: 12 row planter (requires 150 hp) | K21: Vertical_Tillage_Tools_Compact | M21: 550-750 cubic FT (requires 200 hp)
A22: Grain_Cart | C22: Four Track (550-650 hp) | E22: Flex Draper (50 FT) | G22: Disc (16-18 FT, requires 100 hp) | I22: 16 row planter (requires 180 hp) | K22: Small, 10-30 FT (requires 400 hp)
A23: Powered_Auger | E23: Corn (6 row, 30" spacing) | I23: 24 row planter (requires 230 hp) | K23: Large, 31-50 FT (requires 550+ hp) | M23: Feed_Mixer
A24: PTO_Grain_Auger | E24: Corn (8 row, 30" spacing) | I24: 12/24 split row planter (requires 210 hp) | M24: Two 6 FT bale, 40 bu grain (requires 100 hp)
A25: PTO_Grain_Conveyor | E25: Corn (12 row folding, 30" spacing) | G25: Baler_Large_Round | I25: 16/32 split row planter (requires 250 hp) | K25: Vertical_Tillage_Tools_Heavy_Duty
A26: Swath_Roller | E26: Corn (16-18 row folding , 30" spacing) | G26: 4x5 FT bales (requires 80 hp) | K26: Small, 10-25 FT (requires 500 hp) | M26: Bale_Processor
A27: Grain_Bag_Loader | G27: 5x5 FT bales (requires 135 hp) | K27: Large, 26-40 FT (requires 550+ hp) | M27: Two 6 FT round bale (requires 155 hp)
A28: Grain_Bag_Extractor | E28: Self_propelled_Swather | G28: 5x6 FT bales (requires 135 hp) | M28: Six 6 FT round bale (requires 175 hp)
A29: Grain_Dryer | E29: 25 FT | G29: 5x5 FT silage, net wrap bales (requires 135 hp) | K29: Land_Roller
A30: Grain_Vac | E30: 30 FT | G30: 5x6 FT silage, net wrap bales (requires 135 hp) | K30: 20 FT (fixed) (requires 100 hp) | M30: Manure_Spreader_solid
E31: 35 FT | K31: 40-50 FT (3 sections) (requires 225+ hp) | M31: 250-299 cubic FT level, chain unload (requires 120 hp)
A32: Harvesting_Hay | E32: 40 FT | G32: Baler_Large_Square | K32: 55-75 FT (5 sections) (requires 400 hp) | M32: 300-399 cubic FT level, chain unload (requires 125 hp)
A33: Self_propelled_Forage_Harvester | G33: Small, 35x31x108 in. (requires 145 hp) | M33: 400-500 cubic FT level, chain unload (requires 150 hp)
A34: SP_Forage_Harvester_Header | E34: Grain_Cart | G34: Medium, 35x47x108 in. (requires 145 hp) | K34: Land_Scraper | M34: 300-399 cubic FT level, side discharge (requires 150 hp)
A35: Pull_Type_Forage_Harvester | E35: Small (1,000 bu, requires 350 hp) | G35: Large, 50x47x108 in. (requires 180 hp) | K35: 10.0-15.0 CU. yard (requires 400 hp) | M35: 400-500 cubic FT level, side discharge (requires 180 hp)
A36: PT_Forage_Harvester_Header | E36: Medium (1,400 bu, requires 450 hp) | K36: 15.0+ CU. yard (requires 550 hp) | M36: 500+ cubic FT level, side discharge (requires 200 hp)
A37: Self_propelled_Mower_Conditioner | E37: Large (2,000 bu, requires 550+ hp) | G37: Baler_Small_Square | K37: Pull Dozer 15.0-20.0 CU. yard (requires 400 hp) | M37: 250-300 cubic FT, hyd. push, vert. beaters (requires 150 hp)
A38: Pull_Type_Mower_Conditioner | G38: 14x18x52 in. bales (requires 50 hp) | K38: Pull Dozer 21.0+ CU. yard (requires 550 hp) | M38: 400-500 cubic FT, hyd. push, vert. beaters (requires 200 hp)
A39: Hay_Rakes | E39: Powered_Auger | G39: 16x18x52 in. bales (requires 50 hp) | K39: Rotary Ditcher (requires 400 hp)
A40: Baler_Large_Round | E40: 8 in. (30-39 FT, 20 hp engine) | M40: Front_End_Loader
A41: Baler_Large_Square | E41: 8 in. (40-49 FT, 20 hp engine) | G41: Pull_Type_Bale_Mover_Self_load_unload | K41: Discs_Heavy_Offset | M41: For 100-159 hp tractor
A42: Baler_Small_Square | E42: 8 in. (50-59 FT, 25 hp engine) | G42: Round Bale 7-12 bale (requires 120 hp) | K42: Small, 10-12 FT (requires 105 hp) | M42: For 160-224 hp tractor
A43: Pull_Type_Bale_Mover_Self_load_unload | E43: 10 in. (40-49 FT, 35 hp engine) | G43: Round Bale 12-18 bale (requires 180 hp) | K43: Medium, 14-16 FT (requires 150 hp)
A44: Self_propelled_Bale_Mover | E44: 10 in. (50-59 FT, 38 hp engine) | G44: Large Square 4-6 bale (requires 120 hp) | K44: Large, 17-20 FT (requires 180 hp) | M44: Livestock_Trailer
E45: 12-13 in. u trough (39-40 FT, 38-50 hp engine) | G45: Large Square 6-12 bale (requires 180 hp) | M45: 20 FT gooseneck
A46: Seeding | G46: Large Square 12-20 bale (requires 220 hp) | K46: Discs_Heavy_Tandem | M46: 24 FT gooseneck
A47: Air_Drills_with_Independent_Opener | E47: PTO_Grain_Auger | K47: Small, 24-30 FT (requires 180 hp)
A48: Air_Hoe_Drill | E48: 8 in. (30-69 FT, 2,700-3,200 bu/hr, requires 50 hp) | G48: Self_propelled_Bale_Mover | K48: Medium, 31-35 FT (requires 210 hp) | M48: Snowblower
A49: Air_Disc_Drill | E49: 10 in. (40-89 FT, 5,400 bu/hr, requires 75 hp) | G49: Self propelled Small Square Bale Wagon | K49: Large, 36-42 FT (requires 250 hp) | M49: Rear mount, 80-89 in. (requires 70 hp)
A50: Air_Seeder | E50: 13 in. (70-120 FT, 9,700 bu/hr, requires 100 hp) | M50: Rear mount, 96 in. (requires 110 hp)
A51: Row_Crop_Planter | E51: 16 in. (80-100 FT, 21,000 bu/hr, requires 200 hp) | G51: Hay_Rakes | K51: Anhydrous_Ammonia_Applicator_Add_On | M51: Rear mount, 108 in. (requires 130 hp)
E52: 16 in. (100+ FT, 21,000 bu/hr, requires 200 hp) | G52: 16-20 FT bar (requires 50 hp) | K52: 30-60 FT (less tillage tool, nurse tank & trailer)
A53: Soil_Preparation | G53: 21-30 FT wheel (requires 50 hp) | M53: Grain_Truck
A54: Cultivator_Field_with_tine_harrows | E54: Grain_Vac | G54: 31-40 FT wheel (requires 50 hp) | K54: Liquid_Fertilizer_Applicator_Add_On | M54: Tandem
A55: Cultivator_Heavy_Duty_with_tine_harrows | E55: 2,400-5,000 bu/hr (requires 70 hp) | K55: 25-40 FT (1600-1800 gal. tank & cart, less tillage tool) | M55: Truck and 40FT Straight Trailer
A56: Harrow_Mid | E56: 6,000-10,000 bu/hr (requires 120 hp) | G56: Pull_Type_Forage_Harvester | K56: 40-60 FT (2400-3200 gal. tank & cart, less tillage tool)
A57: Harrow_Heavy | G57: For up to 150 hp tractor | K57: 60-75 FT (4300 gal. tank & cart, less tillage tool)
A58: Harrow_Packer | E58: PTO_Grain_Conveyor | G58: For 151 to 250 hp tractor
A59: Vertical_Tillage_Tools_Compact | E59: 20-24 in. (90 FT, non swing, requires 100 hp) | G59: For up to 300 hp tractor | K59: Granular_Fertilizer_Applicator
A60: Vertical_Tillage_Tools_Heavy_Duty | E60: 20-24 in. (100+ FT, swing away, requires 130 hp) | K60: 6-10 ton, spin 40 FT (requires 100hp)
A61: Land_Roller | G61: PT_Forage_Harvester_Header | K61: 10-12 ton, boom 60 FT (requires 225+hp)
A62: Discs_Heavy_Offset | E62: Swath_Roller | G62: Windrow Pickup (70-79 in. width)
A63: Discs_Heavy_Tandem | E63: Drawn (10 FT) | G63: Windrow Pickup (80-96 in. width) | K63: Rock_Windower_Rake
A64: Anhydrous_Ammonia_Applicator_Add_On | E64: Attached (10 FT) | G64: Corn (2 row) | K64: 12-14 FT (requires 50 hp)
A65: Liquid_Fertilizer_Applicator_Add_On | G65: Corn (3 row)
A66: Granular_Fertilizer_Applicator | E66: Grain_Bag_Loader | K66: Rock_Picker
A67: Rock_Windower_Rake | E67: Bagger (10 FT, requires 60 hp) | K67: 1.5-2.5 CU. yard (requires 75 hp)
A68: Rock_Picker | E68: Bagger (12 FT, requires 125 hp) | K68: 3.0-3.3 CU. yard (requires 85 hp)
A69: Land_Scraper
E70: Grain_Bag_Extractor
A71: Sprayers | E71: Unloader (10 FT, requires 60 hp)
A72: High_Clearance_Sprayer | E72: Unloader (12 FT, requires 100 hp)
A74: Miscellaneous | E74: Grain_Dryer
A75: Post_Pounder | E75: 275-370 bu/hr
A76: Front_End_Loader | E76: 420-610 bu/hr
A77: Livestock_Trailer | E77: 710-910 bu/hr
A78: Vertical_Feed_Mixer | E78: 1060-1180 bu/hr
A79: Grinder_Mixer | E79: 1440-2380 bu/hr
A80: Feed_Mixer
A81: Bale_Processor
A82: Snowblower
A83: Grain_Truck
A84: Manure_Spreader_solid

Sheet DATA (hidden)
A1: 1 | B1: 2 | C1: 3 | D1: 4 | E1: 5 | F1: 6 | G1: 7 | H1: 8 | I1: 9 | J1: 10 | K1: 11 | L1: 12 | M1: 13 | N1: 14 | O1: 15 | P1: 16 | Q1: 17 | R1: 18 | S1: 19 | T1: 20 | U1: 21 | V1: 22 | W1: 23 | X1: 24 | Y1: 25 | Z1: 26 | AA1: 27 | AB1: 28 | AC1: 29 | AD1: 30 | AE1: 31 | AF1: 32 | AG1: 33 | AH1: 34 | AI1: 35 | AJ1: 36 | AK1: 37 | AL1: 38 | AM1: 39 | AN1: 40 | AO1: 41 | AP1: 42 | AQ1: 43 | AV1: 26
D2: >$50,000; round nearest 5000 =ROUND(G6/5000,0)*5000 | F2: <$10,000 round to nearest 500 | X2: Fraction_dep_over_optimal_life | Z2: 0.6666666667 | AV2: OLD' | AW2: 0.05
D3: $10,000-$50,000 round to nearest 1000 =ROUND(F25,-3) | G3: * enter prices here* | X3: Optimal Life (years) | Y3: Annual Hours of Use | Z3: Repair Rate (%) | AA3: Litre / Hour | AB3: Speed (MPH) | AC3: Defined Width of Implement (ft) | AD3: Work Rate | AE3: Unit | AF3: Ownership Cost ($/hr) | AG3: Repair & Maint. (R&M) Cost ($/hr) | AH3: Margin on Ownership and R&M ($/hr) | AI3: Rental Rate ($/hr) | AJ3: Fuel Cost ($/hr) | AK3: Labour Cost ($/hr) | AL3: Margin on Labour & Fuel ($/hr) | AM3: Power Unit Cost ($/hr) | AN3: Custom Rate ($/hr) | AO3: Custom Rate ($/acre) | AP3: Unit | AQ3: Rental Rate ($/acre) | AR3: Work Rate | AV3: Repair Rate (%) | AW3: Repair Rate (%)
A4: white box = all formula references to side boxes are removed, pulling from data tab | B4: Category | C4: Type | D4: Size | E4: Machine Size | F4: Rounded Ave Discountd MSRP | G4: Ave Discountd MSRP | H4: Average New Selling Price | I4: Dealer/Model 1 | N4: Dealer/Model 2 | S4: Dealer/Model 3
I5: Make | J5: Model | K5: MSRP | L5: Discounted MSRP | M5: New Selling Price | N5: Make | O5: Model | P5: MSRP | Q5: Discounted MSRP | R5: New Selling Price | S5: Make | T5: Model | U5: MSRP | V5: Discounted MSRP | W5: New Selling Price
A6: =B6&" "&C6&" "&D6 -> Tractors Two_Wheel_Drive 100-119 hp | B6: Tractors | C6: Two_Wheel_Drive | D6: 100-119 hp | F6: 155000 | G6: 150268 | H6: =IFERROR(AVERAGE(M6,R6,W6),"") ->  | I6: John Deere | J6: 6110R Cab | N6: Case IH | O6: Farmall 110A | S6: John Deere | T6: 5115M Cab | X6: 20 | Y6: 300 | Z6: 2.31 | AA6: 24 | AF6: =(F6*Fraction_dep_over_optimal_life/X6/Y6)+IF(Machinery_Financed_percentage=0,0,(-CUMIPMT(Interest_Rate/2,Payback_loan_period_years*2,F6*Machinery_Financed_percentage,1,Payback_loan_period_years*2,0)/X6/Y6))+((F6*(1-Machinery_Financed_percentage)*(1+Opportunity_Rate/12)^(Opp_inv_period_years*12)-(F6*(1-Machinery_Financed_percentage)))/X6/Y6)+(Insurance_and_Housing*F6/Y6) -> 28.304342 | AG6: =Z6/100*F6/Y6 -> 11.935 | AH6: =Margin_percentage*(AF6+AG6) -> 6.0359013 | AI6: =IF(AF6+AG6+AH6<10,ROUND((AF6+AG6+AH6)/0.25,0)*0.25,ROUND(AF6+AG6+AH6,0)) -> 46 | AJ6: =AA6*Fuel_Price -> 33.6 | AK6: =Labour -> 27 | AL6: =Margin_percentage*(AJ6+AK6) -> 9.09 | AN6: =IF(AI6+AJ6+AK6+AL6+AM6<10,ROUND((AI6+AJ6+AK6+AL6+AM6)/0.25,0)*0.25,ROUND(AI6+AJ6+AK6+AL6+AM6,0)) -> 116 | AP6: /acre | AV6: 2.2 | AW6: =ROUND((AV6*$AW$2)+AV6,2) -> 2.31
A7: =B7&" "&C7&" "&D7 -> Tractors Two_Wheel_Drive 120+ hp | B7: Tractors | C7: Two_Wheel_Drive | D7: 120+ hp | F7: =ROUNDUP(G7/5000,0)*5000 -> 170000 | G7: 165626 | I7: John Deere | J7: 6145R | N7: Case IH | O7: Farmall 130A | S7: John Deere | T7: 5125R | X7: 20 | Y7: 300 | Z7: 2.31 | AA7: 28 | AF7: 31.04347187 | AG7: =Z7/100*F7/Y7 -> 13.09 | AH7: 6.620020781 | AI7: =IF(AF7+AG7+AH7<10,ROUND((AF7+AG7+AH7)/0.25,0)*0.25,ROUND(AF7+AG7+AH7,0)) -> 51 | AJ7: 39.2 | AK7: 27 | AL7: 9.93 | AN7: =IF(AI7+AJ7+AK7+AL7+AM7<10,ROUND((AI7+AJ7+AK7+AL7+AM7)/0.25,0)*0.25,ROUND(AI7+AJ7+AK7+AL7+AM7,0)) -> 127 | AP7: /acre | AV7: 2.2 | AW7: =ROUND((AV7*$AW$2)+AV7,2) -> 2.31
A8: Tractors Front_Wheel_Assist Small (100-159 hp) | B8: Tractors | C8: Front_Wheel_Assist | D8: Small (100-159 hp) | E8: (100-159 hp) | F8: =ROUNDUP(G8/5000,0)*5000 -> 250000 | G8: 249364 | I8: John Deere | J8: 6155R | N8: Case IH | O8: Maxxum 150 CVX | S8: New Holland | T8: T7.190 | X8: 15 | Y8: 450 | Z8: 2.73 | AA8: 26 | AF8: 38.72784994 | AG8: 15.16666667 | AH8: 8.084177491 | AI8: 62 | AJ8: 36.4 | AK8: 27 | AL8: 9.51 | AN8: 135 | AP8: /acre | AV8: 2.6 | AW8: 2.73
A9: Tractors Front_Wheel_Assist Medium (160-224 hp) | B9: Tractors | C9: Front_Wheel_Assist | D9: Medium (160-224 hp) | E9: (160-224 hp) | F9: =ROUNDUP(G9/5000,0)*5000 -> 350000 | G9: 350000 | I9: John Deere | J9: 7210R | N9: Case IH | O9: Magnum 220 | S9: New Holland | T9: T7.210 T4B | X9: 15 | Y9: 450 | Z9: 2.73 | AA9: 36 | AF9: 54.21898992 | AG9: 21.23333333 | AH9: 11.31784849 | AI9: 87 | AJ9: 50.4 | AK9: 27 | AL9: 11.61 | AN9: 176 | AP9: /acre | AV9: 2.6 | AW9: 2.73
A10: Tractors Front_Wheel_Assist Large (225+ hp) | B10: Tractors | C10: Front_Wheel_Assist | D10: Large (225+ hp) | E10: (225+ hp) | F10: =ROUNDUP(G10/25000,0)*25000 -> 425000 | G10: 425000 | I10: John Deere | J10: 8320R | N10: Case IH | O10: Magnum 310 | S10: New Holland | T10: T7.315 | X10: 15 | Y10: 450 | Z10: 2.73 | AA10: 48 | AF10: 65.8373449 | AG10: 25.78333333 | AH10: =Margin_percentage*(AF10+AG10) -> 13.74310174 | AI10: 105 | AJ10: 67.2 | AK10: 27 | AL10: 14.13 | AN10: 213 | AP10: /acre | AV10: 2.6 | AW10: 2.73
A11: Tractors Four_Wheel_Drive Small (350-449 hp) | B11: Tractors | C11: Four_Wheel_Drive | D11: Small (350-449 hp) | E11: (350-449 hp) | F11: 600000 | G11: 600000 | I11: John Deere | J11: 9370R | N11: Case IH | O11: Steiger 370 | S11: New Holland | T11: T8.380 | X11: 15 | Y11: 450 | Z11: 2.63 | AA11: 63 | AF11: 92.94683986 | AG11: 35.06666667 | AH11: 19.20202598 | AI11: 147 | AJ11: 88.2 | AK11: 27 | AL11: 17.28 | AN11: 279 | AP11: /acre | AV11: 2.5 | AW11: 2.63
A12: =B12&" "&C12&" "&D12 -> Tractors Four_Wheel_Drive Medium (450-549 hp) | B12: Tractors | C12: Four_Wheel_Drive | D12: Medium (450-549 hp) | E12: (450-549 hp) | F12: 675000 | G12: 675000 | I12: John Deere | J12: 9470R | N12: Case IH | O12: Steiger 470 | X12: 15 | Y12: 450 | Z12: 2.63 | AA12: 76 | AF12: 104.5651948 | AG12: 39.45 | AH12: 21.60227923 | AI12: 166 | AJ12: 106.4 | AK12: 27 | AL12: 20.01 | AN12: 319 | AP12: /acre | AV12: 2.5 | AW12: 2.63
A13: Tractors Four_Wheel_Drive Large (550+ hp) | B13: Tractors | C13: Four_Wheel_Drive | D13: Large (550+ hp) | E13: (550+ hp) | F13: 725000 | G13: 715477 | I13: John Deere | J13: 9570R | N13: Case IH | O13: Steiger 580 | S13: New Holland | T13: T9.565HD | X13: 15 | Y13: 450 | Z13: 2.63 | AA13: 88 | AF13: 112.3107648 | AG13: 42.37222222 | AH13: 23.20244806 | AI13: 178 | AJ13: 123.2 | AK13: 27 | AL13: 22.53 | AN13: 351 | AP13: /acre | AV13: 2.5 | AW13: 2.63
A14: Tractors Tracked Two Track (350-449 hp) | B14: Tractors | C14: Tracked | D14: Two Track (350-449 hp) | F14: 575000 | G14: 562087 | I14: John Deere | J14: 8320RT | N14: Case IH | O14: Magnum 310 Rowtrac | S14: John Deere | T14: 8345RT | X14: 15 | Y14: 450 | Z14: 3.36 | AA14: 63 | AF14: 89.07405487 | AG14: 42.93333333 | AH14: 19.80110823 | AI14: 152 | AJ14: 88.2 | AK14: 27 | AL14: 17.28 | AN14: 284 | AP14: /acre | AV14: 3.2 | AW14: 3.36
A15: Tractors Tracked Two Track (450-570 hp) | B15: Tractors | C15: Tracked | D15: Two Track (450-570 hp) | F15: 700000 | G15: 692277 | I15: John Deere | J15: 8370RT | N15: Case IH | O15: Steiger 420 Rowtrac | S15: New Holland | T15: T8.410 SmartTrax | X15: 15 | Y15: 450 | Z15: 3.36 | AA15: 80 | AF15: 108.4379798 | AG15: 52.26666667 | AH15: 24.10569698 | AI15: 185 | AJ15: 112 | AK15: 27 | AL15: 20.85 | AN15: 345 | AP15: /acre | AV15: 3.2 | AW15: 3.36
A16: Tractors Tracked Four Track (400-474 hp) | B16: Tractors | C16: Tracked | D16: Four Track (400-474 hp) | F16: =ROUNDUP(G16/25000,0)*25000 -> 700000 | G16: 700000 | I16: John Deere | J16: 9470RT | N16: Case IH | O16: Steiger 470 Rowtrac | S16: New Holland | T16: T9.530 SmartTrax | X16: 15 | Y16: 450 | Z16: 3.36 | AA16: 100 | AF16: 108.4379798 | AG16: 52.26666667 | AH16: 24.10569698 | AI16: 185 | AJ16: 140 | AK16: 27 | AL16: 25.05 | AN16: 377 | AP16: /acre | AV16: 3.2 | AW16: 3.36
A17: Tractors Tracked Four Track (475-549 hp) | B17: Tractors | C17: Tracked | D17: Four Track (475-549 hp) | F17: 775000 | G17: 753218 | I17: John Deere | J17: 9570RT | N17: Case IH | O17: Steiger 580 Quadtrac | S17: New Holland | T17: T9.565 SmartTrax | X17: 15 | Y17: 450 | Z17: 3.36 | AA17: 110 | AF17: 120.0563348 | AG17: =Z17/100*F17/Y17 -> 57.86666667 | AH17: 26.68845022 | AI17: 205 | AJ17: 154 | AK17: 27 | AL17: 27.15 | AN17: 413 | AP17: /acre | AV17: 3.2 | AW17: 3.36
A18: Tractors Tracked Four Track (550-650 hp) | B18: Tractors | C18: Tracked | D18: Four Track (550-650 hp) | F18: 850000 | G18: 843460 | I18: John Deere | J18: 9620RX | N18: Case IH | O18: Steiger 620 Quadtrac | S18: New Holland | T18: T9.645 SmartTrax | X18: 15 | Y18: 450 | Z18: 3.36 | AA18: 115 | AF18: 131.6746898 | AG18: 63.46666667 | AH18: 29.27120347 | AI18: 224 | AJ18: 161 | AK18: 27 | AL18: 28.2 | AN18: 440 | AP18: /acre | AV18: 3.2 | AW18: 3.36
A19: Harvesting_Grain Rotary_Combine Class 5 (less than 300 hp) | B19: Harvesting_Grain | C19: Rotary_Combine | D19: Class 5 (less than 300 hp) | E19: (≤ 300 hp) | F19: =ROUNDUP(G19/50000,0)*50000 -> 500000 | G19: 500000 | H19: =IFERROR(AVERAGE(L19,Q19,V19),"") ->  | I19: John Deere | J19: S650 | N19: Case IH | O19: 5140 | X19: 12 | Y19: 250 | Z19: 2.63 | AA19: 43 | AB19: 3.5 | AC19: 25 | AD19: =ROUND((AB19*5280*AC19*Field_efficiency)/43560,0) -> 8 | AE19: (acre/hr) | AF19: 169.2753247 | AG19: 52.6 | AH19: 33.28129871 | AI19: =IF(AF19+AG19+AH19<10,ROUND((AF19+AG19+AH19)/0.25,0)*0.25,ROUND(AF19+AG19+AH19,0)) -> 255 | AJ19: 60.2 | AK19: 27 | AL19: 13.08 | AN19: 355 | AO19: =IF(AN19/AD19<10,ROUND((AN19/AD19)/0.25,0)*0.25,ROUND(AN19/AD19,0)) -> 44 | AP19: /acre | AV19: 2.5 | AW19: 2.63 | AY19: =(F19*Fraction_dep_over_optimal_life/X19/Y19)+IF(Machinery_Financed_percentage=0,0,(-CUMIPMT(Interest_Rate/2,Payback_loan_period_years*2,F19*Machinery_Financed_percentage,1,Payback_loan_period_years*2,0)/X19/Y19))+((F19*(1-Machinery_Financed_percentage)*(1+Opportunity_Rate/12)^(Opp_inv_period_years*12)-(F19*(1-Machinery_Financed_percentage)))/X19/Y19)+(Insurance_and_Housing*F19/Y19) -> 169.2753247 | AZ19: =(F19*Fraction_dep_over_optimal_life/X19/Y19) -> 111.1111111 | BA19: =IF(Machinery_Financed_percentage=0,0,(-CUMIPMT(Interest_Rate/2,Payback_loan_period_years*2,F19*Machinery_Financed_percentage,1,Payback_loan_period_years*2,0)/X19/Y19))+((F19*(1-Machinery_Financed_percentage)*(1+Opportunity_Rate/12)^(Opp_inv_period_years*12)-(F19*(1-Machinery_Financed_percentage)))/X19/Y19) -> 38.16421363 | BB19: =(Insurance_and_Housing*F19/Y19) -> 20 | BC19: =SUM(AZ19:BB19) -> 169.2753247
A20: Harvesting_Grain Rotary_Combine Class 6 (301-360 hp) | B20: Harvesting_Grain | C20: Rotary_Combine | D20: Class 6 (301-360 hp) | E20: (301-360 hp) | F20: 550000 | G20: 547558 | H20: =IFERROR(AVERAGE(L20,Q20,V20),"") ->  | I20: John Deere | J20: S760 | N20: New Holland | O20: CR6.90 | X20: 12 | Y20: 250 | Z20: 2.63 | AA20: 51 | AB20: 4 | AC20: 25 | AD20: 10 | AE20: (acre/hr) | AF20: 186.2028572 | AG20: 57.86 | AH20: 36.60942858 | AI20: 281 | AJ20: 71.4 | AK20: 27 | AL20: 14.76 | AN20: 394 | AO20: =IF(AN20/AD20<10,ROUND((AN20/AD20)/0.25,0)*0.25,ROUND(AN20/AD20,0)) -> 39 | AP20: /acre | AV20: 2.5 | AW20: 2.63
A21: Harvesting_Grain Rotary_Combine Class 7 (361-420 hp) | B21: Harvesting_Grain | C21: Rotary_Combine | D21: Class 7 (361-420 hp) | E21: (361-420 hp) | F21: 650000 | G21: 609271 | I21: John Deere | J21: S770 | N21: New Holland | O21: CR7.90 | X21: 12 | Y21: 250 | Z21: 2.63 | AA21: 55 | AB21: 4 | AC21: 30 | AD21: 12 | AE21: (acre/hr) | AF21: 220.0579222 | AG21: 68.38 | AH21: 43.26568832 | AI21: 332 | AJ21: 77 | AK21: 27 | AL21: 15.6 | AN21: 452 | AO21: 38 | AP21: /acre | AV21: 2.5 | AW21: 2.63
A22: Harvesting_Grain Rotary_Combine Class 8 (421-500 hp) | B22: Harvesting_Grain | C22: Rotary_Combine | D22: Class 8 (421-500 hp) | E22: (421-500 hp) | F22: 750000 | G22: 708537 | H22: =IFERROR(AVERAGE(L22,Q22,V22),"") ->  | I22: John Deere | J22: S780 | N22: New Holland | O22: CR8.90 | X22: 12 | Y22: 250 | Z22: 2.63 | AA22: 71 | AB22: 4.5 | AC22: 35 | AD22: 15 | AE22: (acre/hr) | AF22: 253.9129871 | AG22: 78.9 | AH22: 49.92194807 | AI22: 383 | AJ22: 99.4 | AK22: 27 | AL22: 18.96 | AN22: 528 | AO22: 35 | AP22: /acre | AV22: 2.5 | AW22: 2.63
A23: Harvesting_Grain Rotary_Combine Class 9 (501-560 hp) | B23: Harvesting_Grain | C23: Rotary_Combine | D23: Class 9 (501-560 hp) | E23: (501-560 hp) | F23: 850000 | G23: 805534 | H23: =IFERROR(AVERAGE(L23,Q23,V23),"") ->  | I23: John Deere | J23: S790 | N23: New Holland | O23: CR9.90 | X23: 12 | Y23: 250 | Z23: 2.63 | AA23: 82 | AB23: 4.5 | AC23: 40 | AD23: 17 | AE23: (acre/hr) | AF23: 287.7680521 | AG23: 89.42 | AH23: 56.57820781 | AI23: 434 | AJ23: 114.8 | AK23: 27 | AL23: 21.27 | AN23: 597 | AO23: 35 | AP23: /acre | AV23: 2.5 | AW23: 2.63
A24: Harvesting_Grain Rotary_Combine Class 10 (561+ hp) | B24: Harvesting_Grain | C24: Rotary_Combine | D24: Class 10 (561+ hp) | E24: (561+ hp) | F24: 950000 | G24: 945092 | H24: =IFERROR(AVERAGE(L24,Q24,V24),"") ->  | I24: Claas | J24: 780 | N24: New Holland | O24: CR10.90Z | X24: 12 | Y24: 250 | Z24: 2.63 | AA24: 90 | AB24: 5.5 | AC24: 40 | AD24: 21 | AE24: (acre/hr) | AF24: 321.623117 | AG24: 99.94 | AH24: 63.23446755 | AI24: 485 | AJ24: 126 | AK24: 27 | AL24: 22.95 | AN24: 661 | AO24: 31 | AP24: /acre | AV24: 2.5 | AW24: 2.63
A25: Harvesting_Grain Combine_Header Pickup (15 FT) | B25: Harvesting_Grain | C25: Combine_Header | D25: Pickup (15 FT) | E25: 15 FT | F25: =ROUND(G25,-3) -> 39000 | G25: 38770 | I25: New Holland | J25: 790CP-12 | N25: Case IH | O25: 3016-12 | X25: 20 | Y25: 250 | Z25: 1.58 | AF25: 8.546085198 | AG25: 2.4648 | AH25: 1.65163278 | AI25: 13 | AP25: /acre | AV25: 1.5 | AW25: 1.58
A26: Harvesting_Grain Combine_Header Rigid Draper (30 FT) | B26: Harvesting_Grain | C26: Combine_Header | D26: Rigid Draper (30 FT) | E26: 30 FT | F26: =ROUNDUP(G26/5000,0)*5000 -> 110000 | G26: 109122 | I26: John Deere | J26: 615P | N26: Case IH | O26: 3016-15 | S26: New Holland | T26: 790CP-15 | X26: 20 | Y26: 250 | Z26: 2.1 | AF26: 24.10434287 | AG26: 9.24 | AH26: 5.00165143 | AI26: 38 | AP26: /acre | AV26: 1.5 | AW26: 1.58
A27: Harvesting_Grain Combine_Header Rigid Draper (35 FT) | B27: Harvesting_Grain | C27: Combine_Header | D27: Rigid Draper (35 FT) | E27: 35 FT | F27: =ROUNDUP(G27/5000,0)*5000 -> 125000 | G27: 123234 | I27: New Holland | J27: 720CG-24 | N27: Case IH | O27: 2030-24 | S27: New Holland | T27: 840CD-25 | X27: 20 | Y27: 250 | Z27: 2.1 | AF27: 27.39129871 | AG27: 10.5 | AH27: 5.683694807 | AI27: 44 | AP27: /acre | AV27: 2 | AW27: 2.1
A28: Harvesting_Grain Combine_Header Rigid Draper (40 FT) | B28: Harvesting_Grain | C28: Combine_Header | D28: Rigid Draper (40 FT) | E28: 40 FT | F28: =ROUNDUP(G28/5000,0)*5000 -> 140000 | G28: 139163 | I28: New Holland | J28: 720CG-30 | N28: Case IH | O28: 2030-30 | S28: New Holland | T28: 840CD-35 | X28: 20 | Y28: 250 | Z28: 2.1 | AF28: 30.67825456 | AG28: 11.76 | AH28: 6.365738183 | AI28: 49 | AP28: /acre | AV28: 2 | AW28: 2.1
A29: Harvesting_Grain Combine_Header Flex Auger (25 FT) | B29: Harvesting_Grain | C29: Combine_Header | D29: Flex Auger (25 FT) | E29: 25 FT | F29: =ROUNDUP(G29/5000,0)*5000 -> 60000 | G29: 55662 | I29: John Deere | J29: 620F | N29: New Holland | O29: 740CF-20F | S29: AGCO Gleaner | T29: 8200-20 | X29: 15 | Y29: 250 | Z29: 2.63 | AF29: 16.73043117 | AG29: 6.312 | AH29: 3.456364676 | AI29: 26 | AP29: /acre | AV29: 2.5 | AW29: 2.63
A30: Harvesting_Grain Combine_Header Flex Auger (30 FT) | B30: Harvesting_Grain | C30: Combine_Header | D30: Flex Auger (30 FT) | E30: 30 FT | F30: 70000 | G30: 67059 | I30: John Deere | J30: 625F | N30: New Holland | O30: 740CF-25F | S30: AGCO Gleaner | T30: 8200-25 | X30: 15 | Y30: 250 | Z30: 2.63 | AF30: 19.51883637 | AG30: 7.364 | AH30: 4.032425456 | AI30: 31 | AP30: /acre | AV30: 2.5 | AW30: 2.63
A31: Harvesting_Grain Combine_Header Flex Auger (35 FT) | B31: Harvesting_Grain | C31: Combine_Header | D31: Flex Auger (35 FT) | E31: 35 FT | F31: 80000 | G31: 77706 | I31: John Deere | J31: 630F | N31: New Holland | O31: 740CF-30F | S31: AGCO Gleaner | T31: 8200-30 | X31: 15 | Y31: 250 | Z31: 2.63 | AF31: =(F31*Fraction_dep_over_optimal_life/X31/Y31)+IF(Machinery_Financed_percentage=0,0,(-CUMIPMT(Interest_Rate/2,Payback_loan_period_years*2,F31*Machinery_Financed_percentage,1,Payback_loan_period_years*2,0)/X31/Y31))+((F31*(1-Machinery_Financed_percentage)*(1+Opportunity_Rate/12)^(Opp_inv_period_years*12)-(F31*(1-Machinery_Financed_percentage)))/X31/Y31)+(Insurance_and_Housing*F31/Y31) -> 22.30724157 | AG31: =Z31/100*F31/Y31 -> 8.416 | AH31: 4.608486235 | AI31: 35 | AP31: /acre | AV31: 2.5 | AW31: 2.63
A32: Harvesting_Grain Combine_Header Flex Draper (30 FT) | B32: Harvesting_Grain | C32: Combine_Header | D32: Flex Draper (30 FT) | E32: 30 FT | F32: 125000 | G32: 123661 | I32: John Deere | J32: 635F | N32: New Holland | O32: 740CF-35F | S32: AGCO Gleaner | T32: 8200-35 | X32: 15 | Y32: 250 | Z32: 2.94 | AF32: 34.85506495 | AG32: 14.7 | AH32: 7.433259742 | AI32: 57 | AP32: /acre | AV32: 2.5 | AW32: 2.63
A33: Harvesting_Grain Combine_Header Flex Draper (35 FT) | B33: Harvesting_Grain | C33: Combine_Header | D33: Flex Draper (35 FT) | E33: 35 FT | F33: 140000 | G33: 139657 | I33: John Deere | J33: 725D | N33: Case IH | O33: 3152-25 | S33: AGCO Gleaner | T33: 9255-25 | X33: 15 | Y33: 250 | Z33: 2.94 | AF33: 39.03767274 | AG33: 16.464 | AH33: 8.325250911 | AI33: 64 | AP33: /acre | AV33: 2.5 | AW33: 2.63
A34: Harvesting_Grain Combine_Header Flex Draper (40 FT) | B34: Harvesting_Grain | C34: Combine_Header | D34: Flex Draper (40 FT) | E34: 40 FT | F34: 150000 | G34: 147851 | I34: John Deere | J34: 730D | N34: Case IH | O34: 3152-30 | S34: AGCO Gleaner | T34: 9255-30 | X34: 15 | Y34: 250 | Z34: 2.94 | AF34: 41.82607794 | AG34: 17.64 | AH34: 8.919911691 | AI34: 68 | AP34: /acre | AV34: 2.5 | AW34: 2.63
A35: Harvesting_Grain Combine_Header Flex Draper (45 FT) | B35: Harvesting_Grain | C35: Combine_Header | D35: Flex Draper (45 FT) | E35: 45 FT | F35: 160000 | G35: 158752 | I35: John Deere | J35: 735D | N35: Case IH | O35: 3152-35 | S35: AGCO Gleaner | T35: 9255-35 | X35: 15 | Y35: 250 | Z35: 2.94 | AF35: 44.61448313 | AG35: 18.816 | AH35: 9.51457247 | AI35: 73 | AP35: /acre | AV35: 2.5 | AW35: 2.63
A36: Harvesting_Grain Combine_Header Flex Draper (50 FT) | B36: Harvesting_Grain | C36: Combine_Header | D36: Flex Draper (50 FT) | E36: 50 FT | F36: 185000 | G36: 182854 | I36: John Deere | J36: 740D | N36: Case IH | O36: 3152-40 | S36: AGCO Gleaner | T36: 9255-40 | X36: 15 | Y36: 250 | Z36: 2.94 | AF36: 51.58549612 | AG36: 21.756 | AH36: 11.00122442 | AI36: 84 | AP36: /acre | AV36: 2.5 | AW36: 2.63
A37: Harvesting_Grain Combine_Header Corn (6 row, 30" spacing) | B37: Harvesting_Grain | C37: Combine_Header | D37: Corn (6 row, 30" spacing) | E37: 6 row 30" spacing | F37: 85000 | G37: 84151 | I37: John Deere | J37: 706C | N37: AGCO Gleaner | O37: 3206 | S37: New Holland | T37: 980CR-6R | X37: 15 | Y37: 100 | Z37: 2.94 | AF37: 59.25361041 | AG37: 24.99 | AH37: 12.63654156 | AI37: 97 | AP37: /acre | AV37: 2.8 | AW37: 2.94
A38: Harvesting_Grain Combine_Header Corn (8 row, 30" spacing) | B38: Harvesting_Grain | C38: Combine_Header | D38: Corn (8 row, 30" spacing) | E38: 8 row 30" spacing | F38: 115000 | G38: 110144 | I38: John Deere | J38: 708C | N38: AGCO Gleaner | O38: 3308 | S38: New Holland | T38: 980CR-8R | X38: 15 | Y38: 100 | Z38: 2.94 | AF38: =(F38*Fraction_dep_over_optimal_life/X38/Y38)+IF(Machinery_Financed_percentage=0,0,(-CUMIPMT(Interest_Rate/2,Payback_loan_period_years*2,F38*Machinery_Financed_percentage,1,Payback_loan_period_years*2,0)/X38/Y38))+((F38*(1-Machinery_Financed_percentage)*(1+Opportunity_Rate/12)^(Opp_inv_period_years*12)-(F38*(1-Machinery_Financed_percentage)))/X38/Y38)+(Insurance_and_Housing*F38/Y38) -> 80.16664938 | AG38: 33.81 | AH38: =Margin_percentage*(AF38+AG38) -> 17.09649741 | AI38: 131 | AP38: /acre | AV38: 2.8 | AW38: 2.94
A39: Harvesting_Grain Combine_Header Corn (12 row folding, 30" spacing) | B39: Harvesting_Grain | C39: Combine_Header | D39: Corn (12 row folding, 30" spacing) | E39: 12 row 30" spacing | F39: 180000 | G39: 177474 | I39: John Deere | J39: 712C | N39: AGCO Gleaner | O39: 3312 | S39: New Holland | T39: 980CR-12R | X39: 15 | Y39: 100 | Z39: 2.94 | AF39: 125.4782338 | AG39: 52.92 | AH39: 26.75973507 | AI39: 205 | AP39: /acre | AV39: 2.8 | AW39: 2.94
A40: Harvesting_Grain Combine_Header Corn (16-18 row folding , 30" spacing) | B40: Harvesting_Grain | C40: Combine_Header | D40: Corn (16-18 row folding , 30" spacing) | E40: 16-18 row 20-30" spacing | F40: 245000 | G40: 243500 | I40: John Deere | J40: 716C | N40: John Deere | O40: 718C | S40: New Holland | T40: 980CR-16R | X40: 15 | Y40: 100 | Z40: 2.94 | AF40: 170.7898182 | AG40: 72.03 | AH40: 36.42297274 | AI40: 279 | AP40: /acre | AV40: 2.8 | AW40: 2.94
A41: Harvesting_Grain Self_propelled_Swather 25 FT | B41: Harvesting_Grain | C41: Self_propelled_Swather | D41: 25 FT | F41: =ROUNDUP(G41/5000,0)*5000 -> 225000 | G41: 223367 | I41: John Deere | J41: W155 unit with JD 420D header | X41: 15 | Y41: 200 | Z41: 2.1 | AA41: 22 | AB41: 5.5 | AC41: 25 | AD41: =ROUND((AB41*5280*AC41*Field_efficiency)/43560,0) -> 13 | AE41: (acre/hr) | AF41: 78.42389613 | AG41: 23.625 | AH41: 15.30733442 | AI41: 117 | AJ41: =AA41*Fuel_Price -> 30.8 | AK41: =Labour -> 27 | AL41: =Margin_percentage*(AJ41+AK41) -> 8.67 | AN41: =IF(AI41+AJ41+AK41+AL41+AM41<10,ROUND((AI41+AJ41+AK41+AL41+AM41)/0.25,0)*0.25,ROUND(AI41+AJ41+AK41+AL41+AM41,0)) -> 183 | AO41: =IF(AN41/AD41<10,ROUND((AN41/AD41)/0.25,0)*0.25,ROUND(AN41/AD41,0)) -> 14 | AP41: /acre | AV41: 2 | AW41: 2.1
A42: Harvesting_Grain Self_propelled_Swather 30 FT | B42: Harvesting_Grain | C42: Self_propelled_Swather | D42: 30 FT | F42: =ROUNDUP(G42/5000,0)*5000 -> 265000 | G42: 263195 | I42: John Deere | J42: W155-260 unit wth JD 525D header | N42: Case IH | O42: WD1504-WD 2504 with DH253 header | S42: New Holland | T42: speedrow 160-260 with 425 HB header | X42: 15 | Y42: 200 | Z42: 2.1 | AA42: 32 | AB42: 5.5 | AC42: 30 | AD42: =ROUND((AB42*5280*AC42*Field_efficiency)/43560,0) -> 16 | AE42: (acre/hr) | AF42: 92.36592211 | AG42: 27.825 | AH42: 18.02863832 | AI42: 138 | AJ42: =AA42*Fuel_Price -> 44.8 | AK42: =Labour -> 27 | AL42: =Margin_percentage*(AJ42+AK42) -> 10.77 | AN42: 221 | AO42: 14 | AP42: /acre | AV42: 2 | AW42: 2.1
A43: Harvesting_Grain Self_propelled_Swather 35 FT | B43: Harvesting_Grain | C43: Self_propelled_Swather | D43: 35 FT | F43: 295000 | G43: 292906 | I43: Massey Ferguson | J43: WR990 30' | N43: John Deere | O43: W155-260 unit with 530D header | S43: Case IH | T43: WD1504-WD2504 with DH 303 header | X43: 15 | Y43: 200 | Z43: 2.1 | AA43: 36 | AB43: 5.5 | AC43: 35 | AD43: =ROUND((AB43*5280*AC43*Field_efficiency)/43560,0) -> 19 | AE43: (acre/hr) | AF43: 102.8224416 | AG43: 30.975 | AH43: 20.06961624 | AI43: 154 | AJ43: =AA43*Fuel_Price -> 50.4 | AK43: =Labour -> 27 | AL43: =Margin_percentage*(AJ43+AK43) -> 11.61 | AN43: 243 | AO43: 13 | AP43: /acre | AV43: 2 | AW43: 2.1
A44: Harvesting_Grain Self_propelled_Swather 40 FT | B44: Harvesting_Grain | C44: Self_propelled_Swather | D44: 40 FT | F44: 300000 | G44: 296314 | I44: Massey Ferguson | J44: WR9950 35" | N44: Massey Ferguson | O44: WR9950 40' | S44: John Deere | T44: W155-266 unit with 536D-440D header | X44: 15 | Y44: 200 | Z44: 2.1 | AA44: 36 | AB44: 5.5 | AC44: 40 | AD44: =ROUND((AB44*5280*AC44*Field_efficiency)/43560,0) -> 21 | AE44: (acre/hr) | AF44: 104.5651948 | AG44: 31.5 | AH44: 20.40977923 | AI44: 156 | AJ44: =AA44*Fuel_Price -> 50.4 | AK44: =Labour -> 27 | AL44: =Margin_percentage*(AJ44+AK44) -> 11.61 | AN44: 245 | AO44: 12 | AP44: /acre | AV44: 2 | AW44: 2.1
A45: Harvesting_Grain Grain_Cart Small (1,000 bu, requires 350 hp) | B45: Harvesting_Grain | C45: Grain_Cart | D45: Small (1,000 bu, requires 350 hp) | E45: 1,000 bu | F45: =ROUNDUP(G45/5000,0)*5000 -> 100000 | G45: 96075 | I45: J&M | J45: 812-18S | N45: Brent | O45: V1000 Tracks | X45: 20 | Y45: 250 | Z45: 2.1 | AF45: 21.91303897 | AG45: 8.4 | AH45: 4.546955845 | AI45: 35 | AM45: =AN11 -> 279 | AN45: 314 | AV45: 2 | AW45: 2.1
A46: Harvesting_Grain Grain_Cart Medium (1,400 bu, requires 450 hp) | B46: Harvesting_Grain | C46: Grain_Cart | D46: Medium (1,400 bu, requires 450 hp) | E46: 1,400 bu | F46: 220000 | G46: 216685 | I46: J&M | J46: 1122-20S | N46: Elmers | O46: 1150 Track | S46: Elmers | T46: RH Haul Master 1300 tracked | X46: 20 | Y46: 250 | Z46: 2.1 | AF46: 48.20868573 | AG46: 18.48 | AH46: 10.00330286 | AI46: 77 | AM46: =AN12 -> 319 | AN46: 396 | AV46: 2 | AW46: 2.1
A47: Harvesting_Grain Grain_Cart Large (2,000 bu, requires 550+ hp) | B47: Harvesting_Grain | C47: Grain_Cart | D47: Large (2,000 bu, requires 550+ hp) | E47: 2,000 bu | F47: 310000 | G47: 306430 | I47: Elmers | J47: 2000 tracks | N47: Elmers | O47: 2000 Tracked unit | S47: J & M | T47: 2300bu tracks | X47: 20 | Y47: 250 | Z47: 2.1 | AF47: 67.9304208 | AG47: 26.04 | AH47: 14.09556312 | AI47: 108 | AM47: =AN13 -> 351 | AN47: 459 | AV47: 2 | AW47: 2.1
A48: Harvesting_Grain Powered_Auger 8 in. (30-39 FT, 20 hp engine) | B48: Harvesting_Grain | C48: Powered_Auger | D48: 8 in. (30-39 FT, 20 hp engine) | F48: =ROUND(G48,-3) -> 23000 | G48: 22500 | I48: Meridian | J48: HD 8-39 Kohler 23 HP | X48: 20 | Y48: 100 | Z48: 1.58 | AF48: 12.59999741 | AG48: 3.634 | AH48: 2.435099611 | AI48: 19 | AV48: 1.5 | AW48: 1.58
A49: Harvesting_Grain Powered_Auger 8 in. (40-49 FT, 20 hp engine) | B49: Harvesting_Grain | C49: Powered_Auger | D49: 8 in. (40-49 FT, 20 hp engine) | F49: 24000 | G49: 23500 | I49: Wheatheart | J49: XTA 8x41 Kohler 27 hp engine | N49: Westfield | O49: STX 8x46 Kohler 26.5 hp ngine | X49: 20 | Y49: 100 | Z49: 1.58 | AF49: 13.14782338 | AG49: 3.792 | AH49: 2.540973507 | AI49: 19 | AV49: 1.5 | AW49: 1.58
A50: Harvesting_Grain Powered_Auger 8 in. (50-59 FT, 25 hp engine) | B50: Harvesting_Grain | C50: Powered_Auger | D50: 8 in. (50-59 FT, 25 hp engine) | F50: 25000 | G50: 24500 | I50: Meridian | J50: HD8-39 powered | N50: Wheatheart | O50: XTA 8x51 Kohler 27 hp engine with movere | X50: 20 | Y50: 100 | Z50: 1.58 | AF50: 13.69564936 | AG50: 3.95 | AH50: 2.646847403 | AI50: 20 | AV50: 1.5 | AW50: 1.58
A51: Harvesting_Grain Powered_Auger 10 in. (40-49 FT, 35 hp engine) | B51: Harvesting_Grain | C51: Powered_Auger | D51: 10 in. (40-49 FT, 35 hp engine) | F51: 27000 | G51: 27000 | I51: Meridian | J51: HD10-46 powered | N51: Westfield | O51: STX2 100-41 powered | S51: Meridian | T51: FE HD 10-46 Vanguard 37HP efi engine | X51: 20 | Y51: 100 | Z51: 1.58 | AF51: 14.7913013 | AG51: 4.266 | AH51: 2.858595196 | AI51: 22 | AV51: 1.5 | AW51: 1.58
A52: Harvesting_Grain Powered_Auger 10 in. (50-59 FT, 38 hp engine) | B52: Harvesting_Grain | C52: Powered_Auger | D52: 10 in. (50-59 FT, 38 hp engine) | F52: 31000 | G52: 31000 | I52: Meridian | J52: HD 10-53 powered | N52: Westfield | O52: STX2 100-51 powered | S52: Meridian | T52: HD 10-53 Vanguard 37 hp engine | X52: 20 | Y52: 100 | Z52: 1.58 | AF52: 16.9826052 | AG52: 4.898 | AH52: 3.28209078 | AI52: 25 | AV52: 1.5 | AW52: 1.58
A53: Harvesting_Grain Powered_Auger 12-13 in. u trough (39-40 FT, 38-50 hp engine) | B53: Harvesting_Grain | C53: Powered_Auger | D53: 12-13 in. u trough (39-40 FT, 38-50 hp engine) | F53: 38000 | G53: 38000 | I53: Brandt | J53: 1340 Model Auger with 48-50HP Diesel motor with mover | X53: 20 | Y53: 100 | Z53: 1.58 | AF53: 20.81738702 | AG53: 6.004 | AH53: 4.023208053 | AI53: 31 | AV53: 1.5 | AW53: 1.58
A54: Harvesting_Grain PTO_Grain_Auger 8 in. (30-69 FT, 2,700-3,200 bu/hr, requires 50 hp) | B54: Harvesting_Grain | C54: PTO_Grain_Auger | D54: 8 in. (30-69 FT, 2,700-3,200 bu/hr, requires 50 hp) | E54: 8" 30-69 FT 2,700-3,200 bu/hr | F54: =ROUND(G54/500,0)*500 -> 12000 | G54: 12000 | I54: Westfield | J54: BD PTO WR 80x51 | X54: 20 | Y54: 100 | Z54: 1.05 | AF54: 6.573911691 | AG54: 1.26 | AH54: 1.175086754 | AI54: =IF(AF54+AG54+AH54<10,ROUND((AF54+AG54+AH54)/0.25,0)*0.25,ROUND(AF54+AG54+AH54,0)) -> 9 | AM54: =AN8 -> 135 | AN54: =IF(AI54+AJ54+AK54+AL54+AM54<10,ROUND((AI54+AJ54+AK54+AL54+AM54)/0.25,0)*0.25,ROUND(AI54+AJ54+AK54+AL54+AM54,0)) -> 144 | AV54: 1 | AW54: 1.05
A55: Harvesting_Grain PTO_Grain_Auger 10 in. (40-89 FT, 5,400 bu/hr, requires 75 hp) | B55: Harvesting_Grain | C55: PTO_Grain_Auger | D55: 10 in. (40-89 FT, 5,400 bu/hr, requires 75 hp) | E55: 10" 40-89 FT 5,400 bu/hr | F55: 25000 | G55: 25000 | I55: Farmking | J55: Y10-70 swing | N55: Westfield | O55: MKX 100-73 swing | S55: Farmking | T55: Y1070 TMMR | X55: 20 | Y55: 100 | Z55: 1.05 | AF55: 13.69564936 | AG55: 2.625 | AH55: 2.448097403 | AI55: 19 | AM55: =AN8 -> 135 | AN55: 154 | AV55: 1 | AW55: 1.05
A56: Harvesting_Grain PTO_Grain_Auger 13 in. (70-120 FT, 9,700 bu/hr, requires 100 hp) | B56: Harvesting_Grain | C56: PTO_Grain_Auger | D56: 13 in. (70-120 FT, 9,700 bu/hr, requires 100 hp) | E56: 13" 70-100 FT 9,700 bu/hr | F56: 55000 | G56: 55000 | I56: Farmking | J56: Y1395TS | N56: FarmKing | O56: Y13-85 TMMR | S56: Farmking | T56: 13-95 TMMR | X56: 20 | Y56: 100 | Z56: 1.05 | AF56: 30.13042858 | AG56: 5.775 | AH56: 5.385814287 | AI56: 41 | AM56: =AN8 -> 135 | AN56: 176 | AV56: 1 | AW56: 1.05
A57: Harvesting_Grain PTO_Grain_Auger 16 in. (80-100 FT, 21,000 bu/hr, requires 200 hp) | B57: Harvesting_Grain | C57: PTO_Grain_Auger | D57: 16 in. (80-100 FT, 21,000 bu/hr, requires 200 hp) | E57: 16" 80-100 FT 21,000 bu/hr | F57: 90000 | G57: 90000 | I57: Westfield | J57: MKX 130-114 swing | N57: Westfield | O57: X13-94 GLP | S57: Brandt | T57: 1370 swing auger 13" 70-79ft | X57: 20 | Y57: 100 | Z57: 1.05 | AF57: 49.30433768 | AG57: 9.45 | AH57: 8.813150652 | AI57: 68 | AM57: =AN9 -> 176 | AN57: 244 | AV57: 1 | AW57: 1.05
A58: Harvesting_Grain PTO_Grain_Auger 16 in. (100+ FT, 21,000 bu/hr, requires 200 hp) | B58: Harvesting_Grain | C58: PTO_Grain_Auger | D58: 16 in. (100+ FT, 21,000 bu/hr, requires 200 hp) | E58: 16" 100+ FT 21,000 bu/hr | F58: =ROUND(G58/5000,0)*5000 -> 125000 | G58: 125000 | I58: Farmking | J58: Y16-104 | N58: Westfield | O58: MKX-160-105 with Rodondo Extend | S58: Farmking | T58: Y16104 | X58: 20 | Y58: 100 | Z58: 1.05 | AF58: 68.47824678 | AG58: 13.125 | AH58: 12.24048702 | AI58: 94 | AM58: =AN9 -> 176 | AN58: 270 | AV58: 1 | AW58: 1.05
A59: Harvesting_Grain Swath_Roller Drawn (10 FT) | B59: Harvesting_Grain | C59: Swath_Roller | D59: Drawn (10 FT) | F59: =ROUND(G59/500,0)*500 -> 5500 | G59: 5500 | X59: 20 | Y59: 100 | Z59: 1.05 | AF59: 3.013042858 | AG59: 0.5775 | AH59: =Margin_percentage*(AF59+AG59) -> 0.5385814287 | AI59: 4.25 | AP59: /acre | AV59: 1 | AW59: 1.05
A60: Harvesting_Grain Swath_Roller Attached (10 FT) | B60: Harvesting_Grain | C60: Swath_Roller | D60: Attached (10 FT) | F60: 6000 | G60: 6000 | X60: 20 | Y60: 100 | Z60: 1.05 | AF60: 3.286955845 | AG60: 0.63 | AH60: 0.5875433768 | AI60: 4.5 | AP60: /acre | AV60: 1 | AW60: 1.05
A61: Harvesting_Grain PTO_Grain_Conveyor 20-24 in. (90 FT, non swing, requires 100 hp) | B61: Harvesting_Grain | C61: PTO_Grain_Conveyor | D61: 20-24 in. (90 FT, non swing, requires 100 hp) | E61: 20-24 in. (90 FT, non swing) | F61: =ROUND(G61/5000,0)*5000 -> 45000 | G61: 45000 | X61: 10 | Y61: 100 | Z61: 2.21 | AF61: 44.80433768 | AG61: 9.945 | AH61: =Margin_percentage*(AF61+AG61) -> 8.212400652 | AI61: 63 | AM61: =AN6 -> 116 | AN61: =IF(AI61+AJ61+AK61+AL61+AM61<10,ROUND((AI61+AJ61+AK61+AL61+AM61)/0.25,0)*0.25,ROUND(AI61+AJ61+AK61+AL61+AM61,0)) -> 179 | AV61: 2.1 | AW61: 2.21
A62: Harvesting_Grain PTO_Grain_Conveyor 20-24 in. (100+ FT, swing away, requires 130 hp) | B62: Harvesting_Grain | C62: PTO_Grain_Conveyor | D62: 20-24 in. (100+ FT, swing away, requires 130 hp) | E62: 20-24 in. (100+ FT, swing away) | F62: 100000 | G62: 100000 | X62: 10 | Y62: 100 | Z62: 2.21 | AF62: 99.56519484 | AG62: 22.1 | AH62: 18.24977923 | AI62: 140 | AM62: =AN8 -> 135 | AN62: 275 | AV62: 2.1 | AW62: 2.21
A63: Harvesting_Grain Grain_Bag_Loader Bagger (10 FT, requires 60 hp) | B63: Harvesting_Grain | C63: Grain_Bag_Loader | D63: Bagger (10 FT, requires 60 hp) | E63: 10 FT Bagger | F63: =ROUND(G63,-3) -> 40000 | G63: 40000 | X63: 12 | Y63: 100 | Z63: 2.1 | AF63: 33.85506495 | AG63: 8.4 | AH63: 6.338259742 | AI63: 49 | AM63: =AN6 -> 116 | AN63: 165 | AV63: 2 | AW63: 2.1
A64: Harvesting_Grain Grain_Bag_Loader Bagger (12 FT, requires 125 hp) | B64: Harvesting_Grain | C64: Grain_Bag_Loader | D64: Bagger (12 FT, requires 125 hp) | E64: 12 FT Bagger | F64: 50000 | G64: 50000 | X64: 12 | Y64: 100 | Z64: 2.1 | AF64: 42.31883118 | AG64: 10.5 | AH64: 7.922824678 | AI64: 61 | AM64: =AN7 -> 127 | AN64: 188 | AV64: 2 | AW64: 2.1
A65: Harvesting_Grain Grain_Bag_Extractor Unloader (10 FT, requires 60 hp) | B65: Harvesting_Grain | C65: Grain_Bag_Extractor | D65: Unloader (10 FT, requires 60 hp) | E65: 10 FT Unloader | F65: =ROUND(G65,-3) -> 40000 | G65: 40000 | X65: 12 | Y65: 100 | Z65: 2.1 | AF65: =(F65*Fraction_dep_over_optimal_life/X65/Y65)+IF(Machinery_Financed_percentage=0,0,(-CUMIPMT(Interest_Rate/2,Payback_loan_period_years*2,F65*Machinery_Financed_percentage,1,Payback_loan_period_years*2,0)/X65/Y65))+((F65*(1-Machinery_Financed_percentage)*(1+Opportunity_Rate/12)^(Opp_inv_period_years*12)-(F65*(1-Machinery_Financed_percentage)))/X65/Y65)+(Insurance_and_Housing*F65/Y65) -> 33.85506495 | AG65: =Z65/100*F65/Y65 -> 8.4 | AH65: =Margin_percentage*(AF65+AG65) -> 6.338259742 | AI65: 49 | AM65: =AN6 -> 116 | AN65: 165 | AV65: 2 | AW65: 2.1
A66: Harvesting_Grain Grain_Bag_Extractor Unloader (12 FT, requires 100 hp) | B66: Harvesting_Grain | C66: Grain_Bag_Extractor | D66: Unloader (12 FT, requires 100 hp) | E66: 12 FT Unloader | F66: =ROUND(G66/5000,0)*5000 -> 50000 | G66: 50000 | X66: 12 | Y66: 100 | Z66: 2.1 | AF66: 42.31883118 | AG66: 10.5 | AH66: 7.922824678 | AI66: 61 | AM66: =AN7 -> 127 | AN66: 188 | AV66: 2 | AW66: 2.1
A67: Harvesting_Grain Grain_Dryer 275-370 bu/hr | B67: Harvesting_Grain | C67: Grain_Dryer | D67: 275-370 bu/hr | F67: 100000 | G67: 100000 | X67: 15 | Y67: 150 | Z67: 1.37 | AF67: 46.47341993 | AG67: 9.133333333 | AH67: =Margin_percentage*(AF67+AG67) -> 8.341012989 | AI67: 64 | AV67: 1.3 | AW67: 1.37
A68: Harvesting_Grain Grain_Dryer 420-610 bu/hr | B68: Harvesting_Grain | C68: Grain_Dryer | D68: 420-610 bu/hr | F68: 150000 | G68: 150000 | X68: 15 | Y68: 150 | Z68: 1.37 | AF68: 69.71012989 | AG68: 13.7 | AH68: 12.51151948 | AI68: 96 | AV68: 1.3 | AW68: 1.37
A69: Harvesting_Grain Grain_Dryer 710-910 bu/hr | B69: Harvesting_Grain | C69: Grain_Dryer | D69: 710-910 bu/hr | F69: 200000 | G69: 200000 | X69: 15 | Y69: 150 | Z69: 1.37 | AF69: 92.94683986 | AG69: 18.26666667 | AH69: 16.68202598 | AI69: 128 | AV69: 1.3 | AW69: 1.37
A70: Harvesting_Grain Grain_Dryer 1060-1180 bu/hr | B70: Harvesting_Grain | C70: Grain_Dryer | D70: 1060-1180 bu/hr | F70: 250000 | G70: 250000 | X70: 15 | Y70: 150 | Z70: 1.37 | AF70: 116.1835498 | AG70: 22.83333333 | AH70: 20.85253247 | AI70: 160 | AV70: 1.3 | AW70: 1.37
A71: Harvesting_Grain Grain_Dryer 1440-2380 bu/hr | B71: Harvesting_Grain | C71: Grain_Dryer | D71: 1440-2380 bu/hr | F71: 300000 | G71: 300000 | X71: 15 | Y71: 150 | Z71: 1.37 | AF71: 139.4202598 | AG71: 27.4 | AH71: 25.02303897 | AI71: 192 | AV71: 1.3 | AW71: =ROUND((AV71*$AW$2)+AV71,2) -> 1.37
A72: Harvesting_Grain Grain_Vac 2,400-5,000 bu/hr (requires 70 hp) | B72: Harvesting_Grain | C72: Grain_Vac | D72: 2,400-5,000 bu/hr (requires 70 hp) | E72: 2,400-5,000 bu/hr | F72: =ROUND(G72,-3) -> 45000 | G72: 45000 | I72: Brandt | J72: 5200 EX | N72: Walinga | O72: 6614 DLX Grain vac | X72: 15 | Y72: 50 | Z72: 2.1 | AF72: 62.73911691 | AG72: 18.9 | AH72: 12.24586754 | AI72: 94 | AM72: =AN6 -> 116 | AN72: =IF(AI72+AJ72+AK72+AL72+AM72<10,ROUND((AI72+AJ72+AK72+AL72+AM72)/0.25,0)*0.25,ROUND(AI72+AJ72+AK72+AL72+AM72,0)) -> 210 | AV72: 2 | AW72: 2.1
A73: Harvesting_Grain Grain_Vac 6,000-10,000 bu/hr (requires 120 hp) | B73: Harvesting_Grain | C73: Grain_Vac | D73: 6,000-10,000 bu/hr (requires 120 hp) | E73: 6,000-10,000 bu/hr | F73: 65000 | G73: 65000 | I73: REM | J73: VR12 | N73: AGI | O73: VR12 | S73: REM | T73: VRX Grain Vac | X73: 15 | Y73: 50 | Z73: 2.1 | AF73: 90.62316886 | AG73: 27.3 | AH73: 17.68847533 | AI73: 136 | AM73: =AN7 -> 127 | AN73: 263 | AV73: 2 | AW73: 2.1
A74: Harvesting_Hay Self_propelled_Forage_Harvester Small (400-599 hp) | B74: Harvesting_Hay | C74: Self_propelled_Forage_Harvester | D74: Small (400-599 hp) | E74: 400-599 hp | F74: 525000 | G74: 538598 | I74: John Deere | J74: 8400 | N74: New Holland | O74: FR480 | S74: Claas | T74: 940 | X74: 10 | Y74: 400 | Z74: 8.4 | AA74: 79 | AF74: 130.6793182 | AG74: 110.25 | AH74: 36.13939773 | AI74: 277 | AJ74: =AA74*Fuel_Price -> 110.6 | AK74: =Labour -> 27 | AL74: =Margin_percentage*(AJ74+AK74) -> 20.64 | AN74: 435 | AP74: /acre | AV74: 8 | AW74: 8.4
A75: Harvesting_Hay Self_propelled_Forage_Harvester Medium (600-799 hp) | B75: Harvesting_Hay | C75: Self_propelled_Forage_Harvester | D75: Medium (600-799 hp) | E75: 600-799 hp | F75: 675000 | G75: 684585 | I75: John Deere | J75: 9600 | N75: New Holland | O75: FR650 | S75: Claas | T75: 960 | X75: 10 | Y75: 400 | Z75: 8.4 | AA75: 103 | AF75: 168.0162663 | AG75: 141.75 | AH75: 46.46493994 | AI75: 356 | AJ75: =AA75*Fuel_Price -> 144.2 | AK75: =Labour -> 27 | AL75: =Margin_percentage*(AJ75+AK75) -> 25.68 | AN75: 553 | AP75: /acre | AV75: 8 | AW75: 8.4
A76: Harvesting_Hay Self_propelled_Forage_Harvester Large (800-899 hp) | B76: Harvesting_Hay | C76: Self_propelled_Forage_Harvester | D76: Large (800-899 hp) | E76: 800-899 hp | F76: =ROUNDUP(G76/50000,0)*50000 -> 750000 | G76: 748511 | I76: John Deere | J76: 9800 | N76: New Holland | O76: FR920 | S76: Claas | T76: 980 | X76: 10 | Y76: 400 | Z76: 8.4 | AA76: 121 | AF76: 186.6847403 | AG76: 157.5 | AH76: 51.62771105 | AI76: 396 | AJ76: =AA76*Fuel_Price -> 169.4 | AK76: =Labour -> 27 | AL76: =Margin_percentage*(AJ76+AK76) -> 29.46 | AN76: 622 | AP76: /acre | AV76: 8 | AW76: 8.4
A77: Harvesting_Hay SP_Forage_Harvester_Header Windrow Pickup (12-17 FT width) | B77: Harvesting_Hay | C77: SP_Forage_Harvester_Header | D77: Windrow Pickup (12-17 FT width) | E77: 12-17 FT | F77: =ROUND(G77/5000,0)*5000 -> 60000 | G77: 60000 | I77: John Deere | J77: 4.0m/4.5m WRPU | N77: New Holland | O77: 12.5 HDY PU | S77: Class | T77: 10'/12.6' PU | X77: 10 | Y77: 400 | Z77: 8.4 | AB77: 6.5 | AC77: 27.5 | AD77: =ROUND((AB77*5280*AC77*Field_efficiency)/43560,0) -> 17 | AE77: (acre/hr) | AF77: 14.93477923 | AG77: 12.6 | AH77: 4.130216884 | AI77: 32 | AN77: 32 | AP77: /acre | AQ77: =IF(AN77/AD77<10,ROUND((AN77/AD77)/0.25,0)*0.25,ROUND(AN77/AD77,0)) -> 2 | AV77: 8 | AW77: 8.4
A78: Harvesting_Hay SP_Forage_Harvester_Header Corn (14-20 FT width) | B78: Harvesting_Hay | C78: SP_Forage_Harvester_Header | D78: Corn (14-20 FT width) | F78: =ROUND(G78/25000,0)*25000 -> 175000 | G78: 163187 | I78: John Deere | J78: 676/ 696 | N78: New Holland | O78: 450FI/600FI | S78: Claas | T78: Orbis 600 | X78: 10 | Y78: 400 | Z78: 8.4 | AB78: 6.5 | AC78: 14 | AD78: 9 | AE78: (acre/hr) | AF78: 43.55977274 | AG78: 36.75 | AH78: 12.04646591 | AI78: 92 | AN78: 92 | AP78: /acre | AQ78: =IF(AN78/AD78<10,ROUND((AN78/AD78)/0.25,0)*0.25,ROUND(AN78/AD78,0)) -> 10 | AV78: 8 | AW78: 8.4
A79: Harvesting_Hay SP_Forage_Harvester_Header Corn (21-30 FT width) | B79: Harvesting_Hay | C79: SP_Forage_Harvester_Header | D79: Corn (21-30 FT width) | F79: 225000 | G79: 225019 | I79: John Deere | J79: 690 / 692 | N79: New Holland | O79: 750FI/990FI | S79: Claas | T79: Orbis 750/900 | X79: 10 | Y79: 400 | Z79: 8.4 | AB79: 6.5 | AC79: 21 | AD79: 13 | AE79: (acre/hr) | AF79: 56.0054221 | AG79: 47.25 | AH79: 15.48831331 | AI79: 119 | AN79: 119 | AP79: /acre | AQ79: 9.25 | AV79: 8 | AW79: 8.4
A80: Harvesting_Hay Pull_Type_Forage_Harvester For up to 150 hp tractor | B80: Harvesting_Hay | C80: Pull_Type_Forage_Harvester | D80: For up to 150 hp tractor | F80: =ROUND(G80/5000,0)*5000 -> 70000 | G80: =55000*1.25 -> 68750 | X80: 10 | Y80: 100 | Z80: 8.4 | AF80: 69.69563639 | AG80: 58.8 | AH80: =Margin_percentage*(AF80+AG80) -> 19.27434546 | AI80: 148 | AM80: =AN8 -> 135 | AP80: /acre | AV80: 8 | AW80: 8.4
A81: Harvesting_Hay Pull_Type_Forage_Harvester For 151 to 250 hp tractor | B81: Harvesting_Hay | C81: Pull_Type_Forage_Harvester | D81: For 151 to 250 hp tractor | F81: 95000 | G81: =75000*1.25 -> 93750 | X81: 10 | Y81: 100 | Z81: 8.4 | AF81: 94.5869351 | AG81: 79.8 | AH81: 26.15804026 | AI81: 201 | AM81: =AN9 -> 176 | AP81: /acre | AV81: 8 | AW81: 8.4
A82: Harvesting_Hay Pull_Type_Forage_Harvester For up to 300 hp tractor | B82: Harvesting_Hay | C82: Pull_Type_Forage_Harvester | D82: For up to 300 hp tractor | F82: 105000 | G82: =85000*1.25 -> 106250 | X82: 10 | Y82: 100 | Z82: 8.4 | AF82: 104.5434546 | AG82: 88.2 | AH82: 28.91151819 | AI82: 222 | AM82: 213 | AP82: /acre | AV82: 8 | AW82: 8.4
A83: Harvesting_Hay PT_Forage_Harvester_Header Windrow Pickup (70-79 in. width) | B83: Harvesting_Hay | C83: PT_Forage_Harvester_Header | D83: Windrow Pickup (70-79 in. width) | F83: =ROUND(G83/500,0)*500 -> 10000 | G83: =8000*1.25 -> 10000 | X83: 10 | Y83: 100 | Z83: 8.4 | AB83: 5.5 | AC83: 5.8 | AD83: =ROUND((AB83*5280*AC83*Field_efficiency)/43560,1) -> 3.1 | AE83: (acre/hr) | AF83: =(F83*Fraction_dep_over_optimal_life/X83/Y83)+IF(Machinery_Financed_percentage=0,0,(-CUMIPMT(Interest_Rate/2,Payback_loan_period_years*2,F83*Machinery_Financed_percentage,1,Payback_loan_period_years*2,0)/X83/Y83))+((F83*(1-Machinery_Financed_percentage)*(1+Opportunity_Rate/12)^(Opp_inv_period_years*12)-(F83*(1-Machinery_Financed_percentage)))/X83/Y83)+(Insurance_and_Housing*F83/Y83) -> 9.956519484 | AG83: =Z83/100*F83/Y83 -> 8.4 | AH83: =Margin_percentage*(AF83+AG83) -> 2.753477923 | AI83: 21 | AN83: =IF(AI83+AJ83+AK83+AL83+AM83<10,ROUND((AI83+AJ83+AK83+AL83+AM83)/0.25,0)*0.25,ROUND(AI83+AJ83+AK83+AL83+AM83,0)) -> 21 | AP83: /acre | AQ83: =IF(AN83/AD83<10,ROUND((AN83/AD83)/0.25,0)*0.25,ROUND(AN83/AD83,0)) -> 6.75 | AV83: 8 | AW83: 8.4
A84: Harvesting_Hay PT_Forage_Harvester_Header Windrow Pickup (80-96 in. width) | B84: Harvesting_Hay | C84: PT_Forage_Harvester_Header | D84: Windrow Pickup (80-96 in. width) | F84: =ROUND(G84,-3) -> 18000 | G84: =14000*1.25 -> 17500 | X84: 10 | Y84: 100 | Z84: 8.4 | AB84: 5.5 | AC84: 6.7 | AD84: =ROUND((AB84*5280*AC84*Field_efficiency)/43560,1) -> 3.6 | AE84: (acre/hr) | AF84: 17.92173507 | AG84: 15.12 | AH84: 4.956260261 | AI84: 38 | AN84: 38 | AP84: /acre | AQ84: 11 | AV84: 8 | AW84: 8.4
A85: Harvesting_Hay PT_Forage_Harvester_Header Corn (2 row) | B85: Harvesting_Hay | C85: PT_Forage_Harvester_Header | D85: Corn (2 row) | F85: 18000 | G85: =14000*1.25 -> 17500 | X85: 10 | Y85: 100 | Z85: 8.4 | AB85: 5 | AC85: 5 | AD85: =ROUND((AB85*5280*AC85*Field_efficiency)/43560,1) -> 2.4 | AE85: (acre/hr) | AF85: 17.92173507 | AG85: 15.12 | AH85: 4.956260261 | AI85: 38 | AN85: 38 | AP85: /acre | AQ85: 16 | AV85: 8 | AW85: 8.4
A86: Harvesting_Hay PT_Forage_Harvester_Header Corn (3 row) | B86: Harvesting_Hay | C86: PT_Forage_Harvester_Header | D86: Corn (3 row) | F86: 35000 | G86: =28000*1.25 -> 35000 | X86: 10 | Y86: 100 | Z86: 8.4 | AB86: 5 | AC86: 7.5 | AD86: =ROUND((AB86*5280*AC86*Field_efficiency)/43560,1) -> 3.6 | AE86: (acre/hr) | AF86: 34.84781819 | AG86: 29.4 | AH86: 9.637172729 | AI86: 74 | AN86: 74 | AP86: /acre | AQ86: 21 | AV86: 8 | AW86: 8.4
A87: Harvesting_Hay Self_propelled_Mower_Conditioner Disc Mower Conditioner (13-19 FT) | B87: Harvesting_Hay | C87: Self_propelled_Mower_Conditioner | D87: Disc Mower Conditioner (13-19 FT) | F87: 250000 | G87: =189217+43049 -> 232266 | I87: John Deere | J87: W260 with 994/995/500R rotary header | N87: Case IH | O87: WD2504 with RD163/RD193 disc header | S87: New Holland | T87: Speedrower 260 with 19ft durabine | X87: 15 | Y87: 150 | Z87: 3.36 | AA87: 36 | AB87: 8 | AC87: 16 | AD87: 12 | AE87: (acre/hr) | AF87: 116.1835498 | AG87: 56 | AH87: 25.82753247 | AI87: 198 | AJ87: =AA87*Fuel_Price -> 50.4 | AK87: =Labour -> 27 | AL87: =Margin_percentage*(AJ87+AK87) -> 11.61 | AN87: 287 | AO87: =IF(AN87/AD87<10,ROUND((AN87/AD87)/0.25,0)*0.25,ROUND(AN87/AD87,0)) -> 24 | AP87: /acre | AV87: 3.2 | AW87: 3.36
A88: Harvesting_Hay Self_propelled_Mower_Conditioner Disc Mower Conditioner (30 FT) | B88: Harvesting_Hay | C88: Self_propelled_Mower_Conditioner | D88: Disc Mower Conditioner (30 FT) | F88: 450000 | G88: 472000 | I88: Krone | J88: Big M 450 | X88: 15 | Y88: 150 | Z88: 3.36 | AA88: 64 | AB88: 8 | AC88: 30 | AD88: 23 | AE88: (acre/hr) | AF88: 209.1303897 | AG88: =Z88/100*F88/Y88 -> 100.8 | AH88: 46.48955845 | AI88: 356 | AJ88: =AA88*Fuel_Price -> 89.6 | AK88: =Labour -> 27 | AL88: =Margin_percentage*(AJ88+AK88) -> 17.49 | AN88: 490 | AO88: 21 | AP88: /acre | AV88: 3.2 | AW88: 3.36
A89: Harvesting_Hay Self_propelled_Mower_Conditioner Sickle Mower Conditioner (14-18 FT) | B89: Harvesting_Hay | C89: Self_propelled_Mower_Conditioner | D89: Sickle Mower Conditioner (14-18 FT) | F89: =ROUNDUP(G89/5000,0)*5000 -> 225000 | G89: =189217+32883 -> 222100 | H89: =IFERROR(AVERAGE(M89,R89,W89),"") ->  | I89: Case IH | J89: WD2504 with 14/16/18/dual Skl dul aug HDX | N89: Massey Ferguson | O89: WR9950 with 14-18' sickle head | S89: New Holland | T89: Speedrower 260 w haybine 16HS | X89: 15 | Y89: 150 | Z89: 3.36 | AA89: 32 | AB89: 6 | AC89: 16 | AD89: 9 | AE89: (acre/hr) | AF89: 104.5651948 | AG89: 50.4 | AH89: 23.24477923 | AI89: 178 | AJ89: =AA89*Fuel_Price -> 44.8 | AK89: =Labour -> 27 | AL89: =Margin_percentage*(AJ89+AK89) -> 10.77 | AN89: 261 | AO89: 29 | AP89: /acre | AV89: 3.2 | AW89: 3.36
A90: =B90&" "&C90&" "&D90 -> Harvesting_Hay Pull_Type_Mower_Conditioner Sickle (9-10 FT, requires 50 hp) | B90: Harvesting_Hay | C90: Pull_Type_Mower_Conditioner | D90: Sickle (9-10 FT, requires 50 hp) | E90: 9-10 FT | F90: 30000 | G90: =25000*1.15 -> 28750 | I90: New Holland | J90: Haybine 488 | X90: 15 | Y90: 150 | Z90: 2.1 | AB90: 5 | AC90: 8 | AD90: 4 | AE90: (acre/hr) | AF90: =(F90*Fraction_dep_over_optimal_life/X90/Y90)+IF(Machinery_Financed_percentage=0,0,(-CUMIPMT(Interest_Rate/2,Payback_loan_period_years*2,F90*Machinery_Financed_percentage,1,Payback_loan_period_years*2,0)/X90/Y90))+((F90*(1-Machinery_Financed_percentage)*(1+Opportunity_Rate/12)^(Opp_inv_period_years*12)-(F90*(1-Machinery_Financed_percentage)))/X90/Y90)+(Insurance_and_Housing*F90/Y90) -> 13.94202598 | AG90: =Z90/100*F90/Y90 -> 4.2 | AH90: =Margin_percentage*(AF90+AG90) -> 2.721303897 | AI90: 21 | AM90: =AN6 -> 116 | AN90: 137 | AO90: 34 | AP90: /acre | AV90: 2 | AW90: 2.1
A91: Harvesting_Hay Pull_Type_Mower_Conditioner Sickle (14-16 FT, requires 100 hp) | B91: Harvesting_Hay | C91: Pull_Type_Mower_Conditioner | D91: Sickle (14-16 FT, requires 100 hp) | E91: 14-16 FT | F91: 55000 | G91: 56978 | I91: New Holland | J91: H7150 | N91: Case IH | O91: SC101-HDX142 | X91: 15 | Y91: 150 | Z91: 2.1 | AB91: 6 | AC91: 14 | AD91: 8 | AE91: (acre/hr) | AF91: 25.56038096 | AG91: =Z91/100*F91/Y91 -> 7.7 | AH91: 4.989057144 | AI91: 38 | AM91: =AN6 -> 116 | AN91: 154 | AO91: 19 | AP91: /acre | AV91: 2 | AW91: 2.1
A92: Harvesting_Hay Pull_Type_Mower_Conditioner Disc (7-9 FT side pull, requires 60 hp) | B92: Harvesting_Hay | C92: Pull_Type_Mower_Conditioner | D92: Disc (7-9 FT side pull, requires 60 hp) | E92: 7-9 FT side pull | F92: 40000 | G92: 38915 | I92: John Deere | J92: 630 side pull | N92: Massey Ferguson | O92: 1359 | X92: 15 | Y92: 150 | Z92: 2.63 | AB92: 8 | AC92: 9 | AD92: 7 | AE92: (acre/hr) | AF92: 18.58936797 | AG92: =Z92/100*F92/Y92 -> 7.013333333 | AH92: 3.840405196 | AI92: 29 | AM92: =AN6 -> 116 | AN92: 145 | AO92: 21 | AP92: /acre | AV92: 2.5 | AW92: 2.63
A93: Harvesting_Hay Pull_Type_Mower_Conditioner Disc (14 FT, requires 90 hp) | B93: Harvesting_Hay | C93: Pull_Type_Mower_Conditioner | D93: Disc (14 FT, requires 90 hp) | E93: 14 FT | F93: 55000 | G93: 54357 | I93: New Holland | J93: Discbine 313 | N93: Massey Ferguson | O93: 1373 | S93: John Deere | T93: 946 Mid Pivot | X93: 15 | Y93: 150 | Z93: 2.63 | AB93: 8 | AC93: 12 | AD93: 9 | AE93: (acre/hr) | AF93: 25.56038096 | AG93: 9.643333333 | AH93: 5.280557144 | AI93: 40 | AM93: =AN6 -> 116 | AN93: 156 | AO93: 17 | AP93: /acre | AV93: 2.5 | AW93: 2.63
A94: Harvesting_Hay Pull_Type_Mower_Conditioner Disc (16-18 FT, requires 100 hp) | B94: Harvesting_Hay | C94: Pull_Type_Mower_Conditioner | D94: Disc (16-18 FT, requires 100 hp) | E94: 16-18 FT | F94: 65000 | G94: 62975 | I94: New Holland | J94: Discbine 316 | N94: Massey Ferguson | O94: 1393 | S94: John Deere | T94: 956 Mid Pivot | X94: 15 | Y94: 150 | Z94: 2.63 | AB94: 8 | AC94: 15 | AD94: 12 | AE94: (acre/hr) | AF94: 30.20772295 | AG94: 11.39666667 | AH94: 6.240658443 | AI94: 48 | AM94: =AN6 -> 116 | AN94: 164 | AO94: 14 | AP94: /acre | AV94: 2.5 | AW94: 2.63
A95: Harvesting_Hay Hay_Rakes 16-20 FT bar (requires 50 hp) | B95: Harvesting_Hay | C95: Hay_Rakes | D95: 16-20 FT bar (requires 50 hp) | E95: 16-20 FT bar | F95: =ROUND(G95,-3) -> 15000 | G95: 15000 | H95: no bar rake options in these prices | I95: Case IH | J95: WR102 | N95: New Holland | O95: Duravee 817 | S95: Massey Ferguson | T95: 1508 | X95: 20 | Y95: 50 | Z95: 2.1 | AB95: 6.5 | AC95: 16 | AD95: =ROUND((AB95*5280*AC95*Field_efficiency)/43560,0) -> 10 | AE95: (acre/hr) | AF95: 16.43477923 | AG95: 6.3 | AH95: =Margin_percentage*(AF95+AG95) -> 3.410216884 | AI95: 26 | AM95: =AN6 -> 116 | AN95: 142 | AO95: 14 | AP95: /acre | AV95: 2 | AW95: 2.1
A96: Harvesting_Hay Hay_Rakes 21-30 FT wheel (requires 50 hp) | B96: Harvesting_Hay | C96: Hay_Rakes | D96: 21-30 FT wheel (requires 50 hp) | E96: 21-30 FT wheel | F96: 30000 | G96: 30000 | I96: Farmking | J96: RE 14 | N96: New Holland | O96: Duravee 1225 | S96: Case IH | T96: WR201 | X96: 20 | Y96: 50 | Z96: 2.1 | AB96: 6.5 | AC96: 21 | AD96: =ROUND((AB96*5280*AC96*Field_efficiency)/43560,0) -> 13 | AE96: (acre/hr) | AF96: 32.86955845 | AG96: 12.6 | AH96: 6.820433768 | AI96: 52 | AM96: =AN6 -> 116 | AN96: 168 | AO96: 13 | AP96: /acre | AV96: 2 | AW96: 2.1
A97: Harvesting_Hay Hay_Rakes 31-40 FT wheel (requires 50 hp) | B97: Harvesting_Hay | C97: Hay_Rakes | D97: 31-40 FT wheel (requires 50 hp) | E97: 31-40 FT wheel | F97: 45000 | G97: 45000 | I97: John Deere | J97: WR1216 | N97: New Holland | O97: Duravee 2036 | S97: Case IH | T97: WR302 | X97: 20 | Y97: 50 | Z97: 2.1 | AB97: 6.5 | AC97: 31 | AD97: =ROUND((AB97*5280*AC97*Field_efficiency)/43560,0) -> 20 | AE97: (acre/hr) | AF97: 49.30433768 | AG97: 18.9 | AH97: 10.23065065 | AI97: 78 | AM97: =AN6 -> 116 | AN97: 194 | AO97: 9.75 | AP97: /acre | AV97: 2 | AW97: 2.1
A98: Harvesting_Hay Baler_Large_Round 4x5 FT bales (requires 80 hp) | B98: Harvesting_Hay | C98: Baler_Large_Round | D98: 4x5 FT bales (requires 80 hp) | E98: 4x5 FT bale | F98: 48000 | G98: 48450 | I98: Vermeer | J98: 404 Pro | N98: New Holland | O98: RF 440 | S98: John Deere | T98: 440E | X98: 15 | Y98: 100 | Z98: 1.58 | AB98: 0 | AC98: 0 | AD98: 15 | AE98: (bales/hr) | AF98: 33.46086235 | AG98: =Z98/100*F98/Y98 -> 7.584 | AH98: 6.156729352 | AI98: 47 | AM98: =AN6 -> 116 | AN98: 163 | AO98: 11 | AP98: /bale | AV98: 1.5 | AW98: 1.58
A99: Harvesting_Hay Baler_Large_Round 5x5 FT bales (requires 135 hp) | B99: Harvesting_Hay | C99: Baler_Large_Round | D99: 5x5 FT bales (requires 135 hp) | E99: 5x5 FT bale | F99: 55000 | G99: 55000 | I99: Vermeer | J99: 504 PRO | N99: New Holland | O99: RF 450 | S99: John Deere | T99: 450E | X99: 15 | Y99: 100 | Z99: 1.58 | AB99: 0 | AC99: 0 | AD99: 12 | AE99: (bales/hr) | AF99: 38.34057144 | AG99: =Z99/100*F99/Y99 -> 8.69 | AH99: 7.054585716 | AI99: 54 | AM99: =AN8 -> 135 | AN99: 189 | AO99: 16 | AP99: /bale | AV99: 1.5 | AW99: 1.58
A100: Harvesting_Hay Baler_Large_Round 5x6 FT bales (requires 135 hp) | B100: Harvesting_Hay | C100: Baler_Large_Round | D100: 5x6 FT bales (requires 135 hp) | E100: 5x6 FT bale | F100: =ROUND(G100/5000,0)*5000 -> 75000 | G100: 76180 | I100: Vermeer | J100: 604R Classic | N100: New Holland | O100: Rollbelt 460 | S100: John Deere | T100: 460M | X100: 15 | Y100: 100 | Z100: 1.58 | AB100: 0 | AC100: 0 | AD100: 13 | AE100: (bales/hr) | AF100: 52.28259742 | AG100: 11.85 | AH100: 9.619889613 | AI100: 74 | AM100: =AN8 -> 135 | AN100: 209 | AO100: 16 | AP100: /bale | AV100: 1.5 | AW100: 1.58
A101: Harvesting_Hay Baler_Large_Round 5x5 FT silage, net wrap bales (requires 135 hp) | B101: Harvesting_Hay | C101: Baler_Large_Round | D101: 5x5 FT silage, net wrap bales (requires 135 hp) | E101: 5x5 FT bale | F101: 65000 | G101: 65000 | I101: Vermeer | J101: 5520 Rebel | N101: John Deere | O101: 550M | X101: 15 | Y101: 100 | Z101: 1.58 | AB101: 0 | AC101: 0 | AD101: 16 | AE101: (bales/hr) | AF101: 45.31158443 | AG101: 10.27 | AH101: 8.337237665 | AI101: 64 | AM101: =AN8 -> 135 | AN101: 199 | AO101: 12 | AP101: /bale | AV101: 1.5 | AW101: 1.58
A102: Harvesting_Hay Baler_Large_Round 5x6 FT silage, net wrap bales (requires 135 hp) | B102: Harvesting_Hay | C102: Baler_Large_Round | D102: 5x6 FT silage, net wrap bales (requires 135 hp) | E102: 5x6 FT bale | F102: =ROUND(G102/5000,0)*5000 -> 85000 | G102: 86180 | I102: Vermeer | J102: 605N | N102: New Holland | O102: Rollbelt 560 | S102: John Deere | T102: 560M | X102: 15 | Y102: 100 | Z102: 1.58 | AB102: 0 | AC102: 0 | AD102: 17 | AE102: (bales/hr) | AF102: 59.25361041 | AG102: 13.43 | AH102: 10.90254156 | AI102: 84 | AM102: =AN8 -> 135 | AN102: 219 | AO102: 13 | AP102: /bale | AV102: 1.5 | AW102: 1.58
A103: Harvesting_Hay Baler_Small_Square 14x18x52 in. bales (requires 50 hp) | B103: Harvesting_Hay | C103: Baler_Small_Square | D103: 14x18x52 in. bales (requires 50 hp) | E103: 14x18x52" bale | F103: =ROUNDUP(G103,-3) -> 30000 | G103: 29450 | I103: Case IH | J103: SB531 | N103: New Holland | O103: BC5060 | S103: John Deere | T103: 328 | X103: 20 | Y103: 100 | Z103: 1.05 | AB103: 0 | AC103: 0 | AD103: 175 | AE103: (bales/hr) | AF103: 16.43477923 | AG103: =Z103/100*F103/Y103 -> 3.15 | AH103: 2.937716884 | AI103: 23 | AM103: =AN6 -> 116 | AN103: 139 | AO103: 0.75 | AP103: /bale | AV103: 1 | AW103: 1.05
A104: Harvesting_Hay Baler_Small_Square 16x18x52 in. bales (requires 50 hp) | B104: Harvesting_Hay | C104: Baler_Small_Square | D104: 16x18x52 in. bales (requires 50 hp) | E104: 16x18x52" bale | F104: 45000 | G104: 44635 | I104: Massey Ferguson | J104: 1842 | N104: New Holland | O104: BC5070 | X104: 20 | Y104: 100 | Z104: 1.05 | AB104: 0 | AC104: 0 | AD104: 175 | AE104: (bales/hr) | AF104: 24.65216884 | AG104: 4.725 | AH104: 4.406575326 | AI104: 34 | AM104: =AN6 -> 116 | AN104: 150 | AO104: 0.75 | AP104: /bale | AV104: 1 | AW104: 1.05
A105: Harvesting_Hay Baler_Large_Square Small, 35x31x108 in. (requires 145 hp) | B105: Harvesting_Hay | C105: Baler_Large_Square | D105: Small, 35x31x108 in. (requires 145 hp) | E105: 35x31x108" bale | F105: =ROUND(G105/5000,0)*5000 -> 160000 | G105: 160000 | I105: Case IH | J105: LB334XL | N105: New Holland | O105: Big Baler 330 Plus | S105: John Deere | T105: L331 | X105: 15 | Y105: 150 | Z105: 1.79 | AB105: 0 | AC105: 0 | AD105: 40 | AE105: (bales/hr) | AF105: 74.35747189 | AG105: =Z105/100*F105/Y105 -> 19.09333333 | AH105: 14.01762078 | AI105: 107 | AM105: =AN8 -> 135 | AN105: 242 | AO105: 6 | AP105: /bale | AV105: 1.7 | AW105: 1.79
A106: Harvesting_Hay Baler_Large_Square Medium, 35x47x108 in. (requires 145 hp) | B106: Harvesting_Hay | C106: Baler_Large_Square | D106: Medium, 35x47x108 in. (requires 145 hp) | E106: 35x47x108" bale | F106: 180000 | G106: 180000 | I106: Case IH | J106: LB434XL | N106: New Holland | O106: Big Baler 340 Plus | S106: John Deere | T106: L341 | X106: 15 | Y106: 150 | Z106: 1.79 | AB106: 0 | AC106: 0 | AD106: 40 | AE106: (bales/hr) | AF106: 83.65215587 | AG106: =Z106/100*F106/Y106 -> 21.48 | AH106: 15.76982338 | AI106: 121 | AM106: =AN8 -> 135 | AN106: 256 | AO106: 6.5 | AP106: /bale | AV106: 1.7 | AW106: 1.79
A107: Harvesting_Hay Baler_Large_Square Large, 50x47x108 in. (requires 180 hp) | B107: Harvesting_Hay | C107: Baler_Large_Square | D107: Large, 50x47x108 in. (requires 180 hp) | E107: 50x47x108" bale | F107: 225000 | G107: 225000 | I107: Krone | J107: BP 4x4 | N107: Massey Ferguson | O107: 2290 | X107: 15 | Y107: 150 | Z107: 1.79 | AB107: 0 | AC107: 0 | AD107: 40 | AE107: (bales/hr) | AF107: 104.5651948 | AG107: 26.85 | AH107: 19.71227923 | AI107: 151 | AM107: =AN9 -> 176 | AN107: 327 | AO107: 8.25 | AP107: /bale | AV107: 1.7 | AW107: 1.79
A108: Harvesting_Hay Pull_Type_Bale_Mover_Self_load_unload Round Bale 7-12 bale (requires 120 hp) | B108: Harvesting_Hay | C108: Pull_Type_Bale_Mover_Self_load_unload | D108: Round Bale 7-12 bale (requires 120 hp) | F108: =ROUNDUP(G108/5000,0)*5000 -> 40000 | G108: 39056 | I108: Highline | J108: BM607 | N108: Farm King | O108: 1450 | X108: 15 | Y108: 100 | Z108: 2.63 | AF108: 27.88405196 | AG108: =Z108/100*F108/Y108 -> 10.52 | AH108: 5.760607794 | AI108: 44 | AM108: =AN8 -> 135 | AN108: 179 | AV108: 2.5 | AW108: 2.63
A109: Harvesting_Hay Pull_Type_Bale_Mover_Self_load_unload Round Bale 12-18 bale (requires 180 hp) | B109: Harvesting_Hay | C109: Pull_Type_Bale_Mover_Self_load_unload | D109: Round Bale 12-18 bale (requires 180 hp) | F109: =ROUNDUP(G109/5000,0)*5000 -> 70000 | G109: 67180 | I109: Morris/ProAg | J109: 2200 | N109: Farm King | O109: 2450 | X109: 15 | Y109: 100 | Z109: 2.63 | AF109: 48.79709093 | AG109: =Z109/100*F109/Y109 -> 18.41 | AH109: 10.08106364 | AI109: 77 | AM109: =AN9 -> 176 | AN109: 253 | AV109: 2.5 | AW109: 2.63
A110: Harvesting_Hay Pull_Type_Bale_Mover_Self_load_unload Large Square 4-6 bale (requires 120 hp) | B110: Harvesting_Hay | C110: Pull_Type_Bale_Mover_Self_load_unload | D110: Large Square 4-6 bale (requires 120 hp) | F110: 80000 | G110: 79000 | I110: Extrapolation | J110: 10% increase over 20/21 | X110: 20 | Y110: 200 | Z110: 2.1 | AF110: 21.91303897 | AG110: =Z110/100*F110/Y110 -> 8.4 | AH110: 4.546955845 | AI110: 35 | AM110: =AN8 -> 135 | AN110: 170 | AV110: 2 | AW110: 2.1
A111: Harvesting_Hay Pull_Type_Bale_Mover_Self_load_unload Large Square 6-12 bale (requires 180 hp) | B111: Harvesting_Hay | C111: Pull_Type_Bale_Mover_Self_load_unload | D111: Large Square 6-12 bale (requires 180 hp) | F111: 90000 | G111: =80000*1.15 -> 92000 | I111: Highline | J111: Fastack 1200 Flex | X111: 20 | Y111: 200 | Z111: 2.1 | AF111: 24.65216884 | AG111: 9.45 | AH111: 5.115325326 | AI111: 39 | AM111: =AN9 -> 176 | AN111: 215 | AV111: 2 | AW111: 2.1
A112: Harvesting_Hay Pull_Type_Bale_Mover_Self_load_unload Large Square 12-20 bale (requires 220 hp) | B112: Harvesting_Hay | C112: Pull_Type_Bale_Mover_Self_load_unload | D112: Large Square 12-20 bale (requires 220 hp) | F112: 115000 | G112: =100000*1.15 -> 115000 | I112: Highline | J112: Fastack 1800 Flex | N112: Farm King | O112: 4480XD | X112: 20 | Y112: 200 | Z112: 2.1 | AF112: 31.49999352 | AG112: 12.075 | AH112: 6.536249028 | AI112: 50 | AM112: =AN9 -> 176 | AN112: 226 | AV112: 2 | AW112: 2.1
A113: =B113&" "&C113&" "&D113 -> Harvesting_Hay Self_propelled_Bale_Mover Self propelled Small Square Bale Wagon | B113: Harvesting_Hay | C113: Self_propelled_Bale_Mover | D113: Self propelled Small Square Bale Wagon | F113: 345000 | G113: 346134 | I113: New Holland | J113: Stackcruiser 102 | N113: New Holland | O113: Stackcruiser 103 | S113: New Holland | T113: Stackcruiser 105 | X113: 15 | Y113: 150 | Z113: 2.63 | AA113: 28 | AF113: 160.3332988 | AG113: =Z113/100*F113/Y113 -> 60.49 | AH113: 33.12349481 | AI113: 254 | AJ113: =AA113*Fuel_Price -> 39.2 | AK113: =Labour -> 27 | AL113: =Margin_percentage*(AJ113+AK113) -> 9.93 | AN113: 330 | AV113: 2.5 | AW113: 2.63
A114: =B114&" "&C114&" "&D114 -> Seeding Air_Drills_with_Independent_Opener Small, 25-45 FT (requires 400 hp) | B114: Seeding | C114: Air_Drills_with_Independent_Opener | D114: Small, 25-45 FT (requires 400 hp) | E114: 25-45 FT | F114: =ROUND(G114/25000,0)*25000 -> 400000 | G114: 397466.4 | I114: John Deere | J114: N530F 30ft with 1910 cart 350 bu | X114: 15 | Y114: 200 | Z114: 3.68 | AB114: 4.75 | AC114: 35 | AD114: =ROUND((AB114*5280*AC114*Field_efficiency*0.875)/43560,0) -> 14 | AE114: (acre/hr) | AF114: 139.4202598 | AG114: 73.6 | AH114: 31.95303897 | AI114: 245 | AM114: =AN11 -> 279 | AN114: 524 | AO114: =IF(AN114/AD114<10,ROUND((AN114/AD114)/0.25,0)*0.25,ROUND(AN114/AD114,0)) -> 37 | AP114: /acre | AV114: 3.5 | AW114: 3.68
A115: Seeding Air_Drills_with_Independent_Opener Medium, 46-65 FT (requires 500 hp) | B115: Seeding | C115: Air_Drills_with_Independent_Opener | D115: Medium, 46-65 FT (requires 500 hp) | E115: 46-65 FT | F115: =ROUND(G115/25000,0)*25000 -> 750000 | G115: 746208 | I115: John Deere | J115: N560F 60 ft with 1910 550 bu cart | X115: 15 | Y115: 200 | Z115: 3.68 | AB115: 4.75 | AC115: 56 | AD115: 23 | AE115: (acre/hr) | AF115: 261.4129871 | AG115: =Z115/100*F115/Y115 -> 138 | AH115: 59.91194807 | AI115: 459 | AM115: =AN12 -> 319 | AN115: 778 | AO115: 34 | AP115: /acre | AV115: 3.5 | AW115: 3.68
A116: Seeding Air_Drills_with_Independent_Opener Large, 66-86 FT (requires 550+ hp) | B116: Seeding | C116: Air_Drills_with_Independent_Opener | D116: Large, 66-86 FT (requires 550+ hp) | E116: 66-86 FT | F116: 950000 | G116: 1000000 | I116: John Deere | J116: 1870 wC850 | X116: 15 | Y116: 200 | Z116: 3.68 | AB116: 4.75 | AC116: 75 | AD116: 30 | AE116: (acre/hr) | AF116: 331.123117 | AG116: 174.8 | AH116: 75.88846755 | AI116: 582 | AM116: =AN13 -> 351 | AN116: 933 | AO116: 31 | AP116: /acre | AV116: 3.5 | AW116: 3.68
A117: Seeding Air_Hoe_Drill Small, 27-50 FT (requires 350 hp) | B117: Seeding | C117: Air_Hoe_Drill | D117: Small, 27-50 FT (requires 350 hp) | E117: 27-50 FT | F117: 300000 | G117: 299649 | I117: New Holland | J117: P2050 39' with P3440 435 bu air cart | N117: John Deere | O117: H541 40ft with 1910 350 bu cart | X117: 15 | Y117: 200 | Z117: 3.15 | AB117: 4.75 | AC117: 40 | AD117: 16 | AE117: (acre/hr) | AF117: 104.5651948 | AG117: =Z117/100*F117/Y117 -> 47.25 | AH117: 22.77227923 | AI117: 175 | AM117: =AN11 -> 279 | AN117: 454 | AO117: 28 | AP117: /acre | AV117: 3 | AW117: 3.15
A118: Seeding Air_Hoe_Drill Large, 51-72 FT (requires 550+ hp) | B118: Seeding | C118: Air_Hoe_Drill | D118: Large, 51-72 FT (requires 550+ hp) | E118: 51-72 FT | F118: 750000 | G118: 767159 | I118: John Deere | J118: H56160ft with 1910 cart 550 bu capacity | N118: New Holland | O118: P2050 57' with P480 580bu cart | X118: 15 | Y118: 200 | Z118: 3.15 | AB118: 4.75 | AC118: 60 | AD118: 24 | AE118: (acre/hr) | AF118: 261.4129871 | AG118: =Z118/100*F118/Y118 -> 118.125 | AH118: 56.93069807 | AI118: =IF(AF118+AG118+AH118<10,ROUND((AF118+AG118+AH118)/0.25,0)*0.25,ROUND(AF118+AG118+AH118,0)) -> 436 | AM118: =AN13 -> 351 | AN118: 787 | AO118: 33 | AP118: /acre | AV118: 3 | AW118: 3.15
A119: Seeding Air_Disc_Drill Small, 30-49 FT (requires 450 hp) | B119: Seeding | C119: Air_Disc_Drill | D119: Small, 30-49 FT (requires 450 hp) | E119: 30-49 FT | F119: 600000 | G119: 604633.6 | I119: New Holland | J119: P2082 40' with P3440 440 bu air cart | N119: John deere | O119: 730 Level Lift double disk 44ft with 1910-350 bu cart | X119: 15 | Y119: 200 | Z119: 3.15 | AB119: 5.5 | AC119: 40 | AD119: 19 | AE119: (acre/hr) | AF119: 209.1303897 | AG119: 94.5 | AH119: 45.54455845 | AI119: 349 | AM119: =AN12 -> 319 | AN119: 668 | AO119: 35 | AP119: /acre | AV119: 3 | AW119: 3.15
A120: Seeding Air_Disc_Drill Large, 50-70 FT (requires 550+ hp) | B120: Seeding | C120: Air_Disc_Drill | D120: Large, 50-70 FT (requires 550+ hp) | E120: 50-70 FT | F120: 950000 | G120: 1039521.6 | I120: Bourgault | J120: 3720 50'with 700 bu card/dual shoot | N120: John deere | O120: 1895 60' with C650 cart/dual shoot | S120: New Holland | T120: P2082 60' with P4580 cart 580 bu | X120: 15 | Y120: 200 | Z120: 3.15 | AB120: 5.5 | AC120: 60 | AD120: 28 | AE120: (acre/hr) | AF120: 331.123117 | AG120: 149.625 | AH120: 72.11221755 | AI120: 553 | AM120: =AN13 -> 351 | AN120: 904 | AO120: 32 | AP120: /acre | AV120: 3 | AW120: 3.15
A121: Seeding Air_Seeder Small, 25-40 FT (requires 350 hp) | B121: Seeding | C121: Air_Seeder | D121: Small, 25-40 FT (requires 350 hp) | E121: 25-40 FT | F121: 300000 | G121: 299649 | I121: Extrapolation | J121: 10% increase 20/21 Price | X121: 15 | Y121: 200 | Z121: 3.15 | AB121: 4.75 | AC121: 33 | AD121: 13 | AE121: (acre/hr) | AF121: 104.5651948 | AG121: 47.25 | AH121: 22.77227923 | AI121: 175 | AM121: =AN11 -> 279 | AN121: 454 | AO121: 35 | AP121: /acre | AV121: 3 | AW121: 3.15
A122: Seeding Air_Seeder Medium, 41-59 FT (requires 450 hp) | B122: Seeding | C122: Air_Seeder | D122: Medium, 41-59 FT (requires 450 hp) | E122: 41-59 FT | F122: 500000 | G122: 514062 | I122: Extrapolation | J122: 10% increase 20/21 Price | X122: 15 | Y122: 200 | Z122: 3.15 | AB122: 4.75 | AC122: 50 | AD122: 20 | AE122: (acre/hr) | AF122: 174.2753247 | AG122: 78.75 | AH122: 37.95379871 | AI122: 291 | AM122: =AN12 -> 319 | AN122: 610 | AO122: 31 | AP122: /acre | AV122: 3 | AW122: 3.15
A123: Seeding Air_Seeder Large, 60-70 FT (requires 550+ hp) | B123: Seeding | C123: Air_Seeder | D123: Large, 60-70 FT (requires 550+ hp) | E123: 60-70 FT | F123: 750000 | G123: 767159 | I123: Extrapolation | J123: 10% increae 20/21 price | X123: 15 | Y123: 200 | Z123: 3.15 | AB123: 4.75 | AC123: 65 | AD123: 26 | AE123: (acre/hr) | AF123: 261.4129871 | AG123: 118.125 | AH123: 56.93069807 | AI123: 436 | AM123: =AN13 -> 351 | AN123: 787 | AO123: 30 | AP123: /acre | AV123: 3 | AW123: 3.15
A124: Seeding Row_Crop_Planter 12 row planter (requires 150 hp) | B124: Seeding | C124: Row_Crop_Planter | D124: 12 row planter (requires 150 hp) | E124: 12 row planter | F124: =ROUND(G124/10000,0)*10000 -> 170000 | G124: 171286 | I124: John Deere | J124: 1775 Flex planter 12 row -30in | N124: Case IH | O124: ER 1245 Planter 12Row 30" | X124: 10 | Y124: 100 | Z124: 4.2 | AB124: 5 | AC124: 30 | AD124: 13 | AE124: (acre/hr) | AF124: =(F124*Fraction_dep_over_optimal_life/X124/Y124)+IF(Machinery_Financed_percentage=0,0,(-CUMIPMT(Interest_Rate/2,Payback_loan_period_years*2,F124*Machinery_Financed_percentage,1,Payback_loan_period_years*2,0)/X124/Y124))+((F124*(1-Machinery_Financed_percentage)*(1+Opportunity_Rate/12)^(Opp_inv_period_years*12)-(F124*(1-Machinery_Financed_percentage)))/X124/Y124)+(Insurance_and_Housing*F124/Y124) -> 169.2608312 | AG124: =Z124/100*F124/Y124 -> 71.4 | AH124: =Margin_percentage*(AF124+AG124) -> 36.09912468 | AI124: 277 | AM124: =AN8 -> 135 | AN124: 412 | AO124: 32 | AP124: /acre | AV124: 4 | AW124: 4.2
A125: Seeding Row_Crop_Planter 16 row planter (requires 180 hp) | B125: Seeding | C125: Row_Crop_Planter | D125: 16 row planter (requires 180 hp) | E125: 16 row planter | F125: =ROUND(G125/10000,0)*10000 -> 280000 | G125: 278240 | H125: =IFERROR(AVERAGE(M125,R125,W125),"") ->  | I125: John Deere | J125: 1775NT Planter 16 row 30 in | N125: Case IH | O125: ER 1245 Planter 16 Row 30" spacing | X125: 10 | Y125: 100 | Z125: 4.2 | AB125: 5 | AC125: 40 | AD125: 17 | AE125: (acre/hr) | AF125: 278.7825456 | AG125: 117.6 | AH125: 59.45738183 | AI125: 456 | AM125: =AN9 -> 176 | AN125: 632 | AO125: 37 | AP125: /acre | AV125: 4 | AW125: 4.2
A126: Seeding Row_Crop_Planter 24 row planter (requires 230 hp) | B126: Seeding | C126: Row_Crop_Planter | D126: 24 row planter (requires 230 hp) | E126: 24 row planter | F126: 420000 | G126: 421903 | I126: John Deere | J126: 1775NT Planter 24 row 30 in no options | N126: Case IH | O126: ER 1245 Planter 24 rows 20" spcaing | X126: 10 | Y126: 100 | Z126: 4.2 | AB126: 5 | AC126: 60 | AD126: 25 | AE126: (acre/hr) | AF126: 418.1738183 | AG126: 176.4 | AH126: 89.18607275 | AI126: 684 | AM126: =AN10 -> 213 | AN126: 897 | AO126: 36 | AP126: /acre | AV126: 4 | AW126: 4.2
A127: Seeding Row_Crop_Planter 12/24 split row planter (requires 210 hp) | B127: Seeding | C127: Row_Crop_Planter | D127: 12/24 split row planter (requires 210 hp) | E127: 12/24 split row planter | F127: 320000 | G127: 317466 | I127: John Deere | J127: 1795 12 Row Split 24 Row Planter no options | N127: Case IH | O127: ER 1240 Pivot Transport 12/24 split row | X127: 10 | Y127: 100 | Z127: 4.2 | AB127: 7.5 | AC127: 30 | AD127: 19 | AE127: (acre/hr) | AF127: 318.6086235 | AG127: 134.4 | AH127: 67.95129352 | AI127: 521 | AM127: =AN9 -> 176 | AN127: 697 | AO127: 37 | AP127: /acre | AV127: 4 | AW127: 4.2
A128: Seeding Row_Crop_Planter 16/32 split row planter (requires 250 hp) | B128: Seeding | C128: Row_Crop_Planter | D128: 16/32 split row planter (requires 250 hp) | E128: 16/32 split row planter | F128: 390000 | G128: 390566 | I128: John Deere | J128: 1775 NT 16 row 32" row spacing | N128: Case IH | O128: ER 240 Pivot Transport16/32 Row | X128: 10 | Y128: 100 | Z128: 4.2 | AB128: 7.5 | AC128: 40 | AD128: 25 | AE128: (acre/hr) | AF128: 388.3042599 | AG128: 163.8 | AH128: 82.81563898 | AI128: 635 | AM128: =AN10 -> 213 | AN128: 848 | AO128: 34 | AP128: /acre | AV128: 4 | AW128: 4.2
A129: Soil_Preparation Cultivator_Field_with_tine_harrows Small, 24-35 FT (requires 225+ hp) | B129: Soil_Preparation | C129: Cultivator_Field_with_tine_harrows | D129: Small, 24-35 FT (requires 225+ hp) | E129: 24-35 FT | F129: 100000 | G129: 100000 | I129: John Deere | J129: 2230 LL 33 ft | N129: Case IH | O129: Vibra-Tine 28.5 ft | S129: new Holland | T129: ST 830 | X129: 20 | Y129: 200 | Z129: 1.58 | AB129: 5 | AC129: 30 | AD129: =ROUND((AB129*5280*AC129*Field_efficiency)/43560,0) -> 15 | AE129: (acre/hr) | AF129: 27.39129871 | AG129: =Z129/100*F129/Y129 -> 7.9 | AH129: 5.293694807 | AI129: 41 | AM129: =AN10 -> 213 | AN129: 254 | AO129: 17 | AP129: /acre | AV129: 1.5 | AW129: 1.58
A130: =B130&" "&C130&" "&D130 -> Soil_Preparation Cultivator_Field_with_tine_harrows Medium, 36-49 FT (requires 400 hp) | B130: Soil_Preparation | C130: Cultivator_Field_with_tine_harrows | D130: Medium, 36-49 FT (requires 400 hp) | E130: 36-49 FT | F130: 130000 | G130: 130000 | I130: John Deere | J130: 2230 LL 42 ft | N130: Case IH | O130: Vibra-Tine 48.5 ft | S130: new Holland | T130: ST 830 | X130: 20 | Y130: 200 | Z130: 1.58 | AB130: 5 | AC130: 43 | AD130: 21 | AE130: (acre/hr) | AF130: 35.60868832 | AG130: =Z130/100*F130/Y130 -> 10.27 | AH130: 6.881803249 | AI130: 53 | AM130: =AN11 -> 279 | AN130: 332 | AO130: 16 | AP130: /acre | AV130: 1.5 | AW130: 1.58
A131: Soil_Preparation Cultivator_Field_with_tine_harrows Large, 50-62 FT (requires 500 hp) | B131: Soil_Preparation | C131: Cultivator_Field_with_tine_harrows | D131: Large, 50-62 FT (requires 500 hp) | E131: 50-62 FT | F131: 175000 | G131: 175000 | I131: New HOlland | J131: ST 830 | N131: John Deere | O131: 2230 LL 60ft | X131: 20 | Y131: 200 | Z131: 1.58 | AB131: 5 | AC131: 56 | AD131: 27 | AE131: (acre/hr) | AF131: 47.93477274 | AG131: 13.825 | AH131: 9.263965911 | AI131: 71 | AM131: =AN12 -> 319 | AN131: 390 | AO131: 14 | AP131: /acre | AV131: 1.5 | AW131: 1.58
A132: Soil_Preparation Cultivator_Heavy_Duty_with_tine_harrows Small, 23-40 FT (requires 400 hp) | B132: Soil_Preparation | C132: Cultivator_Heavy_Duty_with_tine_harrows | D132: Small, 23-40 FT (requires 400 hp) | E132: 23-40 FT | F132: 125000 | G132: 125000 | I132: Case IH | J132: Flex Till 600 Chisel | N132: John Deere | O132: 2430 Cshank 35ft | X132: 20 | Y132: 200 | Z132: 1.58 | AB132: 5 | AC132: 31 | AD132: 15 | AE132: (acre/hr) | AF132: 34.23912339 | AG132: =Z132/100*F132/Y132 -> 9.875 | AH132: 6.617118508 | AI132: 51 | AM132: =AN11 -> 279 | AN132: 330 | AO132: 22 | AP132: /acre | AV132: 1.5 | AW132: 1.58
A133: Soil_Preparation Cultivator_Heavy_Duty_with_tine_harrows Medium, 41-50 FT (requires 500 hp) | B133: Soil_Preparation | C133: Cultivator_Heavy_Duty_with_tine_harrows | D133: Medium, 41-50 FT (requires 500 hp) | E133: 41-50 FT | F133: 150000 | G133: 150000 | I133: Case IH | J133: Flex Till 600 Chisel 48.8ft | N133: John Deere | O133: 2430 Cshank45ft | X133: 20 | Y133: 200 | Z133: 1.58 | AB133: 5 | AC133: 45 | AD133: 22 | AE133: (acre/hr) | AF133: 41.08694807 | AG133: =Z133/100*F133/Y133 -> 11.85 | AH133: 7.94054221 | AI133: 61 | AM133: =AN12 -> 319 | AN133: 380 | AO133: 17 | AP133: /acre | AV133: 1.5 | AW133: 1.58
A134: Soil_Preparation Cultivator_Heavy_Duty_with_tine_harrows Large, 51-62 FT (requires 550+ hp) | B134: Soil_Preparation | C134: Cultivator_Heavy_Duty_with_tine_harrows | D134: Large, 51-62 FT (requires 550+ hp) | E134: 51-62 FT | F134: 200000 | G134: 200000 | I134: Bourgault | J134: 9500 60' | N134: Bourgault | O134: 9500 70' | S134: John Deere | T134: 2430 60 ft | X134: 20 | Y134: 200 | Z134: 1.58 | AB134: 5 | AC134: 56 | AD134: 27 | AE134: (acre/hr) | AF134: 54.78259742 | AG134: 15.8 | AH134: 10.58738961 | AI134: 81 | AM134: =AN13 -> 351 | AN134: 432 | AO134: 16 | AP134: /acre | AV134: 1.5 | AW134: =ROUND((AV134*$AW$2)+AV134,2) -> 1.58
A135: Soil_Preparation Harrow_Mid 60-90 FT (requires 400 hp) | B135: Soil_Preparation | C135: Harrow_Mid | D135: 60-90 FT (requires 400 hp) | E135: 60-90 FT | F135: 100000 | G135: 100000 | I135: Elmers | J135: Super 7 70' | N135: Riteway | O135: 7200 Harrow 82ft | X135: 25 | Y135: 75 | Z135: 1.26 | AB135: 7.5 | AC135: 70 | AD135: 51 | AE135: (acre/hr) | AF135: 61.10143725 | AG135: =Z135/100*F135/Y135 -> 16.8 | AH135: 11.68521559 | AI135: 90 | AM135: =AN11 -> 279 | AN135: 369 | AO135: 7.25 | AP135: /acre | AV135: 1.2 | AW135: 1.26
A136: Soil_Preparation Harrow_Heavy 60-90 FT (requires 550+ hp) | B136: Soil_Preparation | C136: Harrow_Heavy | D136: 60-90 FT (requires 550+ hp) | E136: 60-90 FT | F136: 125000 | G136: 125000 | I136: Bourgault | J136: XR 771-90' | N136: Bourgault | O136: XR 771-70' | S136: Riteway | T136: HH 8250 NT | X136: 20 | Y136: 100 | Z136: 1.58 | AB136: 7.5 | AC136: 70 | AD136: 51 | AE136: (acre/hr) | AF136: 68.47824678 | AG136: 19.75 | AH136: 13.23423702 | AI136: 101 | AM136: =AN13 -> 351 | AN136: 452 | AO136: 8.75 | AP136: /acre | AV136: 1.5 | AW136: 1.58
A137: Soil_Preparation Harrow_Packer 25-62 FT (requires 175 hp) | B137: Soil_Preparation | C137: Harrow_Packer | D137: 25-62 FT (requires 175 hp) | E137: 25-62 FT | F137: =ROUND(G137,-3) -> 50000 | G137: 50000 | I137: Extrapolation | J137: 10% increase 20/21 Price | X137: 25 | Y137: 200 | Z137: 0.53 | AB137: 7.5 | AC137: 44 | AD137: 32 | AE137: (acre/hr) | AF137: 11.45651948 | AG137: 1.325 | AH137: 1.917227923 | AI137: 15 | AM137: =AN9 -> 176 | AN137: 191 | AO137: 6 | AP137: /acre | AV137: 0.5 | AW137: 0.53
A138: Soil_Preparation Vertical_Tillage_Tools_Compact Small, 10-30 FT (requires 400 hp) | B138: Soil_Preparation | C138: Vertical_Tillage_Tools_Compact | D138: Small, 10-30 FT (requires 400 hp) | E138: 10-30 FT | F138: 100000 | G138: =85000*1.2 -> 102000 | I138: Kongskilde | J138: 9125 Vertical Tillage | N138: Salford | O138: I-1224 | S138: Lemken | T138: Heliodor 9/700 | X138: 20 | Y138: 100 | Z138: 3.68 | AB138: 8 | AC138: 20 | AD138: 16 | AE138: (acre/hr) | AF138: 54.78259742 | AG138: =Z138/100*F138/Y138 -> 36.8 | AH138: 13.73738961 | AI138: 105 | AM138: =AN11 -> 279 | AN138: 384 | AO138: 24 | AP138: /acre | AV138: 3.5 | AW138: 3.68
A139: Soil_Preparation Vertical_Tillage_Tools_Compact Large, 31-50 FT (requires 550+ hp) | B139: Soil_Preparation | C139: Vertical_Tillage_Tools_Compact | D139: Large, 31-50 FT (requires 550+ hp) | E139: 31-50 FT | F139: 150000 | G139: 150000 | I139: Viking | J139: Viking VT 37' | X139: 20 | Y139: 100 | Z139: 3.68 | AB139: 8 | AC139: 40 | AD139: 31 | AE139: (acre/hr) | AF139: 82.17389613 | AG139: =Z139/100*F139/Y139 -> 55.2 | AH139: 20.60608442 | AI139: 158 | AM139: =AN13 -> 351 | AN139: 509 | AO139: 16 | AP139: /acre | AV139: 3.5 | AW139: 3.68
A140: Soil_Preparation Vertical_Tillage_Tools_Heavy_Duty Small, 10-25 FT (requires 500 hp) | B140: Soil_Preparation | C140: Vertical_Tillage_Tools_Heavy_Duty | D140: Small, 10-25 FT (requires 500 hp) | E140: 10-25 FT | F140: 145000 | G140: =100000*1.43 -> 143000 | I140: Mandako | J140: Storm 20 | N140: Degelman | O140: ProTill 20ft | S140: Salford | T140: 5200 Enforcer 16ft | X140: 20 | Y140: 100 | Z140: 3.68 | AB140: 8 | AC140: 18 | AD140: 14 | AE140: (acre/hr) | AF140: 79.43476626 | AG140: 53.36 | AH140: 19.91921494 | AI140: 153 | AM140: =AN12 -> 319 | AN140: 472 | AO140: 34 | AP140: /acre | AV140: 3.5 | AW140: 3.68
A141: Soil_Preparation Vertical_Tillage_Tools_Heavy_Duty Large, 26-40 FT (requires 550+ hp) | B141: Soil_Preparation | C141: Vertical_Tillage_Tools_Heavy_Duty | D141: Large, 26-40 FT (requires 550+ hp) | E141: 26-40 FT | F141: 250000 | G141: 250000 | I141: Degelman | J141: Protill 41ft | N141: Degelman | O141: ProTill 35ft | S141: Degelman | T141: ProTill 45ft | X141: 20 | Y141: 100 | Z141: 3.68 | AB141: 8 | AC141: 33 | AD141: 26 | AE141: (acre/hr) | AF141: 136.9564936 | AG141: 92 | AH141: 34.34347403 | AI141: 263 | AM141: =AN13 -> 351 | AN141: 614 | AO141: 24 | AP141: /acre | AV141: 3.5 | AW141: 3.68
A142: Soil_Preparation Land_Roller 20 FT (fixed) (requires 100 hp) | B142: Soil_Preparation | C142: Land_Roller | D142: 20 FT (fixed) (requires 100 hp) | E142: 20 FT (Fixed) | F142: =ROUND(G142,-3) -> 30000 | G142: 30000 | I142: Mandako | J142: L205001 | N142: Riteway | O142: F3-32 | X142: 20 | Y142: 75 | Z142: 1.05 | AB142: 6 | AC142: 16 | AD142: 9 | AE142: (acre/hr) | AF142: 21.91303897 | AG142: =Z142/100*F142/Y142 -> 4.2 | AH142: 3.916955845 | AI142: 30 | AM142: =AN8 -> 135 | AN142: 165 | AO142: 18 | AP142: /acre | AV142: 1 | AW142: 1.05
A143: Soil_Preparation Land_Roller 40-50 FT (3 sections) (requires 225+ hp) | B143: Soil_Preparation | C143: Land_Roller | D143: 40-50 FT (3 sections) (requires 225+ hp) | E143: 40-50 FT (3 section) | F143: 75000 | G143: 75000 | I143: Mandako | J143: 5 section | N143: Riteway | O143: F5-62 | S143: Mandako | T143: 50 ft roller | X143: 20 | Y143: 75 | Z143: 1.05 | AB143: 6 | AC143: 45 | AD143: 26 | AE143: (acre/hr) | AF143: 54.78259742 | AG143: =Z143/100*F143/Y143 -> 10.5 | AH143: 9.792389613 | AI143: 75 | AM143: =AN10 -> 213 | AN143: 288 | AO143: 11 | AP143: /acre | AV143: 1 | AW143: 1.05
A144: Soil_Preparation Land_Roller 55-75 FT (5 sections) (requires 400 hp) | B144: Soil_Preparation | C144: Land_Roller | D144: 55-75 FT (5 sections) (requires 400 hp) | E144: 55-75 FT (5 section) | F144: 110000 | G144: 110000 | I144: Extrapolation | J144: 10% increase over 20/21 | X144: 20 | Y144: 75 | Z144: 1.05 | AB144: 6 | AC144: 65 | AD144: 38 | AE144: (acre/hr) | AF144: 80.34780955 | AG144: 15.4 | AH144: 14.36217143 | AI144: 110 | AM144: =AN11 -> 279 | AN144: 389 | AO144: 10 | AP144: /acre | AV144: 1 | AW144: 1.05
A145: =B145&" "&C145&" "&D145 -> Soil_Preparation Land_Scraper 10.0-15.0 CU. yard (requires 400 hp) | B145: Soil_Preparation | C145: Land_Scraper | D145: 10.0-15.0 CU. yard (requires 400 hp) | E145: 10.0-15.0 CU. yard | F145: 75000 | G145: 75000 | I145: Ashland | J145: 1410E Direct Mount Ejector Scraper | N145: Leon | O145: M1000A Scraper | X145: 10 | Y145: 80 | Z145: 2.63 | AF145: 93.34237016 | AG145: =Z145/100*F145/Y145 -> 24.65625 | AH145: 17.69979302 | AI145: 136 | AM145: =AN11 -> 279 | AN145: 415 | AV145: 2.5 | AW145: 2.63
A146: Soil_Preparation Land_Scraper 15.0+ CU. yard (requires 550 hp) | B146: Soil_Preparation | C146: Land_Scraper | D146: 15.0+ CU. yard (requires 550 hp) | E146: 15.0+ CU. yard | F146: 125000 | G146: 125000 | I146: Leon | J146: 2050 | N146: Leon | O146: M1700 | S146: Leon | T146: 1350 | X146: 10 | Y146: 80 | Z146: 2.63 | AF146: 155.5706169 | AG146: =Z146/100*F146/Y146 -> 41.09375 | AH146: 29.49965504 | AI146: 226 | AM146: =AN13 -> 351 | AN146: 577 | AV146: 2.5 | AW146: 2.63
A147: Soil_Preparation Land_Scraper Pull Dozer 15.0-20.0 CU. yard (requires 400 hp) | B147: Soil_Preparation | C147: Land_Scraper | D147: Pull Dozer 15.0-20.0 CU. yard (requires 400 hp) | E147: Pull Dozer 15.0-20.0 CU. yard | F147: 100000 | G147: 100000 | I147: Bridgeview Manufacturing | J147: Pulldozer 1810 | N147: Bridgeview Manufacturing | O147: Pulldozer 1870 transformer | X147: 10 | Y147: 80 | Z147: 2.63 | AF147: 124.4564936 | AG147: 32.875 | AH147: 23.59972403 | AI147: 181 | AM147: =AN11 -> 279 | AN147: =IF(AI147+AJ147+AK147+AL147+AM147<10,ROUND((AI147+AJ147+AK147+AL147+AM147)/0.25,0)*0.25,ROUND(AI147+AJ147+AK147+AL147+AM147,0)) -> 460 | AV147: 2.5 | AW147: 2.63
A148: Soil_Preparation Land_Scraper Pull Dozer 21.0+ CU. yard (requires 550 hp) | B148: Soil_Preparation | C148: Land_Scraper | D148: Pull Dozer 21.0+ CU. yard (requires 550 hp) | E148: Pull Dozer 21.0+ CU. yard | F148: 150000 | G148: 150000 | I148: Bridgeview Manufacturing | J148: Pulldozer 2410 | N148: Bridgeview Manufacturing | O148: Pulldozer 2470 transformer | X148: 10 | Y148: 80 | Z148: 2.63 | AF148: 186.6847403 | AG148: 49.3125 | AH148: 35.39958605 | AI148: 271 | AM148: =AN13 -> 351 | AN148: 622 | AV148: 2.5 | AW148: 2.63
A149: Soil_Preparation Land_Scraper Rotary Ditcher (requires 400 hp) | B149: Soil_Preparation | C149: Land_Scraper | D149: Rotary Ditcher (requires 400 hp) | E149: Rotary Ditcher | F149: 100000 | G149: 100000 | I149: Wolverine | J149: Rotary Ditcher | N149: Crary | O149: Revolution Ditcher | X149: 10 | Y149: 80 | Z149: 2.63 | AF149: 124.4564936 | AG149: 32.875 | AH149: 23.59972403 | AI149: 181 | AM149: =AN11 -> 279 | AN149: 460 | AV149: 2.5 | AW149: 2.63
A150: Soil_Preparation Anhydrous_Ammonia_Applicator_Add_On 30-60 FT (less tillage tool, nurse tank & trailer) | B150: Soil_Preparation | C150: Anhydrous_Ammonia_Applicator_Add_On | D150: 30-60 FT (less tillage tool, nurse tank & trailer) | E150: 30-60 FT | F150: =ROUND(G150,-3) -> 30000 | G150: 30000 | I150: Extrapolation | J150: 10% increase over 20/21 | X150: 15 | Y150: 200 | Z150: 2.1 | AF150: 10.45651948 | AG150: =Z150/100*F150/Y150 -> 3.15 | AH150: =Margin_percentage*(AF150+AG150) -> 2.040977923 | AI150: 16 | AV150: 2 | AW150: 2.1
A151: Soil_Preparation Liquid_Fertilizer_Applicator_Add_On 25-40 FT (1600-1800 gal. tank & cart, less tillage tool) | B151: Soil_Preparation | C151: Liquid_Fertilizer_Applicator_Add_On | D151: 25-40 FT (1600-1800 gal. tank & cart, less tillage tool) | E151: 25-40 FT, 1600-1800 gal.tank | F151: =ROUND(G151,-3) -> 50000 | G151: 50000 | I151: Extrapolation | J151: 10% increase over 20/22 | X151: 15 | Y151: 200 | Z151: 2.1 | AF151: 17.42753247 | AG151: 5.25 | AH151: 3.401629871 | AI151: 26 | AV151: 2 | AW151: 2.1
A152: Soil_Preparation Liquid_Fertilizer_Applicator_Add_On 40-60 FT (2400-3200 gal. tank & cart, less tillage tool) | B152: Soil_Preparation | C152: Liquid_Fertilizer_Applicator_Add_On | D152: 40-60 FT (2400-3200 gal. tank & cart, less tillage tool) | E152: 40-60 FT, 2400-3200 gal.tank | F152: 75000 | G152: 75000 | I152: Extrapolation | J152: 10% increase over 20/23 | X152: 15 | Y152: 200 | Z152: 2.1 | AF152: 26.14129871 | AG152: 7.875 | AH152: 5.102444807 | AI152: 39 | AV152: 2 | AW152: 2.1
A153: Soil_Preparation Liquid_Fertilizer_Applicator_Add_On 60-75 FT (4300 gal. tank & cart, less tillage tool) | B153: Soil_Preparation | C153: Liquid_Fertilizer_Applicator_Add_On | D153: 60-75 FT (4300 gal. tank & cart, less tillage tool) | E153: 60-75 FT, 4300 gal.tank | F153: =ROUND(G153/5000,0)*5000 -> 125000 | G153: 125000 | I153: Extrapolation | J153: 10% increase over 20/24 | X153: 15 | Y153: 200 | Z153: 2.1 | AF153: 43.56883118 | AG153: 13.125 | AH153: 8.504074678 | AI153: 65 | AV153: 2 | AW153: 2.1
A154: Soil_Preparation Granular_Fertilizer_Applicator 6-10 ton, spin 40 FT (requires 100hp) | B154: Soil_Preparation | C154: Granular_Fertilizer_Applicator | D154: 6-10 ton, spin 40 FT (requires 100hp) | E154: 6-10 ton, spin 40 FT | F154: 45000 | G154: =35000*1.25 -> 43750 | I154: Extrapolation | J154: 10% increase over 20/25 | X154: 20 | Y154: 100 | Z154: 1.58 | AB154: 5 | AC154: 40 | AD154: =ROUND((AB154*5280*AC154*Field_efficiency)/43560,0) -> 19 | AE154: (acre/hr) | AF154: =(F154*Fraction_dep_over_optimal_life/X154/Y154)+IF(Machinery_Financed_percentage=0,0,(-CUMIPMT(Interest_Rate/2,Payback_loan_period_years*2,F154*Machinery_Financed_percentage,1,Payback_loan_period_years*2,0)/X154/Y154))+((F154*(1-Machinery_Financed_percentage)*(1+Opportunity_Rate/12)^(Opp_inv_period_years*12)-(F154*(1-Machinery_Financed_percentage)))/X154/Y154)+(Insurance_and_Housing*F154/Y154) -> 24.65216884 | AG154: =Z154/100*F154/Y154 -> 7.11 | AH154: =Margin_percentage*(AF154+AG154) -> 4.764325326 | AI154: 37 | AM154: =AN6 -> 116 | AN154: =IF(AI154+AJ154+AK154+AL154+AM154<10,ROUND((AI154+AJ154+AK154+AL154+AM154)/0.25,0)*0.25,ROUND(AI154+AJ154+AK154+AL154+AM154,0)) -> 153 | AO154: =IF(AN154/AD154<10,ROUND((AN154/AD154)/0.25,0)*0.25,ROUND(AN154/AD154,0)) -> 8 | AP154: /acre | AV154: 1.5 | AW154: 1.58
A155: Soil_Preparation Granular_Fertilizer_Applicator 10-12 ton, boom 60 FT (requires 225+hp) | B155: Soil_Preparation | C155: Granular_Fertilizer_Applicator | D155: 10-12 ton, boom 60 FT (requires 225+hp) | E155: 10-12 ton, boom 60 FT | F155: 175000 | G155: 175000 | I155: Extrapolation | J155: 10% increase over 20/26 | X155: 20 | Y155: 100 | Z155: 3.58 | AB155: 6 | AC155: 60 | AD155: 35 | AE155: (acre/hr) | AF155: 95.86954549 | AG155: 62.65 | AH155: 23.77793182 | AI155: 182 | AM155: =AN10 -> 213 | AN155: 395 | AO155: 11 | AP155: /acre | AV155: 1.5 | AW155: 1.58
A156: Soil_Preparation Discs_Heavy_Offset Small, 10-12 FT (requires 105 hp) | B156: Soil_Preparation | C156: Discs_Heavy_Offset | D156: Small, 10-12 FT (requires 105 hp) | F156: 50000 | G156: 50000 | I156: Extrapolation | J156: 10% increase over 20/27 | X156: 20 | Y156: 50 | Z156: 3.15 | AB156: 6 | AC156: 10 | AD156: =ROUND((AB156*5280*AC156*Field_efficiency)/43560,0) -> 6 | AE156: (acre/hr) | AF156: =(F156*Fraction_dep_over_optimal_life/X156/Y156)+IF(Machinery_Financed_percentage=0,0,(-CUMIPMT(Interest_Rate/2,Payback_loan_period_years*2,F156*Machinery_Financed_percentage,1,Payback_loan_period_years*2,0)/X156/Y156))+((F156*(1-Machinery_Financed_percentage)*(1+Opportunity_Rate/12)^(Opp_inv_period_years*12)-(F156*(1-Machinery_Financed_percentage)))/X156/Y156)+(Insurance_and_Housing*F156/Y156) -> 54.78259742 | AG156: =Z156/100*F156/Y156 -> 31.5 | AH156: =Margin_percentage*(AF156+AG156) -> 12.94238961 | AI156: 99 | AM156: =AN7 -> 127 | AN156: 226 | AO156: 38 | AP156: /acre | AV156: 3 | AW156: 3.15
A157: Soil_Preparation Discs_Heavy_Offset Medium, 14-16 FT (requires 150 hp) | B157: Soil_Preparation | C157: Discs_Heavy_Offset | D157: Medium, 14-16 FT (requires 150 hp) | F157: =ROUND(G157/5000,0)*5000 -> 60000 | G157: 60000 | I157: Extrapolation | J157: 10% increase over 20/28 | X157: 20 | Y157: 50 | Z157: 3.15 | AB157: 6 | AC157: 14 | AD157: 8 | AE157: (acre/hr) | AF157: 65.73911691 | AG157: 37.8 | AH157: 15.53086754 | AI157: 119 | AM157: =AN8 -> 135 | AN157: 254 | AO157: 32 | AP157: /acre | AV157: 3 | AW157: 3.15
A158: Soil_Preparation Discs_Heavy_Offset Large, 17-20 FT (requires 180 hp) | B158: Soil_Preparation | C158: Discs_Heavy_Offset | D158: Large, 17-20 FT (requires 180 hp) | F158: 70000 | G158: 70000 | I158: Extrapolation | J158: 10% increase over 20/29 | X158: 20 | Y158: 50 | Z158: 3.15 | AB158: 5 | AC158: 17 | AD158: 8 | AE158: (acre/hr) | AF158: 76.69563639 | AG158: 44.1 | AH158: 18.11934546 | AI158: 139 | AM158: =AN8 -> 135 | AN158: 274 | AO158: 34 | AP158: /acre | AV158: 3 | AW158: 3.15
A159: Soil_Preparation Discs_Heavy_Tandem Small, 24-30 FT (requires 180 hp) | B159: Soil_Preparation | C159: Discs_Heavy_Tandem | D159: Small, 24-30 FT (requires 180 hp) | F159: 100000 | G159: 100000 | I159: Extrapolation | J159: 10% increase over 20/30 | X159: 20 | Y159: 150 | Z159: 3.15 | AB159: 5.5 | AC159: 24 | AD159: =ROUND((AB159*5280*AC159*Field_efficiency)/43560,0) -> 13 | AE159: (acre/hr) | AF159: =(F159*Fraction_dep_over_optimal_life/X159/Y159)+IF(Machinery_Financed_percentage=0,0,(-CUMIPMT(Interest_Rate/2,Payback_loan_period_years*2,F159*Machinery_Financed_percentage,1,Payback_loan_period_years*2,0)/X159/Y159))+((F159*(1-Machinery_Financed_percentage)*(1+Opportunity_Rate/12)^(Opp_inv_period_years*12)-(F159*(1-Machinery_Financed_percentage)))/X159/Y159)+(Insurance_and_Housing*F159/Y159) -> 36.52173161 | AG159: =Z159/100*F159/Y159 -> 21 | AH159: =Margin_percentage*(AF159+AG159) -> 8.628259742 | AI159: 66 | AM159: =AN9 -> 176 | AN159: 242 | AO159: 19 | AP159: /acre | AV159: 3 | AW159: 3.15
A160: Soil_Preparation Discs_Heavy_Tandem Medium, 31-35 FT (requires 210 hp) | B160: Soil_Preparation | C160: Discs_Heavy_Tandem | D160: Medium, 31-35 FT (requires 210 hp) | F160: 125000 | G160: 125000 | I160: Extrapolation | J160: 10% increase over 20/31 | X160: 20 | Y160: 150 | Z160: 3.15 | AB160: 5.5 | AC160: 31 | AD160: 17 | AE160: (acre/hr) | AF160: 45.65216452 | AG160: 26.25 | AH160: 10.78532468 | AI160: 83 | AM160: =AN10 -> 213 | AN160: 296 | AO160: 17 | AP160: /acre | AV160: 3 | AW160: 3.15
A161: Soil_Preparation Discs_Heavy_Tandem Large, 36-42 FT (requires 250 hp) | B161: Soil_Preparation | C161: Discs_Heavy_Tandem | D161: Large, 36-42 FT (requires 250 hp) | F161: 150000 | G161: 150000 | I161: Extrapolation | J161: 10% increase over 20/22 | X161: 20 | Y161: 150 | Z161: 3.15 | AB161: 5.5 | AC161: 36 | AD161: 19 | AE161: (acre/hr) | AF161: 54.78259742 | AG161: 31.5 | AH161: 12.94238961 | AI161: 99 | AM161: =AN11 -> 279 | AN161: 378 | AO161: 20 | AP161: /acre | AV161: 3 | AW161: 3.15
A162: Soil_Preparation Rock_Windower_Rake 12-14 FT (requires 50 hp) | B162: Soil_Preparation | C162: Rock_Windower_Rake | D162: 12-14 FT (requires 50 hp) | F162: =ROUND(G162,-3) -> 30000 | G162: 30000 | I162: Extrapolation | J162: 10% increase over 20/22 | X162: 20 | Y162: 50 | Z162: 1.05 | AB162: 6.5 | AC162: 12 | AD162: =ROUND((AB162*5280*AC162*Field_efficiency)/43560,0) -> 8 | AE162: (acre/hr) | AF162: =(F162*Fraction_dep_over_optimal_life/X162/Y162)+IF(Machinery_Financed_percentage=0,0,(-CUMIPMT(Interest_Rate/2,Payback_loan_period_years*2,F162*Machinery_Financed_percentage,1,Payback_loan_period_years*2,0)/X162/Y162))+((F162*(1-Machinery_Financed_percentage)*(1+Opportunity_Rate/12)^(Opp_inv_period_years*12)-(F162*(1-Machinery_Financed_percentage)))/X162/Y162)+(Insurance_and_Housing*F162/Y162) -> 32.86955845 | AG162: =Z162/100*F162/Y162 -> 6.3 | AH162: =Margin_percentage*(AF162+AG162) -> 5.875433768 | AI162: 45 | AM162: =AN6 -> 116 | AN162: 161 | AO162: 20 | AP162: /acre | AV162: 1 | AW162: 1.05
A163: Soil_Preparation Rock_Picker 1.5-2.5 CU. yard (requires 75 hp) | B163: Soil_Preparation | C163: Rock_Picker | D163: 1.5-2.5 CU. yard (requires 75 hp) | E163: 1.5-2.5 CU. yard | F163: 35000 | G163: 35000 | I163: Extrapolation | J163: 10% increase over 20/22 | X163: 25 | Y163: 50 | Z163: 1.05 | AF163: 32.07825456 | AG163: 7.35 | AH163: 5.914238183 | AI163: 45 | AM163: =AN6 -> 116 | AN163: 161 | AV163: 1 | AW163: 1.05
A164: Soil_Preparation Rock_Picker 3.0-3.3 CU. yard (requires 85 hp) | B164: Soil_Preparation | C164: Rock_Picker | D164: 3.0-3.3 CU. yard (requires 85 hp) | E164: 3.0-3.3 CU. yard | F164: 50000 | G164: 50000 | I164: Extrapolation | J164: 10% increase over 20/22 | X164: 25 | Y164: 50 | Z164: 1.05 | AF164: 45.82607794 | AG164: 10.5 | AH164: 8.448911691 | AI164: 65 | AM164: =AN6 -> 116 | AN164: 181 | AV164: 1 | AW164: 1.05
A165: Sprayers High_Clearance_Sprayer 800 US gal, 90 FT boom | B165: Sprayers | C165: High_Clearance_Sprayer | D165: 800 US gal, 90 FT boom | F165: =ROUNDUP(G165/25000,0)*25000 -> 475000 | G165: 461861 | H165: =IFERROR(AVERAGE(L165,Q165,V165),"") ->  | I165: Rogator | J165: RG900C | N165: John Deere | O165: R4030 | S165: Case IH | T165: 3240 | X165: 8 | Y165: 175 | Z165: 3.68 | AA165: 41 | AB165: 10 | AC165: 90 | AD165: =ROUND((AB165*5280*AC165*Field_efficiency*0.8)/43560,0) -> 70 | AE165: (acre/hr) | AF165: 331.0247682 | AG165: 99.88571429 | AH165: 64.63657237 | AI165: 496 | AJ165: =AA165*Fuel_Price -> 57.4 | AK165: =Labour -> 27 | AL165: =Margin_percentage*(AJ165+AK165) -> 12.66 | AN165: 593 | AO165: =IF(AN165/AD165<10,ROUND((AN165/AD165)/0.25,0)*0.25,ROUND(AN165/AD165,0)) -> 8.5 | AP165: /acre | AV165: 3.5 | AW165: 3.68
A166: Sprayers High_Clearance_Sprayer 1000 US gal, 100 FT boom | B166: Sprayers | C166: High_Clearance_Sprayer | D166: 1000 US gal, 100 FT boom | F166: =ROUNDUP(G166/25000,0)*25000 -> 575000 | G166: 567635 | H166: =IFERROR(AVERAGE(L166,Q166,V166),"") ->  | I166: Rogator | J166: RG 1100C | N166: John Deere | O166: R4038 | S166: John Deere | T166: Hagie STS10 | X166: 8 | Y166: 175 | Z166: 3.68 | AA166: 52 | AB166: 10 | AC166: 100 | AD166: =ROUND((AB166*5280*AC166*Field_efficiency*0.8)/43560,0) -> 78 | AE166: (acre/hr) | AF166: 400.7141931 | AG166: =Z166/100*F166/Y166 -> 120.9142857 | AH166: 78.24427182 | AI166: 600 | AJ166: =AA166*Fuel_Price -> 72.8 | AK166: =Labour -> 27 | AL166: =Margin_percentage*(AJ166+AK166) -> 14.97 | AN166: 715 | AO166: 9.25 | AP166: /acre | AV166: 3.5 | AW166: 3.68
A167: Sprayers High_Clearance_Sprayer 1200 US gal, 120 FT boom | B167: Sprayers | C167: High_Clearance_Sprayer | D167: 1200 US gal, 120 FT boom | F167: =ROUNDUP(G167/25000,0)*25000 -> 675000 | G167: 664498 | I167: Rogator | J167: RG 1300C | N167: John Deere | O167: R4045 | S167: John Deere | T167: Hagie STS12 | X167: 8 | Y167: 175 | Z167: 3.68 | AA167: 61 | AB167: 10 | AC167: 120 | AD167: =ROUND((AB167*5280*AC167*Field_efficiency*0.8)/43560,0) -> 93 | AE167: (acre/hr) | AF167: 470.403618 | AG167: 141.9428571 | AH167: 91.85197127 | AI167: 704 | AJ167: =AA167*Fuel_Price -> 85.4 | AK167: =Labour -> 27 | AL167: =Margin_percentage*(AJ167+AK167) -> 16.86 | AN167: 833 | AO167: 9 | AP167: /acre | AV167: 3.5 | AW167: 3.68
A168: Sprayers High_Clearance_Sprayer 1600 US gal, 130 FT boom | B168: Sprayers | C168: High_Clearance_Sprayer | D168: 1600 US gal, 130 FT boom | F168: =ROUNDUP(G168/25000,0)*25000 -> 725000 | G168: 723543 | I168: Case IH | J168: 4400 (1600) | N168: John Deere | O168: R4060 | S168: John Deere | T168: Hagie STS16 | X168: 8 | Y168: 175 | Z168: 3.68 | AA168: 70 | AB168: 10 | AC168: 130 | AD168: =ROUND((AB168*5280*AC168*Field_efficiency*0.8)/43560,0) -> 101 | AE168: (acre/hr) | AF168: 505.2483304 | AG168: 152.4571429 | AH168: 98.65582099 | AI168: 756 | AJ168: =AA168*Fuel_Price -> 98 | AK168: =Labour -> 27 | AL168: =Margin_percentage*(AJ168+AK168) -> 18.75 | AN168: 900 | AO168: 9 | AP168: /acre | AV168: 3.5 | AW168: 3.68
A169: Miscellaneous Post_Pounder 3PT hitch (requires 55 hp) | B169: Miscellaneous | C169: Post_Pounder | D169: 3PT hitch (requires 55 hp) | E169: 3-point hitch mount | F169: =ROUND(G169/500,0)*500 -> 10500 | G169: 10500 | H169: =IFERROR(AVERAGE(M169,R169,W169),"") ->  | I169: Kencove | J169: PD100H | N169: Kiwi | O169: Tractor mount post driver | S169: Vector | T169: Model 3 Post driver w rock spike | X169: 20 | Y169: 40 | Z169: 2.1 | AF169: 14.38043182 | AG169: 5.5125 | AH169: 2.983939773 | AI169: 23 | AM169: =AN6 -> 116 | AN169: 139 | AV169: 2 | AW169: 2.1
A170: Miscellaneous Post_Pounder Trailer mounted with engine | B170: Miscellaneous | C170: Post_Pounder | D170: Trailer mounted with engine | E170: Trailer mounted with engine | F170: =ROUND(G170,-3) -> 25000 | G170: 25000 | I170: Wheatheart | J170: Renegade Trailer with 13HP | X170: 20 | Y170: 40 | Z170: 2.1 | AF170: 34.23912339 | AG170: =Z170/100*F170/Y170 -> 13.125 | AH170: 7.104618508 | AI170: 54 | AM170: =AN6 -> 116 | AN170: 170 | AV170: 2 | AW170: 2.1
A171: Miscellaneous Post_Pounder Skidsteer Mount (requires 55 hp) | B171: Miscellaneous | C171: Post_Pounder | D171: Skidsteer Mount (requires 55 hp) | E171: Skid steer mounted | F171: =ROUND(G171/500,0)*500 -> 12500 | G171: 12500 | I171: KIWI | J171: Skid Steer | N171: Kencove | O171: PD100(H)SS | R171: 0 | S171: kencove | T171: PD80HSS | X171: 20 | Y171: 40 | Z171: 2.1 | AF171: =(F171*Fraction_dep_over_optimal_life/X171/Y171)+IF(Machinery_Financed_percentage=0,0,(-CUMIPMT(Interest_Rate/2,Payback_loan_period_years*2,F171*Machinery_Financed_percentage,1,Payback_loan_period_years*2,0)/X171/Y171))+((F171*(1-Machinery_Financed_percentage)*(1+Opportunity_Rate/12)^(Opp_inv_period_years*12)-(F171*(1-Machinery_Financed_percentage)))/X171/Y171)+(Insurance_and_Housing*F171/Y171) -> 17.11956169 | AG171: 6.5625 | AH171: =Margin_percentage*(AF171+AG171) -> 3.552309254 | AI171: 27 | AM171: =AN6 -> 116 | AN171: 143 | AV171: 2 | AW171: 2.1
A172: Miscellaneous Front_End_Loader For 100-159 hp tractor | B172: Miscellaneous | C172: Front_End_Loader | D172: For 100-159 hp tractor | F172: =ROUND(G172,-3) -> 23000 | G172: 22500 | I172: Extrapolation | J172: 10% increase over 20/21 | X172: 20 | Y172: 100 | Z172: 3.47 | AF172: =(F172*Fraction_dep_over_optimal_life/X172/Y172)+IF(Machinery_Financed_percentage=0,0,(-CUMIPMT(Interest_Rate/2,Payback_loan_period_years*2,F172*Machinery_Financed_percentage,1,Payback_loan_period_years*2,0)/X172/Y172))+((F172*(1-Machinery_Financed_percentage)*(1+Opportunity_Rate/12)^(Opp_inv_period_years*12)-(F172*(1-Machinery_Financed_percentage)))/X172/Y172)+(Insurance_and_Housing*F172/Y172) -> 12.59999741 | AG172: =Z172/100*F172/Y172 -> 7.981 | AH172: =Margin_percentage*(AF172+AG172) -> 3.087149611 | AI172: 24 | AM172: =AN8 -> 135 | AN172: 159 | AV172: 3.3 | AW172: 3.47
A173: Miscellaneous Front_End_Loader For 160-224 hp tractor | B173: Miscellaneous | C173: Front_End_Loader | D173: For 160-224 hp tractor | F173: 25000 | G173: 25000 | I173: Extrapolation | J173: 10% increase over 20/21 | X173: 20 | Y173: 100 | Z173: 3.47 | AF173: 13.69564936 | AG173: 8.675 | AH173: 3.355597403 | AI173: 26 | AM173: =AN9 -> 176 | AN173: 202 | AV173: 3.3 | AW173: 3.47
A174: Miscellaneous Snowblower Rear mount, 80-89 in. (requires 70 hp) | B174: Miscellaneous | C174: Snowblower | D174: Rear mount, 80-89 in. (requires 70 hp) | E174: Rear mount, 80-89 inch | F174: 9000 | G174: =11295-2500 -> 8795 | J174: 10% increase over 20/21 | X174: 20 | Y174: 50 | Z174: 1.05 | AF174: 9.860867536 | AG174: 1.89 | AH174: 1.76263013 | AI174: 14 | AM174: =AN8 -> 135 | AN174: 149 | AV174: 1 | AW174: 1.05
A175: Miscellaneous Snowblower Rear mount, 96 in. (requires 110 hp) | B175: Miscellaneous | C175: Snowblower | D175: Rear mount, 96 in. (requires 110 hp) | E175: Rear mount, 96 inch | F175: 11000 | G175: 11295 | J175: 10% increase over 20/21 | X175: 20 | Y175: 50 | Z175: 1.05 | AF175: 12.05217143 | AG175: 2.31 | AH175: 2.154325715 | AI175: 17 | AM175: =AN8 -> 135 | AN175: 152 | AV175: 1 | AW175: 1.05
A176: Miscellaneous Snowblower Rear mount, 108 in. (requires 130 hp) | B176: Miscellaneous | C176: Snowblower | D176: Rear mount, 108 in. (requires 130 hp) | E176: Rear mount, 108 inch | F176: 17000 | G176: 16595 | X176: 20 | Y176: 50 | Z176: 1.05 | AF176: =(F176*Fraction_dep_over_optimal_life/X176/Y176)+IF(Machinery_Financed_percentage=0,0,(-CUMIPMT(Interest_Rate/2,Payback_loan_period_years*2,F176*Machinery_Financed_percentage,1,Payback_loan_period_years*2,0)/X176/Y176))+((F176*(1-Machinery_Financed_percentage)*(1+Opportunity_Rate/12)^(Opp_inv_period_years*12)-(F176*(1-Machinery_Financed_percentage)))/X176/Y176)+(Insurance_and_Housing*F176/Y176) -> 18.62608312 | AG176: =Z176/100*F176/Y176 -> 3.57 | AH176: =Margin_percentage*(AF176+AG176) -> 3.329412468 | AI176: 26 | AM176: =AN8 -> 135 | AN176: 161 | AV176: 1 | AW176: =ROUND((AV176*$AW$2)+AV176,2) -> 1.05
A177: Miscellaneous Livestock_Trailer 20 FT gooseneck | B177: Miscellaneous | C177: Livestock_Trailer | D177: 20 FT gooseneck | F177: 26000 | G177: 25999 | I177: Extrapolation | J177: 10% increase over 20/21 | X177: 15 | Y177: 100 | Z177: 2.1 | AF177: 18.12463377 | AG177: 5.46 | AH177: 3.537695066 | AI177: 27 | AV177: 2 | AW177: 2.1
A178: Miscellaneous Livestock_Trailer 24 FT gooseneck | B178: Miscellaneous | C178: Livestock_Trailer | D178: 24 FT gooseneck | F178: 38000 | G178: 37900 | I178: Extrapolation | J178: 10% increase over 20/21 | X178: 15 | Y178: 100 | Z178: 2.1 | AF178: 26.48984936 | AG178: 7.98 | AH178: 5.170477404 | AI178: 40 | AV178: 2 | AW178: 2.1
A179: Miscellaneous Vertical_Feed_Mixer 280-360 cubic FT (requires 110 hp) | B179: Miscellaneous | C179: Vertical_Feed_Mixer | D179: 280-360 cubic FT (requires 110 hp) | E179: 280-360 cubic FT | F179: 43000 | G179: =37527.5*1.15 -> 43156.625 | I179: Lucknow | J179: 1380 | N179: Kuhn | O179: VT 132 | X179: 15 | Y179: 200 | Z179: 2.63 | AF179: 14.98767793 | AG179: =Z179/100*F179/Y179 -> 5.6545 | AH179: 3.096326689 | AI179: 24 | AM179: =AN8 -> 135 | AN179: =IF(AI179+AJ179+AK179+AL179+AM179<10,ROUND((AI179+AJ179+AK179+AL179+AM179)/0.25,0)*0.25,ROUND(AI179+AJ179+AK179+AL179+AM179,0)) -> 159 | AV179: 2.5 | AW179: 2.63
A180: Miscellaneous Vertical_Feed_Mixer 500-750 cubic FT (requires 160 hp) | B180: Miscellaneous | C180: Vertical_Feed_Mixer | D180: 500-750 cubic FT (requires 160 hp) | E180: 500-750 cubic FT | F180: =ROUND(G180/5000,0)*5000 -> 70000 | G180: =62262.5*1.15 -> 71601.875 | I180: Lucknow | J180: 1615 | N180: Kuhn | O180: VT 168 | X180: 15 | Y180: 200 | Z180: 2.63 | AF180: 24.39854546 | AG180: =Z180/100*F180/Y180 -> 9.205 | AH180: 5.040531819 | AI180: 39 | AM180: =AN9 -> 176 | AN180: 215 | AV180: 2.5 | AW180: 2.63
A181: Miscellaneous Vertical_Feed_Mixer 830-1,150 cubic FT (requires 225+ hp) | B181: Miscellaneous | C181: Vertical_Feed_Mixer | D181: 830-1,150 cubic FT (requires 225+ hp) | E181: 830-1,150 cubic FT | F181: 100000 | G181: =87408.3333333333*1.15 -> 100519.5833 | I181: Lucknow | J181: 2820 | N181: Lucknow | O181: 2950 | S181: Schuler | T181: 1060 | X181: 15 | Y181: 200 | Z181: 2.63 | AF181: 34.85506495 | AG181: 13.15 | AH181: 7.200759742 | AI181: 55 | AM181: =AN10 -> 213 | AN181: 268 | AV181: 2.5 | AW181: 2.63
A182: Miscellaneous Feed_Mixer Two 6 FT bale, 40 bu grain (requires 100 hp) | B182: Miscellaneous | C182: Feed_Mixer | D182: Two 6 FT bale, 40 bu grain (requires 100 hp) | E182: Two 6 FT bale, 40 bu grain | F182: =ROUND(G182,-3) -> 65000 | G182: 65000 | I182: BaleKing | J182: 5300 w 40 bu tank as option | X182: 15 | Y182: 200 | Z182: 3.15 | AF182: 22.65579222 | AG182: =Z182/100*F182/Y182 -> 10.2375 | AH182: 4.933993832 | AI182: =IF(AF182+AG182+AH182<10,ROUND((AF182+AG182+AH182)/0.25,0)*0.25,ROUND(AF182+AG182+AH182,0)) -> 38 | AM182: =AN8 -> 135 | AN182: 173 | AV182: 3 | AW182: 3.15
A183: Miscellaneous Grinder_Mixer 360-440 cubic FT (requires 120 hp) | B183: Miscellaneous | C183: Grinder_Mixer | D183: 360-440 cubic FT (requires 120 hp) | E183: 360-440 cubic FT | F183: 70000 | G183: 70000 | I183: Artsway | J183: 6140 (Hammer) | N183: Cattlemax | O183: 6140 (rollermill) | X183: 15 | Y183: 200 | Z183: 3.15 | AF183: 24.39854546 | AG183: =Z183/100*F183/Y183 -> 11.025 | AH183: 5.313531819 | AI183: 41 | AM183: =AN8 -> 135 | AN183: 176 | AV183: 3 | AW183: 3.15
A184: Miscellaneous Grinder_Mixer 550-750 cubic FT (requires 200 hp) | B184: Miscellaneous | C184: Grinder_Mixer | D184: 550-750 cubic FT (requires 200 hp) | E184: 500-750 cubic FT | F184: 90000 | G184: 90000 | I184: Extrapolation | J184: 10% increase 20/21 Price | X184: 15 | Y184: 200 | Z184: 3.15 | AF184: 31.36955845 | AG184: 14.175 | AH184: 6.831683768 | AI184: 52 | AM184: =AN9 -> 176 | AN184: 228 | AV184: 3 | AW184: 3.15
A185: Miscellaneous Bale_Processor Two 6 FT round bale (requires 155 hp) | B185: Miscellaneous | C185: Bale_Processor | D185: Two 6 FT round bale (requires 155 hp) | E185: Two 6 FT round bale | F185: =ROUND(G185,-3) -> 40000 | G185: 40000 | I185: Vermeer | J185: BPX 9010 | N185: Highline | O185: CFR 965 | X185: 15 | Y185: 200 | Z185: 3.15 | AF185: 13.94202598 | AG185: =Z185/100*F185/Y185 -> 6.3 | AH185: 3.036303897 | AI185: 23 | AM185: =AN8 -> 135 | AN185: 158 | AV185: 3 | AW185: 3.15
A186: Miscellaneous Bale_Processor Six 6 FT round bale (requires 175 hp) | B186: Miscellaneous | C186: Bale_Processor | D186: Six 6 FT round bale (requires 175 hp) | E186: Six 6 FT round bale | F186: 70000 | G186: 70000 | I186: Bale King | J186: 6200 (no grain tank) | M186: 53000 | X186: 15 | Y186: 200 | Z186: 3.15 | AF186: 24.39854546 | AG186: 11.025 | AH186: 5.313531819 | AI186: 41 | AM186: =AN9 -> 176 | AN186: 217 | AV186: 3 | AW186: 3.15
A187: =B187&" "&C187&" "&D187 -> Miscellaneous Grain_Truck Tandem | B187: Miscellaneous | C187: Grain_Truck | D187: Tandem | F187: =ROUND(G187/5000,0)*5000 -> 200000 | G187: 200000 | X187: 15 | Y187: 150 | Z187: 2.63 | AA187: 27 | AF187: =(F187*Fraction_dep_over_optimal_life/X187/Y187)+IF(Machinery_Financed_percentage=0,0,(-CUMIPMT(Interest_Rate/2,Payback_loan_period_years*2,F187*Machinery_Financed_percentage,1,Payback_loan_period_years*2,0)/X187/Y187))+((F187*(1-Machinery_Financed_percentage)*(1+Opportunity_Rate/12)^(Opp_inv_period_years*12)-(F187*(1-Machinery_Financed_percentage)))/X187/Y187)+(Insurance_and_Housing*F187/Y187) -> 92.94683986 | AG187: =Z187/100*F187/Y187 -> 35.06666667 | AH187: =Margin_percentage*(AF187+AG187) -> 19.20202598 | AI187: 147 | AJ187: =AA187*Fuel_Price -> 37.8 | AK187: =Labour -> 27 | AL187: =Margin_percentage*(AJ187+AK187) -> 9.72 | AN187: 222 | AP187: /acre | AV187: 2.5 | AW187: =ROUND((AV187*$AW$2)+AV187,2) -> 2.63
A188: =B188&" "&C188&" "&D188 -> Miscellaneous Grain_Truck Truck and 40FT Straight Trailer | B188: Miscellaneous | C188: Grain_Truck | D188: Truck and 40FT Straight Trailer | F188: =ROUND(G188/5000,0)*5000 -> 275000 | G188: =SUM(G197:G198) -> 275000 | X188: 15 | Y188: 150 | Z188: 2.63 | AA188: 32 | AF188: =(F188*Fraction_dep_over_optimal_life/X188/Y188)+IF(Machinery_Financed_percentage=0,0,(-CUMIPMT(Interest_Rate/2,Payback_loan_period_years*2,F188*Machinery_Financed_percentage,1,Payback_loan_period_years*2,0)/X188/Y188))+((F188*(1-Machinery_Financed_percentage)*(1+Opportunity_Rate/12)^(Opp_inv_period_years*12)-(F188*(1-Machinery_Financed_percentage)))/X188/Y188)+(Insurance_and_Housing*F188/Y188) -> 127.8019048 | AG188: =Z188/100*F188/Y188 -> 48.21666667 | AH188: =Margin_percentage*(AF188+AG188) -> 26.40278572 | AI188: 202 | AJ188: =AA188*Fuel_Price -> 44.8 | AK188: 27 | AL188: =Margin_percentage*(AJ188+AK188) -> 10.77 | AN188: 285 | AP188: /acre | AV188: 2.5 | AW188: =ROUND((AV188*$AW$2)+AV188,2) -> 2.63
A189: =B189&" "&C189&" "&D189 -> Miscellaneous Manure_Spreader_solid 250-299 cubic FT level, chain unload (requires 120 hp) | B189: Miscellaneous | C189: Manure_Spreader_solid | D189: 250-299 cubic FT level, chain unload (requires 120 hp) | E189: 250-299 cubic FT | F189: 35000 | G189: 35000 | I189: New Holland | J189: 155 MBS | N189: JD/Frontier | O189: MS1223 | X189: 10 | Y189: 100 | Z189: 4.62 | AF189: 34.84781819 | AG189: =Z189/100*F189/Y189 -> 16.17 | AH189: 7.652672729 | AI189: 59 | AM189: =AN8 -> 135 | AN189: 194 | AV189: 4.4 | AW189: 4.62
A190: Miscellaneous Manure_Spreader_solid 300-399 cubic FT level, chain unload (requires 125 hp) | B190: Miscellaneous | C190: Manure_Spreader_solid | D190: 300-399 cubic FT level, chain unload (requires 125 hp) | E190: 300-399 cubic FT | F190: 38000 | G190: 38000 | I190: New Holland | J190: 185 MBS | N190: JD/Frontier | O190: MS1231 | X190: 10 | Y190: 100 | Z190: 4.62 | AF190: 37.83477404 | AG190: 17.556 | AH190: 8.308616106 | AI190: 64 | AM190: =AN8 -> 135 | AN190: 199 | AV190: 4.4 | AW190: 4.62
A191: Miscellaneous Manure_Spreader_solid 400-500 cubic FT level, chain unload (requires 150 hp) | B191: Miscellaneous | C191: Manure_Spreader_solid | D191: 400-500 cubic FT level, chain unload (requires 150 hp) | E191: 400-500 cubic FT | F191: 56000 | G191: 56000 | I191: New Holland | J191: 195 MBS | N191: JD/Frontier | O191: MS1237 | X191: 10 | Y191: 100 | Z191: 4.62 | AF191: 55.75650911 | AG191: 25.872 | AH191: 12.24427637 | AI191: 94 | AM191: =AN8 -> 135 | AN191: 229 | AV191: 4.4 | AW191: 4.62
A192: Miscellaneous Manure_Spreader_solid 300-399 cubic FT level, side discharge (requires 150 hp) | B192: Miscellaneous | C192: Manure_Spreader_solid | D192: 300-399 cubic FT level, side discharge (requires 150 hp) | E192: 300-399 cubic FT | F192: =ROUND(G192/5000,0)*5000 -> 65000 | G192: 65000 | I192: Kuhn | J192: SLC 126 | X192: 10 | Y192: 100 | Z192: 4.62 | AF192: 64.71737665 | AG192: 30.03 | AH192: 14.2121065 | AI192: 109 | AM192: =AN8 -> 135 | AN192: 244 | AV192: 4.4 | AW192: 4.62
A193: Miscellaneous Manure_Spreader_solid 400-500 cubic FT level, side discharge (requires 180 hp) | B193: Miscellaneous | C193: Manure_Spreader_solid | D193: 400-500 cubic FT level, side discharge (requires 180 hp) | E193: 400-500 cubic FT | F193: 85000 | G193: 85000 | I193: Kuhn | J193: SLC 132 | X193: 10 | Y193: 100 | Z193: 4.62 | AF193: 84.63041562 | AG193: 39.27 | AH193: 18.58506234 | AI193: 142 | AM193: =AN9 -> 176 | AN193: 318 | AV193: 4.4 | AW193: 4.62
A194: Miscellaneous Manure_Spreader_solid 500+ cubic FT level, side discharge (requires 200 hp) | B194: Miscellaneous | C194: Manure_Spreader_solid | D194: 500+ cubic FT level, side discharge (requires 200 hp) | E194: 500+ cubic FT | F194: 95000 | G194: 95000 | I194: Kuhn | J194: SLC 141 | X194: 10 | Y194: 100 | Z194: 4.62 | AF194: 94.5869351 | AG194: 43.89 | AH194: 20.77154026 | AI194: 159 | AM194: =AN9 -> 176 | AN194: 335 | AV194: 4.4 | AW194: 4.62
A195: Miscellaneous Manure_Spreader_solid 250-300 cubic FT, hyd. push, vert. beaters (requires 150 hp) | B195: Miscellaneous | C195: Manure_Spreader_solid | D195: 250-300 cubic FT, hyd. push, vert. beaters (requires 150 hp) | E195: 250-300 cubic FT | F195: 75000 | G195: 76000 | I195: Kuhn | J195: ProPush | N195: JD/Frontier | O195: MS1442 | X195: 10 | Y195: 100 | Z195: 4.62 | AF195: 74.67389613 | AG195: 34.65 | AH195: 16.39858442 | AI195: 126 | AM195: =AN8 -> 135 | AN195: 261 | AV195: 4.4 | AW195: 4.62
A196: Miscellaneous Manure_Spreader_solid 400-500 cubic FT, hyd. push, vert. beaters (requires 200 hp) | B196: Miscellaneous | C196: Manure_Spreader_solid | D196: 400-500 cubic FT, hyd. push, vert. beaters (requires 200 hp) | E196: 400-500 cubic FT | F196: 95000 | G196: 95000 | I196: Kuhn | J196: ProPush | N196: JD/Frontier | O196: MS1455 | X196: 10 | Y196: 100 | Z196: 4.62 | AF196: 94.5869351 | AG196: 43.89 | AH196: 20.77154026 | AI196: 159 | AM196: =AN9 -> 176 | AN196: 335 | AV196: 4.4 | AW196: 4.62
A197: Highway Tractor | F197: 190000 | G197: 190000
A198: 40 foot straight trailer | F198: 85000 | G198: 85000
A199: Water Truck | B199: (Select Category) | F199: 145000 | G199: 145000 | H199: =IFERROR(AVERAGE(M199,R199,W199),"") ->  | X199: 10 | Y199: =Y168 -> 175 | Z199: 3.15 | AA199: 27 | AF199: =(F199*Fraction_dep_over_optimal_life/X199/Y199)+IF(Machinery_Financed_percentage=0,0,(-CUMIPMT(Interest_Rate/2,Payback_loan_period_years*2,F199*Machinery_Financed_percentage,1,Payback_loan_period_years*2,0)/X199/Y199))+((F199*(1-Machinery_Financed_percentage)*(1+Opportunity_Rate/12)^(Opp_inv_period_years*12)-(F199*(1-Machinery_Financed_percentage)))/X199/Y199)+(Insurance_and_Housing*F199/Y199) -> 82.49687573 | AG199: =Z199/100*F199/Y199 -> 26.1 | AH199: =Margin_percentage*(AF199+AG199) -> 16.28953136 | AI199: =IF(AF199+AG199+AH199<10,ROUND((AF199+AG199+AH199)/0.25,0)*0.25,ROUND(AF199+AG199+AH199,0)) -> 125 | AJ199: =AA199*Fuel_Price -> 37.8 | AK199: 27 | AL199: =Margin_percentage*(AJ199+AK199) -> 9.72 | AN199: =IF(AI199+AJ199+AK199+AL199+AM199<10,ROUND((AI199+AJ199+AK199+AL199+AM199)/0.25,0)*0.25,ROUND(AI199+AJ199+AK199+AL199+AM199,0)) -> 200 | AP199: /acre | AV199: 3 | AW199: 3.15

Sheet Instructions
B1: Important Instructions and Notes
B2: Calculator Intended Use
B3: This calculator has been established to provide approximate costs for renting equipment or obtaining custom-farming operations from another farmer.
B4: This calculator is not intended for establishing rates for individuals or companies that rent equipment or contract custom-farming operations as a business.
B6: This calculator is applicable for two different situations. One is to suggest an equitable price for both parties when one farmer either rents a piece of equipment from another farmer or hires the other to do
B7: a farming operation (seeding, spraying, harvesting, etc.). In this situation, the time of rented operation is usually relatively small in proportion to the use by the owner.
B8: The other use is when farmers share equipment and need to establish the value of the machinery and/or farming operation that is being contributed to each farm.
B10: Steps for Calculator Use
B11: This calculator allows users to calculate the costs associated with the combination of up to three pieces of farm equipment.
B12: If the piece of equipment in question is not listed, the user can still determine costs associated with that piece of equipment.
B13: To obtain information for any unlisted equipment, the user would follow the outlined procedure below for selecting any unrelated equipment, and then just change the values in BLUE to match their equipment.
B14: Users should review the input values at the top of the page before proceeding to steps #1 to #6.
B15: Users should press the Reset button if any changes have been made to the BLUE input values in Steps #4 to #6 as important formulas may be lost and need to be reset before selecting different equipment.
B17: Procedure
B18: 1. Prior to calculator use, ensure that macros have been enabled. Similarly, when saving this workbook save it as a macro-enabled file.
B19: 2. Select the equipment category (#1) from the drop-down list(s) provided.
B20: 3. Select the type of farm equipment (#2) from the drop-down list(s) provided.
B21: 4. Select the appropriate size of the farm equipment (#3) from the drop-down list(s) provided. After this selection is made, the spreadsheet will populate itself with default values.
B22: 5. If the default equipment cost values do not agree with your known values for the farm equipment (#4), enter in the known BLUE input values.
B23: 6. If the default equipment fuel useage litres per hour or Repair and Maintenance rate % do not agree with your known values for the farm equipment (#5), enter the known BLUE input values.
B24: 7. If the speed, width, or field efficiency of the implement is different from the default values, enter the known BLUE input values to calculate a new work rate.
B25: If the calculated work rate from the default or known input values is not accurate, enter a known work rate.
B26: 8. Scroll down the page to see the total costs of each implement as well as the combined costs of implements 1, 2, and 3.
B28: Notes on calculation procedure
B29: If the user is uncertain of a tractor horsepower requirement for drawn or PTO equipment, if applicable, it will be shown in the "Select equipment size" drop down list.
B30: If there are two or more different work rates, the calculator will calculate the largest work rate for implements 1, 2, and 3.
B32: Caution
B33: Nearly every situation has particular circumstances and conditions that are unique. Individuals should recognize these circumstances and make appropriate adjustments in the "User-Defined" BLUE input values
B34: of this spreadsheet to obtain better cost estimates for their particular situation.
B36: Tractor Category Footnotes
B37: Two-wheel drive tractors - based on PTO power rating
B38: Front wheel assist tractors - based on PTO power rating
B39: Four-wheel drive tractors - based on engine power rating
B40: Tracked tractors - based on engine power rating
B41: To convert net engine power to PTO, multiply by 0.88
B43: Harvesting Grain Category Footnotes
B44: Rotary combines - annual hours of usage is based on separator usage
B45: Self-propelled swathers - fuel efficiency based on 126 hp (18-22' swather), 126 hp (25' swather), 190 hp (30' swather), and 226 hp (35'+ swather)
B47: Harvesting Hay Category Footnotes
B48: Self-propelled mower/conditioners - fuel efficiency is based on 226 hp (16-19' disc), 400 hp (30' disc), and 190 hp (14-16' sickle)
B49: Balers - for the cost of twine add $0.27/bale for 4' diameter, $0.40/bale for 5' diameter and $0.76/bale for 6' diameter. Add $0.78/bale for large square and $0.05/bale for small square. For the cost of mesh add $1.25/bale.
B50: Bale mover - fuel efficiency based on 173 hp
B52: Seeding Category Footnotes
B53: Work rates may require adjustment for heavy straw conditions or high fertilizer rates
B54: All air drills have been priced with an appropriately sized air tank.
B56: Soil Preparation Category Footnotes
B57: No additional notes
B59: Sprayers Category Footnotes
B60: Cost of hauling water to the field is not included. The cost of hauling water can range from $0.26/acre to $1.74/acre depending on the rate of water application.
B61: These rates are not intended to be compared to commercial custom spraying rates.
B63: Fuel Efficiency Estimate
B64: In order to obtain an estimate for fuel consumption based on engine power, the following chart can be used:

Sheet Sprayer Water Calc (hidden)
A1: Appendix A
A3: C. Hauling Water for Field Spraying - SP Sprayer
G4: Gallons Per Acre
G5: 2.5 | H5: 5 | I5: 10 | J5: 20
A6: (A) | B6: Acres sprayed per hr is avg. of 80' and 100' booms | G6: =ROUND((DATA!AB166*5280*DATA!AC166*Field_efficiency*1)/43560,0) -> 97 | H6: =ROUND((DATA!AB166*5280*DATA!AC166*Field_efficiency*0.9)/43560,0) -> 87 | I6: =ROUND((DATA!AB166*5280*DATA!AC166*Field_efficiency*0.8)/43560,0) -> 78 | J6: =ROUND((DATA!AB166*5280*DATA!AC166*Field_efficiency*0.7)/43560,0) -> 68 | L6: *work rate*
A7: (B) | B7: Labour cost/hr | G7: =Labour -> 27 | H7: =Labour -> 27 | I7: =Labour -> 27 | J7: =Labour -> 27
A8: (C) | B8: Truck cost per hour* | G8: =DATA!AN199-DATA!AK199 -> 173 | H8: =G8 -> 173 | I8: =G8 -> 173 | J8: =G8 -> 173
A9: (D) | B9: Truck hauls 1200 gal/load | G9: 2400 | H9: =G9 -> 2400 | I9: =G9 -> 2400 | J9: =G9 -> 2400
A10: (E) | B10: Acres per load = 1200 gal/(gal/ac) | G10: =SUM(G9/G5) -> 960 | H10: =SUM(H9/H5) -> 480 | I10: 240 | J10: 120
A11: (F) | B11: Hours per load = 1200 gal/(gal/ac)/(ac/hr) | G11: =G10/G6 -> 9.896907216 | H11: =H10/H6 -> 5.517241379 | I11: 3.076923077 | J11: 1.764705882
B13: Time to haul one load of water | G13: 75 | H13: =G13 -> 75 | I13: =G13 -> 75 | J13: =G13 -> 75
B14: Cost of one load of water | G14: 20 | H14: =G14 -> 20 | I14: =G14 -> 20 | J14: =G14 -> 20
A15: (G) | B15: Truck driving time going for water (min)
A16: (H) | B16: Driving time in the field (min)
A17: (I) | B17: Total time minutes per 160 acres (min)* | G17: =(160/G10)*G13 -> 12.5 | H17: =(160/H10)*H13 -> 25 | I17: 50 | J17: 100
A19: (J) | B19: Truck cost for 160 acres | G19: =G8*G17/60 -> 36.04166667 | H19: =H8*H17/60 -> 72.08333333 | I19: =I8*I17/60 -> 144.1666667 | J19: =J8*J17/60 -> 288.3333333
A20: (K) | B20: Labour cost for 160 acres | G20: =G7*G17/60 -> 5.625 | H20: =H7*H17/60 -> 11.25 | I20: =I7*I17/60 -> 22.5 | J20: =J7*J17/60 -> 45
A21: (L) | B21: Truck and labour cost for 160 acres | G21: =G19+G20 -> 41.66666667 | H21: =H19+H20 -> 83.33333333 | I21: 166.6666667 | J21: 333.3333333
A22: (M) | B22: ="Add "&Margin_percentage*100&"% margin" -> Add 15% margin | G22: =G21*Margin_percentage -> 6.25 | H22: =H21*Margin_percentage -> 12.5 | I22: =I21*Margin_percentage -> 25 | J22: =J21*Margin_percentage -> 50
A23: (N) | B23: Total cost of hauling for 160 acres | G23: =G21+G22 -> 47.91666667 | H23: =H21+H22 -> 95.83333333 | I23: 191.6666667 | J23: 383.3333333
A24: (O) | B24: Cost of purchase or pumping water for 160 ac** | G24: =G5*160/1200*G14 -> 6.666666667 | H24: =H5*160/1200*H14 -> 13.33333333 | I24: 26.66666667 | J24: 53.33333333
A25: (P) | B25: Cost per 160 acres for hauling and water | G25: =G24+G23 -> 54.58333333 | H25: =H24+H23 -> 109.1666667 | I25: 218.3333333 | J25: 436.6666667
A26: (Q) | B26: Cost per acre of hauling water | G26: =ROUNDUP((G25/160/0.25),0)*0.25 -> 0.5 | H26: =ROUNDUP((H25/160/0.25),0)*0.25 -> 0.75 | I26: =ROUNDUP((I25/160/0.25),0)*0.25 -> 1.5 | J26: =ROUNDUP((J25/160/0.25),0)*0.25 -> 2.75
H27: ****round to quarter***
A29: Calculations used to determine values:
A30: J = C*I/(60 min/hr)
A31: K = B*I/(60 min/hr)
A32: l = J + K
A33: M = L*15%
A34: N = L + M
A35: O = gal/acre*acres/gal*cost/load
A36: = 2.5*160/1200*10.00
A37: P = N + O
A38: Q = P/160

Sheet Editing notes (hidden)
A1: Date | B1: Changes made/notes | C1: Person involved in modification(s) | F1: New way to calculate interest:
A2: 2023-07-19 | B2: moved MB-SK price list to working folder | C2: Sharon
A3: 2023-07-19 | B3: final look over of price calculator | C3: Sharon | F3: "=-CUMIPMT(a,b,c,1,b,0)"
A4: 2023-07-19 | B4: highlighted assumptions in Introduction word document | C4: Sharon
A5: 2023-07-19 | B5: highlighted calculations in appendices for G-H-I that need to be updated once assumptions are sett | C5: Sharon | F5: need the negative in front of the function because it returns a negative value on its own
A6: 2023-07-25 | B6: interest rate discussion: term 7.75% & Operating 8.50% to match spring resource update | C6: Sharon | F6: a = interest rate (%)
A7: 2023-07-26 | B7: start updating prices of misc equipment | C7: Sharon | F7: b = number of periods in payback period
C8: Sharon | F8: c = amount financed
C9: Sharon
C10: Sharon | F10: If biannual payments:
F11: a = annual interest rate divided by 2
C12: Sharon
C13: Sharon | F13: b = number of years in payback period multiplied by 2
F15: If monthly payments:
F16: a = annual interest rate divided by 12
C17: Sharon | F17: b = number of years in payback period multiplied by 12
C18: Sharon
C19: Sharon
C20: Sharon | F20: New way to calculate opportunity cost:
C21: Sharon
C22: Sharon | F22: "=A*(1+B)^C-A"
C23: Sharon
C24: Sharon | F24: A = amount in down payment (that would otherwise be invested)
C25: Sharon | F25: B = interest rate (%)
C26: Sharon | F26: C = number of periods in payback period
F28: If monthly compounding
F29: B = annual interest rate divided by 12
F30: C = number of years mulitplied by 12
F33: Note: number of years for opportunity cost equal to 7 since most equipment is owned for this length of time

Sheet Summary (hidden)
O1: Equipment Summary
B3: Equipment | C3: Description | D3: Rental Rate (per hour) | H3: Custom Rate (per hour) | L3: Average Custom Rate*
B4: Tractors | C4: Two-Wheel Drive | D4: =MIN(DATA!AI6,DATA!AI7) -> 46 | E4: to | F4: =MAX(DATA!AI6,DATA!AI7) -> 51 | H4: =MIN(DATA!AN6,DATA!AN7) -> 116 | I4: to | J4: =MAX(DATA!AN6,DATA!AN7) -> 127
C5: Front Wheel Assist | D5: =MIN(DATA!AI8,DATA!AI9,DATA!AI10) -> 62 | E5: to | F5: =MAX(DATA!AI8,DATA!AI9,DATA!AI10) -> 105 | H5: =MIN(DATA!AN8,DATA!AN9,DATA!AN10) -> 135 | I5: to | J5: =MAX(DATA!AN8,DATA!AN9,DATA!AN10) -> 213
C6: Four-Wheel Drive | D6: =MIN(DATA!AI11,DATA!AI12,DATA!AI13) -> 147 | E6: to | F6: =MAX(DATA!AI11,DATA!AI12,DATA!AI13) -> 178 | H6: =MIN(DATA!AN11,DATA!AN12,DATA!AN13) -> 279 | I6: to | J6: =MAX(DATA!AN11,DATA!AN12,DATA!AN13) -> 351
C7: Tracked | D7: =MIN(DATA!AI14,DATA!AI15,DATA!AI16,DATA!AI17,DATA!AI18) -> 152 | E7: to | F7: =MAX(DATA!AI14,DATA!AI15,DATA!AI16,DATA!AI17,DATA!AI18) -> 224 | H7: =MIN(DATA!AN14,DATA!AN15,DATA!AN16,DATA!AN17,DATA!AN18) -> 284 | I7: to | J7: =MAX(DATA!AN14,DATA!AN15,DATA!AN16,DATA!AN17,DATA!AN18) -> 440
B8: Combine | C8: Rotary | D8: =MIN(DATA!AI19,DATA!AI20,DATA!AI21,DATA!AI22,DATA!AI23,DATA!AI24) -> 255 | E8: to | F8: =MAX(DATA!AI19,DATA!AI20,DATA!AI21,DATA!AI22,DATA!AI23,DATA!AI24) -> 485 | H8: =MIN(DATA!AN19,DATA!AN20,DATA!AN21,DATA!AN22,DATA!AN23,DATA!AN24) -> 355 | I8: to | J8: =MAX(DATA!AN19,DATA!AN20,DATA!AN21,DATA!AN22,DATA!AN23,DATA!AN24) -> 661 | L8: =MIN(DATA!AO19,DATA!AO20,DATA!AO21,DATA!AO22,DATA!AO23,DATA!AO24) -> 31 | M8: to | N8: =MAX(DATA!AO19,DATA!AO20,DATA!AO21,DATA!AO22,DATA!AO23,DATA!AO24) -> 44 | O8: per acre
B9: Combine Header | D9: =MIN(DATA!AI25,DATA!AI26,DATA!AI27,DATA!AI28,DATA!AI29,DATA!AI30,DATA!AI31,DATA!AI32,DATA!AI33,DATA!AI34,DATA!AI35,DATA!AI36,DATA!AI37,DATA!AI38,DATA!AI39,DATA!AI40) -> 13 | E9: to | F9: =MAX(DATA!AI25,DATA!AI26,DATA!AI27,DATA!AI28,DATA!AI29,DATA!AI30,DATA!AI31,DATA!AI32,DATA!AI33,DATA!AI34,DATA!AI35,DATA!AI36,DATA!AI37,DATA!AI38,DATA!AI39,DATA!AI40) -> 279
B10: Swather | D10: =MIN(DATA!AI41,DATA!AI42,DATA!AI43,DATA!AI44) -> 117 | E10: to | F10: =MAX(DATA!AI41,DATA!AI42,DATA!AI43,DATA!AI44) -> 156 | H10: =MIN(DATA!AN41,DATA!AN42,DATA!AN43,DATA!AN44) -> 183 | I10: to | J10: =MAX(DATA!AN41,DATA!AN42,DATA!AN43,DATA!AN44) -> 245 | L10: =MIN(DATA!AO41,DATA!AO42,DATA!AO43,DATA!AO44) -> 12 | M10: to | N10: =MAX(DATA!AO41,DATA!AO42,DATA!AO43,DATA!AO44) -> 14 | O10: per acre
B11: Grain Cart | D11: =MIN(DATA!AI45,DATA!AI46,DATA!AI47) -> 35 | E11: to | F11: =MAX(DATA!AI45,DATA!AI46,DATA!AI47) -> 108 | H11: =MIN(DATA!AN45,DATA!AN46,DATA!AN47) -> 314 | I11: to | J11: =MAX(DATA!AN45,DATA!AN46,DATA!AN47) -> 459
B12: Grain Auger | C12: Powered | D12: =MIN(DATA!AI48,DATA!AI49,DATA!AI50,DATA!AI51,DATA!AI52,DATA!AI53) -> 19 | E12: to | F12: =MAX(DATA!AI48,DATA!AI49,DATA!AI50,DATA!AI51,DATA!AI52,DATA!AI53) -> 31
B13: Grain Auger | C13: PTO | D13: =MIN(DATA!AI54,DATA!AI55,DATA!AI56,DATA!AI57,DATA!AI58) -> 9 | E13: to | F13: =MAX(DATA!AI54,DATA!AI55,DATA!AI56,DATA!AI57,DATA!AI58) -> 94 | H13: =MIN(DATA!AN54,DATA!AN55,DATA!AN56,DATA!AN57,DATA!AN58) -> 144 | I13: to | J13: =MAX(DATA!AN54,DATA!AN55,DATA!AN56,DATA!AN57,DATA!AN58) -> 270
B14: Grain Conveyor | C14: PTO | D14: =MIN(DATA!AI61,DATA!AI62) -> 63 | E14: to | F14: =MAX(DATA!AI61,DATA!AI62) -> 140 | H14: =MIN(DATA!AN61,DATA!AN62) -> 179 | I14: to | J14: =MAX(DATA!AN61,DATA!AN62) -> 275
B15: Grain Vac | D15: =MIN(DATA!AI72,DATA!AI73) -> 94 | E15: to | F15: =MAX(DATA!AI72,DATA!AI73) -> 136 | H15: =MIN(DATA!AN72,DATA!AN73) -> 210 | I15: to | J15: =MAX(DATA!AN72,DATA!AN73) -> 263
B16: SP Forage Harvester | D16: =MIN(DATA!AI74,DATA!AI75,DATA!AI76) -> 277 | E16: to | F16: =MAX(DATA!AI74,DATA!AI75,DATA!AI76) -> 396 | H16: =MIN(DATA!AN74,DATA!AN75,DATA!AN76) -> 435 | I16: to | J16: =MAX(DATA!AN74,DATA!AN75,DATA!AN76) -> 622 | L16: =MIN(DATA!AN74,DATA!AN75,DATA!AN76)/MAX(DATA!AD77,DATA!AD78,DATA!AD79) -> 25.58823529 | M16: to | N16: =MAX(DATA!AN74,DATA!AN75,DATA!AN76)/MIN(DATA!AD77,DATA!AD78,DATA!AD79) -> 69.11111111 | O16: per acre
B17: SP Forage Header | D17: =MIN(DATA!AI77,DATA!AI78,DATA!AI79) -> 32 | E17: to | F17: =MAX(DATA!AI77,DATA!AI78,DATA!AI79) -> 119
B18: Mower Conditioner | C18: Self Propelled | D18: =MIN(DATA!AI87,DATA!AI88,DATA!AI89) -> 178 | E18: to | F18: =MAX(DATA!AI87,DATA!AI88,DATA!AI89) -> 356 | H18: =MIN(DATA!AN87,DATA!AN88,DATA!AN89) -> 261 | I18: to | J18: =MAX(DATA!AN87,DATA!AN88,DATA!AN89) -> 490 | L18: =MIN(DATA!AO87,DATA!AO88,DATA!AO89) -> 21 | M18: to | N18: =MAX(DATA!AO87,DATA!AO88,DATA!AO89) -> 29 | O18: per acre
B19: Mower Conditioner | C19: Pull Type | D19: =MIN(DATA!AI90,DATA!AI91,DATA!AI92,DATA!AI93,DATA!AI94) -> 21 | E19: to | F19: =MAX(DATA!AI90,DATA!AI91,DATA!AI92,DATA!AI93,DATA!AI94) -> 48 | H19: =MIN(DATA!AN90,DATA!AN91,DATA!AN92,DATA!AN93,DATA!AN94) -> 137 | I19: to | J19: =MAX(DATA!AN90,DATA!AN91,DATA!AN92,DATA!AN93,DATA!AN94) -> 164 | L19: =MIN(DATA!AO90,DATA!AO91,DATA!AO92,DATA!AO93,DATA!AO94) -> 14 | M19: to | N19: =MAX(DATA!AO90,DATA!AO91,DATA!AO92,DATA!AO93,DATA!AO94) -> 34 | O19: per acre
B20: Hay Rakes | D20: =MIN(DATA!AI95,DATA!AI96,DATA!AI97) -> 26 | E20: to | F20: =MAX(DATA!AI95,DATA!AI96,DATA!AI97) -> 78 | H20: =MIN(DATA!AN95,DATA!AN96,DATA!AN97) -> 142 | I20: to | J20: =MAX(DATA!AN95,DATA!AN96,DATA!AN97) -> 194 | L20: =MIN(DATA!AO95,DATA!AO96,DATA!AO97) -> 9.75 | M20: to | N20: =MAX(DATA!AO95,DATA!AO96,DATA!AO97) -> 14 | O20: per acre
B21: Baler | C21: Small Square | D21: =MIN(DATA!AI103,DATA!AI104) -> 23 | E21: to | F21: =MAX(DATA!AI103,DATA!AI104) -> 34 | H21: =MIN(DATA!AN103,DATA!AN104) -> 139 | I21: to | J21: =MAX(DATA!AN103,DATA!AN104) -> 150 | L21: =MIN(DATA!AO103,DATA!AO104) -> 0.75 | M21: to | N21: =MAX(DATA!AO103,DATA!AO104) -> 0.75 | O21: per bale
B22: Baler | C22: Large Square | D22: =MIN(DATA!AI105,DATA!AI106,DATA!AI107) -> 107 | E22: to | F22: =MAX(DATA!AI105,DATA!AI106,DATA!AI107) -> 151 | H22: =MIN(DATA!AN105,DATA!AN106,DATA!AN107) -> 242 | I22: to | J22: =MAX(DATA!AN105,DATA!AN106,DATA!AN107) -> 327 | L22: =MIN(DATA!AO105,DATA!AO106,DATA!AO107) -> 6 | M22: to | N22: =MAX(DATA!AO105,DATA!AO106,DATA!AO107) -> 8.25 | O22: per bale
B23: Baler | C23: Round | D23: =MIN(DATA!AI98,DATA!AI99,DATA!AI100,DATA!AI101,DATA!AI102) -> 47 | E23: to | F23: =MAX(DATA!AI98,DATA!AI99,DATA!AI100,DATA!AI101,DATA!AI102) -> 84 | H23: =MIN(DATA!AN98,DATA!AN99,DATA!AN100,DATA!AN101,DATA!AN102) -> 163 | I23: to | J23: =MAX(DATA!AN98,DATA!AN99,DATA!AN100,DATA!AN101,DATA!AN102) -> 219 | L23: =MIN(DATA!AO98,DATA!AO99,DATA!AO100,DATA!AO101,DATA!AO102)+0.8 -> 11.8 | M23: to | N23: =MAX(DATA!AO98,DATA!AO99,DATA!AO100,DATA!AO101,DATA!AO102)+1 -> 17 | O23: per bale
B24: Bale Mover | C24: Pull Type - Round | D24: =MIN(DATA!AI108,DATA!AI109) -> 44 | E24: to | F24: =MAX(DATA!AI108,DATA!AI109) -> 77 | H24: =MIN(DATA!AN108,DATA!AN109) -> 179 | I24: to | J24: =MAX(DATA!AN108,DATA!AN109) -> 253
B25: Bale Mover | C25: SP - Small Square | D25: =DATA!AI113 -> 254 | H25: =DATA!AN113 -> 330
B26: Air Drills with independent openers | D26: =MIN(DATA!AI114,DATA!AI115,DATA!AI116) -> 245 | E26: to | F26: =MAX(DATA!AI114,DATA!AI115,DATA!AI116) -> 582 | H26: =MIN(DATA!AN114,DATA!AN116,DATA!AN116) -> 524 | I26: to | J26: =MAX(DATA!AN114,DATA!AN116,DATA!AN116) -> 933 | L26: =MIN(DATA!AO114,DATA!AO115,DATA!AO116) -> 31 | M26: to | N26: =MAX(DATA!AO114,DATA!AO115,DATA!AO116) -> 37 | O26: per acre
B27: Air Hoe Drills | D27: =MIN(DATA!AI117,DATA!AI118) -> 175 | E27: to | F27: =MAX(DATA!AI117,DATA!AI118) -> 436 | H27: =MIN(DATA!AN117,DATA!AN118) -> 454 | I27: to | J27: =MAX(DATA!AN117,DATA!AN118) -> 787 | L27: =MIN(DATA!AO117,DATA!AO118) -> 28 | M27: to | N27: =MAX(DATA!AO117,DATA!AO118) -> 33 | O27: per acre
B28: Air Disc Drills | D28: =MIN(DATA!AI119,DATA!AI120) -> 349 | E28: to | F28: =MAX(DATA!AI119,DATA!AI120) -> 553 | H28: =MIN(DATA!AN119,DATA!AN120) -> 668 | I28: to | J28: =MAX(DATA!AN119,DATA!AN120) -> 904 | L28: =MIN(DATA!AO119,DATA!AO120) -> 32 | M28: to | N28: =MAX(DATA!AO119,DATA!AO120) -> 35 | O28: per acre
B29: Air Seeders | D29: =MIN(DATA!AI121,DATA!AI122,DATA!AI122) -> 175 | E29: to | F29: =MAX(DATA!AI121,DATA!AI122,DATA!AI123) -> 436 | H29: =MIN(DATA!AN121,DATA!AN122,DATA!AN123) -> 454 | I29: to | J29: =MAX(DATA!AN121,DATA!AN122,DATA!AN123) -> 787 | L29: =MIN(DATA!AO121,DATA!AO122,DATA!AO123) -> 30 | M29: to | N29: =MAX(DATA!AO121,DATA!AO122,DATA!AO123) -> 35 | O29: per acre
B30: Row Crop Planters | D30: =MIN(DATA!AI124,DATA!AI125,DATA!AI126,DATA!AI127,DATA!AI128) -> 277 | E30: to | F30: =MAX(DATA!AI124,DATA!AI125,DATA!AI126,DATA!AI127,DATA!AI128) -> 684 | H30: =MIN(DATA!AN124,DATA!AN125,DATA!AN126,DATA!AN127,DATA!AN128) -> 412 | I30: to | J30: =MAX(DATA!AN124,DATA!AN125,DATA!AN126,DATA!AN127,DATA!AN128) -> 897 | L30: =MIN(DATA!AO124,DATA!AO125,DATA!AO126,DATA!AO127,DATA!AO128) -> 32 | M30: to | N30: =MAX(DATA!AO124,DATA!AO125,DATA!AO126,DATA!AO127,DATA!AO128) -> 37 | O30: per acre
B31: Cultivators | C31: Field, heavy duty | D31: =MIN(DATA!AI129,DATA!AI130,DATA!AI131,DATA!AI132,DATA!AI133,DATA!AI134) -> 41 | E31: to | F31: =MAX(DATA!AI129,DATA!AI130,DATA!AI131,DATA!AI132,DATA!AI133,DATA!AI134) -> 81 | H31: =MIN(DATA!AN129,DATA!AN130,DATA!AN131,DATA!AN132,DATA!AN133,DATA!AN134) -> 254 | I31: to | J31: =MAX(DATA!AN129,DATA!AN130,DATA!AN131,DATA!AN132,DATA!AN133,DATA!AN134) -> 432 | L31: =MIN(DATA!AO129,DATA!AO131,DATA!AO131,DATA!AO132,DATA!AO133,DATA!AO134) -> 14 | M31: to | N31: =MAX(DATA!AO129,DATA!AO131,DATA!AO131,DATA!AO132,DATA!AO133,DATA!AO134) -> 22 | O31: per acre
B32: Harrows | C32: Mid, Heavy | D32: =MIN(DATA!AI135,DATA!AI136) -> 90 | E32: to | F32: =MAX(DATA!AI135,DATA!AI136) -> 101 | H32: =MIN(DATA!AN135,DATA!AN136) -> 369 | I32: to | J32: =MAX(DATA!AN135,DATA!AN136) -> 452 | L32: =MIN(DATA!AO135,DATA!AO136) -> 7.25 | M32: to | N32: =MAX(DATA!AO135,DATA!AO136) -> 8.75 | O32: per acre
B33: Harrows | C33: Packers | D33: =DATA!AI137 -> 15 | H33: =DATA!AN137 -> 191 | L33: =DATA!AO137 -> 6 | O33: per acre
B34: Vertical Tillage Tools | C34: Compact, High Speed | D34: =MIN(DATA!AI138,DATA!AI139) -> 105 | E34: to | F34: =MAX(DATA!AI138,DATA!AI139) -> 158 | H34: =MIN(DATA!AN138,DATA!AN139) -> 384 | I34: to | J34: =MAX(DATA!AN138,DATA!AN139) -> 509 | L34: =MIN(DATA!AO138,DATA!AO139) -> 16 | M34: to | N34: =MAX(DATA!AO138,DATA!AO139) -> 24 | O34: per acre
B35: Vertical Tillage Tools | C35: Heavy Duty | D35: =MIN(DATA!AI140,DATA!AI141) -> 153 | E35: to | F35: =MAX(DATA!AI140,DATA!AI141) -> 263 | H35: =MIN(DATA!AN140,DATA!AN141) -> 472 | I35: to | J35: =MAX(DATA!AN140,DATA!AN141) -> 614 | L35: =MIN(DATA!AO140,DATA!AO141) -> 24 | M35: to | N35: =MAX(DATA!AO140,DATA!AO141) -> 34 | O35: per acre
B36: Land Roller | C36: Multi Section | D36: =MIN(DATA!AI143,DATA!AI144) -> 75 | E36: to | F36: =MAX(DATA!AI143,DATA!AI144) -> 110 | H36: =MIN(DATA!AN143,DATA!AN144) -> 288 | I36: to | J36: =MAX(DATA!AN143,DATA!AN144) -> 389 | L36: =MIN(DATA!AO143,DATA!AO144) -> 10 | M36: to | N36: =MAX(DATA!AO143,DATA!AO144) -> 11 | O36: per acre
B37: Land Scraper | D37: =MIN(DATA!AI145,DATA!AI146,DATA!AI147,DATA!AI148,DATA!AI149) -> 136 | E37: to | F37: =MAX(DATA!AI145,DATA!AI146,DATA!AI147,DATA!AI148,DATA!AI149) -> 271 | H37: =MIN(DATA!AN145,DATA!AN146,DATA!AN147,DATA!AN148,DATA!AN149) -> 415 | I37: to | J37: =MAX(DATA!AN145,DATA!AN146,DATA!AN147,DATA!AN148,DATA!AN149) -> 622
B38: Sprayers | C38: High Clearance | D38: =MIN(DATA!AI165,DATA!AI166,DATA!AI167,DATA!AI168) -> 496 | E38: to | F38: =MAX(DATA!AI165,DATA!AI166,DATA!AI167,DATA!AI168) -> 756 | H38: =MIN(DATA!AN165,DATA!AN166,DATA!AN167,DATA!AN168) -> 593 | I38: to | J38: =MAX(DATA!AN165,DATA!AN166,DATA!AN167,DATA!AN168) -> 900 | L38: =MIN(DATA!AO165,DATA!AO166,DATA!AO167,DATA!AO168)+'Sprayer Water Calc'!I26 -> 10 | M38: to | N38: =MAX(DATA!AO165,DATA!AO166,DATA!AO167,DATA!AO168)+'Sprayer Water Calc'!I26 -> 10.75 | O38: per acre
B39: Granular Applicator | C39: Spin | D39: =DATA!AI154 -> 37 | H39: =DATA!AN154 -> 153 | L39: =DATA!AO154 -> 8 | O39: per acre
B40: Granular Applicator | C40: Boom | D40: =DATA!AI155 -> 182 | H40: =DATA!AN155 -> 395 | L40: =DATA!AO155 -> 11 | O40: per acre
B41: Post Pounder | D41: =MIN(DATA!AI169,DATA!AI170) -> 23 | E41: to | F41: =MAX(DATA!AI169,DATA!AI170) -> 54 | H41: =MIN(DATA!AN169,DATA!AN170) -> 139 | I41: to | J41: =MAX(DATA!AN169,DATA!AN170) -> 170
B42: Vertical Feed Mixers | D42: =MIN(DATA!AI179,DATA!AI180,DATA!AI181) -> 24 | E42: to | F42: =MAX(DATA!AI179,DATA!AI180,DATA!AI181) -> 55 | H42: =MIN(DATA!AN179,DATA!AN180,DATA!AN181) -> 159 | I42: to | J42: =MAX(DATA!AN179,DATA!AN180,DATA!AN181) -> 268
B43: Grinder Mixer | D43: =MIN(DATA!AI183,DATA!AI184) -> 41 | E43: to | F43: =MAX(DATA!AI183,DATA!AI184) -> 52 | H43: =MIN(DATA!AN183,DATA!AN184) -> 176 | I43: to | J43: =MAX(DATA!AN183,DATA!AN184) -> 228
B44: Feed Mixer | D44: =DATA!AI182 -> 38 | H44: =DATA!AN182 -> 173
B45: Bale Processor | D45: =MIN(DATA!AI185,DATA!AI186) -> 23 | E45: to | F45: =MAX(DATA!AI185,DATA!AI186) -> 41 | H45: =MIN(DATA!AN185,DATA!AN186) -> 158 | I45: to | J45: =MAX(DATA!AN185,DATA!AN186) -> 217
B46: Manure Spreaders | D46: =MIN(DATA!AI189,DATA!AI190,DATA!AI1891,DATA!AI192,DATA!AI193,DATA!AI194,DATA!AI195,DATA!AI196) -> 59 | E46: to | F46: =MAX(DATA!AI189,DATA!AI190,DATA!AI1891,DATA!AI192,DATA!AI193,DATA!AI194,DATA!AI195,DATA!AI196) -> 159 | H46: =MIN(DATA!AN189,DATA!AN190,DATA!AN191,DATA!AN192,DATA!AN193,DATA!AN194,DATA!AN195,DATA!AN196) -> 194 | I46: to | J46: =MAX(DATA!AN189,DATA!AN190,DATA!AN191,DATA!AN192,DATA!AN193,DATA!AN194,DATA!AN195,DATA!AN196) -> 335
B48: ="Hauling grain from field to yard estimated at "&TEXT('Appendix A'!G41,"$#.##")&" per bushel for first 3 miles plus "&TEXT(ROUND('Appendix A'!H41,2)-ROUND('Appendix A'!G41,2),"$#.##")&" per bushel for each additional mile." -> Hauling grain from field to yard estimated at $.35 per bushel for first 3 miles plus $.03 per bushel for each additional mile.
B49: Rental rates include value of equipment only. Custom rates include value of equipment, power unit (if required), fuel, and labour.
B50: * Exercise caution when using these average figures as they may not reflect actual situations. They should be used as a guideline only.

Sheet Power Units-2Wheel Drive (hidden)
A1: Power Units
A3: Two Wheel Drive Tractors
A4: Machine Size | B4: Purchase Price | C4: Litre / Hour | D4: Ownership Cost ($/hr) | E4: Repair & Maint. (R&M) Cost ($/hr) | F4: Margin on Ownership and R&M ($/hr) | G4: Rental Rate ($/hr) | H4: Fuel Cost ($/hr) | I4: Labour Cost ($/hr) | J4: Margin on Labour & Fuel ($/hr) | K4: Custom Rate ($/hr)
A8: =DATA!D6 -> 100-119 hp | B8: =DATA!F6 -> 155000 | C8: =DATA!AA6 -> 24 | D8: =DATA!AF6 -> 28.304342 | E8: =DATA!AG6 -> 11.935 | F8: =DATA!AH6 -> 6.0359013 | G8: =DATA!AI6 -> 46 | H8: =DATA!AJ6 -> 33.6 | I8: =DATA!AK6 -> 27 | J8: =DATA!AL6 -> 9.09 | K8: =DATA!AN6 -> 116
A10: =DATA!D7 -> 120+ hp | B10: =DATA!F7 -> 170000 | C10: =DATA!AA7 -> 28 | D10: =DATA!AF7 -> 31.04347187 | E10: =DATA!AG7 -> 13.09 | F10: =DATA!AH7 -> 6.620020781 | G10: =DATA!AI7 -> 51 | H10: =DATA!AJ7 -> 39.2 | I10: =DATA!AK7 -> 27 | J10: =DATA!AL7 -> 9.93 | K10: =DATA!AN7 -> 127
A12: ="Annual hours of use: "&DATA!Y6 -> Annual hours of use: 300
A13: Notes: Fuel type is diesel with a 75% load assumption. To calculate fuel consumption with alternative load, refer to Appendix E.
A14: Power rating represents PTO power.
A15: If tractor rating is given in net engine power, multiply by 0.88 to get PTO power.
A22: Front Wheel Assist Tractors
A23: Machine Size | B23: Purchase Price | C23: Litre / Hour | D23: Ownership Cost ($/hr) | E23: Repair & Maint. (R&M) Cost ($/hr) | F23: Margin on Ownership and R&M ($/hr) | G23: Rental Rate ($/hr) | H23: Fuel Cost ($/hr) | I23: Labour Cost ($/hr) | J23: Margin on Labour & Fuel ($/hr) | K23: Custom Rate ($/hr)
A26: Small
A27: =DATA!E8 -> (100-159 hp) | B27: =DATA!F8 -> 250000 | C27: =DATA!AA8 -> 26 | D27: =DATA!AF8 -> 38.72784994 | E27: =DATA!AG8 -> 15.16666667 | F27: =DATA!AH8 -> 8.084177491 | G27: =DATA!AI8 -> 62 | H27: =DATA!AJ8 -> 36.4 | I27: =DATA!AK8 -> 27 | J27: =DATA!AL8 -> 9.51 | K27: =DATA!AN8 -> 135
A29: Medium
A30: =DATA!E9 -> (160-224 hp) | B30: =DATA!F9 -> 350000 | C30: =DATA!AA9 -> 36 | D30: =DATA!AF9 -> 54.21898992 | E30: =DATA!AG9 -> 21.23333333 | F30: =DATA!AH9 -> 11.31784849 | G30: =DATA!AI9 -> 87 | H30: =DATA!AJ9 -> 50.4 | I30: =DATA!AK9 -> 27 | J30: =DATA!AL9 -> 11.61 | K30: =DATA!AN9 -> 176
A32: Large
A33: =DATA!E10 -> (225+ hp) | B33: =DATA!F10 -> 425000 | C33: =DATA!AA10 -> 48 | D33: =DATA!AF10 -> 65.8373449 | E33: =DATA!AG10 -> 25.78333333 | F33: =DATA!AH10 -> 13.74310174 | G33: =DATA!AI10 -> 105 | H33: =DATA!AJ10 -> 67.2 | I33: =DATA!AK10 -> 27 | J33: =DATA!AL10 -> 14.13 | K33: =DATA!AN10 -> 213
A35: ="Annual hours of use: "&DATA!Y9 -> Annual hours of use: 450
A36: Notes: Fuel type is diesel, with a 75% load assumption. To calculate fuel consumption with alternative load, refer to Appendix E.
A37: Power rating represents PTO power.
A38: If tractor rating is given in net engine power, multiply by 0.88 to get PTO power.

Sheet Power Units-4 Wheel Drive (hidden)
K1: Power Units
A3: Four-Wheel Drive Tractors
A4: Machine Size | B4: Purchase Price | C4: Litre / Hour | D4: Ownership Cost ($/hr) | E4: Repair & Maint. (R&M) Cost ($/hr) | F4: Margin on Ownership and R&M ($/hr) | G4: Rental Rate ($/hr) | H4: Fuel Cost ($/hr) | I4: Labour Cost ($/hr) | J4: Margin on Labour & Fuel ($/hr) | K4: Custom Rate ($/hr)
A7: Small
A8: =DATA!E11 -> (350-449 hp) | B8: =DATA!F11 -> 600000 | C8: =DATA!AA11 -> 63 | D8: =DATA!AF11 -> 92.94683986 | E8: =DATA!AG11 -> 35.06666667 | F8: =DATA!AH11 -> 19.20202598 | G8: =DATA!AI11 -> 147 | H8: =DATA!AJ11 -> 88.2 | I8: =DATA!AK11 -> 27 | J8: =DATA!AL11 -> 17.28 | K8: =DATA!AN11 -> 279
A10: Medium
A11: =DATA!E12 -> (450-549 hp) | B11: =DATA!F12 -> 675000 | C11: =DATA!AA12 -> 76 | D11: =DATA!AF12 -> 104.5651948 | E11: =DATA!AG12 -> 39.45 | F11: =DATA!AH12 -> 21.60227923 | G11: =DATA!AI12 -> 166 | H11: =DATA!AJ12 -> 106.4 | I11: =DATA!AK12 -> 27 | J11: =DATA!AL12 -> 20.01 | K11: =DATA!AN12 -> 319
A13: Large
A14: =DATA!E13 -> (550+ hp) | B14: =DATA!F13 -> 725000 | C14: =DATA!AA13 -> 88 | D14: =DATA!AF13 -> 112.3107648 | E14: =DATA!AG13 -> 42.37222222 | F14: =DATA!AH13 -> 23.20244806 | G14: =DATA!AI13 -> 178 | H14: =DATA!AJ13 -> 123.2 | I14: =DATA!AK13 -> 27 | J14: =DATA!AL13 -> 22.53 | K14: =DATA!AN13 -> 351
A16: ="Annual hours of use: "&DATA!Y11 -> Annual hours of use: 450
A17: Notes: Fuel type is diesel, with a 75% load assumption. To calculate fuel consumption with alternative load, refer to Appendix E.
A18: Power rating represents engine power.
A23: Tracked Tractors
A24: Machine Size | B24: Purchase Price | C24: Litre / Hour | D24: Ownership Cost ($/hr) | E24: Repair & Maint. (R&M) Cost ($/hr) | F24: Margin on Ownership and R&M ($/hr) | G24: Rental Rate ($/hr) | H24: Fuel Cost ($/hr) | I24: Labour Cost ($/hr) | J24: Margin on Labour & Fuel ($/hr) | K24: Custom Rate ($/hr)
A27: =DATA!D14 -> Two Track (350-449 hp)
B28: =DATA!F14 -> 575000 | C28: =DATA!AA14 -> 63 | D28: =DATA!AF14 -> 89.07405487 | E28: =DATA!AG14 -> 42.93333333 | F28: =DATA!AH14 -> 19.80110823 | G28: =DATA!AI14 -> 152 | H28: =DATA!AJ14 -> 88.2 | I28: =DATA!AK14 -> 27 | J28: =DATA!AL14 -> 17.28 | K28: =DATA!AN14 -> 284
A30: =DATA!D15 -> Two Track (450-570 hp)
B31: =DATA!F15 -> 700000 | C31: =DATA!AA15 -> 80 | D31: =DATA!AF15 -> 108.4379798 | E31: =DATA!AG15 -> 52.26666667 | F31: =DATA!AH15 -> 24.10569698 | G31: =DATA!AI15 -> 185 | H31: =DATA!AJ15 -> 112 | I31: =DATA!AK15 -> 27 | J31: =DATA!AL15 -> 20.85 | K31: =DATA!AN15 -> 345
A33: =DATA!D16 -> Four Track (400-474 hp)
B34: =DATA!F16 -> 700000 | C34: =DATA!AA16 -> 100 | D34: =DATA!AF16 -> 108.4379798 | E34: =DATA!AG16 -> 52.26666667 | F34: =DATA!AH16 -> 24.10569698 | G34: =DATA!AI16 -> 185 | H34: =DATA!AJ16 -> 140 | I34: =DATA!AK16 -> 27 | J34: =DATA!AL16 -> 25.05 | K34: =DATA!AN16 -> 377
A36: =DATA!D17 -> Four Track (475-549 hp)
B37: =DATA!F17 -> 775000 | C37: =DATA!AA17 -> 110 | D37: =DATA!AF17 -> 120.0563348 | E37: =DATA!AG17 -> 57.86666667 | F37: =DATA!AH17 -> 26.68845022 | G37: =DATA!AI17 -> 205 | H37: =DATA!AJ17 -> 154 | I37: =DATA!AK17 -> 27 | J37: =DATA!AL17 -> 27.15 | K37: =DATA!AN17 -> 413
A39: =DATA!D18 -> Four Track (550-650 hp)
B40: =DATA!F18 -> 850000 | C40: =DATA!AA18 -> 115 | D40: =DATA!AF18 -> 131.6746898 | E40: =DATA!AG18 -> 63.46666667 | F40: =DATA!AH18 -> 29.27120347 | G40: =DATA!AI18 -> 224 | H40: =DATA!AJ18 -> 161 | I40: =DATA!AK18 -> 27 | J40: =DATA!AL18 -> 28.2 | K40: =DATA!AN18 -> 440
A42: ="Annual hours of use: "&DATA!Y14 -> Annual hours of use: 450
A43: Notes: Fuel type is diesel, with a 75% load assumption. To calculate fuel consumption with alternative load, refer to Appendix E.
A44: Power rating represents engine power.

Sheet Harvesting Grain- Sp Combines (hidden)
A1: Harvesting Grain
A3: SP Combines
A4: Machine Size | B4: Purchase Price | C4: Litre / Hour | D4: Ownership Cost ($/hr) | E4: Repair & Maint. (R&M) Cost ($/hr) | F4: Margin on Ownership and R&M ($/hr) | G4: Rental Rate ($/hr)
A8: Class 5 Rotary | B8: =DATA!F19 -> 500000 | C8: =DATA!AA19 -> 43 | D8: =DATA!AF19 -> 169.2753247 | E8: =DATA!AG19 -> 52.6 | F8: =DATA!AH19 -> 33.28129871 | G8: =DATA!AI19 -> 255
A9: =DATA!E19 -> (≤ 300 hp)
A11: Class 6 Rotary | B11: =DATA!F20 -> 550000 | C11: =DATA!AA20 -> 51 | D11: =DATA!AF20 -> 186.2028572 | E11: =DATA!AG20 -> 57.86 | F11: =DATA!AH20 -> 36.60942858 | G11: =DATA!AI20 -> 281
A12: =DATA!E20 -> (301-360 hp)
A14: Class 7 Rotary | B14: =DATA!F21 -> 650000 | C14: =DATA!AA21 -> 55 | D14: =DATA!AF21 -> 220.0579222 | E14: =DATA!AG21 -> 68.38 | F14: =DATA!AH21 -> 43.26568832 | G14: =DATA!AI21 -> 332
A15: =DATA!E21 -> (361-420 hp)
A17: Class 8 Rotary | B17: =DATA!F22 -> 750000 | C17: =DATA!AA22 -> 71 | D17: =DATA!AF22 -> 253.9129871 | E17: =DATA!AG22 -> 78.9 | F17: =DATA!AH22 -> 49.92194807 | G17: =DATA!AI22 -> 383
A18: =DATA!E22 -> (421-500 hp)
A20: Class 9 Rotary | B20: =DATA!F23 -> 850000 | C20: =DATA!AA23 -> 82 | D20: =DATA!AF23 -> 287.7680521 | E20: =DATA!AG23 -> 89.42 | F20: =DATA!AH23 -> 56.57820781 | G20: =DATA!AI23 -> 434
A21: =DATA!E23 -> (501-560 hp)
A23: Class 10 Rotary | B23: =DATA!F24 -> 950000 | C23: =DATA!AA24 -> 90 | D23: =DATA!AF24 -> 321.623117 | E23: =DATA!AG24 -> 99.94 | F23: =DATA!AH24 -> 63.23446755 | G23: =DATA!AI24 -> 485
A24: =DATA!E24 -> (561+ hp)
A27: ="Rotary annual hours of use*: "&DATA!Y19 -> Rotary annual hours of use*: 250
A28: *Based on seperator annual hours of usage.
A29: Notes: Fuel type is diesel, with a 75% load assumption. To calculate fuel consumption with alternative load, refer to Appendix E.

Sheet Harvest Combine (2) (hidden)
H1: Harvesting Grain
A3: SP Combines (continued)
A4: Machine Size | B4: Purchase Price | C4: Fuel Cost ($/hr) | D4: Labour Cost ($/hr) | E4: Margin on Labour & Fuel ($/hr) | F4: Custom Rate ($/hr) | G4: Work Rate (acre/hr) | H4: Custom Rate ($/ac)
A8: Class 5 Rotary | B8: =DATA!F19 -> 500000 | C8: =DATA!AJ19 -> 60.2 | D8: =DATA!AK19 -> 27 | E8: =DATA!AL19 -> 13.08 | F8: =DATA!AN19 -> 355 | G8: =DATA!AD19 -> 8 | H8: =DATA!AO19 -> 44
A9: =DATA!E19 -> (≤ 300 hp)
A11: Class 6 Rotary | B11: =DATA!F20 -> 550000 | C11: =DATA!AJ20 -> 71.4 | D11: =DATA!AK20 -> 27 | E11: =DATA!AL20 -> 14.76 | F11: =DATA!AN20 -> 394 | G11: =DATA!AD20 -> 10 | H11: =DATA!AO20 -> 39
A12: =DATA!E20 -> (301-360 hp)
A14: Class 7 Rotary | B14: =DATA!F21 -> 650000 | C14: =DATA!AJ21 -> 77 | D14: =DATA!AK21 -> 27 | E14: =DATA!AL21 -> 15.6 | F14: =DATA!AN21 -> 452 | G14: =DATA!AD21 -> 12 | H14: =DATA!AO21 -> 38
A15: =DATA!E21 -> (361-420 hp)
A17: Class 8 Rotary | B17: =DATA!F22 -> 750000 | C17: =DATA!AJ22 -> 99.4 | D17: =DATA!AK22 -> 27 | E17: =DATA!AL22 -> 18.96 | F17: =DATA!AN22 -> 528 | G17: =DATA!AD22 -> 15 | H17: =DATA!AO22 -> 35
A18: =DATA!E22 -> (421-500 hp)
A20: Class 9 Rotary | B20: =DATA!F23 -> 850000 | C20: =DATA!AJ23 -> 114.8 | D20: =DATA!AK23 -> 27 | E20: =DATA!AL23 -> 21.27 | F20: =DATA!AN23 -> 597 | G20: =DATA!AD23 -> 17 | H20: =DATA!AO23 -> 35
A21: =DATA!E23 -> (501-560 hp)
A23: Class 10 Rotary | B23: =DATA!F24 -> 950000 | C23: =DATA!AJ24 -> 126 | D23: =DATA!AK24 -> 27 | E23: =DATA!AL24 -> 22.95 | F23: =DATA!AN24 -> 661 | G23: =DATA!AD24 -> 21 | H23: =DATA!AO24 -> 31
A24: =DATA!E24 -> (561+ hp)
A27: ="Rotary annual hours of use*: "&DATA!Y19 -> Rotary annual hours of use*: 250
A28: *Based on seperator annual hours of usage. Does not include header.
A29: Notes: Fuel type is diesel, with a 75% load assumption. To calculate fuel consumption with alternative load, refer to Appendix E.
A32: Calculation to determine the custom rate ($/acre) for a combine using a specific combine header:
A34: Custom Rate ($/acre) = Combine Custom Rate ($/hr) + Header Rental Rate ($/hr)
C35: Work Rate (acre/hr)
A37: Example: For a Class 8 rotary combine with a 35 ft flex auger header:
A39: Custom Rate ($/acre) = | B39: ='Harvesting Grain CombineHeaders'!B44 -> $528 + $35
B40: ='Harvesting Grain CombineHeaders'!B45 -> 15
A41: Custom Rate ($/acre) = | B41: ='Harvesting Grain CombineHeaders'!B46 -> $38/acre

Sheet Harvesting Grain CombineHeaders (hidden)
A1: Harvesting Grain
A3: Combine Headers
A4: Machine Size | B4: Purchase Price | D4: Ownership Cost ($/hr) | E4: Repair & Maint. (R&M) Cost ($/hr) | F4: Margin on Ownership and R&M ($/hr) | G4: Rental Rate ($/hr)
A7: Pickup Headers
A8: =DATA!E25 -> 15 FT | B8: =DATA!F25 -> 39000 | D8: =DATA!AF25 -> 8.546085198 | E8: =DATA!AG25 -> 2.4648 | F8: =DATA!AH25 -> 1.65163278 | G8: =DATA!AI25 -> 13
A9: Rigid Draper Headers
A10: =DATA!E26 -> 30 FT | B10: =DATA!F26 -> 110000 | D10: =DATA!AF26 -> 24.10434287 | E10: =DATA!AG26 -> 9.24 | F10: =DATA!AH26 -> 5.00165143 | G10: =DATA!AI26 -> 38
A11: =DATA!E27 -> 35 FT | B11: =DATA!F27 -> 125000 | D11: =DATA!AF27 -> 27.39129871 | E11: =DATA!AG27 -> 10.5 | F11: =DATA!AH27 -> 5.683694807 | G11: =DATA!AI27 -> 44
A12: =DATA!E28 -> 40 FT | B12: =DATA!F28 -> 140000 | D12: =DATA!AF28 -> 30.67825456 | E12: =DATA!AG28 -> 11.76 | F12: =DATA!AH28 -> 6.365738183 | G12: =DATA!AI28 -> 49
A13: Flex Auger Headers
A14: =DATA!E29 -> 25 FT | B14: =DATA!F29 -> 60000 | D14: =DATA!AF29 -> 16.73043117 | E14: =DATA!AG29 -> 6.312 | F14: =DATA!AH29 -> 3.456364676 | G14: =DATA!AI29 -> 26
A15: =DATA!E30 -> 30 FT | B15: =DATA!F30 -> 70000 | D15: =DATA!AF30 -> 19.51883637 | E15: =DATA!AG30 -> 7.364 | F15: =DATA!AH30 -> 4.032425456 | G15: =DATA!AI30 -> 31
A16: =DATA!E31 -> 35 FT | B16: =DATA!F31 -> 80000 | D16: =DATA!AF31 -> 22.30724157 | E16: =DATA!AG31 -> 8.416 | F16: =DATA!AH31 -> 4.608486235 | G16: =DATA!AI31 -> 35
A17: Flex Draper Headers
A18: =DATA!E32 -> 30 FT | B18: =DATA!F32 -> 125000 | D18: =DATA!AF32 -> 34.85506495 | E18: =DATA!AG32 -> 14.7 | F18: =DATA!AH32 -> 7.433259742 | G18: =DATA!AI32 -> 57
A19: =DATA!E33 -> 35 FT | B19: =DATA!F33 -> 140000 | D19: =DATA!AF33 -> 39.03767274 | E19: =DATA!AG33 -> 16.464 | F19: =DATA!AH33 -> 8.325250911 | G19: =DATA!AI33 -> 64
A20: =DATA!E34 -> 40 FT | B20: =DATA!F34 -> 150000 | D20: =DATA!AF34 -> 41.82607794 | E20: =DATA!AG34 -> 17.64 | F20: =DATA!AH34 -> 8.919911691 | G20: =DATA!AI34 -> 68
A21: =DATA!E35 -> 45 FT | B21: =DATA!F35 -> 160000 | D21: =DATA!AF35 -> 44.61448313 | E21: =DATA!AG35 -> 18.816 | F21: =DATA!AH35 -> 9.51457247 | G21: =DATA!AI35 -> 73
A22: =DATA!E36 -> 50 FT | B22: =DATA!F36 -> 185000 | D22: =DATA!AF36 -> 51.58549612 | E22: =DATA!AG36 -> 21.756 | F22: =DATA!AH36 -> 11.00122442 | G22: =DATA!AI36 -> 84
A23: Corn Header
A24: =DATA!D37 -> Corn (6 row, 30" spacing) | B24: =DATA!F37 -> 85000 | D24: =DATA!AF37 -> 59.25361041 | E24: =DATA!AG37 -> 24.99 | F24: =DATA!AH37 -> 12.63654156 | G24: =DATA!AI37 -> 97
A25: =DATA!D38 -> Corn (8 row, 30" spacing) | B25: =DATA!F38 -> 115000 | D25: =DATA!AF38 -> 80.16664938 | E25: =DATA!AG38 -> 33.81 | F25: =DATA!AH38 -> 17.09649741 | G25: =DATA!AI38 -> 131
A26: =DATA!D39 -> Corn (12 row folding, 30" spacing) | B26: =DATA!F39 -> 180000 | D26: =DATA!AF39 -> 125.4782338 | E26: =DATA!AG39 -> 52.92 | F26: =DATA!AH39 -> 26.75973507 | G26: =DATA!AI39 -> 205
A27: =DATA!D40 -> Corn (16-18 row folding , 30" spacing) | B27: =DATA!F40 -> 245000 | D27: =DATA!AF40 -> 170.7898182 | E27: =DATA!AG40 -> 72.03 | F27: =DATA!AH40 -> 36.42297274 | G27: =DATA!AI40 -> 279
A29: ="Pickup header annual hours of use: "&DATA!Y25 -> Pickup header annual hours of use: 250
A30: ="Rigid draper header annual hours of use: "&DATA!Y26 -> Rigid draper header annual hours of use: 250
A31: ="Flex auger header annual hours of use: "&DATA!Y29 -> Flex auger header annual hours of use: 250
A32: ="Flex draper header annual hours of use: "&DATA!Y31 -> Flex draper header annual hours of use: 250
A33: ="Corn header annual hours of use: "&DATA!Y37 -> Corn header annual hours of use: 100
A34: Rigid, flex, and draper headers include pickup reels.
A37: Calculation to determine the custom rate ($/acre) for a combine using a specific combine header:
A39: Custom Rate ($/acre) = Combine Custom Rate ($/hr) + Header Rental Rate ($/hr)
C40: Work Rate (acre/hr)
A42: Example: For a Class 8 rotary combine with a 35 ft flex auger header:
A44: Custom Rate ($/acre) = | B44: ="$"&DATA!AN22&" + $"&DATA!AI31 -> $528 + $35
B45: ='Harvest Combine (2)'!G17 -> 15
A46: Custom Rate ($/acre) = | B46: ="$"&ROUND((DATA!AN22+DATA!AI31)/'Harvest Combine (2)'!G17,0)&"/acre" -> $38/acre

Sheet Harvesting Grain Swathers (hidden)
H1: Harvesting Grain
A3: Swathers
A4: Machine Size | B4: Purchase Price | C4: Litre / Hour | D4: Ownership Cost ($/hr) | E4: Repair & Maint. (R&M) Cost ($/hr) | F4: Margin on Ownership and R&M ($/hr) | G4: Rental Rate ($/hr) | H4: Fuel Cost ($/hr)
A7: SP Swathers - Draper Header
A8: =DATA!D41 -> 25 FT | B8: =DATA!F41 -> 225000 | C8: =DATA!AA41 -> 22 | D8: =DATA!AF41 -> 78.42389613 | E8: =DATA!AG41 -> 23.625 | F8: =DATA!AH41 -> 15.30733442 | G8: =DATA!AI41 -> 117 | H8: =DATA!AJ41 -> 30.8
A9: =DATA!D42 -> 30 FT | B9: =DATA!F42 -> 265000 | C9: =DATA!AA42 -> 32 | D9: =DATA!AF42 -> 92.36592211 | E9: =DATA!AG42 -> 27.825 | F9: =DATA!AH42 -> 18.02863832 | G9: =DATA!AI42 -> 138 | H9: =DATA!AJ42 -> 44.8
A10: =DATA!D43 -> 35 FT | B10: =DATA!F43 -> 295000 | C10: =DATA!AA43 -> 36 | D10: =DATA!AF43 -> 102.8224416 | E10: =DATA!AG43 -> 30.975 | F10: =DATA!AH43 -> 20.06961624 | G10: =DATA!AI43 -> 154 | H10: =DATA!AJ43 -> 50.4
A11: =DATA!D44 -> 40 FT | B11: =DATA!F44 -> 300000 | C11: =DATA!AA44 -> 36 | D11: =DATA!AF44 -> 104.5651948 | E11: =DATA!AG44 -> 31.5 | F11: =DATA!AH44 -> 20.40977923 | G11: =DATA!AI44 -> 156 | H11: =DATA!AJ44 -> 50.4
A16: Swathers (continued)
A17: Machine Size | B17: Purchase Price | C17: Litre / Hour | D17: Labour Cost ($/hr) | E17: Margin on Labour & Fuel ($/hr) | F17: Custom Rate ($/hr) | G17: Work Rate (acre/hr) | H17: Custom Rate ($/acre)
A20: SP Swathers - Draper Header
A21: =A8 -> 25 FT | B21: =DATA!F41 -> 225000 | C21: =DATA!AA41 -> 22 | D21: =DATA!AK41 -> 27 | E21: =DATA!AL41 -> 8.67 | F21: =DATA!AN41 -> 183 | G21: =DATA!AD41 -> 13 | H21: =DATA!AO41 -> 14
A22: =A9 -> 30 FT | B22: =DATA!F42 -> 265000 | C22: =DATA!AA42 -> 32 | D22: =DATA!AK42 -> 27 | E22: =DATA!AL42 -> 10.77 | F22: =DATA!AN42 -> 221 | G22: =DATA!AD42 -> 16 | H22: =DATA!AO42 -> 14
A23: =A10 -> 35 FT | B23: =DATA!F43 -> 295000 | C23: =DATA!AA43 -> 36 | D23: =DATA!AK43 -> 27 | E23: =DATA!AL43 -> 11.61 | F23: =DATA!AN43 -> 243 | G23: =DATA!AD43 -> 19 | H23: =DATA!AO43 -> 13
A24: =A11 -> 40 FT | B24: =DATA!F44 -> 300000 | C24: =DATA!AA44 -> 36 | D24: =DATA!AK44 -> 27 | E24: =DATA!AL44 -> 11.61 | F24: =DATA!AN44 -> 245 | G24: =DATA!AD44 -> 21 | H24: =DATA!AO44 -> 12
A27: ="Annual hours of use: "&DATA!Y41 -> Annual hours of use: 200
A28: Notes: Fuel type is diesel with a 75% load assumption. To calculate fuel consumption with alternative load, refer to Appendix E.
A29: Fuel efficiency is based on 126 hp (18-22' swather), 126 hp (25' swather), 190 hp (30' swather), and 226 hp (35'+ swather).
A32: Grain Cart
A33: Machine Size | B33: Purchase Price | C33: Ownership Cost ($/hr) | D33: Repair & Maint. (R&M) Cost ($/hr) | E33: Margin on Ownership and R&M ($/hr) | F33: Rental Rate ($/hr) | G33: Power Unit Cost ($/hr) | H33: Custom Rate ($/hr)
A36: Small
A37: =DATA!E45 -> 1,000 bu | B37: =DATA!F45 -> 100000 | C37: =DATA!AF45 -> 21.91303897 | D37: =DATA!AG45 -> 8.4 | E37: =DATA!AH45 -> 4.546955845 | F37: =DATA!AI45 -> 35 | G37: =DATA!AM45 -> 279 | H37: =DATA!AN45 -> 314
G38: (350 hp)
A39: Medium
A40: =DATA!E46 -> 1,400 bu | B40: =DATA!F46 -> 220000 | C40: =DATA!AF46 -> 48.20868573 | D40: =DATA!AG46 -> 18.48 | E40: =DATA!AH46 -> 10.00330286 | F40: =DATA!AI46 -> 77 | G40: =DATA!AM46 -> 319 | H40: =DATA!AN46 -> 396
G41: (450 hp)
A42: Large
A43: =DATA!E47 -> 2,000 bu | B43: =DATA!F47 -> 310000 | C43: =DATA!AF47 -> 67.9304208 | D43: =DATA!AG47 -> 26.04 | E43: =DATA!AH47 -> 14.09556312 | F43: =DATA!AI47 -> 108 | G43: =DATA!AM47 -> 351 | H43: =DATA!AN47 -> 459
G44: (550+ hp)
A46: ="Annual hours of use: "&DATA!Y45 -> Annual hours of use: 250
A47: Notes: Power unit cost includes fuel, labour, and margin.
A48: The power unit for the medium large grain cart is a 4WD tractor.
A49: =" To obtain a total cost for grain cart, power unit, and fuel (but not labour), subtract $"&TEXT(DATA!AK44+(Labour*Margin_percentage),"#.00")&" from the Custom Rate ($"&Labour&"/hr" -> To obtain a total cost for grain cart, power unit, and fuel (but not labour), subtract $31.05 from the Custom Rate ($27/hr
A50: =" labour plus "&Margin_percentage*100&"% margin)." -> labour plus 15% margin).

Sheet Harvesting Grain Power Auger (hidden)
A1: Harvesting Grain
A3: Powered Auger
A4: Machine Size | D4: Purchase Price | E4: Ownership Cost ($/hr) | F4: Repair & Maint. (R&M) Cost ($/hr) | G4: Margin on Ownership and R&M ($/hr) | I4: Rental Rate ($/hr)
A7: =DATA!D48 -> 8 in. (30-39 FT, 20 hp engine) | D7: =DATA!F48 -> 23000 | E7: =DATA!AF48 -> 12.59999741 | F7: =DATA!AG48 -> 3.634 | G7: =DATA!AH48 -> 2.435099611 | I7: =DATA!AI48 -> 19
A8: =DATA!D49 -> 8 in. (40-49 FT, 20 hp engine) | D8: =DATA!F49 -> 24000 | E8: =DATA!AF49 -> 13.14782338 | F8: =DATA!AG49 -> 3.792 | G8: =DATA!AH49 -> 2.540973507 | I8: =DATA!AI49 -> 19
A9: =DATA!D50 -> 8 in. (50-59 FT, 25 hp engine) | D9: =DATA!F50 -> 25000 | E9: =DATA!AF50 -> 13.69564936 | F9: =DATA!AG50 -> 3.95 | G9: =DATA!AH50 -> 2.646847403 | I9: =DATA!AI50 -> 20
A10: =DATA!D51 -> 10 in. (40-49 FT, 35 hp engine) | D10: =DATA!F51 -> 27000 | E10: =DATA!AF51 -> 14.7913013 | F10: =DATA!AG51 -> 4.266 | G10: =DATA!AH51 -> 2.858595196 | I10: =DATA!AI51 -> 22
A11: =DATA!D52 -> 10 in. (50-59 FT, 38 hp engine) | D11: =DATA!F52 -> 31000 | E11: =DATA!AF52 -> 16.9826052 | F11: =DATA!AG52 -> 4.898 | G11: =DATA!AH52 -> 3.28209078 | I11: =DATA!AI52 -> 25
A12: =DATA!D53 -> 12-13 in. u trough (39-40 FT, 38-50 hp engine) | D12: =DATA!F53 -> 38000 | E12: =DATA!AF53 -> 20.81738702 | F12: =DATA!AG53 -> 6.004 | G12: =DATA!AH53 -> 4.023208053 | I12: =DATA!AI53 -> 31
A14: ="Annual hours of use: "&DATA!Y48 -> Annual hours of use: 100
A15: Notes: Value of engine is included in rental rate. Rate does not include fuel or maintenance costs for engine.
A17: Grain Auger (PTO)
A18: Machine Size | B18: Purchase Price | D18: Ownership Cost ($/hr) | E18: Repair & Maint. (R&M) Cost ($/hr) | F18: Margin on Ownership and R&M ($/hr) | G18: Rental Rate ($/hr) | H18: Power Unit Cost ($/hr) | I18: Custom Rate ($/hr)
A21: =DATA!E54 -> 8" 30-69 FT 2,700-3,200 bu/hr | B21: =DATA!F54 -> 12000 | D21: =DATA!AF54 -> 6.573911691 | E21: =DATA!AG54 -> 1.26 | F21: =DATA!AH54 -> 1.175086754 | G21: =DATA!AI54 -> 9 | H21: =DATA!AM54 -> 135 | I21: =DATA!AN54 -> 144
H22: (50 hp)
A23: =DATA!E55 -> 10" 40-89 FT 5,400 bu/hr | B23: =DATA!F55 -> 25000 | D23: =DATA!AF55 -> 13.69564936 | E23: =DATA!AG55 -> 2.625 | F23: =DATA!AH55 -> 2.448097403 | G23: =DATA!AI55 -> 19 | H23: =DATA!AM55 -> 135 | I23: =DATA!AN55 -> 154
H24: (75 hp)
A25: =DATA!E56 -> 13" 70-100 FT 9,700 bu/hr | B25: =DATA!F56 -> 55000 | D25: =DATA!AF56 -> 30.13042858 | E25: =DATA!AG56 -> 5.775 | F25: =DATA!AH56 -> 5.385814287 | G25: =DATA!AI56 -> 41 | H25: =DATA!AM56 -> 135 | I25: =DATA!AN56 -> 176
H26: (100 hp)
A27: =DATA!E57 -> 16" 80-100 FT 21,000 bu/hr | B27: =DATA!F57 -> 90000 | D27: =DATA!AF57 -> 49.30433768 | E27: =DATA!AG57 -> 9.45 | F27: =DATA!AH57 -> 8.813150652 | G27: =DATA!AI57 -> 68 | H27: =DATA!AM57 -> 176 | I27: =DATA!AN57 -> 244
H28: (200 hp)
A29: =DATA!E58 -> 16" 100+ FT 21,000 bu/hr | B29: =DATA!F58 -> 125000 | D29: =DATA!AF58 -> 68.47824678 | E29: =DATA!AG58 -> 13.125 | F29: =DATA!AH58 -> 12.24048702 | G29: =DATA!AI58 -> 94 | H29: =DATA!AM58 -> 176 | I29: =DATA!AN58 -> 270
H30: (200 hp)
A31: ="Annual hours of use: "&DATA!Y54 -> Annual hours of use: 100
A32: Notes: The power units for all PTO augers are front wheel assist tractors. Note that the smallest front wheel assist tractor available in this guide is 100 hp, so power unit cost for equipment that requires a smaller power unit may be over-estimated.
A34: ="Power unit cost includes fuel, labour, and margin. To obtain a total cost for auger, power unit, and fuel (but not labour), subtract $"&TEXT(Labour+(Labour*Margin_percentage),"#.00")&" from the Custom Rate ($"&Labour&"/hr labour plus "&Margin_percentage*100&"% margin)." -> Power unit cost includes fuel, labour, and margin. To obtain a total cost for auger, power unit, and fuel (but not labour), subtract $31.05 from the Custom Rate ($27/hr labour plus 15% margin).
A37: Grain Vac
A38: Machine Size | B38: Purchase Price | D38: Ownership Cost ($/hr) | E38: Repair & Maint. (R&M) Cost ($/hr) | F38: Margin on Ownership and R&M ($/hr) | G38: Rental Rate ($/hr) | H38: Power Unit Cost ($/hr) | I38: Custom Rate ($/hr)
A41: =DATA!E72 -> 2,400-5,000 bu/hr | B41: =DATA!F72 -> 45000 | D41: =DATA!AF72 -> 62.73911691 | E41: =DATA!AG72 -> 18.9 | F41: =DATA!AH72 -> 12.24586754 | G41: =DATA!AI72 -> 94 | H41: =DATA!AM72 -> 116 | I41: =DATA!AN72 -> 210
H42: (70 hp)
A43: =DATA!E73 -> 6,000-10,000 bu/hr | B43: =DATA!F73 -> 65000 | D43: =DATA!AF73 -> 90.62316886 | E43: =DATA!AG73 -> 27.3 | F43: =DATA!AH73 -> 17.68847533 | G43: =DATA!AI73 -> 136 | H43: =DATA!AM73 -> 127 | I43: =DATA!AN73 -> 263
H44: (120 hp)
A45: ="Annual hours of use: "&DATA!Y72 -> Annual hours of use: 50
A46: Notes: The power units for all grain vacs are two-wheel drive tractors. Note that the smallest two-wheel drive tractor available in this guide is 100 hp, so power unit cost for equipment that requires a smaller power unit may be over-estimated.
A48: ="Power unit cost includes fuel, labour, and margin. To obtain a total cost for auger, power unit, and fuel (but not labour), subtract $"&TEXT(Labour+(Labour*Margin_percentage),"#.00")&" from the Custom Rate ($"&Labour&"/hr labour plus "&Margin_percentage*100&"% margin)." -> Power unit cost includes fuel, labour, and margin. To obtain a total cost for auger, power unit, and fuel (but not labour), subtract $31.05 from the Custom Rate ($27/hr labour plus 15% margin).

Sheet Harvesting Hay- SP Forage (hidden)
K1: Harvesting Hay
A3: SP Forage Harvester
A4: Machine Size | B4: Purchase Price | C4: Litre / Hour | D4: Ownership Cost ($/hr) | E4: Repair & Maint. (R&M) Cost ($/hr) | F4: Margin on Ownership and R&M ($/hr) | G4: Rental Rate ($/hr) | H4: Fuel Cost ($/hr) | I4: Labour Cost ($/hr) | J4: Margin on Labour & Fuel ($/hr) | K4: Custom Rate ($/hr)
A7: Small
A8: =DATA!E74 -> 400-599 hp | B8: =DATA!F74 -> 525000 | C8: =AVERAGE(73,85) -> 79 | D8: =DATA!AF74 -> 130.6793182 | E8: =DATA!AG74 -> 110.25 | F8: =DATA!AH74 -> 36.13939773 | G8: =DATA!AI74 -> 277 | H8: =DATA!AJ74 -> 110.6 | I8: =DATA!AK74 -> 27 | J8: =DATA!AL74 -> 20.64 | K8: =DATA!AN74 -> 435
A10: Medium
A11: =DATA!E75 -> 600-799 hp | B11: =DATA!F75 -> 675000 | C11: =DATA!AA75 -> 103 | D11: =DATA!AF75 -> 168.0162663 | E11: =DATA!AG75 -> 141.75 | F11: =DATA!AH75 -> 46.46493994 | G11: =DATA!AI75 -> 356 | H11: =DATA!AJ75 -> 144.2 | I11: =DATA!AK75 -> 27 | J11: =DATA!AL75 -> 25.68 | K11: =DATA!AN75 -> 553
A13: Large
A14: =DATA!E76 -> 800-899 hp | B14: =DATA!F76 -> 750000 | C14: =DATA!AA76 -> 121 | D14: =DATA!AF76 -> 186.6847403 | E14: =DATA!AG76 -> 157.5 | F14: =DATA!AH76 -> 51.62771105 | G14: =DATA!AI76 -> 396 | H14: =DATA!AJ76 -> 169.4 | I14: =DATA!AK76 -> 27 | J14: =DATA!AL76 -> 29.46 | K14: =DATA!AN76 -> 622
A16: ="Annual hours of use: "&DATA!Y74 -> Annual hours of use: 400
A17: Notes: Fuel type is diesel, with a 75% load assumption. To calculate fuel consumption with alternative load, refer to Appendix E.
A20: Headers for SP Forage Harvester
A21: Machine Size | C21: Purchase Price | E21: Ownership Cost ($/hr) | F21: Repair & Maint. (R&M) Cost ($/hr) | G21: Margin on Ownership and R&M ($/hr) | I21: Rental Rate ($/acre) | J21: Work Rate (acre/hr) | K21: Rental Rate ($/hr)
A24: Windrow Pickup, | C24: =DATA!F77 -> 60000 | E24: =DATA!AF77 -> 14.93477923 | F24: =DATA!AG77 -> 12.6 | G24: =DATA!AH77 -> 4.130216884 | I24: =DATA!AQ77 -> 2 | J24: =DATA!AD77 -> 17 | K24: =DATA!AI77 -> 32
A25: =DATA!E77 -> 12-17 FT
A26: =DATA!D78 -> Corn (14-20 FT width) | C26: =DATA!F78 -> 175000 | E26: =DATA!AF78 -> 43.55977274 | F26: =DATA!AG78 -> 36.75 | G26: =DATA!AH78 -> 12.04646591 | I26: =DATA!AQ78 -> 10 | J26: =DATA!AD78 -> 9 | K26: =DATA!AI78 -> 92
A28: =DATA!D79 -> Corn (21-30 FT width) | C28: =DATA!F79 -> 225000 | E28: =DATA!AF79 -> 56.0054221 | F28: =DATA!AG79 -> 47.25 | G28: =DATA!AH79 -> 15.48831331 | I28: =DATA!AQ79 -> 9.25 | J28: =DATA!AD79 -> 13 | K28: =DATA!AI79 -> 119
A30: ="Annual hours of use: "&DATA!Y77 -> Annual hours of use: 400
A32: Calculation to determine the custom rate ($/acre) for an SP or PT forage harvester using a specific header:
A34: Custom Rate ($/acre) = Forage Harvester Custom Rate ($/hr) + Header Rental Rate ($/hr)
C35: Work Rate (acre/hr)
A37: Example: For a 700 hp SP Forage Harvester with a corn header:
B39: Custom Rate ($/acre) = | C39: ="$"&K11&" + $"&K26 -> $553 + $92
C40: =J26 -> 9
B41: = | C41: ="$"&ROUND((K11+K26)/J26,0)&" /acre" -> $72 /acre
A44: Hay Rakes
A45: Machine Size | B45: Purchase Price | D45: Ownership Cost ($/hr) | E45: Repair & Maint. (R&M) Cost ($/hr) | F45: Margin on Ownership and R&M ($/hr) | G45: Rental Rate ($/hr) | H45: Power Unit Cost ($/hr) | I45: Custom Rate ($/hr) | J45: Work Rate (acre/hr) | K45: Custom Rate ($/acre)
A49: =DATA!E95 -> 16-20 FT bar | B49: =DATA!F95 -> 15000 | D49: =DATA!AF95 -> 16.43477923 | E49: =DATA!AG95 -> 6.3 | F49: =DATA!AH95 -> 3.410216884 | G49: =DATA!AI95 -> 26 | H49: =DATA!AM95 -> 116 | I49: =DATA!AN95 -> 142 | J49: =DATA!AD95 -> 10 | K49: =DATA!AO95 -> 14
H50: (50 hp)
A52: =DATA!E96 -> 21-30 FT wheel | B52: =DATA!F96 -> 30000 | D52: =DATA!AF96 -> 32.86955845 | E52: =DATA!AG96 -> 12.6 | F52: =DATA!AH96 -> 6.820433768 | G52: =DATA!AI96 -> 52 | H52: =DATA!AM96 -> 116 | I52: =DATA!AN96 -> 168 | J52: =DATA!AD96 -> 13 | K52: =DATA!AO96 -> 13
H53: (50 hp)
A55: =DATA!E97 -> 31-40 FT wheel | B55: =DATA!F97 -> 45000 | D55: =DATA!AF97 -> 49.30433768 | E55: =DATA!AG97 -> 18.9 | F55: =DATA!AH97 -> 10.23065065 | G55: =DATA!AI97 -> 78 | H55: =DATA!AM97 -> 116 | I55: =DATA!AN97 -> 194 | J55: =DATA!AD97 -> 20 | K55: =DATA!AO97 -> 9.75
H56: (50 hp)
A57: ="Annual hours of use: "&DATA!Y95 -> Annual hours of use: 50
A58: Notes: Power unit cost includes fuel, labour and margin for two wheel drive tractor.

Sheet Harvesting Hay SP Mower (hidden)
A1: Harvesting Hay
A3: SP Mower/Conditioners
A4: Machine Size | D4: Purchase Price | E4: Litre / Hour | F4: Ownership Cost ($/hr) | G4: Repair & Maint. (R&M) Cost ($/hr) | H4: Margin on Ownership and R&M ($/hr) | I4: Rental Rate ($/hr) | J4: Fuel Cost ($/hr)
A7: =DATA!D87 -> Disc Mower Conditioner (13-19 FT) | D7: =DATA!F87 -> 250000 | E7: =DATA!AA87 -> 36 | F7: =DATA!AF87 -> 116.1835498 | G7: =DATA!AG87 -> 56 | H7: =DATA!AH87 -> 25.82753247 | I7: =DATA!AI87 -> 198 | J7: =DATA!AJ87 -> 50.4
A8: =DATA!D88 -> Disc Mower Conditioner (30 FT) | D8: =DATA!F88 -> 450000 | E8: =DATA!AA88 -> 64 | F8: =DATA!AF88 -> 209.1303897 | G8: =DATA!AG88 -> 100.8 | H8: =DATA!AH88 -> 46.48955845 | I8: =DATA!AI88 -> 356 | J8: =DATA!AJ88 -> 89.6
A9: =DATA!D89 -> Sickle Mower Conditioner (14-18 FT) | D9: =DATA!F89 -> 225000 | E9: =DATA!AA89 -> 32 | F9: =DATA!AF89 -> 104.5651948 | G9: =DATA!AG89 -> 50.4 | H9: =DATA!AH89 -> 23.24477923 | I9: =DATA!AI89 -> 178 | J9: =DATA!AJ89 -> 44.8
A12: SP Mower/Conditioners (continued)
A13: Machine Size | D13: Purchase Price | E13: Litre / Hour | F13: Labour Cost ($/hr) | G13: Margin on Labour & Fuel ($/hr) | H13: Custom Rate ($/hr) | I13: Work Rate (acre/hr) | J13: Custom Rate ($/acre)
A16: =A7 -> Disc Mower Conditioner (13-19 FT) | D16: =DATA!F87 -> 250000 | E16: =DATA!AA87 -> 36 | F16: =DATA!AK87 -> 27 | G16: =DATA!AL87 -> 11.61 | H16: =DATA!AN87 -> 287 | I16: =DATA!AD87 -> 12 | J16: =DATA!AO87 -> 24
A17: =A8 -> Disc Mower Conditioner (30 FT) | D17: =DATA!F88 -> 450000 | E17: =DATA!AA88 -> 64 | F17: =DATA!AK88 -> 27 | G17: =DATA!AL88 -> 17.49 | H17: =DATA!AN88 -> 490 | I17: =DATA!AD88 -> 23 | J17: =DATA!AO88 -> 21
A18: =A9 -> Sickle Mower Conditioner (14-18 FT) | D18: =DATA!F89 -> 225000 | E18: =DATA!AA89 -> 32 | F18: =DATA!AK89 -> 27 | G18: =DATA!AL89 -> 10.77 | H18: =DATA!AN89 -> 261 | I18: =DATA!AD89 -> 9 | J18: =DATA!AO89 -> 29
A20: ="Annual hours of use: "&DATA!Y87 -> Annual hours of use: 150
A21: Notes: Fuel type is diesel with a 75% load assumption. To calculate fuel consumption with alternative load, refer to Appendix E.
A22: Fuel efficiency is based on 226 hp (16' disc), 400 hp (30' disc), and 190 hp (18' sickle).
A25: PT Mower/Conditioners
A26: Machine Size | B26: Purchase Price | C26: Ownership Cost ($/hr) | D26: Repair & Maint. (R&M) Cost ($/hr) | E26: Margin on Ownership and R&M ($/hr) | F26: Rental Rate ($/hr) | G26: Power Unit Cost ($/hr) | H26: Custom Rate ($/hr) | I26: Work Rate (acre/hr) | J26: Custom Rate ($/acre)
A29: Sickle
A30: =DATA!E90 -> 9-10 FT | B30: =DATA!F90 -> 30000 | C30: =DATA!AF90 -> 13.94202598 | D30: =DATA!AG90 -> 4.2 | E30: =DATA!AH90 -> 2.721303897 | F30: =DATA!AI90 -> 21 | G30: =DATA!AM90 -> 116 | H30: =DATA!AN90 -> 137 | I30: =DATA!AD90 -> 4 | J30: =DATA!AO90 -> 34
G31: (50 hp)
A33: =DATA!E91 -> 14-16 FT | B33: =DATA!F91 -> 55000 | C33: =DATA!AF91 -> 25.56038096 | D33: =DATA!AG91 -> 7.7 | E33: =DATA!AH91 -> 4.989057144 | F33: =DATA!AI91 -> 38 | G33: =DATA!AM91 -> 116 | H33: =DATA!AN91 -> 154 | I33: =DATA!AD91 -> 8 | J33: =DATA!AO91 -> 19
G34: (100 hp)
A35: Disc
A36: =DATA!E92 -> 7-9 FT side pull | B36: =DATA!F92 -> 40000 | C36: =DATA!AF92 -> 18.58936797 | D36: =DATA!AG92 -> 7.013333333 | E36: =DATA!AH92 -> 3.840405196 | F36: =DATA!AI92 -> 29 | G36: =DATA!AM90 -> 116 | H36: =DATA!AN92 -> 145 | I36: =DATA!AD92 -> 7 | J36: =DATA!AO92 -> 21
G37: (60 hp)
A39: =DATA!E93 -> 14 FT | B39: =DATA!F93 -> 55000 | C39: =DATA!AF93 -> 25.56038096 | D39: =DATA!AG93 -> 9.643333333 | E39: =DATA!AH93 -> 5.280557144 | F39: =DATA!AI93 -> 40 | G39: =DATA!AM93 -> 116 | H39: =DATA!AN93 -> 156 | I39: =DATA!AD93 -> 9 | J39: =DATA!AO93 -> 17
G40: (90 hp)
A42: =DATA!E94 -> 16-18 FT | B42: =DATA!F94 -> 65000 | C42: =DATA!AF94 -> 30.20772295 | D42: =DATA!AG94 -> 11.39666667 | E42: =DATA!AH94 -> 6.240658443 | F42: =DATA!AI94 -> 48 | G42: =DATA!AM94 -> 116 | H42: =DATA!AN94 -> 164 | I42: =DATA!AD94 -> 12 | J42: =DATA!AO94 -> 14
G43: (100 hp)
A45: ="Sickle annual hours of use: "&DATA!Y90 -> Sickle annual hours of use: 150
A46: ="Disc annual hours of use: "&DATA!Y92 -> Disc annual hours of use: 150
A47: Notes: The power units for all PT mower/conditioners are two-wheel drive tractors. Note that the smallest two-wheel drive tractor available in this guide is 100 hp, so power unit cost for equipment that requires a smaller power unit may be over-estimated. Power unit cost includes fuel, labour, and margin for tractor.

Sheet Harvesting Hay Balers (hidden)
K1: Harvesting Hay
A3: Balers
A4: Machine Size | B4: Purchase Price | D4: Ownership Cost ($/hr) | E4: Repair & Maint. (R&M) Cost ($/hr) | F4: Margin on Ownership and R&M ($/hr) | G4: Rental Rate ($/hr) | H4: Power Unit Cost ($/hr) | I4: Custom Rate ($/hr) | J4: Work Rate (bale/hr) | K4: Custom Rate ($/bale)
A7: Large Round Balers
A8: =DATA!E98 -> 4x5 FT bale | B8: =DATA!F98 -> 48000 | D8: =DATA!AF98 -> 33.46086235 | E8: =DATA!AG98 -> 7.584 | F8: =DATA!AH98 -> 6.156729352 | G8: =DATA!AI98 -> 47 | H8: =DATA!AM98 -> 116 | I8: =DATA!AN98 -> 163 | J8: =DATA!AD98 -> 15 | K8: =DATA!AO98 -> 11
H9: (80 hp)
A11: =DATA!E99 -> 5x5 FT bale | B11: =DATA!F99 -> 55000 | D11: =DATA!AF99 -> 38.34057144 | E11: =DATA!AG99 -> 8.69 | F11: =DATA!AH99 -> 7.054585716 | G11: =DATA!AI99 -> 54 | H11: =DATA!AM99 -> 135 | I11: =DATA!AN99 -> 189 | J11: =DATA!AD99 -> 12 | K11: =DATA!AO99 -> 16
H12: (135 hp)
A14: =DATA!E100 -> 5x6 FT bale | B14: =DATA!F100 -> 75000 | D14: =DATA!AF100 -> 52.28259742 | E14: =DATA!AG100 -> 11.85 | F14: =DATA!AH100 -> 9.619889613 | G14: =DATA!AI100 -> 74 | H14: =DATA!AM100 -> 135 | I14: =DATA!AN100 -> 209 | J14: =DATA!AD100 -> 13 | K14: =DATA!AO100 -> 16
H15: (135 hp)
A17: =DATA!E101 -> 5x5 FT bale | B17: =DATA!F101 -> 65000 | D17: =DATA!AF101 -> 45.31158443 | E17: =DATA!AG101 -> 10.27 | F17: =DATA!AH101 -> 8.337237665 | G17: =DATA!AI101 -> 64 | H17: =DATA!AM101 -> 135 | I17: =DATA!AN101 -> 199 | J17: =DATA!AD101 -> 16 | K17: =DATA!AO101 -> 12
A18: (silage / net wrap) | H18: (135 hp)
A20: =DATA!E102 -> 5x6 FT bale | B20: =DATA!F102 -> 85000 | D20: =DATA!AF102 -> 59.25361041 | E20: =DATA!AG102 -> 13.43 | F20: =DATA!AH102 -> 10.90254156 | G20: =DATA!AI102 -> 84 | H20: =DATA!AM102 -> 135 | I20: =DATA!AN102 -> 219 | J20: =DATA!AD102 -> 17 | K20: =DATA!AO102 -> 13
A21: (silage / net wrap) | H21: (135 hp)
A22: Large Square Balers
A23: Small | B23: =DATA!F105 -> 160000 | D23: =DATA!AF105 -> 74.35747189 | E23: =DATA!AG105 -> 19.09333333 | F23: =DATA!AH105 -> 14.01762078 | G23: =DATA!AI105 -> 107 | H23: =DATA!AM105 -> 135 | I23: =DATA!AN105 -> 242 | J23: =DATA!AD105 -> 40 | K23: =DATA!AO105 -> 6
A24: =DATA!E105 -> 35x31x108" bale | H24: (145 hp)
A26: Medium | B26: =DATA!F106 -> 180000 | D26: =DATA!AF106 -> 83.65215587 | E26: =DATA!AG106 -> 21.48 | F26: =DATA!AH106 -> 15.76982338 | G26: =DATA!AI106 -> 121 | H26: =DATA!AM106 -> 135 | I26: =DATA!AN106 -> 256 | J26: =DATA!AD106 -> 40 | K26: =DATA!AO106 -> 6.5
A27: =DATA!E106 -> 35x47x108" bale | H27: (145 hp)
A29: Large | B29: =DATA!F107 -> 225000 | D29: =DATA!AF107 -> 104.5651948 | E29: =DATA!AG107 -> 26.85 | F29: =DATA!AH107 -> 19.71227923 | G29: =DATA!AI107 -> 151 | H29: =DATA!AM107 -> 176 | I29: =DATA!AN107 -> 327 | J29: =DATA!AD107 -> 40 | K29: =DATA!AO107 -> 8.25
A30: =DATA!E107 -> 50x47x108" bale | H30: (180 hp)
A31: Small Square Baler
A32: =DATA!E103 -> 14x18x52" bale | B32: =DATA!F103 -> 30000 | D32: =DATA!AF103 -> 16.43477923 | E32: =DATA!AG103 -> 3.15 | F32: =DATA!AH103 -> 2.937716884 | G32: =DATA!AI103 -> 23 | H32: =DATA!AM103 -> 116 | I32: =DATA!AN103 -> 139 | J32: =DATA!AD103 -> 175 | K32: =DATA!AO103 -> 0.75
H33: (50 hp)
A35: =DATA!E104 -> 16x18x52" bale | B35: =DATA!F104 -> 45000 | D35: =DATA!AF104 -> 24.65216884 | E35: =DATA!AG104 -> 4.725 | F35: =DATA!AH104 -> 4.406575326 | G35: =DATA!AI104 -> 34 | H35: =DATA!AM104 -> 116 | I35: =DATA!AN104 -> 150 | J35: =DATA!AD104 -> 175 | K35: =DATA!AO104 -> 0.75
H36: (50 hp)
A38: ="Large Round Balers annual hours of use: "&DATA!Y98 -> Large Round Balers annual hours of use: 100
A39: ="Large Square Balers annual hours of use: "&DATA!Y105 -> Large Square Balers annual hours of use: 150
A40: ="Small Square Balers annual hours of use: "&DATA!Y103 -> Small Square Balers annual hours of use: 100
A41: Notes: Cost of twine is not included in above rates. For the cost of twine, $0.80/bale for 5' diameter,and $1.00/bale for 6' diameter.
A42: Add $1.00/bale for large square and $0.10/bale for small square. For the cost of mesh, add $1.75 to $2.00/bale.
A43: Power units for small round and small square balers are two-wheel drive tractors and power units for large round and large square balers
A44: are front wheel assist tractors. Note that the smallest two-wheel drive tractor available in this guide is 100 hp, so power unit cost for
A45: equipment that requires a smaller power unit may be over-estimated. Power unit cost includes fuel, labour, and margin for tractor.

Sheet Harvesting Hay PT Bale Movers (hidden)
A1: Harvesting Hay
A3: PT Bale Movers (Self Load/Unload)
A4: Machine Size | B4: Purchase Price | D4: Ownership Cost ($/hr) | E4: Repair & Maint. (R&M) Cost ($/hr) | F4: Margin on Ownership and R&M ($/hr) | G4: Rental Rate ($/hr) | H4: Power Unit Cost ($/hr) | I4: Custom Rate ($/hr)
A7: =DATA!D108 -> Round Bale 7-12 bale (requires 120 hp) | B7: =DATA!F108 -> 40000 | D7: =DATA!AF108 -> 27.88405196 | E7: =DATA!AG108 -> 10.52 | F7: =DATA!AH108 -> 5.760607794 | G7: =DATA!AI108 -> 44 | H7: =DATA!AM108 -> 135 | I7: =DATA!AN108 -> 179
H8: (120 hp)
A10: =DATA!D109 -> Round Bale 12-18 bale (requires 180 hp) | B10: =DATA!F109 -> 70000 | D10: =DATA!AF109 -> 48.79709093 | E10: =DATA!AG109 -> 18.41 | F10: =DATA!AH109 -> 10.08106364 | G10: =DATA!AI109 -> 77 | H10: =DATA!AM109 -> 176 | I10: =DATA!AN109 -> 253
H11: (180 hp)
A13: =DATA!D110 -> Large Square 4-6 bale (requires 120 hp) | B13: =DATA!F110 -> 80000 | D13: =DATA!AF110 -> 21.91303897 | E13: =DATA!AG110 -> 8.4 | F13: =DATA!AH110 -> 4.546955845 | G13: =DATA!AI110 -> 35 | H13: =DATA!AM110 -> 135 | I13: =DATA!AN110 -> 170
H14: (120 hp)
A16: =DATA!D111 -> Large Square 6-12 bale (requires 180 hp) | B16: =DATA!F111 -> 90000 | D16: =DATA!AF111 -> 24.65216884 | E16: =DATA!AG111 -> 9.45 | F16: =DATA!AH111 -> 5.115325326 | G16: =DATA!AI111 -> 39 | H16: =DATA!AM111 -> 176 | I16: =DATA!AN111 -> 215
H17: (180 hp)
A19: =DATA!D112 -> Large Square 12-20 bale (requires 220 hp) | B19: =DATA!F112 -> 115000 | D19: =DATA!AF112 -> 31.49999352 | E19: =DATA!AG112 -> 12.075 | F19: =DATA!AH112 -> 6.536249028 | G19: =DATA!AI112 -> 50 | H19: =DATA!AM112 -> 176 | I19: =DATA!AN112 -> 226
H20: (220 hp)
A21: ="Round bale mover annual hours of use: "&DATA!Y108 -> Round bale mover annual hours of use: 100
A22: ="Square bale mover annual hours of use: "&DATA!Y110 -> Square bale mover annual hours of use: 200
A23: Notes: Power units for all PT bale movers are front wheel assist tractors. Power unit cost includes fuel, labour, and margin for tractor.
A26: SP Bale Mover
A27: Machine Size | B27: Purchase Price | D27: Litre / Hour | E27: Ownership Cost ($/hr) | F27: Repair & Maint. (R&M) Cost ($/hr) | G27: Margin on Ownership and R&M ($/hr) | I27: Rental Rate ($/hr)
A30: =DATA!D113 -> Self propelled Small Square Bale Wagon | B30: =DATA!F113 -> 345000 | D30: =DATA!AA113 -> 28 | E30: =DATA!AF113 -> 160.3332988 | F30: =DATA!AG113 -> 60.49 | G30: =DATA!AH113 -> 33.12349481 | I30: =DATA!AI113 -> 254
A33: SP Bale Mover (continued)
A34: Machine Size | B34: Purchase Price | D34: Litre / Hour | E34: Fuel Cost ($/hr) | F34: Labour Cost ($/hr) | G34: Margin on Labour & Fuel ($/hr) | I34: Custom Rate ($/hr)
A37: =A30 -> Self propelled Small Square Bale Wagon | B37: =DATA!F113 -> 345000 | D37: =DATA!AA113 -> 28 | E37: =DATA!AJ113 -> 39.2 | F37: =DATA!AK113 -> 27 | G37: =DATA!AL113 -> 9.93 | I37: =DATA!AN113 -> 330
A38: ="Annual hours of use: "&DATA!Y113 -> Annual hours of use: 150
A39: Notes: Fuel type is diesel with a 75% load assumption. To calculate fuel consumption with alternative load, refer to Appendix E.
A40: Fuel efficiency is based on 173 hp engine.

Sheet Seeding Air Drills (hidden)
K1: Seeding
A3: Air Drills with Independent Openers
A4: Machine Size | B4: Purchase Price | D4: Ownership Cost ($/hr) | E4: Repair & Maint. (R&M) Cost ($/hr) | F4: Margin on Ownership and R&M ($/hr) | G4: Rental Rate ($/hr) | H4: Power Unit Cost ($/hr) | I4: Custom Rate ($/hr) | J4: Work Rate (acre/hr) | K4: Custom Rate ($/acre)
A7: Small
A8: =DATA!E114 -> 25-45 FT | B8: =DATA!F114 -> 400000 | D8: =DATA!AF114 -> 139.4202598 | E8: =DATA!AG114 -> 73.6 | F8: =DATA!AH114 -> 31.95303897 | G8: =DATA!AI114 -> 245 | H8: =DATA!AM114 -> 279 | I8: =DATA!AN114 -> 524 | J8: =DATA!AD114 -> 14 | K8: =DATA!AO114 -> 37
H9: (400 hp)
A10: Medium
A11: =DATA!E115 -> 46-65 FT | B11: =DATA!F115 -> 750000 | D11: =DATA!AF115 -> 261.4129871 | E11: =DATA!AG115 -> 138 | F11: =DATA!AH115 -> 59.91194807 | G11: =DATA!AI115 -> 459 | H11: =DATA!AM115 -> 319 | I11: =DATA!AN115 -> 778 | J11: =DATA!AD115 -> 23 | K11: =DATA!AO115 -> 34
H12: (500 hp)
A13: Large
A14: =DATA!E116 -> 66-86 FT | B14: =DATA!F116 -> 950000 | D14: =DATA!AF116 -> 331.123117 | E14: =DATA!AG116 -> 174.8 | F14: =DATA!AH116 -> 75.88846755 | G14: =DATA!AI116 -> 582 | H14: =DATA!AM116 -> 351 | I14: =DATA!AN116 -> 933 | J14: =DATA!AD116 -> 30 | K14: =DATA!AO116 -> 31
H15: (550+ hp)
A16: ="Annual hours of use: "&DATA!Y114 -> Annual hours of use: 200
A17: Notes: Includes appropriately sized air tank (<400 bu for small, 400-600 bu for medium and >600 bu for large drills).
A18: The power units for all air drill with independent openers are four-wheel drive tractors. Power unit cost includes fuel, labour, and margin for tractor. Power unit size (horsepower and hydraulic pressure requirements) will vary for each condition (soil type, implement type, etc.), so ensure that the power unit size and cost is appropriate.
A22: Small air drills have single shoot delivery with one hydraulic cart fan with no fertilizer mid row banding equipment. Medium and large air drills have dual shoot delivery with two hydraulic cart fans with fertilizer mid row banding equipment.
A24: An air drill with independent depth control openers utilizes a tool bar frame supported by wheels ahead of and behind the main frame, a towed commodity metering cart, and pneumatic seed and fertilizer delivery. Hydraulic, independently controlled shank assemblies complete with gauge wheel packers are fixed to the toolbar frame. Seed/fertilizer placement depth is controlled through adjustment of the gauge wheels, and packing pressure is regulated with hydraulic force. Either hoe or disk openers can be mounted to the shank assemblies depending on the manufacturer of the implement. Independent depth control openers offer the advantage of improved ground-following capabilities and precision seed/fertilizer placement depth control.
A32: Air Hoe Drills
A33: Machine Size | B33: Purchase Price | D33: Ownership Cost ($/hr) | E33: Repair & Maint. (R&M) Cost ($/hr) | F33: Margin on Ownership and R&M ($/hr) | G33: Rental Rate ($/hr) | H33: Power Unit Cost ($/hr) | I33: Custom Rate ($/hr) | J33: Work Rate (acre/hr) | K33: Custom Rate ($/acre)
A36: Small
A37: =DATA!E117 -> 27-50 FT | B37: =DATA!F117 -> 300000 | D37: =DATA!AF117 -> 104.5651948 | E37: =DATA!AG117 -> 47.25 | F37: =DATA!AH117 -> 22.77227923 | G37: =DATA!AI117 -> 175 | H37: =DATA!AM117 -> 279 | I37: =DATA!AN117 -> 454 | J37: =DATA!AD117 -> 16 | K37: =DATA!AO117 -> 28
H38: (350 hp)
A39: Large
A40: =DATA!E118 -> 51-72 FT | B40: =DATA!F118 -> 750000 | D40: =DATA!AF118 -> 261.4129871 | E40: =DATA!AG118 -> 118.125 | F40: =DATA!AH118 -> 56.93069807 | G40: =DATA!AI118 -> 436 | H40: =DATA!AM118 -> 351 | I40: =DATA!AN118 -> 787 | J40: =DATA!AD118 -> 24 | K40: =DATA!AO118 -> 33
H41: (550+ hp)
A42: ="Annual hours of use: "&DATA!Y117 -> Annual hours of use: 200
A43: Notes: Includes appropriately sized air tank (<400 bu for small and >600 bu for large drills).
A44: The power units for all air hoe drills are four-wheel drive tractors. Power unit cost includes fuel, labour, and margin for tractor. Power unit size (horsepower and hydraulic pressure requirements) will vary for each condition (soil type, implement type, etc.), so ensure the power unit size and cost is appropriate.
A47: Air hoe drills are air drills that use soil engagement tools to plow an opening into the soil for seed and/or fertilizer placement. There are several different types of tools on the market that fall into the hoe drill category. The specific type of tool used depends on the shank or tool holder used, the amount of allowable soil disturbance, and seed placement options.
A50: Small air drills have single shoot delivery with one hydraulic cart fan with no fertilizer mid row banding equipment. Large air drills have dual shoot delivery with two hydraulic cart fans with fertilizer mid row banding equipment.

Sheet Seeding AirDiskDrill (hidden)
A1: Seeding
A3: Air Disc Drills
A4: Machine Size | B4: Purchase Price | D4: Ownership Cost ($/hr) | E4: Repair & Maint. (R&M) Cost ($/hr) | F4: Margin on Ownership and R&M ($/hr) | G4: Rental Rate ($/hr) | H4: Power Unit Cost ($/hr) | I4: Custom Rate ($/hr) | J4: Work Rate (acre/hr) | K4: Custom Rate ($/acre)
A7: Small
A8: =DATA!E119 -> 30-49 FT | B8: =DATA!F119 -> 600000 | D8: =DATA!AF119 -> 209.1303897 | E8: =DATA!AG119 -> 94.5 | F8: =DATA!AH119 -> 45.54455845 | G8: =DATA!AI119 -> 349 | H8: =DATA!AM119 -> 319 | I8: =DATA!AN119 -> 668 | J8: =DATA!AD119 -> 19 | K8: =DATA!AO119 -> 35
H9: (450 hp)
A10: Large
A11: =DATA!E120 -> 50-70 FT | B11: =DATA!F120 -> 950000 | D11: =DATA!AF120 -> 331.123117 | E11: =DATA!AG120 -> 149.625 | F11: =DATA!AH120 -> 72.11221755 | G11: =DATA!AI120 -> 553 | H11: =DATA!AM120 -> 351 | I11: =DATA!AN120 -> 904 | J11: =DATA!AD120 -> 28 | K11: =DATA!AO120 -> 32
H12: (550+ hp)
A13: ="Annual hours of use: "&DATA!Y120 -> Annual hours of use: 200
A14: Notes: Includes appropriately sized air tank (<400 bu for small and >600 bu for large drills).
A15: The power units for all air disc drills are four-wheel drive tractors. Power unit cost includes fuel, labour, and margin for tractor. Power unit size (horsepower and hydraulic pressure requirements) will vary for each condition (soil type, implement type, etc.), so ensure that the power unit size and cost is appropriate.
A19: Air Disc Drills are air drills that use a soil engagement tool to cut an opening into the soil for seed and/or fertilizer placement. The tool is typically a circular disk or coulter blade. Several variants of the disk are on the market with or without waves or notches, and/or may utilize a multiple disk arrangement or cleaner wheel options.
A22: Small air drills have single shoot delivery with one hydraulic cart fan with no fertilizer mid row banding equipment. Large air drills have dual shoot delivery with two hydraulic cart fans with fertilizer mid row banding equipment.
A26: Anhydrous Ammonia Fertilizer Applicators
A27: Machine Size | D27: Purchase Price | E27: Ownership Cost ($/hr) | F27: Repair & Maint. (R&M) Cost ($/hr) | H27: Margin on Ownership and R&M ($/hr) | J27: Rental Rate ($/hr)
A31: =DATA!E150 -> 30-60 FT | D31: =DATA!F150 -> 30000 | E31: =DATA!AF150 -> 10.45651948 | F31: =DATA!AG150 -> 3.15 | H31: =DATA!AH150 -> 2.040977923 | J31: =DATA!AI150 -> 16
A33: ="Annual hours of use: "&DATA!Y150 -> Annual hours of use: 200
A34: Notes: Less tillage tool, nurse tank and trailer.
A37: Liquid Fertilizer Applicators
A38: Machine Size | D38: Purchase Price | E38: Ownership Cost ($/hr) | F38: Repair & Maint. (R&M) Cost ($/hr) | H38: Margin on Ownership and R&M ($/hr) | J38: Rental Rate ($/hr)
A42: =DATA!E151 -> 25-40 FT, 1600-1800 gal.tank | D42: =DATA!F151 -> 50000 | E42: =DATA!AF151 -> 17.42753247 | F42: =DATA!AG151 -> 5.25 | H42: =DATA!AH151 -> 3.401629871 | J42: =DATA!AI151 -> 26
A43: =DATA!E152 -> 40-60 FT, 2400-3200 gal.tank | D43: =DATA!F152 -> 75000 | E43: =DATA!AF152 -> 26.14129871 | F43: =DATA!AG152 -> 7.875 | H43: =DATA!AH152 -> 5.102444807 | J43: =DATA!AI152 -> 39
A44: =DATA!E153 -> 60-75 FT, 4300 gal.tank | D44: =DATA!F153 -> 125000 | E44: =DATA!AF153 -> 43.56883118 | F44: =DATA!AG153 -> 13.125 | H44: =DATA!AH153 -> 8.504074678 | J44: =DATA!AI153 -> 65
A46: ="Annual hours of use: "&DATA!Y151 -> Annual hours of use: 200
A47: Notes: Less tillage tool, includes cart.

Sheet Seeding Other Row Crop Planters (hidden)
K1: Seeding
A3: Other Row Crop Planters
A4: Machine Size | B4: Purchase Price | D4: Ownership Cost ($/hr) | E4: Repair & Maint. (R&M) Cost ($/hr) | F4: Margin on Ownership and R&M ($/hr) | G4: Rental Rate ($/hr) | H4: Power Unit Cost ($/hr) | I4: Custom Rate ($/hr) | J4: Work Rate (acre/hr) | K4: Custom Rate ($/acre)
A8: =DATA!E124 -> 12 row planter | B8: =DATA!F124 -> 170000 | D8: =DATA!AF124 -> 169.2608312 | E8: =DATA!AG124 -> 71.4 | F8: =DATA!AH124 -> 36.09912468 | G8: =DATA!AI124 -> 277 | H8: =DATA!AM124 -> 135 | I8: =DATA!AN124 -> 412 | J8: =DATA!AD124 -> 13 | K8: =DATA!AO124 -> 32
H9: (150 hp)
A11: =DATA!E125 -> 16 row planter | B11: =DATA!F125 -> 280000 | D11: =DATA!AF125 -> 278.7825456 | E11: =DATA!AG125 -> 117.6 | F11: =DATA!AH125 -> 59.45738183 | G11: =DATA!AI125 -> 456 | H11: =DATA!AM125 -> 176 | I11: =DATA!AN125 -> 632 | J11: =DATA!AD125 -> 17 | K11: =DATA!AO125 -> 37
H12: (180 hp)
A14: =DATA!E126 -> 24 row planter | B14: =DATA!F126 -> 420000 | D14: =DATA!AF126 -> 418.1738183 | E14: =DATA!AG126 -> 176.4 | F14: =DATA!AH126 -> 89.18607275 | G14: =DATA!AI126 -> 684 | H14: =DATA!AM126 -> 213 | I14: =DATA!AN126 -> 897 | J14: =DATA!AD126 -> 25 | K14: =DATA!AO126 -> 36
H15: (230 hp)
A17: =DATA!E127 -> 12/24 split row planter | B17: =DATA!F127 -> 320000 | D17: =DATA!AF127 -> 318.6086235 | E17: =DATA!AG127 -> 134.4 | F17: =DATA!AH127 -> 67.95129352 | G17: =DATA!AI127 -> 521 | H17: =DATA!AM127 -> 176 | I17: =DATA!AN127 -> 697 | J17: =DATA!AD127 -> 19 | K17: =DATA!AO127 -> 37
H18: (210 hp)
A20: =DATA!E128 -> 16/32 split row planter | B20: =DATA!F128 -> 390000 | D20: =DATA!AF128 -> 388.3042599 | E20: =DATA!AG128 -> 163.8 | F20: =DATA!AH128 -> 82.81563898 | G20: =DATA!AI128 -> 635 | H20: =DATA!AM128 -> 213 | I20: =DATA!AN128 -> 848 | J20: =DATA!AD128 -> 25 | K20: =DATA!AO128 -> 34
H21: (250 hp)
A22: ="Annual hours of use: "&DATA!Y124 -> Annual hours of use: 100
A23: Notes: The power units for all row crop planters are front wheel assist tractors. Power unit cost includes fuel, labour, and margin for tractor.
A24: ="Both 12/24 and 16/32 are high speed planters based on "&DATA!AB127&" mph travel speed." -> Both 12/24 and 16/32 are high speed planters based on 7.5 mph travel speed.
A27: Granular Fertilizer Applicators
A28: Machine Size | B28: Purchase Price | D28: Ownership Cost ($/hr) | E28: Repair & Maint. (R&M) Cost ($/hr) | F28: Margin on Ownership and R&M ($/hr) | G28: Rental Rate ($/hr) | H28: Power Unit Cost ($/hr) | I28: Custom Rate ($/hr) | J28: Work Rate (acre/hr) | K28: Custom Rate ($/acre)
A32: =DATA!E154 -> 6-10 ton, spin 40 FT | B32: =DATA!F154 -> 45000 | D32: =DATA!AF154 -> 24.65216884 | E32: =DATA!AG154 -> 7.11 | F32: =DATA!AH154 -> 4.764325326 | G32: =DATA!AI154 -> 37 | H32: =DATA!AM154 -> 116 | I32: =DATA!AN154 -> 153 | J32: =DATA!AD154 -> 19 | K32: =DATA!AO154 -> 8
H33: (100 hp)
A35: =DATA!E155 -> 10-12 ton, boom 60 FT | B35: =DATA!F155 -> 175000 | D35: =DATA!AF155 -> 95.86954549 | E35: =DATA!AG155 -> 62.65 | F35: =DATA!AH155 -> 23.77793182 | G35: =DATA!AI155 -> 182 | H35: =DATA!AM155 -> 213 | I35: =DATA!AN155 -> 395 | J35: =DATA!AD155 -> 35 | K35: =DATA!AO155 -> 11
H36: (225+ hp)
A37: ="Annual hours of use: "&DATA!Y154 -> Annual hours of use: 100
A38: Notes: Power unit cost includes fuel, labour, and margin for tractor.
A41: Rock Pickers
A42: Machine Size | B42: Purchase Price | D42: Ownership Cost ($/hr) | E42: Repair & Maint. (R&M) Cost ($/hr) | F42: Margin on Ownership and R&M ($/hr) | G42: Rental Rate ($/hr) | I42: Power Unit Cost ($/hr) | J42: Custom Rate ($/hr)
A46: =DATA!E163 -> 1.5-2.5 CU. yard | B46: =DATA!F163 -> 35000 | D46: =DATA!AF163 -> 32.07825456 | E46: =DATA!AG163 -> 7.35 | F46: =DATA!AH163 -> 5.914238183 | G46: =DATA!AI163 -> 45 | I46: =DATA!AM163 -> 116 | J46: =DATA!AN163 -> 161
I47: (75 hp)
A49: =DATA!E164 -> 3.0-3.3 CU. yard | B49: =DATA!F164 -> 50000 | D49: =DATA!AF164 -> 45.82607794 | E49: =DATA!AG164 -> 10.5 | F49: =DATA!AH164 -> 8.448911691 | G49: =DATA!AI164 -> 65 | I49: =DATA!AM164 -> 116 | J49: =DATA!AN164 -> 181
I50: (85 hp)
A51: ="Annual hours of use: "&DATA!Y163 -> Annual hours of use: 50
A52: Notes: Power unit cost includes fuel, labour, and margin for tractor.

Sheet Soil Preparation Cultivators (hidden)
A1: Soil Preparation
A3: Cultivators
A4: Machine Size | B4: Purchase Price | D4: Ownership Cost ($/hr) | E4: Repair & Maint. (R&M) Cost ($/hr) | F4: Margin on Ownership and R&M ($/hr) | G4: Rental Rate ($/hr) | H4: Power Unit Cost ($/hr) | I4: Custom Rate ($/hr) | J4: Work Rate (acre/hr) | K4: Custom Rate ($/acre)
A7: Cultivators,
A8: field (with tine
A9: harrows)
A10: Small
A11: =DATA!E129 -> 24-35 FT | B11: =DATA!F129 -> 100000 | D11: =DATA!AF129 -> 27.39129871 | E11: =DATA!AG129 -> 7.9 | F11: =DATA!AH129 -> 5.293694807 | G11: =DATA!AI129 -> 41 | H11: =DATA!AM129 -> 213 | I11: =DATA!AN129 -> 254 | J11: =DATA!AD129 -> 15 | K11: =DATA!AO129 -> 17
H12: (225+ hp)
A13: Medium
A14: =DATA!E130 -> 36-49 FT | B14: =DATA!F130 -> 130000 | D14: =DATA!AF130 -> 35.60868832 | E14: =DATA!AG130 -> 10.27 | F14: =DATA!AH130 -> 6.881803249 | G14: =DATA!AI130 -> 53 | H14: =DATA!AM130 -> 279 | I14: =DATA!AN130 -> 332 | J14: =DATA!AD130 -> 21 | K14: =DATA!AO130 -> 16
H15: (400 hp)
A16: Large
A17: =DATA!E131 -> 50-62 FT | B17: =DATA!F131 -> 175000 | D17: =DATA!AF131 -> 47.93477274 | E17: =DATA!AG131 -> 13.825 | F17: =DATA!AH131 -> 9.263965911 | G17: =DATA!AI131 -> 71 | H17: =DATA!AM131 -> 319 | I17: =DATA!AN131 -> 390 | J17: =DATA!AD131 -> 27 | K17: =DATA!AO131 -> 14
H18: (500 hp)
A19: Cultivators,
A20: heavy-duty (with
A21: tine harrows)
A22: Small
A23: =DATA!E132 -> 23-40 FT | B23: =DATA!F132 -> 125000 | D23: =DATA!AF132 -> 34.23912339 | E23: =DATA!AG132 -> 9.875 | F23: =DATA!AH132 -> 6.617118508 | G23: =DATA!AI132 -> 51 | H23: =DATA!AM132 -> 279 | I23: =DATA!AN132 -> 330 | J23: =DATA!AD132 -> 15 | K23: =DATA!AO132 -> 22
H24: (400 hp)
A25: Medium
A26: =DATA!E133 -> 41-50 FT | B26: =DATA!F133 -> 150000 | D26: =DATA!AF133 -> 41.08694807 | E26: =DATA!AG133 -> 11.85 | F26: =DATA!AH133 -> 7.94054221 | G26: =DATA!AI133 -> 61 | H26: =DATA!AM133 -> 319 | I26: =DATA!AN133 -> 380 | J26: =DATA!AD133 -> 22 | K26: =DATA!AO133 -> 17
H27: (500 hp)
A28: Large
A29: =DATA!E134 -> 51-62 FT | B29: =DATA!F134 -> 200000 | D29: =DATA!AF134 -> 54.78259742 | E29: =DATA!AG134 -> 15.8 | F29: =DATA!AH134 -> 10.58738961 | G29: =DATA!AI134 -> 81 | H29: =DATA!AM134 -> 351 | I29: =DATA!AN134 -> 432 | J29: =DATA!AD134 -> 27 | K29: =DATA!AO134 -> 16
H30: (550+ hp)
A31: ="Annual hours of use: "&DATA!Y129 -> Annual hours of use: 200
A32: Notes: Power units for cultivators are front wheel assist tractors except for medium and large heavy-duty cultivators, where a four wheel-drive tractor
A33: is selected. Power unit cost includes fuel, labour, and margin for tractor.

Sheet Soil Preparation Harrows (hidden)
K1: Soil Preparation
A3: Harrows
A4: Machine Size | B4: Purchase Price | D4: Ownership Cost ($/hr) | E4: Repair & Maint. (R&M) Cost ($/hr) | F4: Margin on Ownership and R&M ($/hr) | G4: Rental Rate ($/hr) | H4: Power Unit Cost ($/hr) | I4: Custom Rate ($/hr) | J4: Work Rate (acre/hr) | K4: Custom Rate ($/acre)
A7: Harrows, mid
A8: =DATA!E135 -> 60-90 FT | B8: =DATA!F135 -> 100000 | D8: =DATA!AF135 -> 61.10143725 | E8: =DATA!AG135 -> 16.8 | F8: =DATA!AH135 -> 11.68521559 | G8: =DATA!AI135 -> 90 | H8: =DATA!AM135 -> 279 | I8: =DATA!AN135 -> 369 | J8: =DATA!AD135 -> 51 | K8: =DATA!AO135 -> 7.25
H9: (400 hp)
A10: Harrows, heavy
A11: =DATA!E136 -> 60-90 FT | B11: =DATA!F136 -> 125000 | D11: =DATA!AF136 -> 68.47824678 | E11: =DATA!AG136 -> 19.75 | F11: =DATA!AH136 -> 13.23423702 | G11: =DATA!AI136 -> 101 | H11: =DATA!AM136 -> 351 | I11: =DATA!AN136 -> 452 | J11: =DATA!AD136 -> 51 | K11: =DATA!AO136 -> 8.75
H12: (550+ hp)
A13: Harrow packers
A14: =DATA!E137 -> 25-62 FT | B14: =DATA!F137 -> 50000 | D14: =DATA!AF137 -> 11.45651948 | E14: =DATA!AG137 -> 1.325 | F14: =DATA!AH137 -> 1.917227923 | G14: =DATA!AI137 -> 15 | H14: =DATA!AM137 -> 176 | I14: =DATA!AN137 -> 191 | J14: =DATA!AD137 -> 32 | K14: =DATA!AO137 -> 6
H15: (175 hp)
A16: ="Mid harrows annual hours of use: "&DATA!Y135 -> Mid harrows annual hours of use: 75
A17: ="Heavy harrows annual hours of use: "&DATA!Y136 -> Heavy harrows annual hours of use: 100
A18: ="Packer harrows annual hours of use: "&DATA!Y137 -> Packer harrows annual hours of use: 200
A19: Notes: The power units for mid and packer harrows are front wheel assist tractors. The power unit for heavy harrows is a four-wheel drive tractor.
A20: Power unit cost includes fuel, labour, and margin for tractor.
A25: Vertical Tillage Tools
A26: Machine Size | B26: Purchase Price | D26: Ownership Cost ($/hr) | E26: Repair & Maint. (R&M) Cost ($/hr) | F26: Margin on Ownership and R&M ($/hr) | G26: Rental Rate ($/hr) | H26: Power Unit Cost ($/hr) | I26: Custom Rate ($/hr) | J26: Work Rate (acre/hr) | K26: Custom Rate ($/acre)
A29: Compact, high-
A30: speed disk
A31: Small
A32: =DATA!E138 -> 10-30 FT | B32: =DATA!F138 -> 100000 | D32: =DATA!AF138 -> 54.78259742 | E32: =DATA!AG138 -> 36.8 | F32: =DATA!AH138 -> 13.73738961 | G32: =DATA!AI138 -> 105 | H32: =DATA!AM138 -> 279 | I32: =DATA!AN138 -> 384 | J32: =DATA!AD138 -> 16 | K32: =DATA!AO138 -> 24
H33: (400 hp)
A34: Large
A35: =DATA!E139 -> 31-50 FT | B35: =DATA!F139 -> 150000 | D35: =DATA!AF139 -> 82.17389613 | E35: =DATA!AG139 -> 55.2 | F35: =DATA!AH139 -> 20.60608442 | G35: =DATA!AI139 -> 158 | H35: =DATA!AM139 -> 351 | I35: =DATA!AN139 -> 509 | J35: =DATA!AD139 -> 31 | K35: =DATA!AO139 -> 16
H36: (550+ hp)
A37: Heavy duty,
A38: compact high-
A39: speed disk
A40: Small
A41: =DATA!E140 -> 10-25 FT | B41: =DATA!F140 -> 145000 | D41: =DATA!AF140 -> 79.43476626 | E41: =DATA!AG140 -> 53.36 | F41: =DATA!AH140 -> 19.91921494 | G41: =DATA!AI140 -> 153 | H41: =DATA!AM140 -> 319 | I41: =DATA!AN140 -> 472 | J41: =DATA!AD140 -> 14 | K41: =DATA!AO140 -> 34
H42: (500 hp)
A43: Large
A44: =DATA!E141 -> 26-40 FT | B44: =DATA!F141 -> 250000 | D44: =DATA!AF141 -> 136.9564936 | E44: =DATA!AG141 -> 92 | F44: =DATA!AH141 -> 34.34347403 | G44: =DATA!AI141 -> 263 | H44: =DATA!AM141 -> 351 | I44: =DATA!AN141 -> 614 | J44: =DATA!AD141 -> 26 | K44: =DATA!AO141 -> 24
H45: (550+ hp)
A46: ="Compact annual hours of use: "&DATA!Y138 -> Compact annual hours of use: 100
A47: ="Heavy duty annual hours of use: "&DATA!Y140 -> Heavy duty annual hours of use: 100
A48: Notes: Power units for small compact and small heavy-duty disks are front wheel assist tractors. Power units for large compact and large heavy-duty
A49: disks are four-wheel drive tractors. Power unit cost includes fuel, labour, and margin for tractor.

Sheet Soil Prep- Land Roller (hidden)
A1: Soil Preparation
A3: Land Roller
A4: Machine Size | B4: Purchase Price | D4: Ownership Cost ($/hr) | E4: Repair & Maint. (R&M) Cost ($/hr) | F4: Margin on Ownership and R&M ($/hr) | G4: Rental Rate ($/hr) | H4: Power Unit Cost ($/hr) | I4: Custom Rate ($/hr) | J4: Work Rate (acre/hr) | K4: Custom Rate ($/acre)
A7: =DATA!E142 -> 20 FT (Fixed) | B7: =DATA!F142 -> 30000 | D7: =DATA!AF142 -> 21.91303897 | E7: =DATA!AG142 -> 4.2 | F7: =DATA!AH142 -> 3.916955845 | G7: =DATA!AI142 -> 30 | H7: =DATA!AM142 -> 135 | I7: =DATA!AN142 -> 165 | J7: =DATA!AD142 -> 9 | K7: =DATA!AO142 -> 18
H8: (100 hp)
A10: =DATA!E143 -> 40-50 FT (3 section) | B10: =DATA!F143 -> 75000 | D10: =DATA!AF143 -> 54.78259742 | E10: =DATA!AG143 -> 10.5 | F10: =DATA!AH143 -> 9.792389613 | G10: =DATA!AI143 -> 75 | H10: =DATA!AM143 -> 213 | I10: =DATA!AN143 -> 288 | J10: =DATA!AD143 -> 26 | K10: =DATA!AO143 -> 11
H11: (225+ hp)
A13: =DATA!E144 -> 55-75 FT (5 section) | B13: =DATA!F144 -> 110000 | D13: =DATA!AF144 -> 80.34780955 | E13: =DATA!AG144 -> 15.4 | F13: =DATA!AH144 -> 14.36217143 | G13: =DATA!AI144 -> 110 | H13: =DATA!AM144 -> 279 | I13: =DATA!AN144 -> 389 | J13: =DATA!AD144 -> 38 | K13: =DATA!AO144 -> 10
H14: (400 hp)
A15: ="Annual hours of use: "&DATA!Y142 -> Annual hours of use: 75
A16: Notes: Power unit cost includes fuel, labour, and margin for tractor.
A20: Land Scraper
A21: Machine Size | D21: Purchase Price | E21: Ownership Cost ($/hr) | F21: Repair & Maint. (R&M) Cost ($/hr) | G21: Margin on Ownership and R&M ($/hr) | I21: Rental Rate ($/hr) | J21: Power Unit Cost ($/hr) | K21: Custom Rate ($/hr)
A24: =DATA!E145 -> 10.0-15.0 CU. yard | D24: =DATA!F145 -> 75000 | E24: =DATA!AF145 -> 93.34237016 | F24: =DATA!AG145 -> 24.65625 | G24: =DATA!AH145 -> 17.69979302 | I24: =DATA!AI145 -> 136 | J24: =DATA!AM145 -> 279 | K24: =DATA!AN145 -> 415
J25: (400 hp)
A27: =DATA!E146 -> 15.0+ CU. yard | D27: =DATA!F146 -> 125000 | E27: =DATA!AF146 -> 155.5706169 | F27: =DATA!AG146 -> 41.09375 | G27: =DATA!AH146 -> 29.49965504 | I27: =DATA!AI146 -> 226 | J27: =DATA!AM146 -> 351 | K27: =DATA!AN146 -> 577
J28: (550 hp)
A30: =DATA!E147 -> Pull Dozer 15.0-20.0 CU. yard | D30: =DATA!F147 -> 100000 | E30: =DATA!AF147 -> 124.4564936 | F30: =DATA!AG147 -> 32.875 | G30: =DATA!AH147 -> 23.59972403 | I30: =DATA!AI147 -> 181 | J30: =DATA!AM147 -> 279 | K30: =DATA!AN147 -> 460
J31: (400 hp)
A33: =DATA!E148 -> Pull Dozer 21.0+ CU. yard | D33: =DATA!F148 -> 150000 | E33: =DATA!AF148 -> 186.6847403 | F33: =DATA!AG148 -> 49.3125 | G33: =DATA!AH148 -> 35.39958605 | I33: =DATA!AI148 -> 271 | J33: =DATA!AM148 -> 351 | K33: =DATA!AN148 -> 622
J34: (550 hp)
A36: =DATA!E149 -> Rotary Ditcher | D36: =DATA!F149 -> 100000 | E36: =DATA!AF149 -> 124.4564936 | F36: =DATA!AG149 -> 32.875 | G36: =DATA!AH149 -> 23.59972403 | I36: =DATA!AI149 -> 181 | J36: =DATA!AM149 -> 279 | K36: =DATA!AN149 -> 460
J37: (400 hp)
A38: ="Annual hours of use: "&DATA!Y145 -> Annual hours of use: 80
A39: Notes: Power unit cost includes fuel, labour, and margin for tractor.

Sheet Sprayers High Clearance (hidden)
H1: Sprayers
A3: High Clearance Sprayer
A4: Machine Size | B4: Purchase Price | C4: Litre / Hour | D4: Ownership Cost ($/hr) | E4: Repair & Maint. (R&M) Cost ($/hr) | F4: Margin on Ownership and R&M ($/hr) | G4: Rental Rate ($/hr) | H4: Fuel Cost ($/hr)
A7: =DATA!D165 -> 800 US gal, 90 FT boom | B7: =DATA!F165 -> 475000 | C7: =DATA!AA165 -> 41 | D7: =DATA!AF165 -> 331.0247682 | E7: =DATA!AG165 -> 99.88571429 | F7: =DATA!AH165 -> 64.63657237 | G7: =DATA!AI165 -> 496 | H7: =DATA!AJ165 -> 57.4
A9: =DATA!D166 -> 1000 US gal, 100 FT boom | B9: =DATA!F166 -> 575000 | C9: =DATA!AA166 -> 52 | D9: =DATA!AF166 -> 400.7141931 | E9: =DATA!AG166 -> 120.9142857 | F9: =DATA!AH166 -> 78.24427182 | G9: =DATA!AI166 -> 600 | H9: =DATA!AJ166 -> 72.8
A11: =DATA!D167 -> 1200 US gal, 120 FT boom | B11: =DATA!F167 -> 675000 | C11: =DATA!AA167 -> 61 | D11: =DATA!AF167 -> 470.403618 | E11: =DATA!AG167 -> 141.9428571 | F11: =DATA!AH167 -> 91.85197127 | G11: =DATA!AI167 -> 704 | H11: =DATA!AJ167 -> 85.4
A13: =DATA!D168 -> 1600 US gal, 130 FT boom | B13: =DATA!F168 -> 725000 | C13: =DATA!AA168 -> 70 | D13: =DATA!AF168 -> 505.2483304 | E13: =DATA!AG168 -> 152.4571429 | F13: =DATA!AH168 -> 98.65582099 | G13: =DATA!AI168 -> 756 | H13: =DATA!AJ168 -> 98
A17: High Clearance Sprayer (continued)
A18: Machine Size | B18: Purchase Price | C18: Litre / Hour | D18: Labour Cost ($/hr) | E18: Margin on Labour & Fuel ($/hr) | F18: Custom Rate ($/hr) | G18: Work Rate (acre/hr) | H18: Custom Rate ($/acre)
A21: =A7 -> 800 US gal, 90 FT boom | B21: =DATA!F165 -> 475000 | C21: =DATA!AA165 -> 41 | D21: =DATA!AK165 -> 27 | E21: =DATA!AL165 -> 12.66 | F21: =DATA!AN165 -> 593 | G21: =DATA!AD165 -> 70 | H21: =DATA!AO165 -> 8.5
A23: =A9 -> 1000 US gal, 100 FT boom | B23: =DATA!F166 -> 575000 | C23: =DATA!AA166 -> 52 | D23: =DATA!AK166 -> 27 | E23: =DATA!AL166 -> 14.97 | F23: =DATA!AN166 -> 715 | G23: =DATA!AD166 -> 78 | H23: =DATA!AO166 -> 9.25
A25: =A11 -> 1200 US gal, 120 FT boom | B25: =DATA!F167 -> 675000 | C25: =DATA!AA167 -> 61 | D25: =DATA!AK167 -> 27 | E25: =DATA!AL167 -> 16.86 | F25: =DATA!AN167 -> 833 | G25: =DATA!AD167 -> 93 | H25: =DATA!AO167 -> 9
A27: =A13 -> 1600 US gal, 130 FT boom | B27: =DATA!F168 -> 725000 | C27: =DATA!AA168 -> 70 | D27: =DATA!AK168 -> 27 | E27: =DATA!AL168 -> 18.75 | F27: =DATA!AN168 -> 900 | G27: =DATA!AD168 -> 101 | H27: =DATA!AO168 -> 9
A29: ="Annual hours of use: "&DATA!Y165 -> Annual hours of use: 175
A30: Notes: Fuel type is diesel with a 75% load assumption. To calculate fuel consumption with alternative load, refer to Appendix E.
A32: ="The cost of hauling water is not included in the above rates. For "&'Sprayer Water Calc'!I5&" gallons/acre add $"&TEXT('Sprayer Water Calc'!I26,"0.00")&"/acre, and for "&'Sprayer Water Calc'!J5&" gallons/acre add $"&TEXT('Sprayer Water Calc'!J26,"0.00")&"/acre. " -> The cost of hauling water is not included in the above rates. For 10 gallons/acre add $1.50/acre, and for 20 gallons/acre add $2.75/acre.
A33: ="Estimated custom rates at 10 gallons/acre with water hauling included are $"&TEXT(ROUND('Sprayer Water Calc'!I26+MIN(H21,H23,H25,H27),2),"0.00")&"/acre to $"&TEXT(ROUND('Sprayer Water Calc'!I26+MAX(H21,H23,H25,H27),2),"0.00")&"/acre. " -> Estimated custom rates at 10 gallons/acre with water hauling included are $10.00/acre to $10.75/acre.
A34: These rates are not intended to be compared to commercial custom spraying rates. Refer to the introduction of this guide for more information.
A37: Water Hauling
A38: Machine Size | B38: Purchase Price | C38: Litre / Hour | D38: Ownership Cost ($/hr) | E38: Repair & Maint. (R&M) Cost ($/hr) | F38: Fuel Cost ($/hr) | G38: Labour Cost ($/hr) | H38: Custom Rate ($/acre)
A41: =DATA!A199&"- "&'Sprayer Water Calc'!H5&" gallons/ac" -> Water Truck - 5 gallons/ac | B41: =DATA!F199 -> 145000 | C41: =DATA!AA199 -> 27 | D41: =DATA!AF199 -> 82.49687573 | E41: =DATA!AG199 -> 26.1 | F41: =DATA!AJ199 -> 37.8 | G41: =DATA!AK199 -> 27 | H41: ='Sprayer Water Calc'!H26 -> 0.75
A43: =DATA!A199&"- "&'Sprayer Water Calc'!I5&" gallons/ac" -> Water Truck - 10 gallons/ac | B43: =DATA!F199 -> 145000 | C43: =DATA!AA199 -> 27 | D43: =DATA!AF199 -> 82.49687573 | E43: =DATA!AG199 -> 26.1 | F43: =DATA!AJ199 -> 37.8 | G43: =DATA!AK199 -> 27 | H43: ='Sprayer Water Calc'!I26 -> 1.5
A45: =DATA!A199&"- "&'Sprayer Water Calc'!J5&" gallons/ac" -> Water Truck - 20 gallons/ac | B45: =DATA!F199 -> 145000 | C45: =DATA!AA199 -> 27 | D45: =DATA!AF199 -> 82.49687573 | E45: =DATA!AG199 -> 26.1 | F45: =DATA!AJ199 -> 37.8 | G45: =DATA!AK199 -> 27 | H45: ='Sprayer Water Calc'!J26 -> 2.75
A47: ="Annual hours of use: "&DATA!Y199 -> Annual hours of use: 175
A48: ="Based on truck and equipment cost of $"&TEXT(DATA!F199,"#,###")&", $"&'Sprayer Water Calc'!G14&" cost and "&'Sprayer Water Calc'!G13&" minutes per "&TEXT('Sprayer Water Calc'!G9,"#,###")&" gallon load of water, incl. labour and fuel costs." -> Based on truck and equipment cost of $145,000, $20 cost and 75 minutes per 2,400 gallon load of water, incl. labour and fuel costs.

Sheet Misc. Post Pounder, Feed Mixers (hidden)
A1: Miscellaneous
A3: Post Pounders
A4: Machine Size | B4: Purchase Price | D4: Ownership Cost ($/hr) | E4: Repair & Maint. (R&M) Cost ($/hr) | F4: Margin on Ownership and R&M ($/hr) | G4: Rental Rate ($/hr) | H4: Power Unit Cost ($/hr) | I4: Custom Rate ($/hr)
A7: =DATA!E169 -> 3-point hitch mount | B7: =DATA!F169 -> 10500 | D7: =DATA!AF169 -> 14.38043182 | E7: =DATA!AG169 -> 5.5125 | F7: =DATA!AH169 -> 2.983939773 | G7: =DATA!AI169 -> 23 | H7: =DATA!AM169 -> 116 | I7: =DATA!AN169 -> 139
H8: (55 hp)
A9: =DATA!D170 -> Trailer mounted with engine | B9: =DATA!F170 -> 25000 | D9: =DATA!AF170 -> 34.23912339 | E9: =DATA!AG170 -> 13.125 | F9: =DATA!AH170 -> 7.104618508 | G9: =DATA!AI170 -> 54 | H9: =DATA!AM170 -> 116 | I9: =DATA!AN170 -> 170
H10: (55 hp)
A11: =DATA!E171 -> Skid steer mounted | B11: =DATA!F171 -> 12500 | D11: =DATA!AF171 -> 17.11956169 | E11: =DATA!AG171 -> 6.5625 | F11: =DATA!AH171 -> 3.552309254 | G11: =DATA!AI171 -> 27 | H11: =DATA!AM171 -> 116 | I11: =DATA!AN171 -> 143
H12: (55 hp)
A13: ="Annual hours of use: "&DATA!Y169 -> Annual hours of use: 40
A14: Notes: The power units for all post pounders are two-wheel drive tractors. Note that the smallest two-wheel drive tractor available in this guide is
A15: 100hp so power unit cost for equipment that requires a smaller power unit may be over-estimated.
A16: Power unit cost includes fuel, labour, and margin for tractor.
A18: Vertical Feed Mixer
A19: Machine Size | B19: Purchase Price | D19: Ownership Cost ($/hr) | E19: Repair & Maint. (R&M) Cost ($/hr) | F19: Margin on Ownership and R&M ($/hr) | G19: Rental Rate ($/hr) | H19: Power Unit Cost ($/hr) | I19: Custom Rate ($/hr)
A22: =DATA!E179 -> 280-360 cubic FT | B22: =DATA!F179 -> 43000 | D22: =DATA!AF179 -> 14.98767793 | E22: =DATA!AG179 -> 5.6545 | F22: =DATA!AH179 -> 3.096326689 | G22: =DATA!AI179 -> 24 | H22: =DATA!AM179 -> 135 | I22: =DATA!AN179 -> 159
H23: (110 hp)
A24: =DATA!E180 -> 500-750 cubic FT | B24: =DATA!F180 -> 70000 | D24: =DATA!AF180 -> 24.39854546 | E24: =DATA!AG180 -> 9.205 | F24: =DATA!AH180 -> 5.040531819 | G24: =DATA!AI180 -> 39 | H24: =DATA!AM180 -> 176 | I24: =DATA!AN180 -> 215
H25: (160 hp)
A26: =DATA!E181 -> 830-1,150 cubic FT | B26: =DATA!F181 -> 100000 | D26: =DATA!AF181 -> 34.85506495 | E26: =DATA!AG181 -> 13.15 | F26: =DATA!AH181 -> 7.200759742 | G26: =DATA!AI181 -> 55 | H26: =DATA!AM181 -> 213 | I26: =DATA!AN181 -> 268
H27: (225+ hp)
A28: ="Annual hours of use: "&DATA!Y179 -> Annual hours of use: 200
A29: Notes: The power units for all vertical feed mixers are front wheel assist tractors. Power unit cost includes fuel, labour, and margin for tractor.
A31: Grinder Mixers, Feed Mixers, and Bale Processors
A32: Machine Size | B32: Purchase Price | D32: Ownership Cost ($/hr) | E32: Repair & Maint. (R&M) Cost ($/hr) | F32: Margin on Ownership and R&M ($/hr) | G32: Rental Rate ($/hr) | H32: Power Unit Cost ($/hr) | I32: Custom Rate ($/hr)
A35: Grinder Mixers
A36: =DATA!E183 -> 360-440 cubic FT | B36: =DATA!F183 -> 70000 | D36: =DATA!AF183 -> 24.39854546 | E36: =DATA!AG183 -> 11.025 | F36: =DATA!AH183 -> 5.313531819 | G36: =DATA!AI183 -> 41 | H36: =DATA!AM183 -> 135 | I36: =DATA!AN183 -> 176
H37: (120 hp)
A39: =DATA!E184 -> 500-750 cubic FT | B39: =DATA!F184 -> 90000 | D39: =DATA!AF184 -> 31.36955845 | E39: =DATA!AG184 -> 14.175 | F39: =DATA!AH184 -> 6.831683768 | G39: =DATA!AI184 -> 52 | H39: =DATA!AM184 -> 176 | I39: =DATA!AN184 -> 228
H40: (200 hp)
A41: Feed Mixers
A42: =DATA!E182 -> Two 6 FT bale, 40 bu grain | B42: =DATA!F182 -> 65000 | D42: =DATA!AF182 -> 22.65579222 | E42: =DATA!AG182 -> 10.2375 | F42: =DATA!AH182 -> 4.933993832 | G42: =DATA!AI182 -> 38 | H42: =DATA!AM182 -> 135 | I42: =DATA!AN182 -> 173
H43: (100 hp)
A44: Bale Processors
A45: =DATA!E185 -> Two 6 FT round bale | B45: =DATA!F185 -> 40000 | D45: =DATA!AF185 -> 13.94202598 | E45: =DATA!AG185 -> 6.3 | F45: =DATA!AH185 -> 3.036303897 | G45: =DATA!AI185 -> 23 | H45: =DATA!AM185 -> 135 | I45: =DATA!AN185 -> 158
H46: (155 hp)
A48: =DATA!E186 -> Six 6 FT round bale | B48: =DATA!F186 -> 70000 | D48: =DATA!AF186 -> 24.39854546 | E48: =DATA!AG186 -> 11.025 | F48: =DATA!AH186 -> 5.313531819 | G48: =DATA!AI186 -> 41 | H48: =DATA!AM186 -> 176 | I48: =DATA!AN186 -> 217
H49: (175 hp)
A50: ="Grinder / Feed mixer annual Hours of Use: "&DATA!Y182 -> Grinder / Feed mixer annual Hours of Use: 200 | D50: ="Bale processor annual Hours of Use: "&DATA!Y185 -> Bale processor annual Hours of Use: 200
A51: Note: The power units for all grinder mixers, feed mixers, and bale processors are front wheel assist tractors.
A52: Power unit cost includes fuel, labour, and margin for tractor.

Sheet Misc. Grain Bagger, Conveyor (hidden)
K1: Miscellaneous
A3: Grain Bag Loader
A4: Machine Size | D4: Purchase Price | F4: Ownership Cost ($/hr) | G4: Repair & Maint. (R&M) Cost ($/hr) | H4: Margin on Ownership and R&M ($/hr) | I4: Rental Rate ($/hr) | J4: Power Unit Cost ($/hr) | K4: Custom Rate ($/hr)
A7: =DATA!E63 -> 10 FT Bagger | D7: =DATA!F63 -> 40000 | F7: =DATA!AF63 -> 33.85506495 | G7: =DATA!AG63 -> 8.4 | H7: =DATA!AH63 -> 6.338259742 | I7: =DATA!AI63 -> 49 | J7: =DATA!AM63 -> 116 | K7: =DATA!AN63 -> 165
J8: (60 hp)
A9: =DATA!E64 -> 12 FT Bagger | D9: =DATA!F64 -> 50000 | F9: =DATA!AF64 -> 42.31883118 | G9: =DATA!AG64 -> 10.5 | H9: =DATA!AH64 -> 7.922824678 | I9: =DATA!AI64 -> 61 | J9: =DATA!AM64 -> 127 | K9: =DATA!AN64 -> 188
J10: (125 hp)
A11: ="Annual Hours of Use: "&DATA!Y63 -> Annual Hours of Use: 100
A12: Note: Power unit cost includes fuel, labour, and margin for tractor. Additional labour to operate bagger should be added if required.
A14: Grain Bag Extractor
A15: Machine Size | D15: Purchase Price | F15: Ownership Cost ($/hr) | G15: Repair & Maint. (R&M) Cost ($/hr) | H15: Margin on Ownership and R&M ($/hr) | I15: Rental Rate ($/hr) | J15: Power Unit Cost ($/hr) | K15: Custom Rate ($/hr)
A18: =DATA!E65 -> 10 FT Unloader | D18: =DATA!F65 -> 40000 | F18: =DATA!AF65 -> 33.85506495 | G18: =DATA!AG65 -> 8.4 | H18: =DATA!AH65 -> 6.338259742 | I18: =DATA!AI65 -> 49 | J18: =DATA!AM65 -> 116 | K18: =DATA!AN65 -> 165
J19: (60 hp)
A20: =DATA!E66 -> 12 FT Unloader | D20: =DATA!F66 -> 50000 | F20: =DATA!AF66 -> 42.31883118 | G20: =DATA!AG66 -> 10.5 | H20: =DATA!AH66 -> 7.922824678 | I20: =DATA!AI66 -> 61 | J20: =DATA!AM66 -> 127 | K20: =DATA!AN66 -> 188
J21: (100 hp)
A22: ="Annual Hours of Use: "&DATA!Y66 -> Annual Hours of Use: 100
A23: Note: Power unit cost includes fuel, labour, and margin for tractor. Additional labour to operate extractor should be added if required.
A25: Belt Grain Conveyor (PTO)
A26: Machine Size | D26: Purchase Price | F26: Ownership Cost ($/hr) | G26: Repair & Maint. (R&M) Cost ($/hr) | H26: Margin on Ownership and R&M ($/hr) | I26: Rental Rate ($/hr) | J26: Power Unit Cost ($/hr) | K26: Custom Rate ($/hr)
A29: =DATA!E61 -> 20-24 in. (90 FT, non swing) | D29: =DATA!F61 -> 45000 | F29: =DATA!AF61 -> 44.80433768 | G29: =DATA!AG61 -> 9.945 | H29: =DATA!AH61 -> 8.212400652 | I29: =DATA!AI61 -> 63 | J29: =DATA!AM61 -> 116 | K29: =DATA!AN61 -> 179
J30: (100 hp)
A31: =DATA!E62 -> 20-24 in. (100+ FT, swing away) | D31: =DATA!F62 -> 100000 | F31: =DATA!AF62 -> 99.56519484 | G31: =DATA!AG62 -> 22.1 | H31: =DATA!AH62 -> 18.24977923 | I31: =DATA!AI62 -> 140 | J31: =DATA!AM62 -> 135 | K31: =DATA!AN62 -> 275
J32: (130 hp)
A33: ="Annual Hours of Use: "&DATA!Y61 -> Annual Hours of Use: 100
A34: ="Power unit cost includes fuel, labour, and margin. To obtain a total cost for auger, power unit, and fuel (but not labour), subtract $"&TEXT(Labour+(Labour*Margin_percentage),"#.00")&" from the Custom Rate ($"&Labour&"/hr labour plus "&Margin_percentage*100&"% margin)." -> Power unit cost includes fuel, labour, and margin. To obtain a total cost for auger, power unit, and fuel (but not labour), subtract $31.05 from the Custom Rate ($27/hr labour plus 15% margin).
A37: Grain Trucks
A38: Machine Size | B38: Purchase Price | C38: Litre / Hour | D38: Ownership Cost ($/hr) | E38: Repair & Maint. (R&M) Cost ($/hr) | F38: Margin on Ownership and R&M ($/hr) | G38: Rental Rate ($/hr) | H38: Fuel Cost ($/hr) | I38: Labour Cost ($/hr) | J38: Margin on Labour & Fuel ($/hr) | K38: Custom Rate ($/hr)
A42: =DATA!D187 -> Tandem | B42: =DATA!F187 -> 200000 | C42: =DATA!AA187 -> 27 | D42: =DATA!AF187 -> 92.94683986 | E42: =DATA!AG187 -> 35.06666667 | F42: =DATA!AH187 -> 19.20202598 | G42: =DATA!AI187 -> 147 | H42: =DATA!AJ187 -> 37.8 | I42: =DATA!AK187 -> 27 | J42: =DATA!AL187 -> 9.72 | K42: =DATA!AN187 -> 222
A44: =DATA!D188 -> Truck and 40FT Straight Trailer | B44: =DATA!F188 -> 275000 | C44: =DATA!AA188 -> 32 | D44: =DATA!AF188 -> 127.8019048 | E44: =DATA!AG188 -> 48.21666667 | F44: =DATA!AH188 -> 26.40278572 | G44: =DATA!AI188 -> 202 | H44: =DATA!AJ188 -> 44.8 | I44: =DATA!AK188 -> 27 | J44: =DATA!AL188 -> 10.77 | K44: =DATA!AN188 -> 285
A47: ="Annual hours of use: "&DATA!Y187 -> Annual hours of use: 150

Sheet Misc. Spreader Loader (hidden)
A1: Miscellaneous
A3: Manure Spreader (Solid)
A4: Machine Size | B4: Purchase Price | D4: Ownership Cost ($/hr) | E4: Repair & Maint. (R&M) Cost ($/hr) | F4: Margin on Ownership and R&M ($/hr) | G4: Rental Rate ($/hr) | H4: Power Unit Cost ($/hr) | I4: Custom Rate ($/hr)
A7: =DATA!E189 -> 250-299 cubic FT | B7: =DATA!F189 -> 35000 | D7: =DATA!AF189 -> 34.84781819 | E7: =DATA!AG189 -> 16.17 | F7: =DATA!AH189 -> 7.652672729 | G7: =DATA!AI189 -> 59 | H7: =DATA!AM189 -> 135 | I7: =DATA!AN189 -> 194
A8: chain unload | H8: (120 hp)
A10: =DATA!E190 -> 300-399 cubic FT | B10: =DATA!F190 -> 38000 | D10: =DATA!AF190 -> 37.83477404 | E10: =DATA!AG190 -> 17.556 | F10: =DATA!AH190 -> 8.308616106 | G10: =DATA!AI190 -> 64 | H10: =DATA!AM190 -> 135 | I10: =DATA!AN190 -> 199
A11: chain unload | H11: (125 hp)
A13: =DATA!E191 -> 400-500 cubic FT | B13: =DATA!F191 -> 56000 | D13: =DATA!AF191 -> 55.75650911 | E13: =DATA!AG191 -> 25.872 | F13: =DATA!AH191 -> 12.24427637 | G13: =DATA!AI191 -> 94 | H13: =DATA!AM191 -> 135 | I13: =DATA!AN191 -> 229
A14: chain unload | H14: (150 hp)
A16: =DATA!E192 -> 300-399 cubic FT | B16: =DATA!F192 -> 65000 | D16: =DATA!AF192 -> 64.71737665 | E16: =DATA!AG192 -> 30.03 | F16: =DATA!AH192 -> 14.2121065 | G16: =DATA!AI192 -> 109 | H16: =DATA!AM192 -> 135 | I16: =DATA!AN192 -> 244
A17: side discharge | H17: (150 hp)
A19: =DATA!E193 -> 400-500 cubic FT | B19: =DATA!F193 -> 85000 | D19: =DATA!AF193 -> 84.63041562 | E19: =DATA!AG193 -> 39.27 | F19: =DATA!AH193 -> 18.58506234 | G19: =DATA!AI193 -> 142 | H19: =DATA!AM193 -> 176 | I19: =DATA!AN193 -> 318
A20: side discharge | H20: (180 hp)
A22: =DATA!E194 -> 500+ cubic FT | B22: =DATA!F194 -> 95000 | D22: =DATA!AF194 -> 94.5869351 | E22: =DATA!AG194 -> 43.89 | F22: =DATA!AH194 -> 20.77154026 | G22: =DATA!AI194 -> 159 | H22: =DATA!AM194 -> 176 | I22: =DATA!AN194 -> 335
A23: side discharge | H23: (200 hp)
A25: =DATA!D195 -> 250-300 cubic FT, hyd. push, vert. beaters (requires 150 hp) | B25: =DATA!F195 -> 75000 | D25: =DATA!AF195 -> 74.67389613 | E25: =DATA!AG195 -> 34.65 | F25: =DATA!AH195 -> 16.39858442 | G25: =DATA!AI195 -> 126 | H25: =DATA!AM195 -> 135 | I25: =DATA!AN195 -> 261
H26: (150 hp)
A28: =DATA!D196 -> 400-500 cubic FT, hyd. push, vert. beaters (requires 200 hp) | B28: =DATA!F196 -> 95000 | D28: =DATA!AF196 -> 94.5869351 | E28: =DATA!AG196 -> 43.89 | F28: =DATA!AH196 -> 20.77154026 | G28: =DATA!AI196 -> 159 | H28: =DATA!AM196 -> 176 | I28: =DATA!AN196 -> 335
H29: (200hp)
A31: ="Annual hours of use: "&DATA!Y196 -> Annual hours of use: 100
A32: Notes: Power units for all manure spreaders are front wheel assist tractors. Power unit cost includes fuel, labour, and margin for tractor.
A34: Front End Loader
A35: Machine Size | B35: Purchase Price | D35: Ownership Cost ($/hr) | E35: Repair & Maint. (R&M) Cost ($/hr) | F35: Margin on Ownership and R&M ($/hr) | G35: Rental Rate ($/hr) | H35: Power Unit Cost ($/hr) | I35: Custom Rate ($/hr)
A38: =DATA!D172 -> For 100-159 hp tractor | B38: =DATA!F172 -> 23000 | D38: =DATA!AF172 -> 12.59999741 | E38: =DATA!AG172 -> 7.981 | F38: =DATA!AH172 -> 3.087149611 | G38: =DATA!AI172 -> 24 | H38: =DATA!AM172 -> 135 | I38: =DATA!AN172 -> 159
A39: =DATA!D173 -> For 160-224 hp tractor | B39: =DATA!F173 -> 25000 | D39: =DATA!AF173 -> 13.69564936 | E39: =DATA!AG173 -> 8.675 | F39: =DATA!AH173 -> 3.355597403 | G39: =DATA!AI173 -> 26 | H39: =DATA!AM173 -> 176 | I39: =DATA!AN173 -> 202
A40: ="Annual hours of use: "&DATA!Y172 -> Annual hours of use: 100
A41: Notes: The power unit cost includes fuel, labour, and margin for front wheel assist tractors.
A43: Livestock Trailer
A44: Machine Size | B44: Purchase Price | D44: Ownership Cost ($/hr) | E44: Repair & Maint. (R&M) Cost ($/hr) | G44: Margin on Ownership and R&M ($/hr) | I44: Rental Rate ($/hr)
A47: =DATA!D177 -> 20 FT gooseneck | B47: =DATA!F177 -> 26000 | D47: =DATA!AF177 -> 18.12463377 | E47: =DATA!AG177 -> 5.46 | G47: =DATA!AH177 -> 3.537695066 | I47: =DATA!AI177 -> 27
A48: =DATA!D178 -> 24 FT gooseneck | B48: =DATA!F178 -> 38000 | D48: =DATA!AF178 -> 26.48984936 | E48: =DATA!AG178 -> 7.98 | G48: =DATA!AH178 -> 5.170477404 | I48: =DATA!AI178 -> 40
A49: ="Annual hours of use: "&DATA!Y177 -> Annual hours of use: 100
A51: Snow Blower
A52: Machine Size | B52: Purchase Price | D52: Ownership Cost ($/hr) | E52: Repair & Maint. (R&M) Cost ($/hr) | F52: Margin on Ownership and R&M ($/hr) | G52: Rental Rate ($/hr) | H52: Power Unit Cost ($/hr) | I52: Custom Rate ($/hr)
A55: =DATA!D175 -> Rear mount, 96 in. (requires 110 hp) | B55: =DATA!F175 -> 11000 | D55: =DATA!AF175 -> 12.05217143 | E55: =DATA!AG175 -> 2.31 | F55: =DATA!AH175 -> 2.154325715 | G55: =DATA!AI175 -> 17 | H55: =DATA!AM175 -> 135 | I55: =DATA!AN175 -> 152
A57: =DATA!D176 -> Rear mount, 108 in. (requires 130 hp) | B57: =DATA!F176 -> 17000 | D57: =DATA!AF176 -> 18.62608312 | E57: =DATA!AG176 -> 3.57 | F57: =DATA!AH176 -> 3.329412468 | G57: =DATA!AI176 -> 26 | H57: =DATA!AM176 -> 135 | I57: =DATA!AN176 -> 161
A59: ="Annual Hours of Use: "&DATA!Y174 -> Annual Hours of Use: 50
A60: Notes: The power units for snow blowers are front wheel assist tractors. Note that the smallest front wheel assist tractor available in this guide is 100 hp, so power unit cost for equipment that requires a smaller power unit may be over-estimated.

Sheet Appendix A (hidden)
J1: Appendix A
A3: Hauling Grain from Field to Yard
B5: Truck cost - excluding labour | F5: =DATA!AI187-DATA!AH187+DATA!AJ187 -> 165.597974 | G5: /hour*
B6: Auger cost - 8 inch x 55' with gas engine (excluding labour) | F6: ='Harvesting Grain Power Auger'!I9 -> 20 | G6: /hour
B7: Labour cost | F7: =Labour -> 27 | G7: /hour
A9: Distance from Field to Yard (miles) | C9: 0.5 | D9: 1 | E9: 1.5 | F9: 2 | G9: 3 | H9: 4 | I9: 6 | J9: 10
A10: TIME USE
A11: (A) | B11: Time unload twice from one combine or once from each of two combines (min) | C11: 10 | D11: 10 | E11: 10 | F11: 10 | G11: 10 | H11: 10 | I11: 10 | J11: 10
A14: (B) | B14: Travel time to yard and return (min) | C14: 4 | D14: 6.5 | E14: 8.5 | F14: 10 | G14: 12 | H14: 15 | I14: 21 | J14: 33
A15: (C) | B15: Time truck running during unload (min) | C15: 4 | D15: 4 | E15: 4 | F15: 4 | G15: 4 | H15: 4 | I15: 4 | J15: 4
A16: (D) | B16: Truck running time per trip (min) | C16: =SUM(C11:C15) -> 18 | D16: 20.5 | E16: 22.5 | F16: 24 | G16: 26 | H16: 29 | I16: 35 | J16: 47
A17: (E) | B17: Total unload time at bin (min) | C17: 7 | D17: 7 | E17: 7 | F17: 7 | G17: 7 | H17: 7 | I17: 7 | J17: 7
A19: Wait Time in Field
A20: (truck not running) (min)
A21: (F) | B21: Hauling from one combine (min) | C21: 47 | D21: 44.5 | E21: 42.5 | F21: 41 | G21: 39 | H21: 36 | I21: 30 | J21: 18
A22: (G) | B22: Hauling from two combines (min) | C22: 11 | D22: 8.5 | E22: 6.5 | F22: 5 | G22: 3 | H22: 0 | I22: 0 | J22: 0
A24: Total Time per Trip
A25: (H) | B25: Hauling from one combine (min) | C25: =C14+C11+C17+C21 -> 68 | D25: 68 | E25: 68 | F25: 68 | G25: 68 | H25: 68 | I25: 68 | J25: 68
A26: (I) | B26: Hauling from two combines (min) | C26: =C14+C17+C11+C22 -> 32 | D26: 32 | E26: 32 | F26: 32 | G26: 32 | H26: 32 | I26: 38 | J26: 50
A28: COMPONENT COSTS PER TRIP
A29: (J) | B29: Truck costs per trip | C29: =C16/60*$F$5 -> 49.67939221 | D29: 56.57930779 | E29: 62.09924026 | F29: 66.23918961 | G29: 71.75912208 | H29: 80.03902078 | I29: 96.59881818 | J29: 129.718413
A30: (K) | B30: Auger costs per trip | C30: =C17/60*$F$6 -> 2.333333333 | D30: 2.333333333 | E30: 2.333333333 | F30: 2.333333333 | G30: 2.333333333 | H30: 2.333333333 | I30: 2.333333333 | J30: 2.333333333
A31: (L) | B31: Labour costs per trip (one combine) | C31: =C25/60*$F$7 -> 30.6 | D31: 30.6 | E31: 30.6 | F31: 30.6 | G31: 30.6 | H31: 30.6 | I31: 30.6 | J31: 30.6
A32: (M) | B32: Labour costs per trip (two combines) | C32: 14.4 | D32: 14.4 | E32: 14.4 | F32: 14.4 | G32: 14.4 | H32: 14.4 | I32: 17.1 | J32: 22.5
A34: CUSTOM RATE ($/hr)
A35: ="(includes "&Margin_percentage*100&"% margin)" -> (includes 15% margin)
A36: (N) | B36: Hauling from one combine | C36: =SUM(C29:C31)*60/C25*(1+Margin_percentage) -> 83.82761856 | D36: 90.82900349 | E36: 96.43011144 | F36: 100.6309424 | G36: 106.2320503 | H36: 114.6337123 | I36: 131.4370361 | J36: 165.0436838
A37: (O) | B37: Hauling from two combines | C37: =(C29+C30+C32)*60/C26*(1+Margin_percentage) -> 143.2024394 | D37: 158.0803824 | E37: 169.9827368 | F37: 178.9095026 | G37: 190.811857 | H37: 208.6653886 | I37: 210.6899593 | J37: 213.2814099
A39: CUSTOM RATE ($/bu)
A40: ="(includes "&Margin_percentage*100&"% margin)" -> (includes 15% margin)
A41: (P) | B41: Hauling from one combine | C41: =C36/300 -> 0.2794253952 | D41: =D36/300 -> 0.302763345 | E41: 0.3214337048 | F41: 0.3354364747 | G41: 0.3541068345 | H41: 0.3821123742 | I41: 0.4381234536 | J41: 0.5501456125
B42: (bu/hr = 300)
A43: (Q) | B43: Hauling from two combines | C43: =C37/600 -> 0.2386707324 | D43: =D37/600 -> 0.263467304 | E43: 0.2833045613 | F43: 0.2981825043 | G43: 0.3180197616 | H43: 0.3477756476 | I43: 0.3511499322 | J43: 0.3554690165
B44: (bu/hr = 600)
A46: Calculations used to determine costs:
A47: D = A + B + C | E47: # trips/hr one combine = (60 min/hr)/H
A48: H = A + B + E + F | E48: # trips/hr two combines = (60 min/hr)/I
A49: I = A + B + E + G | E49: ="N = (J + K + L)*(60 min/hr)/H*"&1+Margin_percentage -> N = (J + K + L)*(60 min/hr)/H*1.15
E50: ="O = (J + K + M)*(60 min/hr)/I*"&1+Margin_percentage -> O = (J + K + M)*(60 min/hr)/I*1.15
A51: J = D/(60 min/hr)*(truck cost)
A52: K =E/(60 min/hr)*(auger cost) | E52: P = N/(300 bu/hr)
A53: L = H/(60 min/hr)*(labour cost) | E53: Q = O/(600 bu/hr)
A54: M = I/(60 min/hr)*(labour cost)
A56: ="*Truck cost based on $"&TEXT(DATA!F187,"#,###")&" purchase price, "&DATA!Y187&" hours of annual usage, "&DATA!Z187&"% repair and maintenance rate, $"&TEXT(Calculator!D16,"0.00")&"/L diesel, "&DATA!AA187&" L/hr fuel usage, and "&DATA!X187&" year optimal life." -> *Truck cost based on $200,000 purchase price, 150 hours of annual usage, 2.63% repair and maintenance rate, $1.40/L diesel, 27 L/hr fuel usage, and 15 year optimal life.

Sheet Appendix B (hidden)
A1: Appendix B
A3: Rental Rates for Farm Buildings and Bins
A5: To determine the fair rental rate for farm buildings, consider:
B7: Your Value | D7: Example
A8: Replacement cost of building | D8: 20000
A9: Retained value of building (at end of years of service) | D9: 8000
A10: Interest rate (opportunity cost not included) | D10: 0.055
A11: Repair rate (% of replacement cost)* | D11: 0.005
A12: Annual insurance premium | D12: 60
A13: Optimal life | D13: 30
A15: Calculate:
A16: A. Depreciation:
A17: (Replacement cost - Retained Value) / Optimal Life = | D17: ($20,000 - $8,000) / 30 = $400
A19: B. Interest Cost:
A20: (Replacement cost) x (1.98 (Interest Rate) - 0.0054) / Years of Loan = | D20: ($20,000 x ((1.98 x 0.055) -
A21: This assumes 50% borrowed and seven-year loan | D21: 0.0054)) / 7 = $296
A23: C. Insurance:
A24: Annual insurance premiums = | D24: 60
A26: D. Repairs:
A27: Annual repair rate x Replacement cost = | D27: (0.005 x $20,000) = $100
A29: Total = A + B + C + D | D29: ($400 + $296 + $60 + $100) =
D30: $856 per year
A33: Total (per bushel) | D33: $856 per year / 3000 bu =
D34: $0.29/year per bu
A36: Repair rates are difficult to estimate. Steel buildings (bins and quonsets) might be 0.5% of replacement cost per year. Aeration fans might be higher. Wood buildings might be 1% to 3% of the replacement cost.
A38: For bins with aeration or natural air drying, include the purchase cost of the fan and air distribution system in the replacement cost value. Add approximately $0.10 / hp / hr for electricity costs.

Sheet Appendix C (hidden)
G1: Appendix C
A3: Work Rate Calculation Worksheet
A5: The work rate (acres/hr) is the sum of the implement working width (ft), the average ground speed (mph), the field efficiency and the acres per foot per mile. Formula below:
A9: The field efficiency accounts for time spent turning, filling, and emptying equipment. Average field efficiency for operations is 80%. Average field efficiency for spraying is 64% and seeding is 70%. The field efficiency must be presented as a decimal (e.g., 80% = 0.80)
B11: Your Value | D11: Example
A12: Impement Width (feet) | D12: 35
A13: Average ground speed (mph) | D13: 5
A14: Field Efficiency (%) | D14: 0.8
A15: Feet / mile | D15: 5280
A16: Feet2 / acre | D16: 43560
A18: Calculate:
A20: A. Implement Width (feet): | D20: 35
A22: B. Average ground speed (mph): | D22: 5
A24: C. Field Efficiency (%): | D24: 0.8
A26: D. Acres per foot per mile:
A27: (Feet per mile) / (Square feet per acre) | D27: (5,280 / 43,560) = 0.1212
A29: Total = A x B x C x D | D29: (35 x 5 x 0.80 x 0.1212) =
A30: Workrate (acres/hour) | D30: 16.97 acres per hour

Sheet Appendix D (pg1) (hidden)
A1: Appendix D
A3: Assumptions for Machinery Cost Calculations
B5: Column A | C5: Column B | D5: Column C | E5: Column D
A6: Machine | B6: Annual Hours of Usage | C6: Optimal Life (years) | D6: Repair Rate (% of purchase price) | E6: Average Field Speed (mph)
A8: Tractors
A9: Two-wheel drive | B9: =DATA!Y6 -> 300 | C9: =DATA!X6 -> 20 | D9: =DATA!Z6 -> 2.31
A10: Front wheel assist | B10: =DATA!Y8 -> 450 | C10: =DATA!X9 -> 15 | D10: =DATA!Z8 -> 2.73
A11: Four-wheel drive | B11: =DATA!Y11 -> 450 | C11: =DATA!X11 -> 15 | D11: =DATA!Z11 -> 2.63
A12: Tracked | B12: =DATA!Y14 -> 450 | C12: =DATA!X14 -> 15 | D12: =DATA!Z14 -> 3.36
A13: Combines
A14: SP Rotary | B14: =DATA!Y19 -> 250 | C14: =DATA!X19 -> 12 | D14: =DATA!Z19 -> 2.63
A15: Combine headers
A16: Rigid headers | B16: =DATA!Y25 -> 250 | C16: =DATA!X25 -> 20 | D16: =DATA!Z27 -> 2.1
A17: Pickup headers | B17: =DATA!Y25 -> 250 | C17: =DATA!X25 -> 20 | D17: =DATA!Z25 -> 1.58
A18: Flex headers | B18: =DATA!Y29 -> 250 | C18: =DATA!X29 -> 15 | D18: =DATA!Z29 -> 2.63
A19: Draper headers | B19: =DATA!Y33 -> 250 | C19: =DATA!X33 -> 15 | D19: =DATA!Z33 -> 2.94
A20: Corn headers | B20: =DATA!Y37 -> 100 | C20: =DATA!X37 -> 15 | D20: =DATA!Z37 -> 2.94
A21: Swathers SP | B21: =DATA!Y41 -> 200 | C21: =DATA!X41 -> 15 | D21: =DATA!Z41 -> 2.1 | E21: =DATA!AB41 -> 5.5
A22: Grain Carts | B22: =DATA!Y45 -> 250 | C22: =DATA!X45 -> 20 | D22: =DATA!Z45 -> 2.1
A23: Powered Augers | B23: =DATA!Y48 -> 100 | C23: =DATA!X48 -> 20 | D23: =DATA!Z48 -> 1.58
A24: PTO Augers | B24: =DATA!Y54 -> 100 | C24: =DATA!X54 -> 20 | D24: =DATA!Z54 -> 1.05
A25: Belt Grain Conveyor | B25: =DATA!Y61 -> 100 | C25: =DATA!X61 -> 10 | D25: =DATA!Z61 -> 2.21
A26: Grain Vac | B26: =DATA!Y72 -> 50 | C26: =DATA!X72 -> 15 | D26: =DATA!Z72 -> 2.1
A27: Grain Baggers | B27: =DATA!Y63 -> 100 | C27: =DATA!X63 -> 12 | D27: =DATA!Z63 -> 2.1
A28: Grain Trucks | B28: =DATA!Y187 -> 150 | C28: =DATA!X187 -> 15 | D28: =DATA!Z187 -> 2.63
A29: SP Forage Harvester | B29: =DATA!Y74 -> 400 | C29: =DATA!X74 -> 10 | D29: =DATA!Z74 -> 8.4 | E29: =DATA!AB77 -> 6.5
A30: SP Forage Harvester Header | B30: =DATA!Y77 -> 400 | C30: =DATA!X77 -> 10 | D30: =DATA!Z77 -> 8.4
A31: SP Mower/conditioner | B31: =DATA!Y87 -> 150 | C31: =DATA!X87 -> 15 | D31: =DATA!Z87 -> 3.36 | E31: =DATA!AB87 -> 8
A32: PT Mower/conditioner (sickle) | B32: =DATA!Y90 -> 150 | C32: =DATA!X90 -> 15 | D32: =DATA!Z90 -> 2.1 | E32: =DATA!AB90 -> 5
A33: PT Mower/conditioner (disc) | B33: =DATA!Y92 -> 150 | C33: =DATA!X92 -> 15 | D33: =DATA!Z92 -> 2.63 | E33: =DATA!AB92 -> 8
A34: Balers
A35: Round | B35: =DATA!Y98 -> 100 | C35: =DATA!X98 -> 15 | D35: =DATA!Z98 -> 1.58
A36: Large square | B36: =DATA!Y105 -> 150 | C36: =DATA!X105 -> 15 | D36: =DATA!Z106 -> 1.79
A37: Small square | B37: =DATA!Y108 -> 100 | C37: =DATA!X103 -> 20 | D37: =DATA!Z103 -> 1.05
A38: Bale movers
A39: PT Round | B39: =DATA!Y108 -> 100 | C39: =DATA!X108 -> 15 | D39: =DATA!Z108 -> 2.63
A40: PT Large square | B40: =DATA!Y110 -> 200 | C40: =DATA!X110 -> 20 | D40: =DATA!Z110 -> 2.1
A41: SP Small square | B41: =DATA!Y113 -> 150 | C41: =DATA!X113 -> 15 | D41: =DATA!Z113 -> 2.63
A42: Air drills (independent openers) | B42: =DATA!Y114 -> 200 | C42: =DATA!X114 -> 15 | D42: =DATA!Z114 -> 3.68 | E42: =DATA!AB114 -> 4.75
A43: Air hoe drills | B43: =DATA!Y117 -> 200 | C43: =DATA!X117 -> 15 | D43: =DATA!Z117 -> 3.15 | E43: =DATA!AB117 -> 4.75
A44: Air disk drills | B44: =DATA!Y119 -> 200 | C44: =DATA!X118 -> 15 | D44: =DATA!Z119 -> 3.15 | E44: =DATA!AB119 -> 5.5
A45: Row crop planters | B45: =DATA!Y124 -> 100 | C45: =DATA!X124 -> 10 | D45: =DATA!Z124 -> 4.2 | E45: =DATA!AB124 -> 5
A46: Row crop planters - split row | B46: =DATA!Y127 -> 100 | C46: =DATA!X127 -> 10 | D46: =DATA!Z127 -> 4.2 | E46: =DATA!AB127 -> 7.5

Sheet Appendix D (pg2) (hidden)
E1: Appendix D
B5: Column A | C5: Column B | D5: Column C | E5: Column D
A6: Machine | B6: Annual Hours of Usage | C6: Optimal Life (years) | D6: Repair Rate (% of purchase price) | E6: Average Field Speed (mph)
A8: Cultivators | B8: =DATA!Y129 -> 200 | C8: =DATA!X129 -> 20 | D8: =DATA!Z129 -> 1.58 | E8: =DATA!AB129 -> 5
A9: Standard harrows | B9: =DATA!Y135 -> 75 | C9: =DATA!X135 -> 25 | D9: =DATA!Z135 -> 1.26 | E9: =DATA!AB135 -> 7.5
A10: Heavy harrows | B10: =DATA!Y136 -> 100 | C10: =DATA!X136 -> 20 | D10: =DATA!Z136 -> 1.58 | E10: =DATA!AB136 -> 7.5
A11: Harrow packers | B11: =DATA!Y137 -> 200 | C11: =DATA!X137 -> 25 | D11: =DATA!Z137 -> 0.53 | E11: =DATA!AB137 -> 7.5
A12: Vertical tillage tools | B12: =DATA!Y138 -> 100 | C12: =DATA!X138 -> 20 | D12: =DATA!Z138 -> 3.68 | E12: =DATA!AB138 -> 8
A13: Land roller | B13: =DATA!Y142 -> 75 | C13: =DATA!X142 -> 20 | D13: =DATA!Z142 -> 1.05 | E13: =DATA!AB142 -> 6
A14: Rock picker | B14: =DATA!Y163 -> 50 | C14: =DATA!X163 -> 25 | D14: =DATA!Z163 -> 1.05
A15: Land scrapers and ditchers | B15: =DATA!Y145 -> 80 | C15: =DATA!X145 -> 10 | D15: =DATA!Z145 -> 2.63
A16: High clearance sprayers | B16: =DATA!Y165 -> 175 | C16: =DATA!X165 -> 8 | D16: =DATA!Z165 -> 3.68 | E16: =DATA!AB165 -> 10
A17: Granular spin spreaders | B17: =DATA!Y154 -> 100 | C17: =DATA!X154 -> 20 | D17: =DATA!Z154 -> 1.58 | E17: =DATA!AB154 -> 5
A18: Granular boom spreaders | B18: =DATA!Y155 -> 100 | C18: =DATA!X155 -> 20 | D18: =DATA!Z155 -> 3.58 | E18: =DATA!AB155 -> 6
A19: Post pounder | B19: =DATA!Y169 -> 40 | C19: =DATA!X169 -> 20 | D19: =DATA!Z169 -> 2.1
A20: Vertical feed mixer | B20: =DATA!Y179 -> 200 | C20: =DATA!X179 -> 15 | D20: =DATA!Z179 -> 2.63
A21: Grinder mixers and feed mixers | B21: =DATA!Y182 -> 200 | C21: =DATA!X182 -> 15 | D21: =DATA!Z182 -> 3.15
A22: Bale processors | B22: =DATA!Y185 -> 200 | C22: =DATA!X185 -> 15 | D22: =DATA!Z185 -> 3.15
A23: Manure spreader | B23: =DATA!Y189 -> 100 | C23: =DATA!X189 -> 10 | D23: =DATA!Z189 -> 4.62

Sheet Appendix E (hidden)
A1: Appendix E
A3: Fuel Consumption Based on Engine Size

Sheet Appendix F(p1) (hidden)
N1: Appendix F
A3: Conversion Tables
A5: Dollars per Hectare or Acre
A6: Hectares or acres per hour | B6: Dollars Per Hour
B7: 20 | C7: 30 | D7: 40 | E7: 50 | F7: 60 | G7: 70 | H7: 80 | I7: 90 | J7: 100 | K7: 110 | L7: 120 | M7: 130 | N7: 140
A8: 2 | B8: =$B$7/A8 -> 10 | C8: =$C$7/A8 -> 15 | D8: =$D$7/A8 -> 20 | E8: =$E$7/A8 -> 25 | F8: =$F$7/A8 -> 30 | G8: =$G$7/A8 -> 35 | H8: =$H$7/A8 -> 40 | I8: =$I$7/A8 -> 45 | J8: =$J$7/A8 -> 50 | K8: =$K$7/A8 -> 55 | L8: =$L$7/A8 -> 60 | M8: =$M$7/A8 -> 65 | N8: =$N$7/A8 -> 70
A9: =A8+0.5 -> 2.5 | B9: =$B$7/A9 -> 8 | C9: =$C$7/A9 -> 12 | D9: =$D$7/A9 -> 16 | E9: =$E$7/A9 -> 20 | F9: =$F$7/A9 -> 24 | G9: =$G$7/A9 -> 28 | H9: =$H$7/A9 -> 32 | I9: =$I$7/A9 -> 36 | J9: =$J$7/A9 -> 40 | K9: =$K$7/A9 -> 44 | L9: =$L$7/A9 -> 48 | M9: =$M$7/A9 -> 52 | N9: =$N$7/A9 -> 56
A10: =A9+0.5 -> 3 | B10: 6.666666667 | C10: 10 | D10: 13.33333333 | E10: 16.66666667 | F10: 20 | G10: 23.33333333 | H10: 26.66666667 | I10: 30 | J10: 33.33333333 | K10: 36.66666667 | L10: 40 | M10: 43.33333333 | N10: 46.66666667
A11: 3.5 | B11: 5.714285714 | C11: 8.571428571 | D11: 11.42857143 | E11: 14.28571429 | F11: 17.14285714 | G11: 20 | H11: 22.85714286 | I11: 25.71428571 | J11: 28.57142857 | K11: 31.42857143 | L11: 34.28571429 | M11: 37.14285714 | N11: 40
A12: 4 | B12: 5 | C12: 7.5 | D12: 10 | E12: 12.5 | F12: 15 | G12: 17.5 | H12: 20 | I12: 22.5 | J12: 25 | K12: 27.5 | L12: 30 | M12: 32.5 | N12: 35
A13: 4.5 | B13: 4.444444444 | C13: 6.666666667 | D13: 8.888888889 | E13: 11.11111111 | F13: 13.33333333 | G13: 15.55555556 | H13: 17.77777778 | I13: 20 | J13: 22.22222222 | K13: 24.44444444 | L13: 26.66666667 | M13: 28.88888889 | N13: 31.11111111
A14: 5 | B14: 4 | C14: 6 | D14: 8 | E14: 10 | F14: 12 | G14: 14 | H14: 16 | I14: 18 | J14: 20 | K14: 22 | L14: 24 | M14: 26 | N14: 28
A15: 5.5 | B15: 3.636363636 | C15: 5.454545455 | D15: 7.272727273 | E15: 9.090909091 | F15: 10.90909091 | G15: 12.72727273 | H15: 14.54545455 | I15: 16.36363636 | J15: 18.18181818 | K15: 20 | L15: 21.81818182 | M15: 23.63636364 | N15: 25.45454545
A16: 6 | B16: 3.333333333 | C16: 5 | D16: 6.666666667 | E16: 8.333333333 | F16: 10 | G16: 11.66666667 | H16: 13.33333333 | I16: 15 | J16: 16.66666667 | K16: 18.33333333 | L16: 20 | M16: 21.66666667 | N16: 23.33333333
A17: 6.5 | B17: 3.076923077 | C17: 4.615384615 | D17: 6.153846154 | E17: 7.692307692 | F17: 9.230769231 | G17: 10.76923077 | H17: 12.30769231 | I17: 13.84615385 | J17: 15.38461538 | K17: 16.92307692 | L17: 18.46153846 | M17: 20 | N17: 21.53846154
A18: 7 | B18: 2.857142857 | C18: 4.285714286 | D18: 5.714285714 | E18: 7.142857143 | F18: 8.571428571 | G18: 10 | H18: 11.42857143 | I18: 12.85714286 | J18: 14.28571429 | K18: 15.71428571 | L18: 17.14285714 | M18: 18.57142857 | N18: 20
A19: 7.5 | B19: 2.666666667 | C19: 4 | D19: 5.333333333 | E19: 6.666666667 | F19: 8 | G19: 9.333333333 | H19: 10.66666667 | I19: 12 | J19: 13.33333333 | K19: 14.66666667 | L19: 16 | M19: 17.33333333 | N19: 18.66666667
A20: 8 | B20: 2.5 | C20: 3.75 | D20: 5 | E20: 6.25 | F20: 7.5 | G20: 8.75 | H20: 10 | I20: 11.25 | J20: 12.5 | K20: 13.75 | L20: 15 | M20: 16.25 | N20: 17.5
A21: 8.5 | B21: 2.352941176 | C21: 3.529411765 | D21: 4.705882353 | E21: 5.882352941 | F21: 7.058823529 | G21: 8.235294118 | H21: 9.411764706 | I21: 10.58823529 | J21: 11.76470588 | K21: 12.94117647 | L21: 14.11764706 | M21: 15.29411765 | N21: 16.47058824
A22: 9 | B22: 2.222222222 | C22: 3.333333333 | D22: 4.444444444 | E22: 5.555555556 | F22: 6.666666667 | G22: 7.777777778 | H22: 8.888888889 | I22: 10 | J22: 11.11111111 | K22: 12.22222222 | L22: 13.33333333 | M22: 14.44444444 | N22: 15.55555556
A23: 9.5 | B23: 2.105263158 | C23: 3.157894737 | D23: 4.210526316 | E23: 5.263157895 | F23: 6.315789474 | G23: 7.368421053 | H23: 8.421052632 | I23: 9.473684211 | J23: 10.52631579 | K23: 11.57894737 | L23: 12.63157895 | M23: 13.68421053 | N23: 14.73684211
A24: 10 | B24: 2 | C24: 3 | D24: 4 | E24: 5 | F24: 6 | G24: 7 | H24: 8 | I24: 9 | J24: 10 | K24: 11 | L24: 12 | M24: 13 | N24: 14
A25: 10.5 | B25: 1.904761905 | C25: 2.857142857 | D25: 3.80952381 | E25: 4.761904762 | F25: 5.714285714 | G25: 6.666666667 | H25: 7.619047619 | I25: 8.571428571 | J25: 9.523809524 | K25: 10.47619048 | L25: 11.42857143 | M25: 12.38095238 | N25: 13.33333333
A26: 11 | B26: 1.818181818 | C26: 2.727272727 | D26: 3.636363636 | E26: 4.545454545 | F26: 5.454545455 | G26: 6.363636364 | H26: 7.272727273 | I26: 8.181818182 | J26: 9.090909091 | K26: 10 | L26: 10.90909091 | M26: 11.81818182 | N26: 12.72727273
A27: 11.5 | B27: 1.739130435 | C27: 2.608695652 | D27: 3.47826087 | E27: 4.347826087 | F27: 5.217391304 | G27: 6.086956522 | H27: 6.956521739 | I27: 7.826086957 | J27: 8.695652174 | K27: 9.565217391 | L27: 10.43478261 | M27: 11.30434783 | N27: 12.17391304
A28: 12 | B28: 1.666666667 | C28: 2.5 | D28: 3.333333333 | E28: 4.166666667 | F28: 5 | G28: 5.833333333 | H28: 6.666666667 | I28: 7.5 | J28: 8.333333333 | K28: 9.166666667 | L28: 10 | M28: 10.83333333 | N28: 11.66666667
A29: =A28+0.5 -> 12.5 | B29: 1.6 | C29: 2.4 | D29: 3.2 | E29: 4 | F29: 4.8 | G29: 5.6 | H29: 6.4 | I29: 7.2 | J29: 8 | K29: 8.8 | L29: 9.6 | M29: 10.4 | N29: 11.2
A30: 13 | B30: 1.538461538 | C30: 2.307692308 | D30: 3.076923077 | E30: 3.846153846 | F30: 4.615384615 | G30: 5.384615385 | H30: 6.153846154 | I30: 6.923076923 | J30: 7.692307692 | K30: 8.461538462 | L30: 9.230769231 | M30: 10 | N30: 10.76923077
A31: 13.5 | B31: 1.481481481 | C31: 2.222222222 | D31: 2.962962963 | E31: 3.703703704 | F31: 4.444444444 | G31: 5.185185185 | H31: 5.925925926 | I31: 6.666666667 | J31: 7.407407407 | K31: 8.148148148 | L31: 8.888888889 | M31: 9.62962963 | N31: 10.37037037
A32: 14 | B32: 1.428571429 | C32: 2.142857143 | D32: 2.857142857 | E32: 3.571428571 | F32: 4.285714286 | G32: 5 | H32: 5.714285714 | I32: 6.428571429 | J32: 7.142857143 | K32: 7.857142857 | L32: 8.571428571 | M32: 9.285714286 | N32: 10
A33: 14.5 | B33: 1.379310345 | C33: 2.068965517 | D33: 2.75862069 | E33: 3.448275862 | F33: 4.137931034 | G33: 4.827586207 | H33: 5.517241379 | I33: 6.206896552 | J33: 6.896551724 | K33: 7.586206897 | L33: 8.275862069 | M33: 8.965517241 | N33: 9.655172414
A34: 15 | B34: 1.333333333 | C34: 2 | D34: 2.666666667 | E34: 3.333333333 | F34: 4 | G34: 4.666666667 | H34: 5.333333333 | I34: 6 | J34: 6.666666667 | K34: 7.333333333 | L34: 8 | M34: 8.666666667 | N34: 9.333333333
A35: 15.5 | B35: 1.290322581 | C35: 1.935483871 | D35: 2.580645161 | E35: 3.225806452 | F35: 3.870967742 | G35: 4.516129032 | H35: 5.161290323 | I35: 5.806451613 | J35: 6.451612903 | K35: 7.096774194 | L35: 7.741935484 | M35: 8.387096774 | N35: 9.032258065
A36: 16 | B36: 1.25 | C36: 1.875 | D36: 2.5 | E36: 3.125 | F36: 3.75 | G36: 4.375 | H36: 5 | I36: 5.625 | J36: 6.25 | K36: 6.875 | L36: 7.5 | M36: 8.125 | N36: 8.75
A37: 16.5 | B37: 1.212121212 | C37: 1.818181818 | D37: 2.424242424 | E37: 3.03030303 | F37: 3.636363636 | G37: 4.242424242 | H37: 4.848484848 | I37: 5.454545455 | J37: 6.060606061 | K37: 6.666666667 | L37: 7.272727273 | M37: 7.878787879 | N37: 8.484848485
A38: =A37+0.5 -> 17 | B38: 1.176470588 | C38: 1.764705882 | D38: 2.352941176 | E38: 2.941176471 | F38: 3.529411765 | G38: 4.117647059 | H38: 4.705882353 | I38: 5.294117647 | J38: 5.882352941 | K38: 6.470588235 | L38: 7.058823529 | M38: 7.647058824 | N38: 8.235294118
A39: 17.5 | B39: 1.142857143 | C39: 1.714285714 | D39: 2.285714286 | E39: 2.857142857 | F39: 3.428571429 | G39: 4 | H39: 4.571428571 | I39: 5.142857143 | J39: 5.714285714 | K39: 6.285714286 | L39: 6.857142857 | M39: 7.428571429 | N39: 8
A40: 18 | B40: 1.111111111 | C40: 1.666666667 | D40: 2.222222222 | E40: 2.777777778 | F40: 3.333333333 | G40: 3.888888889 | H40: 4.444444444 | I40: 5 | J40: 5.555555556 | K40: 6.111111111 | L40: 6.666666667 | M40: 7.222222222 | N40: 7.777777778

Sheet Appendix F(p2) (hidden)
A1: Appendix F
A3: Dollars per Hectare or Acre
A4: Hectares or acres per hour | B4: Dollars Per Hour
B5: 150 | C5: 160 | D5: 170 | E5: 180 | F5: 190 | G5: 200 | H5: 210 | I5: 220 | J5: 230 | K5: 240 | L5: 250 | M5: 260 | N5: 270
A6: 4 | B6: =$B$5/A6 -> 37.5 | C6: =$C$5/A6 -> 40 | D6: =$D$5/A6 -> 42.5 | E6: =$E$5/A6 -> 45 | F6: =$F$5/A6 -> 47.5 | G6: =$G$5/A6 -> 50 | H6: =$H$5/A6 -> 52.5 | I6: =$I$5/A6 -> 55 | J6: =$J$5/A6 -> 57.5 | K6: =$K$5/A6 -> 60 | L6: =$L$5/A6 -> 62.5 | M6: =$M$5/A6 -> 65 | N6: =$N$5/A6 -> 67.5
A7: =A6+0.5 -> 4.5 | B7: =$B$5/A7 -> 33.33333333 | C7: =$C$5/A7 -> 35.55555556 | D7: =$D$5/A7 -> 37.77777778 | E7: =$E$5/A7 -> 40 | F7: =$F$5/A7 -> 42.22222222 | G7: =$G$5/A7 -> 44.44444444 | H7: =$H$5/A7 -> 46.66666667 | I7: =$I$5/A7 -> 48.88888889 | J7: =$J$5/A7 -> 51.11111111 | K7: =$K$5/A7 -> 53.33333333 | L7: =$L$5/A7 -> 55.55555556 | M7: =$M$5/A7 -> 57.77777778 | N7: =$N$5/A7 -> 60
A8: =A7+0.5 -> 5 | B8: 30 | C8: 32 | D8: 34 | E8: 36 | F8: 38 | G8: 40 | H8: 42 | I8: 44 | J8: 46 | K8: 48 | L8: 50 | M8: 52 | N8: 54
A9: 5.5 | B9: 27.27272727 | C9: 29.09090909 | D9: 30.90909091 | E9: 32.72727273 | F9: 34.54545455 | G9: 36.36363636 | H9: 38.18181818 | I9: 40 | J9: 41.81818182 | K9: 43.63636364 | L9: 45.45454545 | M9: 47.27272727 | N9: 49.09090909
A10: 6 | B10: 25 | C10: 26.66666667 | D10: 28.33333333 | E10: 30 | F10: 31.66666667 | G10: 33.33333333 | H10: 35 | I10: 36.66666667 | J10: 38.33333333 | K10: 40 | L10: 41.66666667 | M10: 43.33333333 | N10: 45
A11: 6.5 | B11: 23.07692308 | C11: 24.61538462 | D11: 26.15384615 | E11: 27.69230769 | F11: 29.23076923 | G11: 30.76923077 | H11: 32.30769231 | I11: 33.84615385 | J11: 35.38461538 | K11: 36.92307692 | L11: 38.46153846 | M11: 40 | N11: 41.53846154
A12: 7 | B12: 21.42857143 | C12: 22.85714286 | D12: 24.28571429 | E12: 25.71428571 | F12: 27.14285714 | G12: 28.57142857 | H12: 30 | I12: 31.42857143 | J12: 32.85714286 | K12: 34.28571429 | L12: 35.71428571 | M12: 37.14285714 | N12: 38.57142857
A13: 7.5 | B13: 20 | C13: 21.33333333 | D13: 22.66666667 | E13: 24 | F13: 25.33333333 | G13: 26.66666667 | H13: 28 | I13: 29.33333333 | J13: 30.66666667 | K13: 32 | L13: 33.33333333 | M13: 34.66666667 | N13: 36
A14: 8 | B14: 18.75 | C14: 20 | D14: 21.25 | E14: 22.5 | F14: 23.75 | G14: 25 | H14: 26.25 | I14: 27.5 | J14: 28.75 | K14: 30 | L14: 31.25 | M14: 32.5 | N14: 33.75
A15: 8.5 | B15: 17.64705882 | C15: 18.82352941 | D15: 20 | E15: 21.17647059 | F15: 22.35294118 | G15: 23.52941176 | H15: 24.70588235 | I15: 25.88235294 | J15: 27.05882353 | K15: 28.23529412 | L15: 29.41176471 | M15: 30.58823529 | N15: 31.76470588
A16: 9 | B16: 16.66666667 | C16: 17.77777778 | D16: 18.88888889 | E16: 20 | F16: 21.11111111 | G16: 22.22222222 | H16: 23.33333333 | I16: 24.44444444 | J16: 25.55555556 | K16: 26.66666667 | L16: 27.77777778 | M16: 28.88888889 | N16: 30
A17: 9.5 | B17: 15.78947368 | C17: 16.84210526 | D17: 17.89473684 | E17: 18.94736842 | F17: 20 | G17: 21.05263158 | H17: 22.10526316 | I17: 23.15789474 | J17: 24.21052632 | K17: 25.26315789 | L17: 26.31578947 | M17: 27.36842105 | N17: 28.42105263
A18: 10 | B18: 15 | C18: 16 | D18: 17 | E18: 18 | F18: 19 | G18: 20 | H18: 21 | I18: 22 | J18: 23 | K18: 24 | L18: 25 | M18: 26 | N18: 27
A19: 10.5 | B19: 14.28571429 | C19: 15.23809524 | D19: 16.19047619 | E19: 17.14285714 | F19: 18.0952381 | G19: 19.04761905 | H19: 20 | I19: 20.95238095 | J19: 21.9047619 | K19: 22.85714286 | L19: 23.80952381 | M19: 24.76190476 | N19: 25.71428571
A20: 11 | B20: 13.63636364 | C20: 14.54545455 | D20: 15.45454545 | E20: 16.36363636 | F20: 17.27272727 | G20: 18.18181818 | H20: 19.09090909 | I20: 20 | J20: 20.90909091 | K20: 21.81818182 | L20: 22.72727273 | M20: 23.63636364 | N20: 24.54545455
A21: 11.5 | B21: 13.04347826 | C21: 13.91304348 | D21: 14.7826087 | E21: 15.65217391 | F21: 16.52173913 | G21: 17.39130435 | H21: 18.26086957 | I21: 19.13043478 | J21: 20 | K21: 20.86956522 | L21: 21.73913043 | M21: 22.60869565 | N21: 23.47826087
A22: =A21+0.5 -> 12 | B22: 12.5 | C22: 13.33333333 | D22: 14.16666667 | E22: 15 | F22: 15.83333333 | G22: 16.66666667 | H22: 17.5 | I22: 18.33333333 | J22: 19.16666667 | K22: 20 | L22: 20.83333333 | M22: 21.66666667 | N22: 22.5
A23: 12.5 | B23: 12 | C23: 12.8 | D23: 13.6 | E23: 14.4 | F23: 15.2 | G23: 16 | H23: 16.8 | I23: 17.6 | J23: 18.4 | K23: 19.2 | L23: 20 | M23: 20.8 | N23: 21.6
A24: 13 | B24: 11.53846154 | C24: 12.30769231 | D24: 13.07692308 | E24: 13.84615385 | F24: 14.61538462 | G24: 15.38461538 | H24: 16.15384615 | I24: 16.92307692 | J24: 17.69230769 | K24: 18.46153846 | L24: 19.23076923 | M24: 20 | N24: 20.76923077
A25: 13.5 | B25: 11.11111111 | C25: 11.85185185 | D25: 12.59259259 | E25: 13.33333333 | F25: 14.07407407 | G25: 14.81481481 | H25: 15.55555556 | I25: 16.2962963 | J25: 17.03703704 | K25: 17.77777778 | L25: 18.51851852 | M25: 19.25925926 | N25: 20
A26: 14 | B26: 10.71428571 | C26: 11.42857143 | D26: 12.14285714 | E26: 12.85714286 | F26: 13.57142857 | G26: 14.28571429 | H26: 15 | I26: 15.71428571 | J26: 16.42857143 | K26: 17.14285714 | L26: 17.85714286 | M26: 18.57142857 | N26: 19.28571429
A27: 14.5 | B27: 10.34482759 | C27: 11.03448276 | D27: 11.72413793 | E27: 12.4137931 | F27: 13.10344828 | G27: 13.79310345 | H27: 14.48275862 | I27: 15.17241379 | J27: 15.86206897 | K27: 16.55172414 | L27: 17.24137931 | M27: 17.93103448 | N27: 18.62068966
A28: 15 | B28: 10 | C28: 10.66666667 | D28: 11.33333333 | E28: 12 | F28: 12.66666667 | G28: 13.33333333 | H28: 14 | I28: 14.66666667 | J28: 15.33333333 | K28: 16 | L28: 16.66666667 | M28: 17.33333333 | N28: 18
A29: 15.5 | B29: 9.677419355 | C29: 10.32258065 | D29: 10.96774194 | E29: 11.61290323 | F29: 12.25806452 | G29: 12.90322581 | H29: 13.5483871 | I29: 14.19354839 | J29: 14.83870968 | K29: 15.48387097 | L29: 16.12903226 | M29: 16.77419355 | N29: 17.41935484
A30: 16 | B30: 9.375 | C30: 10 | D30: 10.625 | E30: 11.25 | F30: 11.875 | G30: 12.5 | H30: 13.125 | I30: 13.75 | J30: 14.375 | K30: 15 | L30: 15.625 | M30: 16.25 | N30: 16.875
A31: 16.5 | B31: 9.090909091 | C31: 9.696969697 | D31: 10.3030303 | E31: 10.90909091 | F31: 11.51515152 | G31: 12.12121212 | H31: 12.72727273 | I31: 13.33333333 | J31: 13.93939394 | K31: 14.54545455 | L31: 15.15151515 | M31: 15.75757576 | N31: 16.36363636
A32: 17 | B32: 8.823529412 | C32: 9.411764706 | D32: 10 | E32: 10.58823529 | F32: 11.17647059 | G32: 11.76470588 | H32: 12.35294118 | I32: 12.94117647 | J32: 13.52941176 | K32: 14.11764706 | L32: 14.70588235 | M32: 15.29411765 | N32: 15.88235294
A33: 17.5 | B33: 8.571428571 | C33: 9.142857143 | D33: 9.714285714 | E33: 10.28571429 | F33: 10.85714286 | G33: 11.42857143 | H33: 12 | I33: 12.57142857 | J33: 13.14285714 | K33: 13.71428571 | L33: 14.28571429 | M33: 14.85714286 | N33: 15.42857143
A34: 18 | B34: 8.333333333 | C34: 8.888888889 | D34: 9.444444444 | E34: 10 | F34: 10.55555556 | G34: 11.11111111 | H34: 11.66666667 | I34: 12.22222222 | J34: 12.77777778 | K34: 13.33333333 | L34: 13.88888889 | M34: 14.44444444 | N34: 15
A35: 18.5 | B35: 8.108108108 | C35: 8.648648649 | D35: 9.189189189 | E35: 9.72972973 | F35: 10.27027027 | G35: 10.81081081 | H35: 11.35135135 | I35: 11.89189189 | J35: 12.43243243 | K35: 12.97297297 | L35: 13.51351351 | M35: 14.05405405 | N35: 14.59459459
A36: =A35+0.5 -> 19 | B36: 7.894736842 | C36: 8.421052632 | D36: 8.947368421 | E36: 9.473684211 | F36: 10 | G36: 10.52631579 | H36: 11.05263158 | I36: 11.57894737 | J36: 12.10526316 | K36: 12.63157895 | L36: 13.15789474 | M36: 13.68421053 | N36: 14.21052632
A37: 19.5 | B37: 7.692307692 | C37: 8.205128205 | D37: 8.717948718 | E37: 9.230769231 | F37: 9.743589744 | G37: 10.25641026 | H37: 10.76923077 | I37: 11.28205128 | J37: 11.79487179 | K37: 12.30769231 | L37: 12.82051282 | M37: 13.33333333 | N37: 13.84615385
A38: 20 | B38: 7.5 | C38: 8 | D38: 8.5 | E38: 9 | F38: 9.5 | G38: 10 | H38: 10.5 | I38: 11 | J38: 11.5 | K38: 12 | L38: 12.5 | M38: 13 | N38: 13.5

Sheet Appendix F(p3) (hidden)
N1: Appendix F
A3: Dollars per Bale
A4: Bales per hour | B4: Dollars Per Hour
B5: 40 | C5: 50 | D5: 60 | E5: 70 | F5: 80 | G5: 90 | H5: 100 | I5: 110 | J5: 120 | K5: 130 | L5: 140 | M5: 150 | N5: 160
A6: 10 | B6: =$B$5/A6 -> 4 | C6: =$C$5/A6 -> 5 | D6: =$D$5/A6 -> 6 | E6: =$E$5/A6 -> 7 | F6: =$F$5/A6 -> 8 | G6: =$G$5/A6 -> 9 | H6: =$H$5/A6 -> 10 | I6: =$I$5/A6 -> 11 | J6: =$J$5/A6 -> 12 | K6: =$K$5/A6 -> 13 | L6: =$L$5/A6 -> 14 | M6: =$M$5/A6 -> 15 | N6: =$N$5/A6 -> 16
A7: 12 | B7: =$B$5/A7 -> 3.333333333 | C7: =$C$5/A7 -> 4.166666667 | D7: =$D$5/A7 -> 5 | E7: =$E$5/A7 -> 5.833333333 | F7: =$F$5/A7 -> 6.666666667 | G7: =$G$5/A7 -> 7.5 | H7: =$H$5/A7 -> 8.333333333 | I7: =$I$5/A7 -> 9.166666667 | J7: =$J$5/A7 -> 10 | K7: =$K$5/A7 -> 10.83333333 | L7: =$L$5/A7 -> 11.66666667 | M7: =$M$5/A7 -> 12.5 | N7: =$N$5/A7 -> 13.33333333
A8: 14 | B8: 2.857142857 | C8: 3.571428571 | D8: 4.285714286 | E8: 5 | F8: 5.714285714 | G8: 6.428571429 | H8: 7.142857143 | I8: 7.857142857 | J8: 8.571428571 | K8: 9.285714286 | L8: 10 | M8: 10.71428571 | N8: 11.42857143
A9: 16 | B9: 2.5 | C9: 3.125 | D9: 3.75 | E9: 4.375 | F9: 5 | G9: 5.625 | H9: 6.25 | I9: 6.875 | J9: 7.5 | K9: 8.125 | L9: 8.75 | M9: 9.375 | N9: 10
A10: 18 | B10: 2.222222222 | C10: 2.777777778 | D10: 3.333333333 | E10: 3.888888889 | F10: 4.444444444 | G10: 5 | H10: 5.555555556 | I10: 6.111111111 | J10: 6.666666667 | K10: 7.222222222 | L10: 7.777777778 | M10: 8.333333333 | N10: 8.888888889
A11: 20 | B11: 2 | C11: 2.5 | D11: 3 | E11: 3.5 | F11: 4 | G11: 4.5 | H11: 5 | I11: 5.5 | J11: 6 | K11: 6.5 | L11: 7 | M11: 7.5 | N11: 8
A12: 22 | B12: 1.818181818 | C12: 2.272727273 | D12: 2.727272727 | E12: 3.181818182 | F12: 3.636363636 | G12: 4.090909091 | H12: 4.545454545 | I12: 5 | J12: 5.454545455 | K12: 5.909090909 | L12: 6.363636364 | M12: 6.818181818 | N12: 7.272727273
A13: 24 | B13: 1.666666667 | C13: 2.083333333 | D13: 2.5 | E13: 2.916666667 | F13: 3.333333333 | G13: 3.75 | H13: 4.166666667 | I13: 4.583333333 | J13: 5 | K13: 5.416666667 | L13: 5.833333333 | M13: 6.25 | N13: 6.666666667
A14: 26 | B14: 1.538461538 | C14: 1.923076923 | D14: 2.307692308 | E14: 2.692307692 | F14: 3.076923077 | G14: 3.461538462 | H14: 3.846153846 | I14: 4.230769231 | J14: 4.615384615 | K14: 5 | L14: 5.384615385 | M14: 5.769230769 | N14: 6.153846154
A15: 28 | B15: 1.428571429 | C15: 1.785714286 | D15: 2.142857143 | E15: 2.5 | F15: 2.857142857 | G15: 3.214285714 | H15: 3.571428571 | I15: 3.928571429 | J15: 4.285714286 | K15: 4.642857143 | L15: 5 | M15: 5.357142857 | N15: 5.714285714
A16: 30 | B16: 1.333333333 | C16: 1.666666667 | D16: 2 | E16: 2.333333333 | F16: 2.666666667 | G16: 3 | H16: 3.333333333 | I16: 3.666666667 | J16: 4 | K16: 4.333333333 | L16: 4.666666667 | M16: 5 | N16: 5.333333333
A18: 100 | B18: 0.4 | C18: 0.5 | D18: 0.6 | E18: 0.7 | F18: 0.8 | G18: 0.9 | H18: 1 | I18: 1.1 | J18: 1.2 | K18: 1.3 | L18: 1.4 | M18: 1.5 | N18: 1.6
A19: 110 | B19: 0.3636363636 | C19: 0.4545454545 | D19: 0.5454545455 | E19: 0.6363636364 | F19: 0.7272727273 | G19: 0.8181818182 | H19: 0.9090909091 | I19: 1 | J19: 1.090909091 | K19: 1.181818182 | L19: 1.272727273 | M19: 1.363636364 | N19: 1.454545455
A20: 120 | B20: 0.3333333333 | C20: 0.4166666667 | D20: 0.5 | E20: 0.5833333333 | F20: 0.6666666667 | G20: 0.75 | H20: 0.8333333333 | I20: 0.9166666667 | J20: 1 | K20: 1.083333333 | L20: 1.166666667 | M20: 1.25 | N20: 1.333333333
A21: 130 | B21: 0.3076923077 | C21: 0.3846153846 | D21: 0.4615384615 | E21: 0.5384615385 | F21: 0.6153846154 | G21: 0.6923076923 | H21: 0.7692307692 | I21: 0.8461538462 | J21: 0.9230769231 | K21: 1 | L21: 1.076923077 | M21: 1.153846154 | N21: 1.230769231
A22: 140 | B22: 0.2857142857 | C22: 0.3571428571 | D22: 0.4285714286 | E22: 0.5 | F22: 0.5714285714 | G22: 0.6428571429 | H22: 0.7142857143 | I22: 0.7857142857 | J22: 0.8571428571 | K22: 0.9285714286 | L22: 1 | M22: 1.071428571 | N22: 1.142857143
A23: 150 | B23: 0.2666666667 | C23: 0.3333333333 | D23: 0.4 | E23: 0.4666666667 | F23: 0.5333333333 | G23: 0.6 | H23: 0.6666666667 | I23: 0.7333333333 | J23: 0.8 | K23: 0.8666666667 | L23: 0.9333333333 | M23: 1 | N23: 1.066666667
A24: 160 | B24: 0.25 | C24: 0.3125 | D24: 0.375 | E24: 0.4375 | F24: 0.5 | G24: 0.5625 | H24: 0.625 | I24: 0.6875 | J24: 0.75 | K24: 0.8125 | L24: 0.875 | M24: 0.9375 | N24: 1
A25: 170 | B25: 0.2352941176 | C25: 0.2941176471 | D25: 0.3529411765 | E25: 0.4117647059 | F25: 0.4705882353 | G25: 0.5294117647 | H25: 0.5882352941 | I25: 0.6470588235 | J25: 0.7058823529 | K25: 0.7647058824 | L25: 0.8235294118 | M25: 0.8823529412 | N25: 0.9411764706
A26: 180 | B26: 0.2222222222 | C26: 0.2777777778 | D26: 0.3333333333 | E26: 0.3888888889 | F26: 0.4444444444 | G26: 0.5 | H26: 0.5555555556 | I26: 0.6111111111 | J26: 0.6666666667 | K26: 0.7222222222 | L26: 0.7777777778 | M26: 0.8333333333 | N26: 0.8888888889
A27: 190 | B27: 0.2105263158 | C27: 0.2631578947 | D27: 0.3157894737 | E27: 0.3684210526 | F27: 0.4210526316 | G27: 0.4736842105 | H27: 0.5263157895 | I27: 0.5789473684 | J27: 0.6315789474 | K27: 0.6842105263 | L27: 0.7368421053 | M27: 0.7894736842 | N27: 0.8421052632
A28: 200 | B28: 0.2 | C28: 0.25 | D28: 0.3 | E28: 0.35 | F28: 0.4 | G28: 0.45 | H28: 0.5 | I28: 0.55 | J28: 0.6 | K28: 0.65 | L28: 0.7 | M28: 0.75 | N28: 0.8
A29: 210 | B29: 0.1904761905 | C29: 0.2380952381 | D29: 0.2857142857 | E29: 0.3333333333 | F29: 0.380952381 | G29: 0.4285714286 | H29: 0.4761904762 | I29: 0.5238095238 | J29: 0.5714285714 | K29: 0.619047619 | L29: 0.6666666667 | M29: 0.7142857143 | N29: 0.7619047619
A30: 220 | B30: 0.1818181818 | C30: 0.2272727273 | D30: 0.2727272727 | E30: 0.3181818182 | F30: 0.3636363636 | G30: 0.4090909091 | H30: 0.4545454545 | I30: 0.5 | J30: 0.5454545455 | K30: 0.5909090909 | L30: 0.6363636364 | M30: 0.6818181818 | N30: 0.7272727273
A31: 230 | B31: 0.1739130435 | C31: 0.2173913043 | D31: 0.2608695652 | E31: 0.3043478261 | F31: 0.347826087 | G31: 0.3913043478 | H31: 0.4347826087 | I31: 0.4782608696 | J31: 0.5217391304 | K31: 0.5652173913 | L31: 0.6086956522 | M31: 0.652173913 | N31: 0.6956521739
A32: 240 | B32: 0.1666666667 | C32: 0.2083333333 | D32: 0.25 | E32: 0.2916666667 | F32: 0.3333333333 | G32: 0.375 | H32: 0.4166666667 | I32: 0.4583333333 | J32: 0.5 | K32: 0.5416666667 | L32: 0.5833333333 | M32: 0.625 | N32: 0.6666666667
A33: 250 | B33: 0.16 | C33: 0.2 | D33: 0.24 | E33: 0.28 | F33: 0.32 | G33: 0.36 | H33: 0.4 | I33: 0.44 | J33: 0.48 | K33: 0.52 | L33: 0.56 | M33: 0.6 | N33: 0.64

Sheet Appendix F(p4) (hidden)
A1: Appendix F
A3: Hectares per Hour (at 80% field efficiency)
A4: Speed in km/h | B4: Width in Metres
B5: 2 | C5: 3 | D5: 4 | E5: 5 | F5: 6 | G5: 7 | H5: 8 | I5: 9 | J5: 10 | K5: 11 | L5: 12 | M5: 13 | N5: 14
A6: 2 | B6: =A6*$B$5/10*0.8 -> 0.32 | C6: =A6*$C$5/10*0.8 -> 0.48 | D6: =A6*$D$5/10*0.8 -> 0.64 | E6: =A6*$E$5/10*0.8 -> 0.8 | F6: =A6*$F$5/10*0.8 -> 0.96 | G6: =A6*$G$5/10*0.8 -> 1.12 | H6: =A6*$H$5/10*0.8 -> 1.28 | I6: =A6*$I$5/10*0.8 -> 1.44 | J6: =A6*$J$5/10*0.8 -> 1.6 | K6: =A6*$K$5/10*0.8 -> 1.76 | L6: =A6*$L$5/10*0.8 -> 1.92 | M6: =A6*$M$5/10*0.8 -> 2.08 | N6: =A6*$N$5/10*0.8 -> 2.24
A7: 3 | B7: =A7*$B$5/10*0.8 -> 0.48 | C7: =A7*$C$5/10*0.8 -> 0.72 | D7: =A7*$D$5/10*0.8 -> 0.96 | E7: =A7*$E$5/10*0.8 -> 1.2 | F7: =A7*$F$5/10*0.8 -> 1.44 | G7: =A7*$G$5/10*0.8 -> 1.68 | H7: =A7*$H$5/10*0.8 -> 1.92 | I7: =A7*$I$5/10*0.8 -> 2.16 | J7: =A7*$J$5/10*0.8 -> 2.4 | K7: =A7*$K$5/10*0.8 -> 2.64 | L7: =A7*$L$5/10*0.8 -> 2.88 | M7: =A7*$M$5/10*0.8 -> 3.12 | N7: =A7*$N$5/10*0.8 -> 3.36
A8: 4 | B8: =A8*$B$5/10*0.8 -> 0.64 | C8: =A8*$C$5/10*0.8 -> 0.96 | D8: =A8*$D$5/10*0.8 -> 1.28 | E8: =A8*$E$5/10*0.8 -> 1.6 | F8: =A8*$F$5/10*0.8 -> 1.92 | G8: =A8*$G$5/10*0.8 -> 2.24 | H8: =A8*$H$5/10*0.8 -> 2.56 | I8: =A8*$I$5/10*0.8 -> 2.88 | J8: =A8*$J$5/10*0.8 -> 3.2 | K8: =A8*$K$5/10*0.8 -> 3.52 | L8: =A8*$L$5/10*0.8 -> 3.84 | M8: =A8*$M$5/10*0.8 -> 4.16 | N8: =A8*$N$5/10*0.8 -> 4.48
A9: =A8+1 -> 5 | B9: 0.8 | C9: 1.2 | D9: 1.6 | E9: 2 | F9: 2.4 | G9: 2.8 | H9: 3.2 | I9: 3.6 | J9: 4 | K9: 4.4 | L9: 4.8 | M9: 5.2 | N9: 5.6
A10: =A9+1 -> 6 | B10: 0.96 | C10: 1.44 | D10: 1.92 | E10: 2.4 | F10: 2.88 | G10: 3.36 | H10: 3.84 | I10: 4.32 | J10: 4.8 | K10: 5.28 | L10: 5.76 | M10: 6.24 | N10: 6.72
A11: 7 | B11: 1.12 | C11: 1.68 | D11: 2.24 | E11: 2.8 | F11: 3.36 | G11: 3.92 | H11: 4.48 | I11: 5.04 | J11: 5.6 | K11: 6.16 | L11: 6.72 | M11: 7.28 | N11: 7.84
A12: 8 | B12: 1.28 | C12: 1.92 | D12: 2.56 | E12: 3.2 | F12: 3.84 | G12: 4.48 | H12: 5.12 | I12: 5.76 | J12: 6.4 | K12: 7.04 | L12: 7.68 | M12: 8.32 | N12: 8.96
A13: 9 | B13: 1.44 | C13: 2.16 | D13: 2.88 | E13: 3.6 | F13: 4.32 | G13: 5.04 | H13: 5.76 | I13: 6.48 | J13: 7.2 | K13: 7.92 | L13: 8.64 | M13: 9.36 | N13: 10.08
A14: 10 | B14: 1.6 | C14: 2.4 | D14: 3.2 | E14: 4 | F14: 4.8 | G14: 5.6 | H14: 6.4 | I14: 7.2 | J14: 8 | K14: 8.8 | L14: 9.6 | M14: 10.4 | N14: 11.2
A15: 11 | B15: 1.76 | C15: 2.64 | D15: 3.52 | E15: 4.4 | F15: 5.28 | G15: 6.16 | H15: 7.04 | I15: 7.92 | J15: 8.8 | K15: 9.68 | L15: 10.56 | M15: 11.44 | N15: 12.32
A16: 12 | B16: 1.92 | C16: 2.88 | D16: 3.84 | E16: 4.8 | F16: 5.76 | G16: 6.72 | H16: 7.68 | I16: 8.64 | J16: 9.6 | K16: 10.56 | L16: 11.52 | M16: 12.48 | N16: 13.44
A17: 13 | B17: 2.08 | C17: 3.12 | D17: 4.16 | E17: 5.2 | F17: 6.24 | G17: 7.28 | H17: 8.32 | I17: 9.36 | J17: 10.4 | K17: 11.44 | L17: 12.48 | M17: 13.52 | N17: 14.56
A18: 14 | B18: 2.24 | C18: 3.36 | D18: 4.48 | E18: 5.6 | F18: 6.72 | G18: 7.84 | H18: 8.96 | I18: 10.08 | J18: 11.2 | K18: 12.32 | L18: 13.44 | M18: 14.56 | N18: 15.68
A19: 15 | B19: 2.4 | C19: 3.6 | D19: 4.8 | E19: 6 | F19: 7.2 | G19: 8.4 | H19: 9.6 | I19: 10.8 | J19: 12 | K19: 13.2 | L19: 14.4 | M19: 15.6 | N19: 16.8
A20: 16 | B20: 2.56 | C20: 3.84 | D20: 5.12 | E20: 6.4 | F20: 7.68 | G20: 8.96 | H20: 10.24 | I20: 11.52 | J20: 12.8 | K20: 14.08 | L20: 15.36 | M20: 16.64 | N20: 17.92
A21: =A20+1 -> 17 | B21: 2.72 | C21: 4.08 | D21: 5.44 | E21: 6.8 | F21: 8.16 | G21: 9.52 | H21: 10.88 | I21: 12.24 | J21: 13.6 | K21: 14.96 | L21: 16.32 | M21: 17.68 | N21: 19.04
A22: 18 | B22: 2.88 | C22: 4.32 | D22: 5.76 | E22: 7.2 | F22: 8.64 | G22: 10.08 | H22: 11.52 | I22: 12.96 | J22: 14.4 | K22: 15.84 | L22: 17.28 | M22: 18.72 | N22: 20.16
A24: Acres per Hour (at 80% field efficiency)
A25: Speed in mph | B25: Width in Feet
B26: 6 | C26: 10 | D26: 14 | E26: 18 | F26: 22 | G26: 26 | H26: 30 | I26: 34 | J26: 38 | K26: 42 | L26: 46 | M26: 50 | N26: 54
A27: 3 | B27: =A27*$B$26*640/5280*0.8 -> 1.745454545 | C27: =A27*$C$26*640/5280*0.8 -> 2.909090909 | D27: =A27*$D$26*640/5280*0.8 -> 4.072727273 | E27: =A27*$E$26*640/5280*0.8 -> 5.236363636 | F27: =A27*$F$26*640/5280*0.8 -> 6.4 | G27: =A27*$G$26*640/5280*0.8 -> 7.563636364 | H27: =A27*$H$26*640/5280*0.8 -> 8.727272727 | I27: =A27*$I$26*640/5280*0.8 -> 9.890909091 | J27: =A27*$J$26*640/5280*0.8 -> 11.05454545 | K27: =A27*$K$26*640/5280*0.8 -> 12.21818182 | L27: =A27*$L$26*640/5280*0.8 -> 13.38181818 | M27: =A27*$M$26*640/5280*0.8 -> 14.54545455 | N27: =A27*$N$26*640/5280*0.8 -> 15.70909091
A28: =A27+1 -> 4 | B28: =A28*$B$26*640/5280*0.8 -> 2.327272727 | C28: =A28*$C$26*640/5280*0.8 -> 3.878787879 | D28: =A28*$D$26*640/5280*0.8 -> 5.43030303 | E28: =A28*$E$26*640/5280*0.8 -> 6.981818182 | F28: =A28*$F$26*640/5280*0.8 -> 8.533333333 | G28: =A28*$G$26*640/5280*0.8 -> 10.08484848 | H28: =A28*$H$26*640/5280*0.8 -> 11.63636364 | I28: =A28*$I$26*640/5280*0.8 -> 13.18787879 | J28: =A28*$J$26*640/5280*0.8 -> 14.73939394 | K28: =A28*$K$26*640/5280*0.8 -> 16.29090909 | L28: =A28*$L$26*640/5280*0.8 -> 17.84242424 | M28: =A28*$M$26*640/5280*0.8 -> 19.39393939 | N28: =A28*$N$26*640/5280*0.8 -> 20.94545455
A29: =A28+1 -> 5 | B29: 2.909090909 | C29: 4.848484848 | D29: 6.787878788 | E29: 8.727272727 | F29: 10.66666667 | G29: 12.60606061 | H29: 14.54545455 | I29: 16.48484848 | J29: 18.42424242 | K29: 20.36363636 | L29: 22.3030303 | M29: 24.24242424 | N29: 26.18181818
A30: 6 | B30: 3.490909091 | C30: 5.818181818 | D30: 8.145454545 | E30: 10.47272727 | F30: 12.8 | G30: 15.12727273 | H30: 17.45454545 | I30: 19.78181818 | J30: 22.10909091 | K30: 24.43636364 | L30: 26.76363636 | M30: 29.09090909 | N30: 31.41818182
A31: 7 | B31: 4.072727273 | C31: 6.787878788 | D31: 9.503030303 | E31: 12.21818182 | F31: 14.93333333 | G31: 17.64848485 | H31: 20.36363636 | I31: 23.07878788 | J31: 25.79393939 | K31: 28.50909091 | L31: 31.22424242 | M31: 33.93939394 | N31: 36.65454545
A32: 8 | B32: 4.654545455 | C32: 7.757575758 | D32: 10.86060606 | E32: 13.96363636 | F32: 17.06666667 | G32: 20.16969697 | H32: 23.27272727 | I32: 26.37575758 | J32: 29.47878788 | K32: 32.58181818 | L32: 35.68484848 | M32: 38.78787879 | N32: 41.89090909
A33: 9 | B33: 5.236363636 | C33: 8.727272727 | D33: 12.21818182 | E33: 15.70909091 | F33: 19.2 | G33: 22.69090909 | H33: 26.18181818 | I33: 29.67272727 | J33: 33.16363636 | K33: 36.65454545 | L33: 40.14545455 | M33: 43.63636364 | N33: 47.12727273
A34: 10 | B34: 5.818181818 | C34: 9.696969697 | D34: 13.57575758 | E34: 17.45454545 | F34: 21.33333333 | G34: 25.21212121 | H34: 29.09090909 | I34: 32.96969697 | J34: 36.84848485 | K34: 40.72727273 | L34: 44.60606061 | M34: 48.48484848 | N34: 52.36363636
A35: 11 | B35: 6.4 | C35: 10.66666667 | D35: 14.93333333 | E35: 19.2 | F35: 23.46666667 | G35: 27.73333333 | H35: 32 | I35: 36.26666667 | J35: 40.53333333 | K35: 44.8 | L35: 49.06666667 | M35: 53.33333333 | N35: 57.6
A36: 12 | B36: =A36*$B$26*640/5280*0.8 -> 6.981818182 | C36: =A36*$C$26*640/5280*0.8 -> 11.63636364 | D36: =A36*$D$26*640/5280*0.8 -> 16.29090909 | E36: =A36*$E$26*640/5280*0.8 -> 20.94545455 | F36: =A36*$F$26*640/5280*0.8 -> 25.6 | G36: =A36*$G$26*640/5280*0.8 -> 30.25454545 | H36: =A36*$H$26*640/5280*0.8 -> 34.90909091 | I36: =A36*$I$26*640/5280*0.8 -> 39.56363636 | J36: =A36*$J$26*640/5280*0.8 -> 44.21818182 | K36: =A36*$K$26*640/5280*0.8 -> 48.87272727 | L36: =A36*$L$26*640/5280*0.8 -> 53.52727273 | M36: =A36*$M$26*640/5280*0.8 -> 58.18181818 | N36: =A36*$N$26*640/5280*0.8 -> 62.83636364
A37: 13 | B37: 7.563636364 | C37: 12.60606061 | D37: 17.64848485 | E37: 22.69090909 | F37: 27.73333333 | G37: 32.77575758 | H37: 37.81818182 | I37: 42.86060606 | J37: 47.9030303 | K37: 52.94545455 | L37: 57.98787879 | M37: 63.03030303 | N37: 68.07272727
A38: 14 | B38: 8.145454545 | C38: 13.57575758 | D38: 19.00606061 | E38: 24.43636364 | F38: 29.86666667 | G38: 35.2969697 | H38: 40.72727273 | I38: 46.15757576 | J38: 51.58787879 | K38: 57.01818182 | L38: 62.44848485 | M38: 67.87878788 | N38: 73.30909091
A39: 15 | B39: 8.727272727 | C39: 14.54545455 | D39: 20.36363636 | E39: 26.18181818 | F39: 32 | G39: 37.81818182 | H39: 43.63636364 | I39: 49.45454545 | J39: 55.27272727 | K39: 61.09090909 | L39: 66.90909091 | M39: 72.72727273 | N39: 78.54545455
